Workbook

Sheet References & Citations
B2: Select Sources of Cover Crop Information Used in the Development of Cover Crop Tool Version 2.1
B4: Nutrient Credits
B5: How do we determine nutrient credits from cover crops? Most recent research has demonstrated that no N can be credited where grass cover crops are used. Forage radishes can absorb large amounts of plant available N provided they are seeded early enough and conditions exist for adequate growth prior to cold temperatures. Surprisingly, it has been difficult to determine a nitrogen replacement value to the following crop in spite of large amounts of N in the tissue. It is likely, that the N in radish monocultures is released long before a subsequent crop such as corn can utilize the nitrogen. Significant nitrogen replacement values (N credits) have only been consistently observed with legume cover crops that have achieved sufficient top growth prior to termination. We will provide some supplemental information for N credits to be used for legume cover crops. At present, estimating plant available nitrogen released by cover crops during the growing season of the main crop is very, very inexact. In some cases, depending on weather, soil conditions, past activities, cover crop species composition and termination methods and dates plant available nitrogen can actually be immobilized for most of the growing period of the cash crop. Using cover crop credits for nutrient “accounting” should be used with caution. Unfortunately, nutrient cycling is a very complicated process mediated by environmental factors and microbial activities and seldom can be determined using simple “accounting” methods. (B. Roberts, State Agronomist, Illinois.)
B7: Scientific References
B8: Proceedings of Midwest Cover Crop Symposium, 2/2014
B9: http://extension.missouri.edu/sare/covercropsymposium.aspx
B11: G.D. Schaible & M.P. Aillery (ERS) Water Conservation in Irrigated Agriculture: Trends and Challenges in the Face of Emerging Demands. Economic Research Service; Economic Information Bulletin Number 99, September 2012
B12: http://www.ers.usda.gov/media/884158/eib99.pdf
B14: R.Nieder, D.K. Benbi, Carbon and Nitrogen in the Terrestrial Environment ISBN 978-1-4020-8432-4; e-ISBN 978-1-4020-8433-1; published May, 2008
B16: J.J. Hoorman and R. Islam-Ohio State University-Nutrient Recycling with Manure and Cover Crops: presented at the 2007 Indiana Certified Crop Adviser Conference
B17: http://www.agry.purdue.edu/CCA/2007/index.htm
B19: Soil Science Society of America, Glossary of Soil Science Terms
B20: https://www.soils.org/publications/soils-glossary#
B22: S.S. Snapp, S.M. Swinton, R. Labarta, D. Mutch, J.R. Black, R. Leep, J. Nyiraneza, & K. O’Neil: Evaluating Cover Crops for Benefits, Costs, and Performance within Cropping System Niches Published in Agronomy Journal. 97:322–332 (2005). American Society of Agronomy
B23: https://www.soils.org/publications/aj/abstracts/97/1/0322
B25: D.W. Reeves: The Role of Soil Organic Matter in Maintaining Soil Quality in Continuous Cropping Systems: USDA-ARS National Soil dynamics Laboratory, Soil & Tillage Research 43 (1997) 131-167
B26: http://faculty.washington.edu/elizaw/SOC.pdf
B28: Ball, Don. M., Ed N. Ballard, Mark L. Kennedy, Garry D. Lacefield, and Dan J. Undersander, (2008). Extending Grazing and Reducing Stored Feed Needs. Grazing Lands Conservation Initiative Publication 8-01, Bryan, TX.
B29: https://www.agry.purdue.edu/ext/forages/pdf/ExtendingGrazing-Auburn.pdf
B31: Hansen, LeRoy, and Marc Ribaudo. Economic Measures of Soil Conservation Benefits: Regional Values for Policy Assessment, TB-1922. U.S. Dept. of Agriculture, Econ. Res. Serv. September 2008.
B32: http://www.ers.usda.gov/media/196118/tb1922.pdf
B34: Atwood, Bowen, Buland, et.al.-Benefit-Cost Analysis for the Environmental Quality Incentives Program (EQIP); Food, Conservation, and Energy Act of 2008-Title II – Conservation-Subtitle F – Environmental Quality Incentives Program: January 2009 www.nrcs.usda.gov (titled: Interim Final Benefit-Cost Analysis for the Environmental Quality Incentives Program (EQIP)
B36: Kansas State Extension Agronomy e-Update, Number 357, July 6, 2012
B37: http://www.agronomy.k-state.edu/documents/eupdates/eupdate070612.pdf
B39: Mike Plumer presentations: Impact of Using Cover Crops, and Cover Crop use in Southern Illinois-presented November 2013
B41: J.W. Singer & J.P. Gruver: Economics of Expanding Cover Crop Adoption in the Upper Mississippi River Basin
B43: Understanding the Discount Rate
B45: In order to compute a net present value, future benefits and costs must be discounted to the current time period. This is simply a reflection of the time value of money. The higher the discount rate, the lower the net present value.
B47: In the low interest rate and inflation environments experienced up to and including the year 2014, a common discount rate has been 2%-3%. That is because for most NRCS analysis, technical guidance has been to use the 10 year nominal rate.
B49: The link to all of the Nominal and Real Interest Rates (Treasury) can be found at:
B50: http://www.whitehouse.gov/sites/default/files/omb/assets/a94/dischist-2014.pdf
B53: Irrigation Notes
B55: In 2008, variable irrigation costs across the West averaged about $91 per acre for a farm using on farm surface water, $129 per acre for a farm pumping groundwater, and $144 per acre for a farm pumping purchased surface water and using contract labor. In the 31 Eastern States, average variable irrigation costs ranged from $65 to $75 per acre. Average costs were lower in Eastern States because groundwater pumping depths are generally shallower and purchased-water costs averaged less than $10 per acre, compared with $66 per acre in the West (purchased water from off-farm sources account for less than 4 percent of irrigation water supplies in Eastern States).
B57: The 2003 Farm and Ranch Irrigation Survey reported 32.3 million acres irrigated with groundwater, having acquisition costs of $29 per acre foot and 13.8 million acres irrigated with off-farm surface water at $18 per acre-foot, including supply cost and variable cost. The weighted average value of the water is $25.73. Updating these values from 2003 to 2007 provides an estimated value of $28.56 per acre-foot. Using the 5.41 acre-inch efficiency gain per year, and assuming a 20-percent loss in storage and transmission produces an annual per-acre benefit of $10.30.
B59: An Acre Foot of Water is 325,851 gallons
B60: An Acre Inch of Water is 27,154 gallons

Sheet Instructions
B2: Economic Analysis of Cover Crops
B3: Version 1.1: Released 4/25/2014
B4: Version 2.1: Released 10/20/2014 (updates associated with this version are in blue text below)
B6: Developed by:
B7: Lauren Cartwright, State Economist, USDA/NRCS-Missouri (lauren.cartwright@mo.usda.gov)
B8: Bryon Kirwan, State Economist USDA/NRCS-Illinois (bryon.kirwan@il.usda.gov)
B10: Guidance for using the Cover Crop Tool
B12: The tool utilizes macros to function properly. Be sure you have macros enabled before attempting to run the tool.
B15: This tool was built and designed as a partial budget analysis tool. A partial budget only captures the costs and benefits that are expected due to a change in the operation. Therefore, cost and benefit variables should only be entered where they represent a change from the baseline operation.
B20: While the tool will not capture every potential cost and benefit to introducing cover crops into your operation; it can serve as a guide as to the expected economic returns both in the short run and in the long run in your operation as you consider the addition of cover crops. This tool derives results from user supplied values. Additional guidance regarding variables and their values is provided below. All user input variables in the model are identified as white boxes.
B26: Short Term Analysis Notes
B28: Getting Started
B29: Default Scenarios - The model is able to store and retrieve up to 5 default scenarios. The default scenarios are useful to provide a starting point for running the model. Any variables in a default scenario can be changed at any time. When the model is downloaded, several default options are already programmed into the model. To view and retrieve these default options select the default button at the beginning of the model.
B31: The user has the option to save any edits to a default scenario, or build completely new default scenarios. These options are available at the end of the long term analysis. See the Long Term Analysis Notes section of these instructions below for guidance editing and building default scenarios.
B33: Select Crop rotation - To start a new model from scratch, select your typical rotation length from the drop down menu provided. You can model up to a 5 year rotation.
B35: Example rotations include: continuous corn or soybeans (1 year), corn/soybean (2 years), corn/wheat-double crop soybean (2 years), corn/soybean/full season wheat (3 years). Be sure to select the rotation length based on the existing rotation even if you only plan to incorporate cover crops into part of the rotation. For example, you only plan on planting cover crops before soybeans in a corn/bean rotation. Select the rotation length of 2 years and only enter the cover crop related costs and benefits into the cover crop - Soybean part of the model. All of the variables associated with the corn rotation should be zero.
B43: After you select the rotation length from the drop down menu, click on the “Start Model” button to begin entering information.
B47: Several additional button options are available once you start your model.
B50: To start a new model with a different rotation length click on the “Start New Model" Button. The “Clear Entries” button will clear the data entered for the current model.
B53: Scenario Description
B54: This is a text box that is avaible to the user to describe the scenario being modeled. It's use is optional, but is useful when running several "what if" scenarios.
B56: Rotation Information
B57: Use the text box(es) available in row 30 to identify the cash crop(s) you are modeling. Enter the crop unit (e.g. bu, ton, lb, etc.), the baseline/expected yields and prices in the white boxes in rows 32, 33 and 34. Since crop yields and prices fluctuate from year to year, we recommend utilizing a 3 to 5 year average for the purpose of the model.
B62: Costs
B63: Cover Crop Establishment and Management:
B64: The model is set up to model the cover crop that is established prior to the cash crop in each year of the model rotation. For example; in a soybean corn rotation where cereal rye is planted after the corn and before soybean, the costs associated with the establishment of the cereal rye cover crop is modeled with the soybean part of the rotation.
B65: A text box is provided in row 40 to enter information about the cover crop modeled such as the species and seeding rates for mixes.
B66: Enter the expected cover crop seeding rates and expected costs into the white boxes in rows 42-47.
B68: The seeding rate (lb/ac) and seed cost ($/lb) is the total calculated rate and cost for either a monoculture cover crop planting or a mixed species planting. There are tools available online that can assist in determining the seeding rates for monocultures and mixes such as the Midwest Cover Crop Council Cover Crop Decision Tool (http://www.mccc.msu.edu/selectorINTRO.html). Seed costs are typically available through local seed vendors, or various online resources.
B74: Planting cost captures the time and machinery cost to plant the cover crop. The Machinery Cost Calculator tool is recommended for calculating these costs (See below)
B77: Termination cost includes the cost of the machinery pass or passes and any herbicide used as part of the cover crop termination process. The termination costs should only include any costs above and beyond activities the producer may already utilize as part of a pre-plant procedure. Crops that are terminated by weather (freeze kill) would not have a termination cost typically. The Machinery Cost Calculator tool is recommended for calculating these costs (See below)
B82: Increased Management cost is a general category to capture any additional management costs a producer may incur as a result of incorporating cover crops into rotation. Examples include; extra time spent walking the fields to assess the cover crop progress, extra time spent adjusting equipment, etc. Increased management costs may be calculated by estimating the additional hours you spend on these additional management activities multiplied by an hourly value; such as $20/hr. This product divided by the acres the cover crop is planted on gives the per acre value.
B89: Machinery Cost Calculator: A tool is available to assist in calculating the per acre costs for any cover crop establishment and manangement activities involving machinery. To access the tool select the worksheet entitled "MachCostData" from the tabs at the bottom of the excel workbook. The machinery cost estimator includes step by step instructions. You will manually enter the results from the machinery cost estimate tool into the cover crop tool.
B93: Yield Decrease:
B94: Enter any potential yield decrease in row 53. If you do not believe there will be any yield reduction, enter 0. Within the benefits section of the tool there is the ability to model a yield increase as a result of the addition of the cover crop. Be sure not to model a yield decrease and yield increase at the same time in the rotation.
B99: The yield decrease variable can be utilized as a risk variable to capture the risk that the cover crop termination may not be well managed and cause competition to the following cash crop. There may be risk associated with allelopathic or nutrient tie up with some cover crops ahead of certain cash crops if not well managed such as cereal rye ahead of corn. In some situations, there is the potential for the cover crop to deplete soil moisture resulting in a decrease in yield of the following cash crop.
B106: The yield decrease variable can also be utilized to model a change in the cash crop to a shorter season variety which may have lower average yields. The potential benefits of the shorter season cash crop variety is the longer window of opportunity for the cover crop preceding that cash crop to reach maximum potential prior to termination; such as legumes fixing more nitrogen the longer they are allowed to grow in the spring, or the extra biomass produced for additional weed control and moisture management.
B113: Other Costs:
B114: This is an area to capture additional costs not captured in the other available cost categories. Use the text box provided in row 58 to identify the cost you are modeling, and enter the related value in row 60. An example of an "other cost" is machinery retrofit that may be needed for planting into denser residue.
B119: Benefits
B120: The benefits in the Short Term Analysis are those expected to be realized during one rotation. Longer term benefits are captured in the next part of the analysis.
B123: Direct Nutrient Credit:
B124: Begin by inputting values for the primary crop nutrients in rows 69-71. Enter expected nutrient credits in rows 73-75 for each crop in the rotation. Refer to the References and Citations worksheet for some additional guidance on expected direct nutrient credits. Direct credits are those credits expected to be provided in the year the cover crop is planted, and are typically modest amounts.
B130: Herbicide/insecticide/fungicide input reduction:
B131: Herbicide, insecticide and fungicide inputs may be reduced both directly and indirectly. For any of the chemical categories (herbicide/insecticide/fungicide) you expect a reduction, enter the cost per acre that you typically use on the specific cash crop, and then enter the percent reduction you expect as a result of the cover crop. The per acre cost includes the cost of teh chemical and the application. Enter expected costs and expected reductions in rows 82-89 for each crop.
B138: Expected increases in herbicide use or increases in herbicide costs due to changing products as a result of the addition of the cover crop should be captured in the termination cost variable (row 46) in the cover crop establishment and management section.
B142: Expected increases in insecticide or fungicide use as a result of the addition of the cover crop should be captured in the Other Cost section (row 60).
B145: Yield Increase:
B146: When cover crops resolve yield limiting factors (e.g., compaction, moisture, N availability), subsequent crop growth is enhanced. Enter any expected yield increases in row 95 for each crop.
B149: Within the costs section of the tool there is the ability to model a yield decrease as a result of the addition of the cover crop. Be sure not to model a yield decrease and yield increase at the same time in the rotation.
B153: Erosion Reduction:
B154: Cover crops may provide soil conservation benefits in the reduction of on-site erosion. The value of that reduced erosion is captured in two variables: the value of lost fertility and the off-site water quality benefits. Suggested values based upon peer reviewed literature are $2.10/ton for the value of lost fertility and $4.93/ton for the value of off site water quality benefits. Enter the values for on site lost fertility and off site water quality benefits in rows 101 and 102. Then enter the tons of erosion prevented from leaving the field as a result of the addition of cover crops in row 106 for each applicable year of the rotation.
B156: The lost fertility value is calculated based on the assumption that on average, topsoil consists of 40 pounds of organic matter or 23.2 pounds of carbon. With an average carbon nitrogen ratio of 10 to 1, each ton of soil eroded contains 2.32 pounds of nitrogen that would need to be replaced by the producer. The soil also contains 0.05 percent phosphorus, or one pound per ton of soil.
B158: Improved water quality benefits were estimated by a comparison of three studies as described in the EQIP benefit-cost analysis.
B160: Enter other costs prevented per acre due to reducing erosion such as machinery costs to repair erosion in the field or ditches in row 110.
B162: Other Benefits:
B163: This is an area to enter additional benefits (e.g. reduced tillage costs) not captured in the other available benefit categories. Use the text box provided in row 115 to identify the benefit you are modeling, and enter the related value in row 117.
B165: Grazing, Baling, or Seed Production:
B166: One of the most reliable ways to capture value from cover crops is livestock utilization of cover crops. If you have ruminant livestock in your operation, or have the opportunity to rent fields for grazing or mechanical harvesting to a ruminant livestock producer, this part of the tool will allow you to quantify the value of this cover crop benefit. Select the Open Grazing and/or Open Baling buttons and make the associated entries in those areas. (The Grazing option allowed users to differentiate between stocker and cow calf operations). The benefit values entered in these areas need to be reflective of expected values based upon the cover crop that is being modeled in the rotation (e.g. some cover crop species, or mixes will have higher forage value than others). If cover crop biomass is baled and removed, nutrient removal should be considered as part of the overall model scenario. When modeling the grazing benefit for a stocker operation, the average daily gain value represents the gain that is expected in excess of the forage/feed that is normally available to the animals in the time frame the grazing takes place.
B179: Note on the grazing option: At this time the grazing portion of the analysis assumes a producer that already has a grazing enterprise as part of the operation (either stocker or cow calf). Therefore, the variables in this section of the model are only capturing the costs and benfits associated with grazing the producer's existing herd on the cover crops for added value over the feed normally available to the animals during that time frame. The model is not set up at this time to model the addition of a grazing enterprise to an existing operation that does not currently include cows.
B181: Another opportunity is to harvest the cover crop for seed/grain before planting the following cash crop. If you are looking to expand your operation into the area of seed production, there is an opportunity to incorporate that value into the benefits section. Select the Open Seed Production button to enter the data regarding this choice. For purposes of this tool, this is not being evaluated as another crop or enterprise in rotation.
B187: Short Term Analysis Results
B188: The short term analysis results show the Total Cost, Total Benefit, and Net Benefit for each year of the rotation.
B191: After you have completed the short term analysis of your chosen crop rotation, select the Continue to Long Term Analysis button at the bottom of the page in order to evaluate your chosen rotation over a longer period of time.
B195: Long Term Analysis Notes
B197: General Information
B199: Analysis Lifespan:
B200: Analysis Lifespan is the full period over which a practice can be analyzed. A long term view is up to 50 years in this model. Expected range for long term analysis is 10-50 years. Enter your timeframe for analysis in row 14.
B204: Discount Rate:
B205: The Discount Rate is a commonly published value used in amortizations. 3% has been a common value in a low interest rate environment. Refer to the References and Citations worksheet for some additional guidance on discount rate. Enter this value in row 15.
B209: Current Soil Organic Matter (SOM) (%):
B210: Current Soil Organic Matter (%) is expressed in humus content. This is the common expression of soil organic matter commonly found in University soil descriptions. Enter your current soil organic matter percent value in row 16
B214: Estimate of years of management change to increase SOM 1%:
B215: Estimate of years of management change to increase SOM 1% is based on increasing the active carbon content. This value is the additional organic matter typically discussed when adding cover crops to a crop rotation. Current science indicates that 10 years is an adequate minimum target to increase SOM by 1%. Degraded soils accumulate organic matter more readily than soils already near potential levels. A mathematical explanation would also be that an acre slice weighs approximately 2 million pounds. A good corn crop will produce approximately 10 tons of residues per acre, and approximately 6% of this total remains as active carbon over time. Based upon these variables, it would take 17 years to raise the active carbon component 1%. (Univ. of Missouri Cover Crop Symposium). (The time to raise total organic matter levels is measured in decades and centuries). Enter your estimate of the expected years of management change to increase SOM in your system in row 17.
B227: NOTE: The Analysis Lifespan (years) must be greater than the Estimate of years of mgmt change to increase SOM 1% in order for the long term analysis results to begin capturing the long term benefits.
B231: Estimate of maximum potential SOM (%):
B232: The soil organic matter of an undisturbed fence row may provide some guidelines to the potential of a soil. Enter your selected value in row 18.
B235: Costs
B236: Total amortized costs per year are listed in row 32. The costs shown in this section are based on the information entered into the short term analysis and amortized over the long term analysis lifespan utilizing the analysis lifespan and discount rate entered in the General Information.
B240: Short Term Benefits
B241: Total amortized benefits per year are listed in rows 38-44. The short term benefits shown in this section are based on the information entered into the short term analysis and amortized over the long term analysis lifespan utilizing the analysis lifespan and discount rate entered in the General Information.
B246: Long Term Benefits
B248: Overall soil fertility benefit:
B249: Cover crops, when utilized as part of a crop rotation over many years may have a significant impact on the physical and biological properties of the soil. The potential for improvement will depend on the starting condition of the soil, the inherent properties of the soil and tillage practices. This benefit category captures the long term value of the potential increase in plant available nitrogen, phosphorus, and potassium. The nutrient values ($/lb) for N, P and K are populated based on the values entered in the Short Term analysis. In addition, two areas that are not often valued, but may have benefits in the future are the values for Sulfur and Carbon. To capture an economic benefit for these two nutrients, enter values into rows 64 & 65.
B258: Enter the expected plant available nutrient amount per 1% increase in total soil organic matter in rows 69-73.
B261: Water Storage Benefit:
B262: The water storage benefit is based on the assumption that an increase in soil organic matter increases water storage capacity. This benefit calculation assumes that every 1% of soil organic matter holds 1 acre inch of water and crops need about 1 acre inch of water per week for optimal growth. This value serves as a proxy value the cost of avoided irrigation, or avoided crop yield reduction due to drought stress in a dry land system. Refer to the References and Citations worksheet for some additional guidance on irrigation values. Enter the estimated value of water storage per 1% increase in SOM in row 85.
B270: Total benefits per acre per year are calculated in row 88.
B272: Analysis Results
B273: The results of the analysis are presented as Economic Analysis Results and Financial Analysis Results. A description of the distinction between economic and financial analysis results is provided within the tool.
B277: Additionally, within the analysis results section is a Menu with several options.
B279: View Graphs: This menu option will open up a separate window to view two graphs. One graph shows the overall soil fertility and water storage benefits over time. The other graph show the financial analysis net benefits over time.
B285: View Print Summary: This menu option will take you to a new worksheet that summarizes the inputs and results of the model into a print friendly format.
B289: Save Model: This menu option will open up a "save as" dialog box so you can save the model with your inputs and results to view later.
B292: Manage Default Scenarios: To save your model as a default scenario select this option. You have the option to save up to 5 default scenarios in the model that can be retrieved at the start of the model. Select which default tab you want to save your scenario in and enter and name for the default scenario in the text box provided. Then select the button to "Create/Update Default Scenario." Additionally, you can update any existing default scenarios using the "Create/Update Default Scenario." Use the "Remove Default Scenario" button to delete any existing default scenarios you do not want.
B308: Return to Short Term Analysis: This menu option will allow you to navigate back to the short term analysis worksheet.

Sheet CoverCropEcon_ShortTerm
B5: The Short Term analysis assesses the immediate cost and benefits. After completing of the short term analysis, an option is available to expand that information to a long term analysis.
B7: Please refer to the "Instructions" worksheet for more detailed guidance on using the tool and entering data.
B9: To get started with a new model, select the current rotation length and then select the "Start Model" button. Enter/edit information in the white boxes. To open an existing default scenario, select the "Defaults" button and follow the instructions provided.
B11: Select the length of the current rotation (1-5):
B12: Example: for continuous corn select 1 Year, corn/beans select 2 Years, corn/wheat/double crop beans select 2 Years, corn, beans, wheat select 3 Years, etc.
B14: Button options: "Start New Model" will clear all entries and take you back to the start of the model to select a new rotation length. "Clear Entries" will clear all entries.
B19: A soybean/corn rotation where producer is establishing fall cover crops. The cover crop established after corn harvest is grazed in fall and/or spring depending on weather and cover crop establishment timing. The forage provided by the cover crop offsets some of the typical winter feeding expenses.
C28: Cover Crop - Cash Crop 1 | F28: Cover Crop - Cash Crop 2 | I28: Cover Crop - Cash Crop 3 | L28: Cover Crop - Cash Crop 4 | O28: Cover Crop - Cash Crop 5
C29: Enter cash crop name (e.g. corn, soybeans, wheat): | F29: Enter cash crop name (e.g. corn, soybeans, wheat): | I29: Enter cash crop name (e.g. corn, soybeans, wheat): | L29: Enter cash crop name (e.g. corn, soybeans, wheat): | O29: Enter cash crop name (e.g. corn, soybeans, wheat):
C30: Soybeans | F30: Corn
C32: Yield Units (e.g. bu, cwt, ton): | D32: 90 | F32: Yield Units (e.g. bu, cwt, ton): | G32: 225 | I32: Yield Units (e.g. bu, cwt, ton): | L32: Yield Units (e.g. bu, cwt, ton): | O32: Yield Units (e.g. bu, cwt, ton):
C33: Baseline Yield (unit/ac): | D33: 90 | F33: Baseline Yield (unit/ac): | G33: 225 | I33: Baseline Yield (unit/ac): | J33: 0 | L33: Baseline Yield (unit/ac): | M33: 0 | O33: Baseline Yield (unit/ac): | P33: 0
C34: Value of Crop 1 ($/unit): | D34: 9.25 | F34: Value of Crop 2 ($/unit): | G34: 3.02 | I34: Value of Crop 3 ($/unit): | J34: 0 | L34: Value of Crop 4 ($/unit): | M34: 0 | O34: Value of Crop 5 ($/unit): | P34: 0
C37: Cover Crop Establishment and Management | F37: Cover Crop Establishment and Management | I37: Cover Crop Establishment and Management | L37: Cover Crop Establishment and Management | O37: Cover Crop Establishment and Management
C38: Refers to the cover crop that precedes cash crop 1 if applicable | F38: Refers to the cover crop that precedes cash crop 2 if applicable | I38: Refers to the cover crop that precedes cash crop 3 if applicable | L38: Refers to the cover crop that precedes cash crop 4 if applicable | O38: Refers to the cover crop that precedes cash crop 5 if applicable
C39: (Use Text Box Below to enter description of cover crop utilized) | F39: (Use Text Box Below to enter description of cover crop utilized) | I39: (Use Text Box Below to enter description of cover crop utilized) | L39: (Use Text Box Below to enter description of cover crop utilized) | O39: (Use Text Box Below to enter description of cover crop utilized)
C40: cereal rye | F40: cereal rye (35 lbs/ac), crimson clover (8 lbs/ac), brassica (1 lb/ac)
C42: Seeding Rate (lb/ac) | D42: 80 | F42: Seeding Rate (lb/ac) | G42: 44 | I42: Seeding Rate (lb/ac) | J42: 0 | L42: Seeding Rate (lb/ac) | M42: 0 | O42: Seeding Rate (lb/ac) | P42: 0
C43: Seed Cost (include inoculant as needed) ($/lb) | D43: 0.27 | F43: Seed Cost (include inoculant as needed) ($/lb) | G43: 0.66 | I43: Seed Cost (include inoculant as needed) ($/lb) | J43: 0 | L43: Seed Cost (include inoculant as needed) ($/lb) | M43: 0 | O43: Seed Cost (include inoculant as needed) ($/lb) | P43: 0
C44: Calculated Seed Cost ($/ac) | D44: =D43*D42 -> 21.6 | F44: Calculated Seed Cost ($/ac) | G44: =G43*G42 -> 29.04 | I44: Calculated Seed Cost ($/ac) | J44: =J43*J42 -> 0 | L44: Calculated Seed Cost ($/ac) | M44: =M43*M42 -> 0 | O44: Calculated Seed Cost ($/ac) | P44: =P43*P42 -> 0
C45: Planting Cost ($/ac) | D45: 20 | F45: Planting Cost ($/ac) | G45: 20 | I45: Planting Cost ($/ac) | J45: 0 | L45: Planting Cost ($/ac) | M45: 0 | O45: Planting Cost ($/ac) | P45: 0
C46: Termination cost ($/ac) | D46: 10 | F46: Termination cost ($/ac) | G46: 10 | I46: Termination cost ($/ac) | J46: 0 | L46: Termination cost ($/ac) | M46: 0 | O46: Termination cost ($/ac) | P46: 0
C47: Increased management costs ($/ac) | D47: 0 | F47: Increased management costs ($/ac) | G47: 0 | I47: Increased management costs ($/ac) | J47: 0 | L47: Increased management costs ($/ac) | M47: 0 | O47: Increased management costs ($/ac) | P47: 0
C49: Total Costs Cover Crop Est. & Mgt. ($/ac) | D49: =D44+D45+D46+D47 -> 51.6 | F49: Total Costs Cover Crop Est. & Mgt. ($/ac) | G49: =G44+G45+G46+G47 -> 59.04 | I49: Total Costs Cover Crop Est. & Mgt. ($/ac) | J49: =J44+J45+J46+J47 -> 0 | L49: Total Costs Cover Crop Est. & Mgt. ($/ac) | M49: =M44+M45+M46+M47 -> 0 | O49: Total Costs Cover Crop Est. & Mgt. ($/ac) | P49: =P44+P45+P46+P47 -> 0
C50: -------------------------------------------------------------------------------------- | F50: -------------------------------------------------------------------------------------- | I50: -------------------------------------------------------------------------------------- | L50: -------------------------------------------------------------------------------------- | O50: --------------------------------------------------------------------------------------
C51: Yield Decrease | F51: Yield Decrease | I51: Yield Decrease | L51: Yield Decrease | O51: Yield Decrease
C52: Enter 0 if no yield decrease is expected | F52: Enter 0 if no yield decrease is expected | I52: Enter 0 if no yield decrease is expected | L52: Enter 0 if no yield decrease is expected | O52: Enter 0 if no yield decrease is expected
C53: Crop Yield Decrease (%) | D53: 0 | F53: Crop Yield Decrease (%) | G53: 0 | I53: Crop Yield Decrease (%) | J53: 0 | L53: Crop Yield Decrease (%) | M53: 0 | O53: Crop Yield Decrease (%) | P53: 0
C55: Crop 1 Decrease ($/ac) | D55: =BaseYield1*ValueCrop1*CropYieldDec1 -> 0 | F55: Crop 2 Decrease ($/ac) | G55: =BaseYield2*ValueCrop2*CropYieldDec2 -> 0 | I55: Crop 3 Decrease ($/ac) | J55: =BaseYield3*ValueCrop3*CropYieldDec3 -> 0 | L55: Crop 4 Decrease ($/ac) | M55: =BaseYield4*ValueCrop4*CropYieldDec4 -> 0 | O55: Crop 5 Decrease ($/ac) | P55: =BaseYield5*ValueCrop5*CropYieldDec5 -> 0
C56: -------------------------------------------------------------------------------------- | F56: -------------------------------------------------------------------------------------- | I56: -------------------------------------------------------------------------------------- | L56: -------------------------------------------------------------------------------------- | O56: --------------------------------------------------------------------------------------
C57: Other Costs (Enter Description of Cost in Text Box) | F57: Other Costs (Enter Description of Cost in Text Box) | I57: Other Costs (Enter Description of Cost in Text Box) | L57: Other Costs (Enter Description of Cost in Text Box) | O57: Other Costs (Enter Description of Cost in Text Box)
C60: Other Cost ($/ac) | D60: 0 | F60: Other Cost ($/ac) | G60: 0 | I60: Other Cost ($/ac) | J60: 0 | L60: Other Cost ($/ac) | M60: 0 | O60: Other Cost ($/ac) | P60: 0
C62: Total Cost ($/ac) | D62: =D49+D55+D60 -> 51.6 | F62: Total Cost ($/ac) | G62: =G49+G55+G60 -> 59.04 | I62: Total Cost ($/ac) | J62: =J49+J55+J60 -> 0 | L62: Total Cost ($/ac) | M62: =M49+M55+M60 -> 0 | O62: Total Cost ($/ac) | P62: =P49+P55+P60 -> 0
C66: Direct nutrient credit | F66: Direct nutrient credit | I66: Direct nutrient credit | L66: Direct nutrient credit | O66: Direct nutrient credit
C68: Enter Nutrient Values:
C69: Nitrogen ($/lb): | D69: 0.55
C70: Phosphorus ($/lb): | D70: 0.45
C71: Potassium ($/lb): | D71: 0.4
C73: N, reduction in purchased N (lb/ac) | D73: 0 | F73: N, reduction in purchased N (lb/ac) | G73: 30 | I73: N, reduction in purchased N (lb/ac) | J73: 0 | L73: N, reduction in purchased N (lb/ac) | M73: 0 | O73: N, reduction in purchased N (lb/ac) | P73: 0
C74: P, reduction in purchased P (lb/ac) | D74: 0 | F74: P, reduction in purchased P (lb/ac) | G74: 0 | I74: P, reduction in purchased P (lb/ac) | J74: 0 | L74: P, reduction in purchased P (lb/ac) | M74: 0 | O74: P, reduction in purchased P (lb/ac) | P74: 0
C75: K, reduction in purchased K (lb/ac) | D75: 0 | F75: K, reduction in purchased K (lb/ac) | G75: 0 | I75: K, reduction in purchased K (lb/ac) | J75: 0 | L75: K, reduction in purchased K (lb/ac) | M75: 0 | O75: K, reduction in purchased K (lb/ac) | P75: 0
C77: Total Nutrient Credit Benefit ($/ac) | D77: =($D$69*D73)+(D74*$D$70)+(D75*$D$71) -> 0 | F77: Total Nutrient Credit Benefit ($/ac) | G77: =($D$69*G73)+(G74*$D$70)+(G75*$D$71) -> 16.5 | I77: Total Nutrient Credit Benefit ($/ac) | J77: =($D$69*J73)+(J74*$D$70)+(J75*$D$71) -> 0 | L77: Total Nutrient Credit Benefit ($/ac) | M77: =($D$69*M73)+(M74*$D$70)+(M75*$D$71) -> 0 | O77: Total Nutrient Credit Benefit ($/ac) | P77: =($D$69*P73)+(P74*$D$70)+(P75*$D$71) -> 0
C78: -------------------------------------------------------------------------------------- | F78: -------------------------------------------------------------------------------------- | I78: -------------------------------------------------------------------------------------- | L78: -------------------------------------------------------------------------------------- | O78: --------------------------------------------------------------------------------------
C79: Herbicide/insecticide/fungicide input reduction | F79: Herbicide/insecticide/fungicide input reduction | I79: Herbicide/insecticide/fungicide input reduction | L79: Herbicide/insecticide/fungicide input reduction | O79: Herbicide/insecticide/fungicide input reduction
C80: Costs include chemical and application | F80: Costs include chemical and application | I80: Costs include chemical and application | L80: Costs include chemical and application | O80: Costs include chemical and application
C82: Herbicide Costs ($/ac) | D82: 20 | F82: Herbicide Costs ($/ac) | G82: 30 | I82: Herbicide Costs ($/ac) | J82: 0 | L82: Herbicide Costs ($/ac) | M82: 0 | O82: Herbicide Costs ($/ac) | P82: 0
C83: Percent Reduction | D83: 0.15 | F83: Percent Reduction | G83: 0.1 | I83: Percent Reduction | J83: 0 | L83: Percent Reduction | M83: 0 | O83: Percent Reduction | P83: 0
C85: Insecticide Cost ($/ac) | D85: 0 | F85: Insecticide Cost ($/ac) | G85: 0 | I85: Insecticide Cost ($/ac) | J85: 0 | L85: Insecticide Cost ($/ac) | M85: 0 | O85: Insecticide Cost ($/ac) | P85: 0
C86: Percent Reduction | D86: 0 | F86: Percent Reduction | G86: 0 | I86: Percent Reduction | J86: 0 | L86: Percent Reduction | M86: 0 | O86: Percent Reduction | P86: 0
C88: Fungicide Costs ($/ac) | D88: 0 | F88: Fungicide Costs ($/ac) | G88: 0 | I88: Fungicide Costs ($/ac) | J88: 0 | L88: Fungicide Costs ($/ac) | M88: 0 | O88: Fungicide Costs ($/ac) | P88: 0
C89: Percent Reduction | D89: 0 | F89: Percent Reduction | G89: 0 | I89: Percent Reduction | J89: 0 | L89: Percent Reduction | M89: 0 | O89: Percent Reduction | P89: 0
C91: Total Reduced Herbicide/insecticide/fungicide benefit ($/ac) | D91: =(D82*D83)+(D85*D86)+(D88*D89) -> 3 | F91: Total Reduced Herbicide/insecticide/fungicide benefit ($/ac) | G91: =(G82*G83)+(G85*G86)+(G88*G89) -> 3 | I91: Total Reduced Herbicide/insecticide/fungicide benefit ($/ac) | J91: =(J82*J83)+(J85*J86)+(J88*J89) -> 0 | L91: Total Reduced Herbicide/insecticide/fungicide benefit ($/ac) | M91: =(M82*M83)+(M85*M86)+(M88*M89) -> 0 | O91: Total Reduced Herbicide/insecticide/fungicide benefit ($/ac) | P91: =(P82*P83)+(P85*P86)+(P88*P89) -> 0
C92: -------------------------------------------------------------------------------------- | F92: -------------------------------------------------------------------------------------- | I92: -------------------------------------------------------------------------------------- | L92: -------------------------------------------------------------------------------------- | O92: --------------------------------------------------------------------------------------
C93: Yield Increase | F93: Yield Increase | I93: Yield Increase | L93: Yield Increase | O93: Yield Increase
C94: Enter 0 if no yield increase is expected | F94: Enter 0 if no yield increase is expected | I94: Enter 0 if no yield increase is expected | L94: Enter 0 if no yield increase is expected | O94: Enter 0 if no yield increase is expected
C95: Crop Yield Increase (%) | D95: 0.02 | F95: Crop Yield Increase (%) | G95: 0 | I95: Crop Yield Increase (%) | J95: 0 | L95: Crop Yield Increase (%) | M95: 0 | O95: Crop Yield Increase (%) | P95: 0
C97: Crop 1 Increase ($/ac) | D97: =D33*D95*D34 -> 16.65 | F97: Crop 2 Increase ($/ac) | G97: =G33*G95*G34 -> 0 | I97: Crop 3 Increase ($/ac) | J97: =J33*J95*J34 -> 0 | L97: Crop 4 Increase ($/ac) | M97: =M33*M95*M34 -> 0 | O97: Crop 5 Increase ($/ac) | P97: =P33*P95*P34 -> 0
C98: -------------------------------------------------------------------------------------- | F98: -------------------------------------------------------------------------------------- | I98: -------------------------------------------------------------------------------------- | L98: -------------------------------------------------------------------------------------- | O98: --------------------------------------------------------------------------------------
C99: Erosion Reduction | F99: Erosion Reduction | I99: Erosion Reduction | L99: Erosion Reduction | O99: Erosion Reduction
C101: On Site Lost Fertility Value ($/ton): | D101: 2.1
C102: Off Site Water Quality Damages ($/ton): | D102: 4.93
C104: Enter the amount of erosion in tons/ac that is prevented from leaving the field(s) by the addition of cover crops. | F104: Enter the amount of erosion in tons/ac that is prevented from leaving the field(s) by the addition of cover crops. | I104: Enter the amount of erosion in tons/ac that is prevented from leaving the field(s) by the addition of cover crops. | L104: Enter the amount of erosion in tons/ac that is prevented from leaving the field(s) by the addition of cover crops. | O104: Enter the amount of erosion in tons/ac that is prevented from leaving the field(s) by the addition of cover crops.
C106: Erosion Reduction (ton/ac) | D106: 2 | F106: Erosion Reduction (ton/ac) | G106: 4 | I106: Erosion Reduction (ton/ac) | J106: 0 | L106: Erosion Reduction (ton/ac) | M106: 0 | O106: Erosion Reduction (ton/ac) | P106: 0
C108: Enter other costs prevented due to reducing erosion such as machinery costs to repair erosion in the field or ditches. | F108: Enter other costs prevented due to reducing erosion such as machinery costs to repair erosion in the field or ditches. | I108: Enter other costs prevented due to reducing erosion such as machinery costs to repair erosion in the field or ditches. | L108: Enter other costs prevented due to reducing erosion such as machinery costs to repair erosion in the field or ditches. | O108: Enter other costs prevented due to reducing erosion such as machinery costs to repair erosion in the field or ditches.
C110: Erosion Repair ($/ac) | D110: 0 | F110: Erosion Repair ($/ac) | G110: 0 | I110: Erosion Repair ($/ac) | J110: 0 | L110: Erosion Repair ($/ac) | M110: 0 | O110: Erosion Repair ($/ac) | P110: 0
C112: Total Erosion Benefit ($/ac) | D112: =D106*($D$101+$D$102)+D110 -> 14.06 | F112: Total Erosion Benefit ($/ac) | G112: =G106*($D$101+$D$102)+G110 -> 28.12 | I112: Total Erosion Benefit ($/ac) | J112: =J106*($D$101+$D$102)+J110 -> 0 | L112: Total Erosion Benefit ($/ac) | M112: =M106*($D$101+$D$102)+M110 -> 0 | O112: Total Erosion Benefit ($/ac) | P112: =P106*($D$101+$D$102)+P110 -> 0
C113: -------------------------------------------------------------------------------------- | F113: -------------------------------------------------------------------------------------- | I113: -------------------------------------------------------------------------------------- | L113: -------------------------------------------------------------------------------------- | O113: --------------------------------------------------------------------------------------
C114: Other Benefit (Enter Description of Benefit in Text Box) | F114: Other Benefit (Enter Description of Benefit in Text Box) | I114: Other Benefit (Enter Description of Benefit in Text Box) | L114: Other Benefit (Enter Description of Benefit in Text Box) | O114: Other Benefit (Enter Description of Benefit in Text Box)
C117: Other Benefit ($/ac) | D117: 0 | F117: Other Benefit ($/ac) | G117: 0 | I117: Other Benefit ($/ac) | J117: 0 | L117: Other Benefit ($/ac) | M117: 0 | O117: Other Benefit ($/ac) | P117: 0
C118: -------------------------------------------------------------------------------------- | F118: -------------------------------------------------------------------------------------- | I118: -------------------------------------------------------------------------------------- | L118: -------------------------------------------------------------------------------------- | O118: --------------------------------------------------------------------------------------
C122: Grazing Infrastructure Costs | F122: Grazing Infrastructure Costs | I122: Grazing Infrastructure Costs | L122: Grazing Infrastructure Costs | O122: Grazing Infrastructure Costs
C124: Fence ($/ac) | D124: 2 | F124: Fence ($/ac) | G124: 2 | I124: Fence ($/ac) | J124: 0 | L124: Fence ($/ac) | M124: 0 | O124: Fence ($/ac) | P124: 0
C125: Watering Facilities ($/ac) | D125: 0.3 | F125: Watering Facilities ($/ac) | G125: 0.3 | I125: Watering Facilities ($/ac) | J125: 0 | L125: Watering Facilities ($/ac) | M125: 0 | O125: Watering Facilities ($/ac) | P125: 0
C126: Added Labor/Management ($/ac) | F126: Added Labor/Management ($/ac) | I126: Added Labor/Management ($/ac) | L126: Added Labor/Management ($/ac) | O126: Added Labor/Management ($/ac)
C128: Grazing Costs ($/ac) | D128: =Fence1+Water1+GrazingLabor1 -> 2.3 | F128: Grazing Costs ($/ac) | G128: =Fence2+Water2+GrazingLabor2 -> 2.3 | I128: Grazing Costs ($/ac) | J128: =Fence3+Water3+GrazingLabor3 -> 0 | L128: Grazing Costs ($/ac) | M128: =Fence4+Water4+GrazingLabor4 -> 0 | O128: Grazing Costs ($/ac) | P128: =Fence5+Water5+GrazingLabor5 -> 0
C129: -------------------------------------------------------------------------------------- | F129: -------------------------------------------------------------------------------------- | I129: -------------------------------------------------------------------------------------- | L129: -------------------------------------------------------------------------------------- | O129: --------------------------------------------------------------------------------------
C130: Grazing Stockers | F130: Grazing Stockers | I130: Grazing Stockers | L130: Grazing Stockers | O130: Grazing Stockers
C132: Additional Expected Daily Gain (lb/head/day) | D132: 0 | F132: Additional Expected Daily Gain (lb/head/day) | G132: 0 | I132: Additional Expected Daily Gain (lb/head/day) | J132: 0 | L132: Additional Expected Daily Gain (lb/head/day) | M132: 0 | O132: Additional Expected Daily Gain (lb/head/day) | P132: 0
C133: Value of Gain ($/lb) | D133: 0 | F133: Value of Gain ($/lb) | G133: 0 | I133: Value of Gain ($/lb) | J133: 0 | L133: Value of Gain ($/lb) | M133: 0 | O133: Value of Gain ($/lb) | P133: 0
C134: Days of Grazing | D134: 0 | F134: Days of Grazing | G134: 0 | I134: Days of Grazing | J134: 0 | L134: Days of Grazing | M134: 0 | O134: Days of Grazing | P134: 0
C135: Stocking Rate (head/ac) | D135: 0 | F135: Stocking Rate (head/ac) | G135: 0 | I135: Stocking Rate (head/ac) | J135: 0 | L135: Stocking Rate (head/ac) | M135: 0 | O135: Stocking Rate (head/ac) | P135: 0
C137: Grazing Benefit ($/ac) | D137: =D132*D133*D134*D135 -> 0 | F137: Grazing Benefit ($/ac) | G137: =G132*G133*G134*G135 -> 0 | I137: Grazing Benefit ($/ac) | J137: =J132*J133*J134*J135 -> 0 | L137: Grazing Benefit ($/ac) | M137: =M132*M133*M134*M135 -> 0 | O137: Grazing Benefit ($/ac) | P137: =P132*P133*P134*P135 -> 0
C139: Total Grazing Benefit ($/ac) | D139: =IF(D137=0,0,D137-D128) -> 0 | F139: Total Grazing Benefit ($/ac) | G139: =IF(G137=0,0,G137-G128) -> 0 | I139: Total Grazing Benefit ($/ac) | J139: =IF(J137=0,0,J137-J128) -> 0 | L139: Total Grazing Benefit ($/ac) | M139: =IF(M137=0,0,M137-M128) -> 0 | O139: Total Grazing Benefit ($/ac) | P139: =IF(P137=0,0,P137-P128) -> 0
C140: -------------------------------------------------------------------------------------- | F140: -------------------------------------------------------------------------------------- | I140: -------------------------------------------------------------------------------------- | L140: -------------------------------------------------------------------------------------- | O140: --------------------------------------------------------------------------------------
C141: Grazing CowCalf | F141: Grazing CowCalf | I141: Grazing CowCalf | L141: Grazing CowCalf | O141: Grazing CowCalf
C143: Stocking Rate (AU/ac) | D143: 2 | F143: Stocking Rate (AU/ac) | G143: 2 | I143: Stocking Rate (AU/ac) | J143: 0 | L143: Stocking Rate (AU/ac) | M143: 0 | O143: Stocking Rate (AU/ac) | P143: 0
C144: Forage Demand (lb/AU/day) | D144: 20 | F144: Forage Demand (lb/AU/day) | G144: 20 | I144: Forage Demand (lb/AU/day) | J144: 0 | L144: Forage Demand (lb/AU/day) | M144: 0 | O144: Forage Demand (lb/AU/day) | P144: 0
C145: Days of Grazing | D145: 30 | F145: Days of Grazing | G145: 30 | I145: Days of Grazing | J145: 0 | L145: Days of Grazing | M145: 0 | O145: Days of Grazing | P145: 0
C146: Forage Value ($/ton) | D146: 100 | F146: Forage Value ($/ton) | G146: 100 | I146: Forage Value ($/ton) | J146: 0 | L146: Forage Value ($/ton) | M146: 0 | O146: Forage Value ($/ton) | P146: 0
C148: Grazing Benefit ($/ac) | D148: =((D143*D144*D145)/2000*D146) -> 60 | F148: Grazing Benefit ($/ac) | G148: =((G143*G144*G145)/2000*G146) -> 60 | I148: Grazing Benefit ($/ac) | J148: =((J143*J144*J145)/2000*J146) -> 0 | L148: Grazing Benefit ($/ac) | M148: =((M143*M144*M145)/2000*M146) -> 0 | O148: Grazing Benefit ($/ac) | P148: =((P143*P144*P145)/2000*P146) -> 0
C150: Total Grazing Benefit ($/ac) | D150: =IF(D148=0,0,D148-D128) -> 57.7 | F150: Total Grazing Benefit ($/ac) | G150: =IF(G148=0,0,G148-G128) -> 57.7 | I150: Total Grazing Benefit ($/ac) | J150: =IF(J148=0,0,J148-J128) -> 0 | L150: Total Grazing Benefit ($/ac) | M150: =IF(M148=0,0,M148-M128) -> 0 | O150: Total Grazing Benefit ($/ac) | P150: =IF(P148=0,0,P148-P128) -> 0
C151: -------------------------------------------------------------------------------------- | F151: -------------------------------------------------------------------------------------- | I151: -------------------------------------------------------------------------------------- | L151: -------------------------------------------------------------------------------------- | O151: --------------------------------------------------------------------------------------
C154: Baling | F154: Baling | I154: Baling | L154: Baling | O154: Baling
C156: Expected yield (ton/ac) | D156: 0 | F156: Expected yield (ton/ac) | G156: 0 | I156: Expected yield (ton/ac) | J156: 0 | L156: Expected yield (ton/ac) | M156: 0 | O156: Expected yield (ton/ac) | P156: 0
C157: Forage Value ($/ton) | D157: 0 | F157: Forage Value ($/ton) | G157: 0 | I157: Forage Value ($/ton) | J157: 0 | L157: Forage Value ($/ton) | M157: 0 | O157: Forage Value ($/ton) | P157: 0
C158: Forage Benefit ($/ac) | D158: =D156*D157 -> 0 | F158: Forage Benefit ($/ac) | G158: =G156*G157 -> 0 | I158: Forage Benefit ($/ac) | J158: =J156*J157 -> 0 | L158: Forage Benefit ($/ac) | M158: =M156*M157 -> 0 | O158: Forage Benefit ($/ac) | P158: =P156*P157 -> 0
C160: Baling Costs ($/ac) | D160: 0 | F160: Baling Costs ($/ac) | G160: 0 | I160: Baling Costs ($/ac) | J160: 0 | L160: Baling Costs ($/ac) | M160: 0 | O160: Baling Costs ($/ac) | P160: 0
C162: Total Baled Forage Benefit ($/ac) | D162: =D158-D160 -> 0 | F162: Total Baled Forage Benefit ($/ac) | G162: =G158-G160 -> 0 | I162: Total Baled Forage Benefit ($/ac) | J162: =J158-J160 -> 0 | L162: Total Baled Forage Benefit ($/ac) | M162: =M158-M160 -> 0 | O162: Total Baled Forage Benefit ($/ac) | P162: =P158-P160 -> 0
C163: -------------------------------------------------------------------------------------- | F163: -------------------------------------------------------------------------------------- | I163: -------------------------------------------------------------------------------------- | L163: -------------------------------------------------------------------------------------- | O163: --------------------------------------------------------------------------------------
C166: Seed Production | F166: Seed Production | I166: Seed Production | L166: Seed Production | O166: Seed Production
C168: Seed harvest cost ($/ac) | D168: 0 | F168: Seed harvest cost ($/ac) | G168: 0 | I168: Seed harvest cost ($/ac) | J168: 0 | L168: Seed harvest cost ($/ac) | M168: 0 | O168: Seed harvest cost ($/ac) | P168: 0
C169: Seed Yield (lbs/ac) | D169: 0 | F169: Seed Yield (lbs/ac) | G169: 0 | I169: Seed Yield (lbs/ac) | J169: 0 | L169: Seed Yield (lbs/ac) | M169: 0 | O169: Seed Yield (lbs/ac) | P169: 0
C170: Seed value ($/lb) | D170: 0 | F170: Seed value ($/lb) | G170: 0 | I170: Seed value ($/lb) | J170: 0 | L170: Seed value ($/lb) | M170: 0 | O170: Seed value ($/lb) | P170: 0
C172: Total Seed Prod Benefit ($/ac/yr) | D172: =(D170*D169)-D168 -> 0 | F172: Total Seed Prod Benefit ($/ac/yr) | G172: =(G170*G169)-G168 -> 0 | I172: Total Seed Prod Benefit ($/ac/yr) | J172: =(J170*J169)-J168 -> 0 | L172: Total Seed Prod Benefit ($/ac/yr) | M172: =(M170*M169)-M168 -> 0 | O172: Total Seed Prod Benefit ($/ac/yr) | P172: =(P170*P169)-P168 -> 0
C173: -------------------------------------------------------------------------------------- | F173: -------------------------------------------------------------------------------------- | I173: -------------------------------------------------------------------------------------- | L173: -------------------------------------------------------------------------------------- | O173: --------------------------------------------------------------------------------------
C175: Total Benefit ($/ac) | D175: =D77+D91+D97+D112+D117+D139+GrazingCC1+D162+D172 -> 91.41 | F175: Total Benefit ($/ac) | G175: =G77+G91+G97+G112+G117+G139+GrazingCC2+G162+G172 -> 105.32 | I175: Total Benefit ($/ac) | J175: =J77+J91+J97+J112+J117+J139+GrazingCC3+J162+J172 -> 0 | L175: Total Benefit ($/ac) | M175: =M77+M91+M97+M112+M117+M139+GrazingCC4+M162+M172 -> 0 | O175: Total Benefit ($/ac) | P175: =P77+P91+P97+P112+P117+P139+GrazingCC5+P162+P172 -> 0
C180: Cover Crop - Cash Crop 1 | F180: Cover Crop - Cash Crop 2 | I180: Cover Crop - Cash Crop 3 | L180: Cover Crop - Cash Crop 4 | O180: Cover Crop - Cash Crop 5
C182: Total Cost ($/ac) | D182: =D62 -> 51.6 | F182: Total Cost ($/ac) | G182: =G62 -> 59.04 | I182: Total Cost ($/ac) | J182: =J62 -> 0 | L182: Total Cost ($/ac) | M182: =M62 -> 0 | O182: Total Cost ($/ac) | P182: =P62 -> 0
C183: Total Benefit ($/ac) | D183: =D175 -> 91.41 | F183: Total Benefit ($/ac) | G183: =G175 -> 105.32 | I183: Total Benefit ($/ac) | J183: =J175 -> 0 | L183: Total Benefit ($/ac) | M183: =M175 -> 0 | O183: Total Benefit ($/ac) | P183: =P175 -> 0
C184: Net Benefit ($/ac) | D184: =D183-D182 -> 39.81 | F184: Net Benefit ($/ac) | G184: =G183-G182 -> 46.28 | I184: Net Benefit ($/ac) | J184: =J183-J182 -> 0 | L184: Net Benefit ($/ac) | M184: =M183-M182 -> 0 | O184: Net Benefit ($/ac) | P184: =P183-P182 -> 0

Sheet CoverCropEcon_LongTerm (hidden)
B6: The long term analysis assumes the continued utilization of cover crops modeled in the short term analysis, and also captures additional benefits that may be realized over time with the continued use of cover crops in rotation. Refer to the "Instructions" worksheet and "References and Citations" worksheet for more information and guidance on entering the long term variables.
B12: The lifespan refers to the length of time being analyzed and assumes a continued use of cover crop in the farming rotation, based on the information entered into the Short Term Analysis.
C14: Analysis Lifespan (years) - up to 50 years | D14: 25
C15: Discount Rate | D15: 0.03
C16: Current Soil Organic Matter (SOM) (%) | D16: 2
C17: Estimate of years of mgmt change to increase SOM 1% | D17: 10
C18: Estimate of maximum potential SOM (%) | D18: 4
B22: The costs shown below are based on the information entered into the short term analysis and amortized over the long term analysis lifespan.
C24: Cover Crop Establishment & Mgt ($/ac/yr) | D24: =AmortizationTables!C55 -> 55.25080988
C26: Yield Decrease
C27: Enter the years the decrease is expected: | D27: 0
C28: Yield Decrease ($/ac/yr) | D28: =AmortizationTables!E55 -> 0
C30: Other Costs ($/ac/yr) | D30: =AmortizationTables!G55 -> 0
C32: Total Cost ($/ac/yr) | D32: =D24+D28+D30 -> 55.25080988
B36: Short Term Benefits: The benefits below are based on the information entered into the short term analysis and amortized over the long term analysis lifespan.
C38: Direct nutrient credit ($/ac/yr) | D38: =AmortizationTables!J55 -> 7.90514292
C39: Herbicide/insecticide/fungicide input reduction ($/ac/yr) | D39: =AmortizationTables!L55 -> 3.005017969
C40: Yield Increase ($/ac/yr) | D40: =AmortizationTables!N55 -> 8.700841874
C41: Erosion Reduction ($/ac/yr) | D41: =AmortizationTables!P55 -> 20.81965752
C42: Other Benefit ($/ac/yr) | D42: =AmortizationTables!R55 -> 0
C43: Grazing ($/ac/yr) | D43: =AmortizationTables!T55+AmortizationTables!V55 -> 57.79651228
C44: Baling ($/ac/yr) | D44: =AmortizationTables!X55 -> 0
C45: Seed Production ($/ac/yr) | D45: =AmortizationTables!Z55 -> 0
B47: Long Term Benefits: The following two benefit categories, "Overall Soil Fertility Benefit" and "Water Storage Benefit" are exclusive to the long term analysis and are based upon the SOM information entered into the general information section above. The annual value calculation of the benefits of these categories is dependent on the length of analysis, estimated years to increase soil organic matter by 1%, and the maximum potential of the soil.
C52: Overall Soil Fertility Benefit
C53: Cover crops, when utilized as part of a crop rotation over many years may have a significant impact on the physical and biological properties of the soil. The potential for improvement will be dependent on the starting condition of the soil, the inherent properties of the soil and tillage practices. Use this section to capture the estimated quantity and value of the Nitrogen, Phosphorus, Potassium, Sulfur and Carbon available to the crop in the soil for each 1% increment in soil organic matter. This input is intended to capture any additional nutrient value above and beyond the direct nutrient reduction captured above, and represents the long term benefit of improved biological activity in the soil.
C61: Nutrient Values:
C62: Nitrogen ($/lb)* | D62: =N -> 0.55
C63: Phosphorus ($/lb)* | D63: =P -> 0.45
C64: Potassium ($/lb)* | D64: =K -> 0.4
C65: Sulfur ($/lb) | D65: 3
C66: Carbon ($/Ton) | D66: 0
C67: * values entered in short term analysis
C69: Enter the expected plant available nutrient amount per 1% increase in SOM
C70: Nitrogen (lb/ac) | D70: 20
C71: Phosphorus (lb/ac) | D71: 2
C72: Potassium (lb/ac) | D72: 0
C73: Sulfur (lb/ac) | D73: 2.5
C74: Carbon (ton/ac) | D74: 0
C76: Total Nutrient Benefit per 1% increase in SOM ($/ac) | D76: =(D70*D62)+(D71*D63)+(D72*D64)+(D73*D65)+(D74*D66) -> 19.4
C77: Annual Value of Soil Fertility ($/ac/yr) | D77: =AmortizationTables!AD55 -> 12.72148994
C78: -----------------------------------------------------------------------------------------------------------------------------------------------------------------
C79: Water Storage Benefit
C80: The water storage benefit is based on the assumption that an increase in soil organic matter increases water storage capacity. This benefit calculation assumes every 1% of soil organic matter holds 1 acre inch of water and crops need about 1 acre inch of water per week for optimal growth. Enter the estimated value of an acre-inch of water. This value serves as a proxy for either avoided irrigation costs (in an irrigated system) or avoided crop yield reduction costs (in a dry land system).
C86: Value of an acre-inch of water ($/ac/yr) | D86: 12.5
C87: Annual value of Increased Water Storage ($/ac/yr) | D87: =AmortizationTables!AF55 -> 8.196836298
C89: Total Benefits ($/ac/yr) | D89: =D38+D39+D40+D41+D42+D43+D44+D45+D77+D87 -> 119.1454988
D95: Summary:
D96: Analysis Lifespan (years) | F96: =D14 -> 25
D97: Short Term Benefits ($/ac/yr) | F97: =D38+D39+D40+D41+D42+D43+D44+D45 -> 98.22717256
D98: Long Tem Benefits ($/ac/yr) | F98: =D77+D87 -> 20.91832623
D100: Total Costs ($/ac/yr) | F100: =D32 -> 55.25080988
D102: Total Benefits ($/ac/yr) | F102: =D89 -> 119.1454988
D104: Net Benefits ($/ac/yr) | F104: =F102-F100 -> 63.89468891
C108: Year | D108: Costs ($/ac) | E108: Benefits ($/ac) | F108: Net Benefit ($/ac)
C109: 1 | D109: =IF(C109="","",AmortizationTables!H4) -> 51.6 | E109: =IF(C109="","",AmortizationTables!AA4+AmortizationTables!AG4) -> 91.41 | F109: =IF(C109="","",E109-D109) -> 39.81
C110: =IF(Lifespan>=2,2,"") -> 2 | D110: =IF(C110="","",AmortizationTables!H5) -> 59.04 | E110: =IF(C110="","",AmortizationTables!AA5+AmortizationTables!AG5) -> 105.32 | F110: =IF(C110="","",E110-D110) -> 46.28
C111: =IF(Lifespan>=3,3,"") -> 3 | D111: =IF(C111="","",AmortizationTables!H6) -> 51.6 | E111: =IF(C111="","",AmortizationTables!AA6+AmortizationTables!AG6) -> 91.41 | F111: 39.81
C112: =IF(Lifespan>=4,4,"") -> 4 | D112: =IF(C112="","",AmortizationTables!H7) -> 59.04 | E112: =IF(C112="","",AmortizationTables!AA7+AmortizationTables!AG7) -> 105.32 | F112: 46.28
C113: =IF(Lifespan>=5,5,"") -> 5 | D113: =IF(C113="","",AmortizationTables!H8) -> 51.6 | E113: =IF(C113="","",AmortizationTables!AA8+AmortizationTables!AG8) -> 91.41 | F113: 39.81
C114: =IF(Lifespan>=6,6,"") -> 6 | D114: =IF(C114="","",AmortizationTables!H9) -> 59.04 | E114: =IF(C114="","",AmortizationTables!AA9+AmortizationTables!AG9) -> 105.32 | F114: 46.28
C115: =IF(Lifespan>=7,7,"") -> 7 | D115: =IF(C115="","",AmortizationTables!H10) -> 51.6 | E115: =IF(C115="","",AmortizationTables!AA10+AmortizationTables!AG10) -> 91.41 | F115: 39.81
C116: =IF(Lifespan>=8,8,"") -> 8 | D116: =IF(C116="","",AmortizationTables!H11) -> 59.04 | E116: =IF(C116="","",AmortizationTables!AA11+AmortizationTables!AG11) -> 105.32 | F116: 46.28
C117: =IF(Lifespan>=9,9,"") -> 9 | D117: =IF(C117="","",AmortizationTables!H12) -> 51.6 | E117: =IF(C117="","",AmortizationTables!AA12+AmortizationTables!AG12) -> 91.41 | F117: 39.81
C118: =IF(Lifespan>=10,10,"") -> 10 | D118: =IF(C118="","",AmortizationTables!H13) -> 59.04 | E118: =IF(C118="","",AmortizationTables!AA13+AmortizationTables!AG13) -> 105.32 | F118: 46.28
C119: =IF(Lifespan>=11,11,"") -> 11 | D119: =IF(C119="","",AmortizationTables!H14) -> 51.6 | E119: =IF(C119="","",AmortizationTables!AA14+AmortizationTables!AG14) -> 123.31 | F119: 71.71
C120: =IF(Lifespan>=12,12,"") -> 12 | D120: =IF(C120="","",AmortizationTables!H15) -> 59.04 | E120: =IF(C120="","",AmortizationTables!AA15+AmortizationTables!AG15) -> 137.22 | F120: 78.18
C121: =IF(Lifespan>=13,13,"") -> 13 | D121: =IF(C121="","",AmortizationTables!H16) -> 51.6 | E121: =IF(C121="","",AmortizationTables!AA16+AmortizationTables!AG16) -> 123.31 | F121: 71.71
C122: =IF(Lifespan>=14,14,"") -> 14 | D122: =IF(C122="","",AmortizationTables!H17) -> 59.04 | E122: =IF(C122="","",AmortizationTables!AA17+AmortizationTables!AG17) -> 137.22 | F122: 78.18
C123: =IF(Lifespan>=15,15,"") -> 15 | D123: =IF(C123="","",AmortizationTables!H18) -> 51.6 | E123: =IF(C123="","",AmortizationTables!AA18+AmortizationTables!AG18) -> 123.31 | F123: 71.71
C124: =IF(Lifespan>=16,16,"") -> 16 | D124: =IF(C124="","",AmortizationTables!H19) -> 59.04 | E124: =IF(C124="","",AmortizationTables!AA19+AmortizationTables!AG19) -> 137.22 | F124: 78.18
C125: =IF(Lifespan>=17,17,"") -> 17 | D125: =IF(C125="","",AmortizationTables!H20) -> 51.6 | E125: =IF(C125="","",AmortizationTables!AA20+AmortizationTables!AG20) -> 123.31 | F125: 71.71
C126: =IF(Lifespan>=18,18,"") -> 18 | D126: =IF(C126="","",AmortizationTables!H21) -> 59.04 | E126: =IF(C126="","",AmortizationTables!AA21+AmortizationTables!AG21) -> 137.22 | F126: 78.18
C127: =IF(Lifespan>=19,19,"") -> 19 | D127: =IF(C127="","",AmortizationTables!H22) -> 51.6 | E127: =IF(C127="","",AmortizationTables!AA22+AmortizationTables!AG22) -> 123.31 | F127: 71.71
C128: =IF(Lifespan>=20,20,"") -> 20 | D128: =IF(C128="","",AmortizationTables!H23) -> 59.04 | E128: =IF(C128="","",AmortizationTables!AA23+AmortizationTables!AG23) -> 137.22 | F128: 78.18
C129: =IF(Lifespan>=21,21,"") -> 21 | D129: =IF(C129="","",AmortizationTables!H24) -> 51.6 | E129: =IF(C129="","",AmortizationTables!AA24+AmortizationTables!AG24) -> 155.21 | F129: 103.61
C130: =IF(Lifespan>=22,22,"") -> 22 | D130: =IF(C130="","",AmortizationTables!H25) -> 59.04 | E130: =IF(C130="","",AmortizationTables!AA25+AmortizationTables!AG25) -> 169.12 | F130: 110.08
C131: =IF(Lifespan>=23,23,"") -> 23 | D131: =IF(C131="","",AmortizationTables!H26) -> 51.6 | E131: =IF(C131="","",AmortizationTables!AA26+AmortizationTables!AG26) -> 155.21 | F131: 103.61
C132: =IF(Lifespan>=24,24,"") -> 24 | D132: =IF(C132="","",AmortizationTables!H27) -> 59.04 | E132: =IF(C132="","",AmortizationTables!AA27+AmortizationTables!AG27) -> 169.12 | F132: 110.08
C133: =IF(Lifespan>=25,25,"") -> 25 | D133: =IF(C133="","",AmortizationTables!H28) -> 51.6 | E133: =IF(C133="","",AmortizationTables!AA28+AmortizationTables!AG28) -> 155.21 | F133: 103.61
C134: =IF(Lifespan>=26,26,"") ->  | D134: =IF(C134="","",AmortizationTables!H29) ->  | E134: =IF(C134="","",AmortizationTables!AA29+AmortizationTables!AG29) -> 
C135: =IF(Lifespan>=27,27,"") ->  | D135: =IF(C135="","",AmortizationTables!H30) ->  | E135: =IF(C135="","",AmortizationTables!AA30+AmortizationTables!AG30) -> 
C136: =IF(Lifespan>=28,28,"") ->  | D136: =IF(C136="","",AmortizationTables!H31) ->  | E136: =IF(C136="","",AmortizationTables!AA31+AmortizationTables!AG31) -> 
C137: =IF(Lifespan>=29,29,"") ->  | D137: =IF(C137="","",AmortizationTables!H32) ->  | E137: =IF(C137="","",AmortizationTables!AA32+AmortizationTables!AG32) -> 
C138: =IF(Lifespan>=30,30,"") ->  | D138: =IF(C138="","",AmortizationTables!H33) ->  | E138: =IF(C138="","",AmortizationTables!AA33+AmortizationTables!AG33) -> 
C139: =IF(Lifespan>=31,31,"") ->  | D139: =IF(C139="","",AmortizationTables!H34) ->  | E139: =IF(C139="","",AmortizationTables!AA34+AmortizationTables!AG34) -> 
C140: =IF(Lifespan>=32,32,"") ->  | D140: =IF(C140="","",AmortizationTables!H35) ->  | E140: =IF(C140="","",AmortizationTables!AA35+AmortizationTables!AG35) -> 
C141: =IF(Lifespan>=33,33,"") ->  | D141: =IF(C141="","",AmortizationTables!H36) ->  | E141: =IF(C141="","",AmortizationTables!AA36+AmortizationTables!AG36) -> 
C142: =IF(Lifespan>=34,34,"") ->  | D142: =IF(C142="","",AmortizationTables!H37) ->  | E142: =IF(C142="","",AmortizationTables!AA37+AmortizationTables!AG37) -> 
C143: =IF(Lifespan>=35,35,"") ->  | D143: =IF(C143="","",AmortizationTables!H38) ->  | E143: =IF(C143="","",AmortizationTables!AA38+AmortizationTables!AG38) -> 
C144: =IF(Lifespan>=36,36,"") ->  | D144: =IF(C144="","",AmortizationTables!H39) ->  | E144: =IF(C144="","",AmortizationTables!AA39+AmortizationTables!AG39) -> 
C145: =IF(Lifespan>=37,37,"") ->  | D145: =IF(C145="","",AmortizationTables!H40) ->  | E145: =IF(C145="","",AmortizationTables!AA40+AmortizationTables!AG40) -> 
C146: =IF(Lifespan>=38,38,"") ->  | D146: =IF(C146="","",AmortizationTables!H41) ->  | E146: =IF(C146="","",AmortizationTables!AA41+AmortizationTables!AG41) -> 
C147: =IF(Lifespan>=39,39,"") ->  | D147: =IF(C147="","",AmortizationTables!H42) ->  | E147: =IF(C147="","",AmortizationTables!AA42+AmortizationTables!AG42) -> 
C148: =IF(Lifespan>=40,40,"") ->  | D148: =IF(C148="","",AmortizationTables!H43) ->  | E148: =IF(C148="","",AmortizationTables!AA43+AmortizationTables!AG43) -> 
C149: =IF(Lifespan>=41,41,"") ->  | D149: =IF(C149="","",AmortizationTables!H44) ->  | E149: =IF(C149="","",AmortizationTables!AA44+AmortizationTables!AG44) -> 
C150: =IF(Lifespan>=42,42,"") ->  | D150: =IF(C150="","",AmortizationTables!H45) ->  | E150: =IF(C150="","",AmortizationTables!AA45+AmortizationTables!AG45) -> 
C151: =IF(Lifespan>=43,43,"") ->  | D151: =IF(C151="","",AmortizationTables!H46) ->  | E151: =IF(C151="","",AmortizationTables!AA46+AmortizationTables!AG46) -> 
C152: =IF(Lifespan>=44,44,"") ->  | D152: =IF(C152="","",AmortizationTables!H47) ->  | E152: =IF(C152="","",AmortizationTables!AA47+AmortizationTables!AG47) -> 
C153: =IF(Lifespan>=45,45,"") ->  | D153: =IF(C153="","",AmortizationTables!H48) ->  | E153: =IF(C153="","",AmortizationTables!AA48+AmortizationTables!AG48) -> 
C154: =IF(Lifespan>=46,46,"") ->  | D154: =IF(C154="","",AmortizationTables!H49) ->  | E154: =IF(C154="","",AmortizationTables!AA49+AmortizationTables!AG49) -> 
C155: =IF(Lifespan>=47,47,"") ->  | D155: =IF(C155="","",AmortizationTables!H50) ->  | E155: =IF(C155="","",AmortizationTables!AA50+AmortizationTables!AG50) -> 
C156: =IF(Lifespan>=48,48,"") ->  | D156: =IF(C156="","",AmortizationTables!H51) ->  | E156: =IF(C156="","",AmortizationTables!AA51+AmortizationTables!AG51) -> 
C157: =IF(Lifespan>=49,49,"") ->  | D157: =IF(C157="","",AmortizationTables!H52) ->  | E157: =IF(C157="","",AmortizationTables!AA52+AmortizationTables!AG52) -> 
C158: =IF(Lifespan>=50,50,"") ->  | D158: =IF(C158="","",AmortizationTables!H53) ->  | E158: =IF(C158="","",AmortizationTables!AA53+AmortizationTables!AG53) -> 

Sheet GraphData (hidden)
A1: Benefit Graphic data
A2: Benefits ($/ac/yr) | O2: Crop Rotation Net Benefit Graph
F3: Chart | M3: Chart | Q3: Chart
A4: Time | B4: Soil Fertility Benefit | C4: Water Storage Benefit | D4: Amortized Soil Fertility Benefit | E4: Amortized Water Storage Benefit | F4: Time | G4: Soil Fertility Benefit | H4: Water Storage Benefit | I4: Amortized Soil Fertility Benefit | J4: Amortized Water Storage Benefit | L4: Net Benefits | M4: Net Benefits | O4: Net Benefit | P4: Crop Rotation results | Q4: Net Benefit | R4: Crop Rotation results
A5: =IF(Lifespan>=AmortizationTables!A4,AmortizationTables!A4,"") -> 1 | B5: =IF(Lifespan>=A5,AmortizationTables!AC4,"") -> 0 | C5: =IF(Lifespan>=A5,AmortizationTables!AE4,"") -> 0 | D5: =IF(Lifespan>=A5,AmortizationTables!$AD$55,"") -> 12.72148994 | E5: =IF(Lifespan>=A5,AmortizationTables!$AF$55,"") -> 8.196836298 | F5: 1 | G5: 0 | H5: 0 | I5: 12.7215 | J5: 8.1968 | L5: =IF(Lifespan>=A5,CoverCropEcon_LongTerm!F109,"") -> 39.81 | M5: 53.87 | O5: =IF(Lifespan>=A5,CropRotation_LongTerm!G103,"") -> -316.85 | P5: =IF(Lifespan>=A5,CropRotation_LongTerm!D103,"") -> -332.5 | Q5: 406 | R5: 0
A6: =IF(Lifespan>=AmortizationTables!A5,AmortizationTables!A5,"") -> 2 | B6: =IF(Lifespan>=A6,AmortizationTables!AC5,"") -> 0 | C6: =IF(Lifespan>=A6,AmortizationTables!AE5,"") -> 0 | D6: =IF(Lifespan>=A6,AmortizationTables!$AD$55,"") -> 12.72148994 | E6: =IF(Lifespan>=A6,AmortizationTables!$AF$55,"") -> 8.196836298 | F6: 2 | G6: 0 | H6: 0 | I6: 12.7215 | J6: 8.1968 | L6: =IF(Lifespan>=A6,CoverCropEcon_LongTerm!F110,"") -> 46.28 | M6: 46.28 | O6: =IF(Lifespan>=A6,CropRotation_LongTerm!G104,"") -> -43.1 | P6: =IF(Lifespan>=A6,CropRotation_LongTerm!D104,"") -> -78.25 | Q6: -0.7 | R6: 0
A7: =IF(Lifespan>=AmortizationTables!A6,AmortizationTables!A6,"") -> 3 | B7: =IF(Lifespan>=A7,AmortizationTables!AC6,"") -> 0 | C7: =IF(Lifespan>=A7,AmortizationTables!AE6,"") -> 0 | D7: =IF(Lifespan>=A7,AmortizationTables!$AD$55,"") -> 12.72148994 | E7: =IF(Lifespan>=A7,AmortizationTables!$AF$55,"") -> 8.196836298 | F7: 3 | G7: 0 | H7: 0 | I7: 12.7215 | J7: 8.1968 | L7: =IF(Lifespan>=A7,CoverCropEcon_LongTerm!F111,"") -> 39.81 | M7: 53.87 | O7: =IF(Lifespan>=A7,CropRotation_LongTerm!G105,"") -> 130.65 | P7: =IF(Lifespan>=A7,CropRotation_LongTerm!D105,"") -> -282.5 | Q7: -123.75 | R7: -133.75
A8: =IF(Lifespan>=AmortizationTables!A7,AmortizationTables!A7,"") -> 4 | B8: =IF(Lifespan>=A8,AmortizationTables!AC7,"") -> 0 | C8: =IF(Lifespan>=A8,AmortizationTables!AE7,"") -> 0 | D8: =IF(Lifespan>=A8,AmortizationTables!$AD$55,"") -> 12.72148994 | E8: =IF(Lifespan>=A8,AmortizationTables!$AF$55,"") -> 8.196836298 | F8: 4 | G8: 0 | H8: 0 | I8: 12.7215 | J8: 8.1968 | L8: =IF(Lifespan>=A8,CoverCropEcon_LongTerm!F112,"") -> 46.28 | M8: 46.28 | O8: =IF(Lifespan>=A8,CropRotation_LongTerm!G106,"") -> -113.85 | P8: =IF(Lifespan>=A8,CropRotation_LongTerm!D106,"") -> -129.5 | Q8: 611 | R8: 205
A9: =IF(Lifespan>=AmortizationTables!A8,AmortizationTables!A8,"") -> 5 | B9: =IF(Lifespan>=A9,AmortizationTables!AC8,"") -> 0 | C9: =IF(Lifespan>=A9,AmortizationTables!AE8,"") -> 0 | D9: =IF(Lifespan>=A9,AmortizationTables!$AD$55,"") -> 12.72148994 | E9: =IF(Lifespan>=A9,AmortizationTables!$AF$55,"") -> 8.196836298 | F9: 5 | G9: 0 | H9: 0 | I9: 12.7215 | J9: 8.1968 | L9: =IF(Lifespan>=A9,CoverCropEcon_LongTerm!F113,"") -> 39.81 | M9: 53.87 | O9: =IF(Lifespan>=A9,CropRotation_LongTerm!G107,"") -> -246.1 | P9: =IF(Lifespan>=A9,CropRotation_LongTerm!D107,"") -> -281.25 | Q9: -205.7 | R9: -205
A10: =IF(Lifespan>=AmortizationTables!A9,AmortizationTables!A9,"") -> 6 | B10: =IF(Lifespan>=A10,AmortizationTables!AC9,"") -> 0 | C10: =IF(Lifespan>=A10,AmortizationTables!AE9,"") -> 0 | D10: =IF(Lifespan>=A10,AmortizationTables!$AD$55,"") -> 12.72148994 | E10: =IF(Lifespan>=A10,AmortizationTables!$AF$55,"") -> 8.196836298 | F10: 6 | G10: 0 | H10: 0 | I10: 12.7215 | J10: 8.1968 | L10: =IF(Lifespan>=A10,CoverCropEcon_LongTerm!F114,"") -> 46.28 | M10: 46.28 | O10: =IF(Lifespan>=A10,CropRotation_LongTerm!G108,"") -> 333.65 | P10: =IF(Lifespan>=A10,CropRotation_LongTerm!D108,"") -> -79.5 | Q10: 81.25 | R10: 71.25
A11: =IF(Lifespan>=AmortizationTables!A10,AmortizationTables!A10,"") -> 7 | B11: =IF(Lifespan>=A11,AmortizationTables!AC10,"") -> 0 | C11: =IF(Lifespan>=A11,AmortizationTables!AE10,"") -> 0 | D11: =IF(Lifespan>=A11,AmortizationTables!$AD$55,"") -> 12.72148994 | E11: =IF(Lifespan>=A11,AmortizationTables!$AF$55,"") -> 8.196836298 | F11: 7 | G11: 0 | H11: 0 | I11: 12.7215 | J11: 8.1968 | L11: =IF(Lifespan>=A11,CoverCropEcon_LongTerm!F115,"") -> 39.81 | M11: 53.87 | O11: =IF(Lifespan>=A11,CropRotation_LongTerm!G109,"") -> -316.85 | P11: =IF(Lifespan>=A11,CropRotation_LongTerm!D109,"") -> -332.5 | Q11: 406 | R11: 0
A12: =IF(Lifespan>=AmortizationTables!A11,AmortizationTables!A11,"") -> 8 | B12: =IF(Lifespan>=A12,AmortizationTables!AC11,"") -> 0 | C12: =IF(Lifespan>=A12,AmortizationTables!AE11,"") -> 0 | D12: =IF(Lifespan>=A12,AmortizationTables!$AD$55,"") -> 12.72148994 | E12: =IF(Lifespan>=A12,AmortizationTables!$AF$55,"") -> 8.196836298 | F12: 8 | G12: 0 | H12: 0 | I12: 12.7215 | J12: 8.1968 | L12: =IF(Lifespan>=A12,CoverCropEcon_LongTerm!F116,"") -> 46.28 | M12: 46.28 | O12: =IF(Lifespan>=A12,CropRotation_LongTerm!G110,"") -> -43.1 | P12: =IF(Lifespan>=A12,CropRotation_LongTerm!D110,"") -> -78.25 | Q12: -0.7 | R12: 0
A13: =IF(Lifespan>=AmortizationTables!A12,AmortizationTables!A12,"") -> 9 | B13: =IF(Lifespan>=A13,AmortizationTables!AC12,"") -> 0 | C13: =IF(Lifespan>=A13,AmortizationTables!AE12,"") -> 0 | D13: =IF(Lifespan>=A13,AmortizationTables!$AD$55,"") -> 12.72148994 | E13: =IF(Lifespan>=A13,AmortizationTables!$AF$55,"") -> 8.196836298 | F13: 9 | G13: 0 | H13: 0 | I13: 12.7215 | J13: 8.1968 | L13: =IF(Lifespan>=A13,CoverCropEcon_LongTerm!F117,"") -> 39.81 | M13: 53.87 | O13: =IF(Lifespan>=A13,CropRotation_LongTerm!G111,"") -> 130.65 | P13: =IF(Lifespan>=A13,CropRotation_LongTerm!D111,"") -> -282.5 | Q13: -123.75 | R13: -133.75
A14: =IF(Lifespan>=AmortizationTables!A13,AmortizationTables!A13,"") -> 10 | B14: =IF(Lifespan>=A14,AmortizationTables!AC13,"") -> 0 | C14: =IF(Lifespan>=A14,AmortizationTables!AE13,"") -> 0 | D14: =IF(Lifespan>=A14,AmortizationTables!$AD$55,"") -> 12.72148994 | E14: =IF(Lifespan>=A14,AmortizationTables!$AF$55,"") -> 8.196836298 | F14: 10 | G14: 0 | H14: 0 | I14: 12.7215 | J14: 8.1968 | L14: =IF(Lifespan>=A14,CoverCropEcon_LongTerm!F118,"") -> 46.28 | M14: 46.28 | O14: =IF(Lifespan>=A14,CropRotation_LongTerm!G112,"") -> -113.85 | P14: =IF(Lifespan>=A14,CropRotation_LongTerm!D112,"") -> -129.5 | Q14: 611 | R14: 205
A15: =IF(Lifespan>=AmortizationTables!A14,AmortizationTables!A14,"") -> 11 | B15: =IF(Lifespan>=A15,AmortizationTables!AC14,"") -> 19.4 | C15: =IF(Lifespan>=A15,AmortizationTables!AE14,"") -> 12.5 | D15: =IF(Lifespan>=A15,AmortizationTables!$AD$55,"") -> 12.72148994 | E15: =IF(Lifespan>=A15,AmortizationTables!$AF$55,"") -> 8.196836298 | F15: 11 | G15: 19.4 | H15: 12.5 | I15: 12.7215 | J15: 8.1968 | L15: =IF(Lifespan>=A15,CoverCropEcon_LongTerm!F119,"") -> 71.71 | M15: 85.77 | O15: =IF(Lifespan>=A15,CropRotation_LongTerm!G113,"") -> -246.1 | P15: =IF(Lifespan>=A15,CropRotation_LongTerm!D113,"") -> -281.25 | Q15: -205.7 | R15: -205
A16: =IF(Lifespan>=AmortizationTables!A15,AmortizationTables!A15,"") -> 12 | B16: =IF(Lifespan>=A16,AmortizationTables!AC15,"") -> 19.4 | C16: =IF(Lifespan>=A16,AmortizationTables!AE15,"") -> 12.5 | D16: =IF(Lifespan>=A16,AmortizationTables!$AD$55,"") -> 12.72148994 | E16: =IF(Lifespan>=A16,AmortizationTables!$AF$55,"") -> 8.196836298 | F16: 12 | G16: 19.4 | H16: 12.5 | I16: 12.7215 | J16: 8.1968 | L16: =IF(Lifespan>=A16,CoverCropEcon_LongTerm!F120,"") -> 78.18 | M16: 78.18 | O16: =IF(Lifespan>=A16,CropRotation_LongTerm!G114,"") -> 333.65 | P16: =IF(Lifespan>=A16,CropRotation_LongTerm!D114,"") -> -79.5 | Q16: 81.25 | R16: 71.25
A17: =IF(Lifespan>=AmortizationTables!A16,AmortizationTables!A16,"") -> 13 | B17: =IF(Lifespan>=A17,AmortizationTables!AC16,"") -> 19.4 | C17: =IF(Lifespan>=A17,AmortizationTables!AE16,"") -> 12.5 | D17: =IF(Lifespan>=A17,AmortizationTables!$AD$55,"") -> 12.72148994 | E17: =IF(Lifespan>=A17,AmortizationTables!$AF$55,"") -> 8.196836298 | F17: 13 | G17: 19.4 | H17: 12.5 | I17: 12.7215 | J17: 8.1968 | L17: =IF(Lifespan>=A17,CoverCropEcon_LongTerm!F121,"") -> 71.71 | M17: 85.77 | O17: =IF(Lifespan>=A17,CropRotation_LongTerm!G115,"") -> -316.85 | P17: =IF(Lifespan>=A17,CropRotation_LongTerm!D115,"") -> -332.5 | Q17: 406 | R17: 0
A18: =IF(Lifespan>=AmortizationTables!A17,AmortizationTables!A17,"") -> 14 | B18: =IF(Lifespan>=A18,AmortizationTables!AC17,"") -> 19.4 | C18: =IF(Lifespan>=A18,AmortizationTables!AE17,"") -> 12.5 | D18: =IF(Lifespan>=A18,AmortizationTables!$AD$55,"") -> 12.72148994 | E18: =IF(Lifespan>=A18,AmortizationTables!$AF$55,"") -> 8.196836298 | F18: 14 | G18: 19.4 | H18: 12.5 | I18: 12.7215 | J18: 8.1968 | L18: =IF(Lifespan>=A18,CoverCropEcon_LongTerm!F122,"") -> 78.18 | M18: 78.18 | O18: =IF(Lifespan>=A18,CropRotation_LongTerm!G116,"") -> -43.1 | P18: =IF(Lifespan>=A18,CropRotation_LongTerm!D116,"") -> -78.25 | Q18: -0.7 | R18: 0
A19: =IF(Lifespan>=AmortizationTables!A18,AmortizationTables!A18,"") -> 15 | B19: =IF(Lifespan>=A19,AmortizationTables!AC18,"") -> 19.4 | C19: =IF(Lifespan>=A19,AmortizationTables!AE18,"") -> 12.5 | D19: =IF(Lifespan>=A19,AmortizationTables!$AD$55,"") -> 12.72148994 | E19: =IF(Lifespan>=A19,AmortizationTables!$AF$55,"") -> 8.196836298 | F19: 15 | G19: 19.4 | H19: 12.5 | I19: 12.7215 | J19: 8.1968 | L19: =IF(Lifespan>=A19,CoverCropEcon_LongTerm!F123,"") -> 71.71 | M19: 85.77 | O19: =IF(Lifespan>=A19,CropRotation_LongTerm!G117,"") -> 130.65 | P19: =IF(Lifespan>=A19,CropRotation_LongTerm!D117,"") -> -282.5 | Q19: -123.75 | R19: -133.75
A20: =IF(Lifespan>=AmortizationTables!A19,AmortizationTables!A19,"") -> 16 | B20: =IF(Lifespan>=A20,AmortizationTables!AC19,"") -> 19.4 | C20: =IF(Lifespan>=A20,AmortizationTables!AE19,"") -> 12.5 | D20: =IF(Lifespan>=A20,AmortizationTables!$AD$55,"") -> 12.72148994 | E20: =IF(Lifespan>=A20,AmortizationTables!$AF$55,"") -> 8.196836298 | F20: 16 | G20: 19.4 | H20: 12.5 | I20: 12.7215 | J20: 8.1968 | L20: =IF(Lifespan>=A20,CoverCropEcon_LongTerm!F124,"") -> 78.18 | M20: 78.18 | O20: =IF(Lifespan>=A20,CropRotation_LongTerm!G118,"") -> -81.95 | P20: =IF(Lifespan>=A20,CropRotation_LongTerm!D118,"") -> -129.5 | Q20: 642.4 | R20: 205
A21: =IF(Lifespan>=AmortizationTables!A20,AmortizationTables!A20,"") -> 17 | B21: =IF(Lifespan>=A21,AmortizationTables!AC20,"") -> 19.4 | C21: =IF(Lifespan>=A21,AmortizationTables!AE20,"") -> 12.5 | D21: =IF(Lifespan>=A21,AmortizationTables!$AD$55,"") -> 12.72148994 | E21: =IF(Lifespan>=A21,AmortizationTables!$AF$55,"") -> 8.196836298 | F21: 17 | G21: 19.4 | H21: 12.5 | I21: 12.7215 | J21: 8.1968 | L21: =IF(Lifespan>=A21,CoverCropEcon_LongTerm!F125,"") -> 71.71 | M21: 85.77 | O21: =IF(Lifespan>=A21,CropRotation_LongTerm!G119,"") -> -214.2 | P21: =IF(Lifespan>=A21,CropRotation_LongTerm!D119,"") -> -281.25 | Q21: -174.3 | R21: -205
A22: =IF(Lifespan>=AmortizationTables!A21,AmortizationTables!A21,"") -> 18 | B22: =IF(Lifespan>=A22,AmortizationTables!AC21,"") -> 19.4 | C22: =IF(Lifespan>=A22,AmortizationTables!AE21,"") -> 12.5 | D22: =IF(Lifespan>=A22,AmortizationTables!$AD$55,"") -> 12.72148994 | E22: =IF(Lifespan>=A22,AmortizationTables!$AF$55,"") -> 8.196836298 | F22: 18 | G22: 19.4 | H22: 12.5 | I22: 12.7215 | J22: 8.1968 | L22: =IF(Lifespan>=A22,CoverCropEcon_LongTerm!F126,"") -> 78.18 | M22: 78.18 | O22: =IF(Lifespan>=A22,CropRotation_LongTerm!G120,"") -> 365.55 | P22: =IF(Lifespan>=A22,CropRotation_LongTerm!D120,"") -> -79.5 | Q22: 112.65 | R22: 71.25
A23: =IF(Lifespan>=AmortizationTables!A22,AmortizationTables!A22,"") -> 19 | B23: =IF(Lifespan>=A23,AmortizationTables!AC22,"") -> 19.4 | C23: =IF(Lifespan>=A23,AmortizationTables!AE22,"") -> 12.5 | D23: =IF(Lifespan>=A23,AmortizationTables!$AD$55,"") -> 12.72148994 | E23: =IF(Lifespan>=A23,AmortizationTables!$AF$55,"") -> 8.196836298 | F23: 19 | G23: 19.4 | H23: 12.5 | I23: 12.7215 | J23: 8.1968 | L23: =IF(Lifespan>=A23,CoverCropEcon_LongTerm!F127,"") -> 71.71 | M23: 85.77 | O23: =IF(Lifespan>=A23,CropRotation_LongTerm!G121,"") -> -284.95 | P23: =IF(Lifespan>=A23,CropRotation_LongTerm!D121,"") -> -332.5 | Q23: 437.4 | R23: 0
A24: =IF(Lifespan>=AmortizationTables!A23,AmortizationTables!A23,"") -> 20 | B24: =IF(Lifespan>=A24,AmortizationTables!AC23,"") -> 19.4 | C24: =IF(Lifespan>=A24,AmortizationTables!AE23,"") -> 12.5 | D24: =IF(Lifespan>=A24,AmortizationTables!$AD$55,"") -> 12.72148994 | E24: =IF(Lifespan>=A24,AmortizationTables!$AF$55,"") -> 8.196836298 | F24: 20 | G24: 19.4 | H24: 12.5 | I24: 12.7215 | J24: 8.1968 | L24: =IF(Lifespan>=A24,CoverCropEcon_LongTerm!F128,"") -> 78.18 | M24: 78.18 | O24: =IF(Lifespan>=A24,CropRotation_LongTerm!G122,"") -> -11.2 | P24: =IF(Lifespan>=A24,CropRotation_LongTerm!D122,"") -> -78.25 | Q24: 30.7 | R24: 0
A25: =IF(Lifespan>=AmortizationTables!A24,AmortizationTables!A24,"") -> 21 | B25: =IF(Lifespan>=A25,AmortizationTables!AC24,"") -> 38.8 | C25: =IF(Lifespan>=A25,AmortizationTables!AE24,"") -> 25 | D25: =IF(Lifespan>=A25,AmortizationTables!$AD$55,"") -> 12.72148994 | E25: =IF(Lifespan>=A25,AmortizationTables!$AF$55,"") -> 8.196836298 | F25: 21 | G25: 38.8 | H25: 25 | I25: 12.7215 | J25: 8.1968 | L25: =IF(Lifespan>=A25,CoverCropEcon_LongTerm!F129,"") -> 103.61 | M25: 117.67 | O25: =IF(Lifespan>=A25,CropRotation_LongTerm!G123,"") -> 162.55 | P25: =IF(Lifespan>=A25,CropRotation_LongTerm!D123,"") -> -282.5 | Q25: -92.35 | R25: -133.75
A26: =IF(Lifespan>=AmortizationTables!A25,AmortizationTables!A25,"") -> 22 | B26: =IF(Lifespan>=A26,AmortizationTables!AC25,"") -> 38.8 | C26: =IF(Lifespan>=A26,AmortizationTables!AE25,"") -> 25 | D26: =IF(Lifespan>=A26,AmortizationTables!$AD$55,"") -> 12.72148994 | E26: =IF(Lifespan>=A26,AmortizationTables!$AF$55,"") -> 8.196836298 | F26: 22 | G26: 38.8 | H26: 25 | I26: 12.7215 | J26: 8.1968 | L26: =IF(Lifespan>=A26,CoverCropEcon_LongTerm!F130,"") -> 110.08 | M26: 110.08 | O26: =IF(Lifespan>=A26,CropRotation_LongTerm!G124,"") -> -81.95 | P26: =IF(Lifespan>=A26,CropRotation_LongTerm!D124,"") -> -129.5 | Q26: 642.4 | R26: 205
A27: =IF(Lifespan>=AmortizationTables!A26,AmortizationTables!A26,"") -> 23 | B27: =IF(Lifespan>=A27,AmortizationTables!AC26,"") -> 38.8 | C27: =IF(Lifespan>=A27,AmortizationTables!AE26,"") -> 25 | D27: =IF(Lifespan>=A27,AmortizationTables!$AD$55,"") -> 12.72148994 | E27: =IF(Lifespan>=A27,AmortizationTables!$AF$55,"") -> 8.196836298 | F27: 23 | G27: 38.8 | H27: 25 | I27: 12.7215 | J27: 8.1968 | L27: =IF(Lifespan>=A27,CoverCropEcon_LongTerm!F131,"") -> 103.61 | M27: 117.67 | O27: =IF(Lifespan>=A27,CropRotation_LongTerm!G125,"") -> -214.2 | P27: =IF(Lifespan>=A27,CropRotation_LongTerm!D125,"") -> -281.25 | Q27: -174.3 | R27: -205
A28: =IF(Lifespan>=AmortizationTables!A27,AmortizationTables!A27,"") -> 24 | B28: =IF(Lifespan>=A28,AmortizationTables!AC27,"") -> 38.8 | C28: =IF(Lifespan>=A28,AmortizationTables!AE27,"") -> 25 | D28: =IF(Lifespan>=A28,AmortizationTables!$AD$55,"") -> 12.72148994 | E28: =IF(Lifespan>=A28,AmortizationTables!$AF$55,"") -> 8.196836298 | F28: 24 | G28: 38.8 | H28: 25 | I28: 12.7215 | J28: 8.1968 | L28: =IF(Lifespan>=A28,CoverCropEcon_LongTerm!F132,"") -> 110.08 | M28: 110.08 | O28: =IF(Lifespan>=A28,CropRotation_LongTerm!G126,"") -> 365.55 | P28: =IF(Lifespan>=A28,CropRotation_LongTerm!D126,"") -> -79.5 | Q28: 112.65 | R28: 71.25
A29: =IF(Lifespan>=AmortizationTables!A28,AmortizationTables!A28,"") -> 25 | B29: =IF(Lifespan>=A29,AmortizationTables!AC28,"") -> 38.8 | C29: =IF(Lifespan>=A29,AmortizationTables!AE28,"") -> 25 | D29: =IF(Lifespan>=A29,AmortizationTables!$AD$55,"") -> 12.72148994 | E29: =IF(Lifespan>=A29,AmortizationTables!$AF$55,"") -> 8.196836298 | F29: 25 | G29: 38.8 | H29: 25 | I29: 12.7215 | J29: 8.1968 | L29: =IF(Lifespan>=A29,CoverCropEcon_LongTerm!F133,"") -> 103.61 | M29: 117.67 | O29: =IF(Lifespan>=A29,CropRotation_LongTerm!G127,"") -> -284.95 | P29: =IF(Lifespan>=A29,CropRotation_LongTerm!D127,"") -> -332.5 | Q29: 437.4 | R29: 0
A30: =IF(Lifespan>=AmortizationTables!A29,AmortizationTables!A29,"") ->  | B30: =IF(Lifespan>=A30,AmortizationTables!AC29,"") ->  | C30: =IF(Lifespan>=A30,AmortizationTables!AE29,"") ->  | D30: =IF(Lifespan>=A30,AmortizationTables!$AD$55,"") ->  | E30: =IF(Lifespan>=A30,AmortizationTables!$AF$55,"") ->  | L30: =IF(Lifespan>=A30,CoverCropEcon_LongTerm!F134,"") ->  | O30: =IF(Lifespan>=A30,CropRotation_LongTerm!G128,"") ->  | P30: =IF(Lifespan>=A30,CropRotation_LongTerm!D128,"") -> 
A31: =IF(Lifespan>=AmortizationTables!A30,AmortizationTables!A30,"") ->  | B31: =IF(Lifespan>=A31,AmortizationTables!AC30,"") ->  | C31: =IF(Lifespan>=A31,AmortizationTables!AE30,"") ->  | D31: =IF(Lifespan>=A31,AmortizationTables!$AD$55,"") ->  | E31: =IF(Lifespan>=A31,AmortizationTables!$AF$55,"") ->  | L31: =IF(Lifespan>=A31,CoverCropEcon_LongTerm!F135,"") ->  | O31: =IF(Lifespan>=A31,CropRotation_LongTerm!G129,"") ->  | P31: =IF(Lifespan>=A31,CropRotation_LongTerm!D129,"") -> 
A32: =IF(Lifespan>=AmortizationTables!A31,AmortizationTables!A31,"") ->  | B32: =IF(Lifespan>=A32,AmortizationTables!AC31,"") ->  | C32: =IF(Lifespan>=A32,AmortizationTables!AE31,"") ->  | D32: =IF(Lifespan>=A32,AmortizationTables!$AD$55,"") ->  | E32: =IF(Lifespan>=A32,AmortizationTables!$AF$55,"") ->  | L32: =IF(Lifespan>=A32,CoverCropEcon_LongTerm!F136,"") ->  | O32: =IF(Lifespan>=A32,CropRotation_LongTerm!G130,"") ->  | P32: =IF(Lifespan>=A32,CropRotation_LongTerm!D130,"") -> 
A33: =IF(Lifespan>=AmortizationTables!A32,AmortizationTables!A32,"") ->  | B33: =IF(Lifespan>=A33,AmortizationTables!AC32,"") ->  | C33: =IF(Lifespan>=A33,AmortizationTables!AE32,"") ->  | D33: =IF(Lifespan>=A33,AmortizationTables!$AD$55,"") ->  | E33: =IF(Lifespan>=A33,AmortizationTables!$AF$55,"") ->  | L33: =IF(Lifespan>=A33,CoverCropEcon_LongTerm!F137,"") ->  | O33: =IF(Lifespan>=A33,CropRotation_LongTerm!G131,"") ->  | P33: =IF(Lifespan>=A33,CropRotation_LongTerm!D131,"") -> 
A34: =IF(Lifespan>=AmortizationTables!A33,AmortizationTables!A33,"") ->  | B34: =IF(Lifespan>=A34,AmortizationTables!AC33,"") ->  | C34: =IF(Lifespan>=A34,AmortizationTables!AE33,"") ->  | D34: =IF(Lifespan>=A34,AmortizationTables!$AD$55,"") ->  | E34: =IF(Lifespan>=A34,AmortizationTables!$AF$55,"") ->  | L34: =IF(Lifespan>=A34,CoverCropEcon_LongTerm!F138,"") ->  | O34: =IF(Lifespan>=A34,CropRotation_LongTerm!G132,"") ->  | P34: =IF(Lifespan>=A34,CropRotation_LongTerm!D132,"") -> 
A35: =IF(Lifespan>=AmortizationTables!A34,AmortizationTables!A34,"") ->  | B35: =IF(Lifespan>=A35,AmortizationTables!AC34,"") ->  | C35: =IF(Lifespan>=A35,AmortizationTables!AE34,"") ->  | D35: =IF(Lifespan>=A35,AmortizationTables!$AD$55,"") ->  | E35: =IF(Lifespan>=A35,AmortizationTables!$AF$55,"") ->  | L35: =IF(Lifespan>=A35,CoverCropEcon_LongTerm!F139,"") ->  | O35: =IF(Lifespan>=A35,CropRotation_LongTerm!G133,"") ->  | P35: =IF(Lifespan>=A35,CropRotation_LongTerm!D133,"") -> 
A36: =IF(Lifespan>=AmortizationTables!A35,AmortizationTables!A35,"") ->  | B36: =IF(Lifespan>=A36,AmortizationTables!AC35,"") ->  | C36: =IF(Lifespan>=A36,AmortizationTables!AE35,"") ->  | D36: =IF(Lifespan>=A36,AmortizationTables!$AD$55,"") ->  | E36: =IF(Lifespan>=A36,AmortizationTables!$AF$55,"") ->  | L36: =IF(Lifespan>=A36,CoverCropEcon_LongTerm!F140,"") ->  | O36: =IF(Lifespan>=A36,CropRotation_LongTerm!G134,"") ->  | P36: =IF(Lifespan>=A36,CropRotation_LongTerm!D134,"") -> 
A37: =IF(Lifespan>=AmortizationTables!A36,AmortizationTables!A36,"") ->  | B37: =IF(Lifespan>=A37,AmortizationTables!AC36,"") ->  | C37: =IF(Lifespan>=A37,AmortizationTables!AE36,"") ->  | D37: =IF(Lifespan>=A37,AmortizationTables!$AD$55,"") ->  | E37: =IF(Lifespan>=A37,AmortizationTables!$AF$55,"") ->  | L37: =IF(Lifespan>=A37,CoverCropEcon_LongTerm!F141,"") ->  | O37: =IF(Lifespan>=A37,CropRotation_LongTerm!G135,"") ->  | P37: =IF(Lifespan>=A37,CropRotation_LongTerm!D135,"") -> 
A38: =IF(Lifespan>=AmortizationTables!A37,AmortizationTables!A37,"") ->  | B38: =IF(Lifespan>=A38,AmortizationTables!AC37,"") ->  | C38: =IF(Lifespan>=A38,AmortizationTables!AE37,"") ->  | D38: =IF(Lifespan>=A38,AmortizationTables!$AD$55,"") ->  | E38: =IF(Lifespan>=A38,AmortizationTables!$AF$55,"") ->  | L38: =IF(Lifespan>=A38,CoverCropEcon_LongTerm!F142,"") ->  | O38: =IF(Lifespan>=A38,CropRotation_LongTerm!G136,"") ->  | P38: =IF(Lifespan>=A38,CropRotation_LongTerm!D136,"") -> 
A39: =IF(Lifespan>=AmortizationTables!A38,AmortizationTables!A38,"") ->  | B39: =IF(Lifespan>=A39,AmortizationTables!AC38,"") ->  | C39: =IF(Lifespan>=A39,AmortizationTables!AE38,"") ->  | D39: =IF(Lifespan>=A39,AmortizationTables!$AD$55,"") ->  | E39: =IF(Lifespan>=A39,AmortizationTables!$AF$55,"") ->  | L39: =IF(Lifespan>=A39,CoverCropEcon_LongTerm!F143,"") ->  | O39: =IF(Lifespan>=A39,CropRotation_LongTerm!G137,"") ->  | P39: =IF(Lifespan>=A39,CropRotation_LongTerm!D137,"") -> 
A40: =IF(Lifespan>=AmortizationTables!A39,AmortizationTables!A39,"") ->  | B40: =IF(Lifespan>=A40,AmortizationTables!AC39,"") ->  | C40: =IF(Lifespan>=A40,AmortizationTables!AE39,"") ->  | D40: =IF(Lifespan>=A40,AmortizationTables!$AD$55,"") ->  | E40: =IF(Lifespan>=A40,AmortizationTables!$AF$55,"") ->  | L40: =IF(Lifespan>=A40,CoverCropEcon_LongTerm!F144,"") ->  | O40: =IF(Lifespan>=A40,CropRotation_LongTerm!G138,"") ->  | P40: =IF(Lifespan>=A40,CropRotation_LongTerm!D138,"") -> 
A41: =IF(Lifespan>=AmortizationTables!A40,AmortizationTables!A40,"") ->  | B41: =IF(Lifespan>=A41,AmortizationTables!AC40,"") ->  | C41: =IF(Lifespan>=A41,AmortizationTables!AE40,"") ->  | D41: =IF(Lifespan>=A41,AmortizationTables!$AD$55,"") ->  | E41: =IF(Lifespan>=A41,AmortizationTables!$AF$55,"") ->  | L41: =IF(Lifespan>=A41,CoverCropEcon_LongTerm!F145,"") ->  | O41: =IF(Lifespan>=A41,CropRotation_LongTerm!G139,"") ->  | P41: =IF(Lifespan>=A41,CropRotation_LongTerm!D139,"") -> 
A42: =IF(Lifespan>=AmortizationTables!A41,AmortizationTables!A41,"") ->  | B42: =IF(Lifespan>=A42,AmortizationTables!AC41,"") ->  | C42: =IF(Lifespan>=A42,AmortizationTables!AE41,"") ->  | D42: =IF(Lifespan>=A42,AmortizationTables!$AD$55,"") ->  | E42: =IF(Lifespan>=A42,AmortizationTables!$AF$55,"") ->  | L42: =IF(Lifespan>=A42,CoverCropEcon_LongTerm!F146,"") ->  | O42: =IF(Lifespan>=A42,CropRotation_LongTerm!G140,"") ->  | P42: =IF(Lifespan>=A42,CropRotation_LongTerm!D140,"") -> 
A43: =IF(Lifespan>=AmortizationTables!A42,AmortizationTables!A42,"") ->  | B43: =IF(Lifespan>=A43,AmortizationTables!AC42,"") ->  | C43: =IF(Lifespan>=A43,AmortizationTables!AE42,"") ->  | D43: =IF(Lifespan>=A43,AmortizationTables!$AD$55,"") ->  | E43: =IF(Lifespan>=A43,AmortizationTables!$AF$55,"") ->  | L43: =IF(Lifespan>=A43,CoverCropEcon_LongTerm!F147,"") ->  | O43: =IF(Lifespan>=A43,CropRotation_LongTerm!G141,"") ->  | P43: =IF(Lifespan>=A43,CropRotation_LongTerm!D141,"") -> 
A44: =IF(Lifespan>=AmortizationTables!A43,AmortizationTables!A43,"") ->  | B44: =IF(Lifespan>=A44,AmortizationTables!AC43,"") ->  | C44: =IF(Lifespan>=A44,AmortizationTables!AE43,"") ->  | D44: =IF(Lifespan>=A44,AmortizationTables!$AD$55,"") ->  | E44: =IF(Lifespan>=A44,AmortizationTables!$AF$55,"") ->  | L44: =IF(Lifespan>=A44,CoverCropEcon_LongTerm!F148,"") ->  | O44: =IF(Lifespan>=A44,CropRotation_LongTerm!G142,"") ->  | P44: =IF(Lifespan>=A44,CropRotation_LongTerm!D142,"") -> 
A45: =IF(Lifespan>=AmortizationTables!A44,AmortizationTables!A44,"") ->  | B45: =IF(Lifespan>=A45,AmortizationTables!AC44,"") ->  | C45: =IF(Lifespan>=A45,AmortizationTables!AE44,"") ->  | D45: =IF(Lifespan>=A45,AmortizationTables!$AD$55,"") ->  | E45: =IF(Lifespan>=A45,AmortizationTables!$AF$55,"") ->  | L45: =IF(Lifespan>=A45,CoverCropEcon_LongTerm!F149,"") ->  | O45: =IF(Lifespan>=A45,CropRotation_LongTerm!G143,"") ->  | P45: =IF(Lifespan>=A45,CropRotation_LongTerm!D143,"") -> 
A46: =IF(Lifespan>=AmortizationTables!A45,AmortizationTables!A45,"") ->  | B46: =IF(Lifespan>=A46,AmortizationTables!AC45,"") ->  | C46: =IF(Lifespan>=A46,AmortizationTables!AE45,"") ->  | D46: =IF(Lifespan>=A46,AmortizationTables!$AD$55,"") ->  | E46: =IF(Lifespan>=A46,AmortizationTables!$AF$55,"") ->  | L46: =IF(Lifespan>=A46,CoverCropEcon_LongTerm!F150,"") ->  | O46: =IF(Lifespan>=A46,CropRotation_LongTerm!G144,"") ->  | P46: =IF(Lifespan>=A46,CropRotation_LongTerm!D144,"") -> 
A47: =IF(Lifespan>=AmortizationTables!A46,AmortizationTables!A46,"") ->  | B47: =IF(Lifespan>=A47,AmortizationTables!AC46,"") ->  | C47: =IF(Lifespan>=A47,AmortizationTables!AE46,"") ->  | D47: =IF(Lifespan>=A47,AmortizationTables!$AD$55,"") ->  | E47: =IF(Lifespan>=A47,AmortizationTables!$AF$55,"") ->  | L47: =IF(Lifespan>=A47,CoverCropEcon_LongTerm!F151,"") ->  | O47: =IF(Lifespan>=A47,CropRotation_LongTerm!G145,"") ->  | P47: =IF(Lifespan>=A47,CropRotation_LongTerm!D145,"") -> 
A48: =IF(Lifespan>=AmortizationTables!A47,AmortizationTables!A47,"") ->  | B48: =IF(Lifespan>=A48,AmortizationTables!AC47,"") ->  | C48: =IF(Lifespan>=A48,AmortizationTables!AE47,"") ->  | D48: =IF(Lifespan>=A48,AmortizationTables!$AD$55,"") ->  | E48: =IF(Lifespan>=A48,AmortizationTables!$AF$55,"") ->  | L48: =IF(Lifespan>=A48,CoverCropEcon_LongTerm!F152,"") ->  | O48: =IF(Lifespan>=A48,CropRotation_LongTerm!G146,"") ->  | P48: =IF(Lifespan>=A48,CropRotation_LongTerm!D146,"") -> 
A49: =IF(Lifespan>=AmortizationTables!A48,AmortizationTables!A48,"") ->  | B49: =IF(Lifespan>=A49,AmortizationTables!AC48,"") ->  | C49: =IF(Lifespan>=A49,AmortizationTables!AE48,"") ->  | D49: =IF(Lifespan>=A49,AmortizationTables!$AD$55,"") ->  | E49: =IF(Lifespan>=A49,AmortizationTables!$AF$55,"") ->  | L49: =IF(Lifespan>=A49,CoverCropEcon_LongTerm!F153,"") ->  | O49: =IF(Lifespan>=A49,CropRotation_LongTerm!G147,"") ->  | P49: =IF(Lifespan>=A49,CropRotation_LongTerm!D147,"") -> 
A50: =IF(Lifespan>=AmortizationTables!A49,AmortizationTables!A49,"") ->  | B50: =IF(Lifespan>=A50,AmortizationTables!AC49,"") ->  | C50: =IF(Lifespan>=A50,AmortizationTables!AE49,"") ->  | D50: =IF(Lifespan>=A50,AmortizationTables!$AD$55,"") ->  | E50: =IF(Lifespan>=A50,AmortizationTables!$AF$55,"") ->  | L50: =IF(Lifespan>=A50,CoverCropEcon_LongTerm!F154,"") ->  | O50: =IF(Lifespan>=A50,CropRotation_LongTerm!G148,"") ->  | P50: =IF(Lifespan>=A50,CropRotation_LongTerm!D148,"") -> 
A51: =IF(Lifespan>=AmortizationTables!A50,AmortizationTables!A50,"") ->  | B51: =IF(Lifespan>=A51,AmortizationTables!AC50,"") ->  | C51: =IF(Lifespan>=A51,AmortizationTables!AE50,"") ->  | D51: =IF(Lifespan>=A51,AmortizationTables!$AD$55,"") ->  | E51: =IF(Lifespan>=A51,AmortizationTables!$AF$55,"") ->  | L51: =IF(Lifespan>=A51,CoverCropEcon_LongTerm!F155,"") ->  | O51: =IF(Lifespan>=A51,CropRotation_LongTerm!G149,"") ->  | P51: =IF(Lifespan>=A51,CropRotation_LongTerm!D149,"") -> 
A52: =IF(Lifespan>=AmortizationTables!A51,AmortizationTables!A51,"") ->  | B52: =IF(Lifespan>=A52,AmortizationTables!AC51,"") ->  | C52: =IF(Lifespan>=A52,AmortizationTables!AE51,"") ->  | D52: =IF(Lifespan>=A52,AmortizationTables!$AD$55,"") ->  | E52: =IF(Lifespan>=A52,AmortizationTables!$AF$55,"") ->  | L52: =IF(Lifespan>=A52,CoverCropEcon_LongTerm!F156,"") ->  | O52: =IF(Lifespan>=A52,CropRotation_LongTerm!G150,"") ->  | P52: =IF(Lifespan>=A52,CropRotation_LongTerm!D150,"") -> 
A53: =IF(Lifespan>=AmortizationTables!A52,AmortizationTables!A52,"") ->  | B53: =IF(Lifespan>=A53,AmortizationTables!AC52,"") ->  | C53: =IF(Lifespan>=A53,AmortizationTables!AE52,"") ->  | D53: =IF(Lifespan>=A53,AmortizationTables!$AD$55,"") ->  | E53: =IF(Lifespan>=A53,AmortizationTables!$AF$55,"") ->  | L53: =IF(Lifespan>=A53,CoverCropEcon_LongTerm!F157,"") ->  | O53: =IF(Lifespan>=A53,CropRotation_LongTerm!G151,"") ->  | P53: =IF(Lifespan>=A53,CropRotation_LongTerm!D151,"") -> 
A54: =IF(Lifespan>=AmortizationTables!A53,AmortizationTables!A53,"") ->  | B54: =IF(Lifespan>=A54,AmortizationTables!AC53,"") ->  | C54: =IF(Lifespan>=A54,AmortizationTables!AE53,"") ->  | D54: =IF(Lifespan>=A54,AmortizationTables!$AD$55,"") ->  | E54: =IF(Lifespan>=A54,AmortizationTables!$AF$55,"") ->  | L54: =IF(Lifespan>=A54,CoverCropEcon_LongTerm!F158,"") ->  | O54: =IF(Lifespan>=A54,CropRotation_LongTerm!G152,"") ->  | P54: =IF(Lifespan>=A54,CropRotation_LongTerm!D152,"") -> 

Sheet CoverCropDefault (hidden)
B1: Default 1 | G1: Default 2 | L1: Default 3 | Q1: Default 4 | V1: Default 5
A2: Default Name | B2: 2 Yr Rotation: SoybeansCorn_NoGrazing | G2: 2 Yr Rotation: SoybeansCorn_withGrazing | L2: 2 Yr. Rotation: CottonCorn | Q2: 3 year rotation: Corn Soybean Wheat DCBean | V2: 3 year rotation: Corn Soybean Wheat Graze
A3: Rotation Length | B3: 2 Years | C3: =IF(Default1Rotation="1 Year", 1,IF(Default1Rotation="2 Years",2,IF(Default1Rotation="3 Years",3,IF(Default1Rotation="4 Years",4,5)))) -> 2 | G3: 2 Years | H3: =IF(Default2Rotation="1 Year", 1,IF(Default2Rotation="2 Years",2,IF(Default2Rotation="3 Years",3,IF(Default2Rotation="4 Years",4,5)))) -> 2 | L3: 2 Years | M3: =IF(Default3Rotation="1 Year", 1,IF(Default3Rotation="2 Years",2,IF(Default3Rotation="3 Years",3,IF(Default3Rotation="4 Years",4,5)))) -> 2 | Q3: 3 Years | R3: =IF(Default4Rotation="1 Year", 1,IF(Default4Rotation="2 Years",2,IF(Default4Rotation="3 Years",3,IF(Default4Rotation="4 Years",4,5)))) -> 3 | V3: 3 Years | W3: =IF(Default5Rotation="1 Year", 1,IF(Default5Rotation="2 Years",2,IF(Default5Rotation="3 Years",3,IF(Default5Rotation="4 Years",4,5)))) -> 3
A4: Scenario Description | B4: A soybean/corn rotation where producer is establishing fall cover crops every year. | G4: A soybean/corn rotation where producer is establishing fall cover crops. The cover crop established after corn harvest is grazed in fall and/or spring depending on weather and cover crop establishment timing. The forage provided by the cover crop offsets some of the typical winter feeding expenses. | L4: Cotton_Corn rotation. Producer incporporates cover crops in the fall after harvest of each cash crop. | Q4: Corn_Soybean_Wheat double crop soybean. Producer incporporates cover crops in the fall after harvest of corn | V4: Producer currently rotates Corn_Soybean_Wheat double crop soybean. Producer incporporates cover crops in the fall after harvest of corn and plants summer/fall cover crop mix after wheat for grazing rather than the double crop soybean.
A5: CashCrop | B5: Soybeans | C5: Corn | G5: Soybeans | H5: Corn | L5: Cotton | M5: Corn | Q5: Corn | R5: Soybean | S5: Wheat double crop Soybean | V5: Corn | W5: Soybean | X5: Wheat double crop Soybean
A6: Yield Unit | B6: bu | C6: bu | G6: bu | H6: bu | L6: lb | M6: bu | R6: bu | V6: bu | W6: bu
A7: Baseline Yield | B7: 50 | C7: 150 | D7: 0 | E7: 0 | F7: 0 | G7: 50 | H7: 150 | I7: 0 | J7: 0 | K7: 0 | L7: 875 | M7: 150 | N7: 0 | O7: 0 | P7: 0 | Q7: 0 | R7: 50 | S7: 0 | T7: 0 | U7: 0 | V7: 150 | W7: 50 | X7: 0 | Y7: 0 | Z7: 0
A8: Crop Value | B8: 10 | C8: 5 | D8: 0 | E8: 0 | F8: 0 | G8: 10 | H8: 5 | I8: 0 | J8: 0 | K8: 0 | L8: 0.77 | M8: 5 | N8: 0 | O8: 0 | P8: 0 | Q8: 0 | R8: 10 | S8: 0 | T8: 0 | U8: 0 | V8: 5 | W8: 10 | X8: 0 | Y8: 0 | Z8: 0
A9: CoverCropText | B9: cereal rye | C9: cereal rye (35 lbs/ac), crimson clover (8 lbs/ac), brassica (1 lb/ac) | G9: cereal rye | H9: cereal rye (35 lbs/ac), crimson clover (8 lbs/ac), brassica (1 lb/ac) | L9: crimson clover | M9: cereal rye (35 lbs/ac), crimson clover (8 lbs/ac), brassica (1 lb/ac) | Q9: no cover prior to corn | R9: cereal rye | S9: no cover crop, wheat as cash crop | V9: Summer/Fall cover crop mix planted after wheat harvest. Crimson clover (4lb), forage sorghum (10lb), pearl millet (5lb), cereal rys (50lb), turnip (3lb) | W9: cereal rye | X9: wheat as a cash crop.
A10: SeedingRate | B10: 80 | C10: 44 | D10: 0 | E10: 0 | F10: 0 | G10: 80 | H10: 44 | I10: 0 | J10: 0 | K10: 0 | L10: 30 | M10: 44 | N10: 0 | O10: 0 | P10: 0 | Q10: 0 | R10: 80 | S10: 0 | T10: 0 | U10: 0 | V10: 72 | W10: 80 | X10: 0 | Y10: 0 | Z10: 0
A11: Seed Cost | B11: 0.27 | C11: 0.66 | D11: 0 | E11: 0 | F11: 0 | G11: 0.27 | H11: 0.66 | I11: 0 | J11: 0 | K11: 0 | L11: 1.7 | M11: 0.66 | N11: 0 | O11: 0 | P11: 0 | Q11: 0 | R11: 0.27 | S11: 0 | T11: 0 | U11: 0 | V11: 0.75 | W11: 0.27 | X11: 0 | Y11: 0 | Z11: 0
A12: Planting Cost | B12: 20 | C12: 20 | D12: 0 | E12: 0 | F12: 0 | G12: 20 | H12: 20 | I12: 0 | J12: 0 | K12: 0 | L12: 20 | M12: 20 | N12: 0 | O12: 0 | P12: 0 | Q12: 0 | R12: 20 | S12: 0 | T12: 0 | U12: 0 | V12: 20 | W12: 20 | X12: 0 | Y12: 0 | Z12: 0
A13: Termination Cost | B13: 10 | C13: 10 | D13: 0 | E13: 0 | F13: 0 | G13: 10 | H13: 10 | I13: 0 | J13: 0 | K13: 0 | L13: 10 | M13: 10 | N13: 0 | O13: 0 | P13: 0 | Q13: 0 | R13: 10 | S13: 0 | T13: 0 | U13: 0 | V13: 10 | W13: 10 | X13: 0 | Y13: 0 | Z13: 0
A14: Mgt Cost | B14: 0 | C14: 0 | D14: 0 | E14: 0 | F14: 0 | G14: 0 | H14: 0 | I14: 0 | J14: 0 | K14: 0 | L14: 0 | M14: 0 | N14: 0 | O14: 0 | P14: 0 | Q14: 0 | R14: 0 | S14: 0 | T14: 0 | U14: 0 | V14: 0 | W14: 0 | X14: 0 | Y14: 0 | Z14: 0
A15: Yield Dec | B15: 0 | C15: 0 | D15: 0 | E15: 0 | F15: 0 | G15: 0 | H15: 0 | I15: 0 | J15: 0 | K15: 0 | L15: 0 | M15: 0 | N15: 0 | O15: 0 | P15: 0 | Q15: 0 | R15: 0 | S15: 0 | T15: 0 | U15: 0 | V15: 0 | W15: 0 | X15: 0 | Y15: 0 | Z15: 0
A16: Other Cost Text | X16: foregone income - planting summer/fall cover crop rather than double crop soybeans.
A17: Other Cost | B17: 0 | C17: 0 | D17: 0 | E17: 0 | F17: 0 | G17: 0 | H17: 0 | I17: 0 | J17: 0 | K17: 0 | L17: 0 | M17: 0 | N17: 0 | O17: 0 | P17: 0 | Q17: 0 | R17: 0 | S17: 0 | T17: 0 | U17: 0 | V17: 0 | W17: 0 | X17: 150 | Y17: 0 | Z17: 0
A18: N Value | B18: 0.55 | G18: 0.55 | L18: 0.55 | Q18: 0.55 | V18: 0.55
A19: P Value | B19: 0.45 | G19: 0.45 | L19: 0.45 | Q19: 0.45 | V19: 0.45
A20: K Value | B20: 0.4 | G20: 0.4 | L20: 0.4 | Q20: 0.4 | V20: 0.4
A21: N Reduction | B21: 0 | C21: 30 | D21: 0 | E21: 0 | F21: 0 | G21: 0 | H21: 30 | I21: 0 | J21: 0 | K21: 0 | L21: 0 | M21: 30 | N21: 0 | O21: 0 | P21: 0 | Q21: 0 | R21: 0 | S21: 0 | T21: 0 | U21: 0 | V21: 40 | W21: 0 | X21: 0 | Y21: 0 | Z21: 0
A22: P Reduction | B22: 0 | C22: 0 | D22: 0 | E22: 0 | F22: 0 | G22: 0 | H22: 0 | I22: 0 | J22: 0 | K22: 0 | L22: 0 | M22: 0 | N22: 0 | O22: 0 | P22: 0 | Q22: 0 | R22: 0 | S22: 0 | T22: 0 | U22: 0 | V22: 0 | W22: 0 | X22: 0 | Y22: 0 | Z22: 0
A23: K Reduction | B23: 0 | C23: 0 | D23: 0 | E23: 0 | F23: 0 | G23: 0 | H23: 0 | I23: 0 | J23: 0 | K23: 0 | L23: 0 | M23: 0 | N23: 0 | O23: 0 | P23: 0 | Q23: 0 | R23: 0 | S23: 0 | T23: 0 | U23: 0 | V23: 0 | W23: 0 | X23: 0 | Y23: 0 | Z23: 0
A24: Herbicide Cost | B24: 20 | C24: 30 | D24: 0 | E24: 0 | F24: 0 | G24: 20 | H24: 30 | I24: 0 | J24: 0 | K24: 0 | L24: 80 | M24: 30 | N24: 0 | O24: 0 | P24: 0 | Q24: 0 | R24: 20 | S24: 0 | T24: 0 | U24: 0 | V24: 30 | W24: 20 | X24: 0 | Y24: 0 | Z24: 0
A25: Herbicide Red | B25: 0.15 | C25: 0.1 | D25: 0 | E25: 0 | F25: 0 | G25: 0.15 | H25: 0.1 | I25: 0 | J25: 0 | K25: 0 | L25: 0.3 | M25: 0.1 | N25: 0 | O25: 0 | P25: 0 | Q25: 0 | R25: 0.15 | S25: 0 | T25: 0 | U25: 0 | V25: 0.2 | W25: 0.15 | X25: 0 | Y25: 0 | Z25: 0
A26: Insecticide Cost | B26: 0 | C26: 0 | D26: 0 | E26: 0 | F26: 0 | G26: 0 | H26: 0 | I26: 0 | J26: 0 | K26: 0 | L26: 0 | M26: 0 | N26: 0 | O26: 0 | P26: 0 | Q26: 0 | R26: 0 | S26: 0 | T26: 0 | U26: 0 | V26: 0 | W26: 0 | X26: 0 | Y26: 0 | Z26: 0
A27: Insecticide Red | B27: 0 | C27: 0 | D27: 0 | E27: 0 | F27: 0 | G27: 0 | H27: 0 | I27: 0 | J27: 0 | K27: 0 | L27: 0 | M27: 0 | N27: 0 | O27: 0 | P27: 0 | Q27: 0 | R27: 0 | S27: 0 | T27: 0 | U27: 0 | V27: 0 | W27: 0 | X27: 0 | Y27: 0 | Z27: 0
A28: Fungicide Cost | B28: 0 | C28: 0 | D28: 0 | E28: 0 | F28: 0 | G28: 0 | H28: 0 | I28: 0 | J28: 0 | K28: 0 | L28: 0 | M28: 0 | N28: 0 | O28: 0 | P28: 0 | Q28: 0 | R28: 0 | S28: 0 | T28: 0 | U28: 0 | V28: 0 | W28: 0 | X28: 0 | Y28: 0 | Z28: 0
A29: Fungicide Red | B29: 0 | C29: 0 | D29: 0 | E29: 0 | F29: 0 | G29: 0 | H29: 0 | I29: 0 | J29: 0 | K29: 0 | L29: 0 | M29: 0 | N29: 0 | O29: 0 | P29: 0 | Q29: 0 | R29: 0 | S29: 0 | T29: 0 | U29: 0 | V29: 0 | W29: 0 | X29: 0 | Y29: 0 | Z29: 0
A30: Yield Inc | B30: 0.02 | C30: 0 | D30: 0 | E30: 0 | F30: 0 | G30: 0.02 | H30: 0 | I30: 0 | J30: 0 | K30: 0 | L30: 0.1 | M30: 0 | N30: 0 | O30: 0 | P30: 0 | Q30: 0 | R30: 0.05 | S30: 0 | T30: 0 | U30: 0 | V30: 0 | W30: 0.05 | X30: 0 | Y30: 0 | Z30: 0
A31: On Site Erosion Value | B31: 2.1 | G31: 2.1 | L31: 2.1 | Q31: 2.1 | V31: 2.1
A32: Off Site Erosion Value | B32: 4.93 | G32: 4.93 | L32: 4.93 | Q32: 4.93 | V32: 4.93
A33: Erosion Reduction | B33: 4 | C33: 4 | D33: 0 | E33: 0 | F33: 0 | G33: 4 | H33: 4 | I33: 0 | J33: 0 | K33: 0 | L33: 4 | M33: 4 | N33: 0 | O33: 0 | P33: 0 | Q33: 0 | R33: 3 | S33: 0 | T33: 0 | U33: 0 | V33: 3 | W33: 3 | X33: 0 | Y33: 0 | Z33: 0
A34: Erosion Repair | B34: 0 | C34: 0 | D34: 0 | E34: 0 | F34: 0 | G34: 0 | H34: 0 | I34: 0 | J34: 0 | K34: 0 | L34: 0 | M34: 0 | N34: 0 | O34: 0 | P34: 0 | Q34: 0 | R34: 0 | S34: 0 | T34: 0 | U34: 0 | V34: 0 | W34: 0 | X34: 0 | Y34: 0 | Z34: 0
A35: Other Benefit Text
A36: Other Benefit | B36: 0 | C36: 0 | D36: 0 | E36: 0 | F36: 0 | G36: 0 | H36: 0 | I36: 0 | J36: 0 | K36: 0 | L36: 0 | M36: 0 | N36: 0 | O36: 0 | P36: 0 | Q36: 0 | R36: 0 | S36: 0 | T36: 0 | U36: 0 | V36: 0 | W36: 0 | X36: 0 | Y36: 0 | Z36: 0
A37: Grazing Fence | B37: 0 | C37: 0 | D37: 0 | E37: 0 | F37: 0 | G37: 0 | H37: 0 | I37: 0 | J37: 0 | K37: 0 | L37: 0 | M37: 0 | N37: 0 | O37: 0 | P37: 0 | Q37: 0 | R37: 0 | S37: 0 | T37: 0 | U37: 0 | V37: 0 | W37: 0 | X37: 0 | Y37: 0 | Z37: 0
A38: Grazing Watering | B38: 0 | C38: 0 | D38: 0 | E38: 0 | F38: 0 | G38: 0 | H38: 0 | I38: 0 | J38: 0 | K38: 0 | L38: 0 | M38: 0 | N38: 0 | O38: 0 | P38: 0 | Q38: 0 | R38: 0 | S38: 0 | T38: 0 | U38: 0 | V38: 0 | W38: 0 | X38: 0 | Y38: 0 | Z38: 0
A39: Grazing Labor Mgt | L39: 0 | M39: 0 | N39: 0 | O39: 0 | P39: 0 | Q39: 0 | R39: 0 | S39: 0 | T39: 0 | U39: 0 | V39: 0 | W39: 0 | X39: 0 | Y39: 0 | Z39: 0
A40: Stocker Daily Gain | B40: 0 | C40: 0 | D40: 0 | E40: 0 | F40: 0 | G40: 0 | H40: 0 | I40: 0 | J40: 0 | K40: 0 | L40: 0 | M40: 0 | N40: 0 | O40: 0 | P40: 0 | Q40: 0 | R40: 0 | S40: 0 | T40: 0 | U40: 0 | V40: 1 | W40: 0 | X40: 0 | Y40: 0 | Z40: 0
A41: Stocker Gain Value | B41: 0 | C41: 0 | D41: 0 | E41: 0 | F41: 0 | G41: 0 | H41: 0 | I41: 0 | J41: 0 | K41: 0 | L41: 0 | M41: 0 | N41: 0 | O41: 0 | P41: 0 | Q41: 0 | R41: 0 | S41: 0 | T41: 0 | U41: 0 | V41: 1.7 | W41: 0 | X41: 0 | Y41: 0 | Z41: 0
A42: Stocker Grazing Days | B42: 0 | C42: 0 | D42: 0 | E42: 0 | F42: 0 | G42: 0 | H42: 0 | I42: 0 | J42: 0 | K42: 0 | L42: 0 | M42: 0 | N42: 0 | O42: 0 | P42: 0 | Q42: 0 | R42: 0 | S42: 0 | T42: 0 | U42: 0 | V42: 90 | W42: 0 | X42: 0 | Y42: 0 | Z42: 0
A43: Stocker Stocking Rate | B43: 0 | C43: 0 | D43: 0 | E43: 0 | F43: 0 | G43: 0 | H43: 0 | I43: 0 | J43: 0 | K43: 0 | L43: 0 | M43: 0 | N43: 0 | O43: 0 | P43: 0 | Q43: 0 | R43: 0 | S43: 0 | T43: 0 | U43: 0 | V43: 2 | W43: 0 | X43: 0 | Y43: 0 | Z43: 0
A44: CowCalf Stocking Rate | B44: 0 | C44: 0 | D44: 0 | E44: 0 | F44: 0 | G44: 2 | H44: 0 | I44: 0 | J44: 0 | K44: 0 | L44: 0 | M44: 0 | N44: 0 | O44: 0 | P44: 0 | Q44: 0 | R44: 0 | S44: 0 | T44: 0 | U44: 0 | V44: 0 | W44: 0 | X44: 0 | Y44: 0 | Z44: 0
A45: CowCalf Forage Demand | B45: 0 | C45: 0 | D45: 0 | E45: 0 | F45: 0 | G45: 20 | H45: 0 | I45: 0 | J45: 0 | K45: 0 | L45: 0 | M45: 0 | N45: 0 | O45: 0 | P45: 0 | Q45: 0 | R45: 0 | S45: 0 | T45: 0 | U45: 0 | V45: 0 | W45: 0 | X45: 0 | Y45: 0 | Z45: 0
A46: CowCalf Grazing Days | B46: 0 | C46: 0 | D46: 0 | E46: 0 | F46: 0 | G46: 30 | H46: 0 | I46: 0 | J46: 0 | K46: 0 | L46: 0 | M46: 0 | N46: 0 | O46: 0 | P46: 0 | Q46: 0 | R46: 0 | S46: 0 | T46: 0 | U46: 0 | V46: 0 | W46: 0 | X46: 0 | Y46: 0 | Z46: 0
A47: CowCalf Forage Value | B47: 0 | C47: 0 | D47: 0 | E47: 0 | F47: 0 | G47: 100 | H47: 0 | I47: 0 | J47: 0 | K47: 0 | L47: 0 | M47: 0 | N47: 0 | O47: 0 | P47: 0 | Q47: 0 | R47: 0 | S47: 0 | T47: 0 | U47: 0 | V47: 0 | W47: 0 | X47: 0 | Y47: 0 | Z47: 0
A48: Baling Yield | B48: 0 | C48: 0 | D48: 0 | E48: 0 | F48: 0 | G48: 0 | H48: 0 | I48: 0 | J48: 0 | K48: 0 | L48: 0 | M48: 0 | N48: 0 | O48: 0 | P48: 0 | Q48: 0 | R48: 0 | S48: 0 | T48: 0 | U48: 0 | V48: 0 | W48: 0 | X48: 0 | Y48: 0 | Z48: 0
A49: Baling Value | B49: 0 | C49: 0 | D49: 0 | E49: 0 | F49: 0 | G49: 0 | H49: 0 | I49: 0 | J49: 0 | K49: 0 | L49: 0 | M49: 0 | N49: 0 | O49: 0 | P49: 0 | Q49: 0 | R49: 0 | S49: 0 | T49: 0 | U49: 0 | V49: 0 | W49: 0 | X49: 0 | Y49: 0 | Z49: 0
A50: Baling Cost | B50: 0 | C50: 0 | D50: 0 | E50: 0 | F50: 0 | G50: 0 | H50: 0 | I50: 0 | J50: 0 | K50: 0 | L50: 0 | M50: 0 | N50: 0 | O50: 0 | P50: 0 | Q50: 0 | R50: 0 | S50: 0 | T50: 0 | U50: 0 | V50: 0 | W50: 0 | X50: 0 | Y50: 0 | Z50: 0
A51: Seed Harvest Cost | B51: 0 | C51: 0 | D51: 0 | E51: 0 | F51: 0 | G51: 0 | H51: 0 | I51: 0 | J51: 0 | K51: 0 | L51: 0 | M51: 0 | N51: 0 | O51: 0 | P51: 0 | Q51: 0 | R51: 0 | S51: 0 | T51: 0 | U51: 0 | V51: 0 | W51: 0 | X51: 0 | Y51: 0 | Z51: 0
A52: Seed Yield | B52: 0 | C52: 0 | D52: 0 | E52: 0 | F52: 0 | G52: 0 | H52: 0 | I52: 0 | J52: 0 | K52: 0 | L52: 0 | M52: 0 | N52: 0 | O52: 0 | P52: 0 | Q52: 0 | R52: 0 | S52: 0 | T52: 0 | U52: 0 | V52: 0 | W52: 0 | X52: 0 | Y52: 0 | Z52: 0
A53: Seed Value | B53: 0 | C53: 0 | D53: 0 | E53: 0 | F53: 0 | G53: 0 | H53: 0 | I53: 0 | J53: 0 | K53: 0 | L53: 0 | M53: 0 | N53: 0 | O53: 0 | P53: 0 | Q53: 0 | R53: 0 | S53: 0 | T53: 0 | U53: 0 | V53: 0 | W53: 0 | X53: 0 | Y53: 0 | Z53: 0
A54: Lifespan | B54: 25 | G54: 25 | L54: 25 | Q54: 25 | V54: 25
A55: Discount Rate | B55: 0.03 | G55: 0.03 | L55: 0.03 | Q55: 0.03 | V55: 0.03
A56: Current SOM | B56: 3 | G56: 3 | L56: 3 | Q56: 3 | V56: 3
A57: Years SOM Change | B57: 10 | G57: 10 | L57: 10 | Q57: 10 | V57: 10
A58: Max SOM | B58: 6 | G58: 6 | L58: 6 | Q58: 6 | V58: 6
A59: Sulfur Value | B59: 3 | G59: 3 | L59: 3 | Q59: 3 | V59: 3
A60: Carbon Value | B60: 0 | G60: 0 | L60: 0 | Q60: 0 | V60: 0
A61: N Plant Available | B61: 20 | G61: 20 | L61: 20 | Q61: 20 | V61: 20
A62: P Plant Available | B62: 2 | G62: 2 | L62: 2 | Q62: 2 | V62: 2
A63: K Plant Available | B63: 0 | G63: 0 | L63: 0 | Q63: 0 | V63: 0
A64: S Plant Available | B64: 2.5 | G64: 2.5 | L64: 2.5 | Q64: 2.5 | V64: 2.5
A65: Carbon | B65: 0 | G65: 0 | L65: 0 | Q65: 0 | V65: 0
A66: Water Value | B66: 12.5 | G66: 12.5 | L66: 12.5 | Q66: 12.5 | V66: 12.5

Sheet AmortizationTables (hidden)
B1: Costs | H1: Total Costs | I1: Short Term Benefits | AA1: Total Short | AC1: Long Term Benefits | AG1: Total Long | AP1: New Crop Rotation Cover Crop Costs | AV1: Total Costs | AW1: New Crop Rotation Cover Crop Short Term Benefits | BM1: Total Short | BO1: Long Term Benefits | BS1: Total Long
B2: Cover Crop Est Costs Table | D2: Yield Decrease Table | F2: Other Costs | I2: Direct Nutrient Input Reduction | K2: Herb, Fung, Insect Reduction | M2: Yield Increase | O2: Erosion Reduction | Q2: Other Benefit | S2: Grazing Stockers | U2: Grazing Cow Calf | W2: Baling | Y2: Seed Production | AA2: Term Benefits | AC2: Soil Fertility Table | AE2: Water Storage Table | AG2: Term Benefits | AI2: Crop Rotation Change | AP2: Cover Crop Est Costs Table | AR2: Yield Decrease Table | AT2: Other Costs | AW2: Direct Nutrient Input Reduction | AY2: Herb, Fung, Insect Reduction | BA2: Yield Increase | BC2: Erosion Reduction | BE2: Other Benefit | BG2: Grazing | BI2: Baling | BK2: Seed Production | BM2: Term Benefits | BO2: Soil Fertility Table | BQ2: Water Storage Table | BS2: Term Benefits
A3: Time | B3: Cost ($/ac/yr) | C3: Present Value ($/ac/yr) | D3: Cost ($/ac/yr) | E3: Present Value ($/ac/yr) | F3: Cost ($/ac/yr) | G3: Present Value ($/ac/yr) | I3: Benefit ($/ac/yr) | J3: Present Value ($/ac/yr) | K3: Benefit ($/ac/yr) | L3: Present Value ($/ac/yr) | M3: Benefit ($/ac/yr) | N3: Present Value ($/ac/yr) | O3: Benefit ($/ac/yr) | P3: Present Value ($/ac/yr) | Q3: Benefit ($/ac/yr) | R3: Present Value ($/ac/yr) | S3: Benefit ($/ac/yr) | T3: Present Value ($/ac/yr) | U3: Benefit ($/ac/yr) | V3: Present Value ($/ac/yr) | W3: Benefit ($/ac/yr) | X3: Present Value ($/ac/yr) | Y3: Benefit ($/ac/yr) | Z3: Present Value ($/ac/yr) | AB3: SOM (%) | AC3: Benefit ($/ac/yr) | AD3: Present Value ($/ac/yr) | AE3: Benefit ($/ac/yr) | AF3: Present Value | AI3: Current Rotation | AJ3: Income over Op Cost | AK3: New Rotation | AL3: Income over Op Cost | AM3: Rotation Difference | AN3: Present Value | AP3: Cost ($/ac/yr) | AQ3: Present Value ($/ac/yr) | AR3: Cost ($/ac/yr) | AS3: Present Value ($/ac/yr) | AT3: Cost ($/ac/yr) | AU3: Present Value ($/ac/yr) | AW3: Benefit ($/ac/yr) | AX3: Present Value ($/ac/yr) | AY3: Benefit ($/ac/yr) | AZ3: Present Value ($/ac/yr) | BA3: Benefit ($/ac/yr) | BB3: Present Value ($/ac/yr) | BC3: Benefit ($/ac/yr) | BD3: Present Value ($/ac/yr) | BE3: Benefit ($/ac/yr) | BF3: Present Value ($/ac/yr) | BG3: Benefit ($/ac/yr) | BH3: Present Value ($/ac/yr) | BI3: Benefit ($/ac/yr) | BJ3: Present Value ($/ac/yr) | BK3: Benefit ($/ac/yr) | BL3: Present Value ($/ac/yr) | BN3: SOM (%) | BO3: Benefit ($/ac/yr) | BP3: Present Value ($/ac/yr) | BQ3: Benefit ($/ac/yr) | BR3: Present Value
A4: 1 | B4: =IF(A4<=Lifespan,CCCost1,0) -> 51.6 | C4: =B4 -> 51.6 | D4: =IF(A4<=YieldDecYrs,YieldDec1,0) -> 0 | E4: =D4 -> 0 | F4: =IF(A4<=Lifespan,OtherCost1,0) -> 0 | G4: =F4 -> 0 | H4: =B4+D4+F4 -> 51.6 | I4: =IF(A4<=Lifespan,Nutrient1,0) -> 0 | J4: =I4 -> 0 | K4: =IF(A4<=Lifespan,Herb1,0) -> 3 | L4: =K4 -> 3 | M4: =IF(A4<=Lifespan,YieldInc1,0) -> 16.65 | N4: =M4 -> 16.65 | O4: =IF(A4<=Lifespan,Erosion1,0) -> 14.06 | P4: =O4 -> 14.06 | Q4: =IF(A4<=Lifespan,OtherBenefit1,0) -> 0 | R4: =Q4 -> 0 | S4: =IF(A4<=Lifespan,Grazing1,0) -> 0 | T4: =S4 -> 0 | U4: =IF(A4<=Lifespan,GrazingCC1,0) -> 57.7 | V4: =U4 -> 57.7 | W4: =IF(A4<=Lifespan,Baling1,0) -> 0 | X4: =W4 -> 0 | Y4: =IF(A4<=Lifespan,Seed1,0) -> 0 | Z4: =Y4 -> 0 | AA4: =I4+K4+M4+O4+Q4+S4+U4+W4+Y4 -> 91.41 | AB4: =IF(A4<=YearsSOM,CurrentSOM,IF(A4<=YearsSOM*2,IF(CurrentSOM+1<=MaxSOM,CurrentSOM+1,MaxSOM),IF(A4<=YearsSOM*3,IF(CurrentSOM+2<=MaxSOM,CurrentSOM+2,MaxSOM),IF(A4<=YearsSOM*4,IF(CurrentSOM+3<=MaxSOM,CurrentSOM+3,MaxSOM),IF(A4<=YearsSOM*5,IF(CurrentSOM+4<=MaxSOM,CurrentSOM+4,MaxSOM),IF(A4<=YearsSOM*6,IF(CurrentSOM+5<=MaxSOM,CurrentSOM+5,MaxSOM),IF(A4<=YearsSOM*7,IF(CurrentSOM+6<=MaxSOM,CurrentSOM+6,MaxSOM),IF(A4<=YearsSOM*8,IF(CurrentSOM+7<=MaxSOM,CurrentSOM+7,MaxSOM),IF(A4<=YearsSOM*9,IF(CurrentSOM+8<=MaxSOM,CurrentSOM+8,MaxSOM),IF(A4<=YearsSOM*10,IF(CurrentSOM+9<=MaxSOM,CurrentSOM+9,MaxSOM),IF(A4<=YearsSOM*11,IF(CurrentSOM+10<=MaxSOM,CurrentSOM+10,MaxSOM),IF(A4<=YearsSOM*12,IF(CurrentSOM+11<=MaxSOM,CurrentSOM+11,MaxSOM),IF(A4<=YearsSOM*13,IF(CurrentSOM+12<=MaxSOM,CurrentSOM+12,MaxSOM),IF(A4<=YearsSOM*14,IF(CurrentSOM+13<=MaxSOM,CurrentSOM+13,MaxSOM),IF(A4<=YearsSOM*15,IF(CurrentSOM+14<=MaxSOM,CurrentSOM+14,MaxSOM)))))))))))))))) -> 2 | AC4: =IF(A4<=Lifespan,IF(AB4=CurrentSOM,0,IF(AB4=CurrentSOM+1,CoverCropEcon_LongTerm!$D$76,IF(AB4=CurrentSOM+2,CoverCropEcon_LongTerm!$D$76*2,IF(AB4=CurrentSOM+3,CoverCropEcon_LongTerm!$D$76*3,IF(AB4=CurrentSOM+4,CoverCropEcon_LongTerm!$D$76*4,IF(AB4=CurrentSOM+5,CoverCropEcon_LongTerm!$D$76*5,IF(AB4=CurrentSOM+6,CoverCropEcon_LongTerm!$D$76*6,IF(AB4=CurrentSOM+7,CoverCropEcon_LongTerm!$D$76*7,IF(AB4=CurrentSOM+8,CoverCropEcon_LongTerm!$D$76*8,IF(AB4=CurrentSOM+9,CoverCropEcon_LongTerm!$D$76*9,IF(AB4=CurrentSOM+10,CoverCropEcon_LongTerm!$D$76*10))))))))))),0) -> 0 | AD4: =AC4 -> 0 | AE4: =IF(A4<=Lifespan,IF(AB4=CurrentSOM,0,IF(AB4=CurrentSOM+1,CoverCropEcon_LongTerm!$D$86,IF(AB4=CurrentSOM+2,CoverCropEcon_LongTerm!$D$86*2,IF(AB4=CurrentSOM+3,CoverCropEcon_LongTerm!$D$86*3,IF(AB4=CurrentSOM+4,CoverCropEcon_LongTerm!$D$86*4,IF(AB4=CurrentSOM+5,CoverCropEcon_LongTerm!$D$86*5,IF(AB4=CurrentSOM+6,CoverCropEcon_LongTerm!$D$86*6,IF(AB4=CurrentSOM+7,CoverCropEcon_LongTerm!$D$86*7,IF(AB4=CurrentSOM+8,CoverCropEcon_LongTerm!$D$86*8,IF(AB4=CurrentSOM+9,CoverCropEcon_LongTerm!$D$86*9,IF(AB4=CurrentSOM+10,CoverCropEcon_LongTerm!$D$86*10))))))))))),0) -> 0 | AF4: =AE4 -> 0 | AG4: =AC4+AE4 -> 0 | AI4: =IF($A$4<=Lifespan,CashCrop1,"-") -> Soybeans | AJ4: =IF($A$4<=Lifespan,CR_IOC1,0) -> 457.5 | AK4: =IF($A$4<=Lifespan,CR_NRCC1,"-") -> Soybeans | AL4: =IF($A$4<=Lifespan,CR_NRIOC1,0) -> 125 | AM4: =AL4-AJ4 -> -332.5 | AN4: =AM4 -> -332.5 | AP4: =IF($A$4<=Lifespan,CR_CCCost1,0) -> 32.5 | AQ4: =AP4 -> 32.5 | AR4: =IF($A$4<=CR_YieldDecYrs,CR_YieldDec1,0) -> 0 | AS4: =AR4 -> 0 | AT4: =IF($A$4<=Lifespan,CR_OtherCost1,0) -> 0 | AU4: =AT4 -> 0 | AV4: =AP4+AR4+AT4 -> 32.5 | AW4: =IF($A$4<=Lifespan,CR_Nutrient1,0) -> 0 | AX4: =AW4 -> 0 | AY4: =IF($A$4<=Lifespan,CR_Herb1,0) -> 3 | AZ4: =AY4 -> 3 | BA4: =IF($A$4<=Lifespan,CR_YieldInc1,0) -> 10 | BB4: =BA4 -> 10 | BC4: =IF($A$4<=Lifespan,CR_Erosion1,0) -> 35.15 | BD4: =BC4 -> 35.15 | BE4: =IF($A$4<=Lifespan,CR_OtherBenefit1,0) -> 0 | BF4: =BE4 -> 0 | BG4: =IF($A$4<=Lifespan,CR_Grazing1,0) -> 0 | BH4: =BG4 -> 0 | BI4: =IF($A$4<=Lifespan,CR_Baling1,0) -> 0 | BJ4: =BI4 -> 0 | BK4: =IF($A$4<=Lifespan,CR_Seed1,0) -> 0 | BL4: =BK4 -> 0 | BM4: =AW4+AY4+BA4+BC4+BE4+BG4+BI4+BK4 -> 48.15 | BN4: =IF(A4<=CR_YearsSOM,CurrentSOM,IF(A4<=CR_YearsSOM*2,IF(CurrentSOM+1<=MaxSOM,CurrentSOM+1,MaxSOM),IF(A4<=CR_YearsSOM*3,IF(CurrentSOM+2<=MaxSOM,CurrentSOM+2,MaxSOM),IF(A4<=CR_YearsSOM*4,IF(CurrentSOM+3<=MaxSOM,CurrentSOM+3,MaxSOM),IF(A4<=CR_YearsSOM*5,IF(CurrentSOM+4<=MaxSOM,CurrentSOM+4,MaxSOM),IF(A4<=CR_YearsSOM*6,IF(CurrentSOM+5<=MaxSOM,CurrentSOM+5,MaxSOM),IF(A4<=CR_YearsSOM*7,IF(CurrentSOM+6<=MaxSOM,CurrentSOM+6,MaxSOM),IF(A4<=CR_YearsSOM*8,IF(CurrentSOM+7<=MaxSOM,CurrentSOM+7,MaxSOM),IF(A4<=CR_YearsSOM*9,IF(CurrentSOM+8<=MaxSOM,CurrentSOM+8,MaxSOM),IF(A4<=CR_YearsSOM*10,IF(CurrentSOM+9<=MaxSOM,CurrentSOM+9,MaxSOM),IF(A4<=CR_YearsSOM*11,IF(CurrentSOM+10<=MaxSOM,CurrentSOM+10,MaxSOM),IF(A4<=CR_YearsSOM*12,IF(CurrentSOM+11<=MaxSOM,CurrentSOM+11,MaxSOM),IF(A4<=CR_YearsSOM*13,IF(CurrentSOM+12<=MaxSOM,CurrentSOM+12,MaxSOM),IF(A4<=CR_YearsSOM*14,IF(CurrentSOM+13<=MaxSOM,CurrentSOM+13,MaxSOM),IF(A4<=CR_YearsSOM*15,IF(CurrentSOM+14<=MaxSOM,CurrentSOM+14,MaxSOM)))))))))))))))) -> 2 | BO4: =IF(A4<=Lifespan,IF(BN4=CurrentSOM,0,IF(BN4=CurrentSOM+1,CoverCropEcon_LongTerm!$D$76,IF(BN4=CurrentSOM+2,CoverCropEcon_LongTerm!$D$76*2,IF(BN4=CurrentSOM+3,CoverCropEcon_LongTerm!$D$76*3,IF(BN4=CurrentSOM+4,CoverCropEcon_LongTerm!$D$76*4,IF(BN4=CurrentSOM+5,CoverCropEcon_LongTerm!$D$76*5,IF(BN4=CurrentSOM+6,CoverCropEcon_LongTerm!$D$76*6,IF(BN4=CurrentSOM+7,CoverCropEcon_LongTerm!$D$76*7,IF(BN4=CurrentSOM+8,CoverCropEcon_LongTerm!$D$76*8,IF(BN4=CurrentSOM+9,CoverCropEcon_LongTerm!$D$76*9,IF(BN4=CurrentSOM+10,CoverCropEcon_LongTerm!$D$76*10))))))))))),0) -> 0 | BP4: =BO4 -> 0 | BQ4: =IF(A4<=Lifespan,IF(BN4=CurrentSOM,0,IF(BN4=CurrentSOM+1,CoverCropEcon_LongTerm!$D$86,IF(BN4=CurrentSOM+2,CoverCropEcon_LongTerm!$D$86*2,IF(BN4=CurrentSOM+3,CoverCropEcon_LongTerm!$D$86*3,IF(BN4=CurrentSOM+4,CoverCropEcon_LongTerm!$D$86*4,IF(BN4=CurrentSOM+5,CoverCropEcon_LongTerm!$D$86*5,IF(BN4=CurrentSOM+6,CoverCropEcon_LongTerm!$D$86*6,IF(BN4=CurrentSOM+7,CoverCropEcon_LongTerm!$D$86*7,IF(BN4=CurrentSOM+8,CoverCropEcon_LongTerm!$D$86*8,IF(BN4=CurrentSOM+9,CoverCropEcon_LongTerm!$D$86*9,IF(BN4=CurrentSOM+10,CoverCropEcon_LongTerm!$D$86*10))))))))))),0) -> 0 | BR4: =BQ4 -> 0 | BS4: =BO4+BQ4 -> 0
A5: 2 | B5: =IF($A$5<=Lifespan,IF(RotationValue = 1,CCCost1,IF(RotationValue = 2,CCCost2,CCCost2)),0) -> 59.04 | C5: =B5/(1+DiscountRate)^A5 -> 55.65086248 | D5: =IF($A$5<=YieldDecYrs,IF(RotationValue = 1,YieldDec1,IF(RotationValue = 2,YieldDec2,YieldDec2)),0) -> 0 | E5: =D5/(1+DiscountRate)^A5 -> 0 | F5: =IF($A$5<=Lifespan,IF(RotationValue = 1,OtherCost1,IF(RotationValue = 2,OtherCost2,OtherCost2)),0) -> 0 | G5: =F5/(1+DiscountRate)^A5 -> 0 | H5: =B5+D5+F5 -> 59.04 | I5: =IF($A$5<=Lifespan,IF(RotationValue = 1,Nutrient1,IF(RotationValue = 2,Nutrient2,Nutrient2)),0) -> 16.5 | J5: =I5/(1+DiscountRate)^A5 -> 15.5528325 | K5: =IF($A$5<=Lifespan,IF(RotationValue = 1,Herb1,IF(RotationValue = 2,Herb2,Herb2)),0) -> 3 | L5: =K5/(1+DiscountRate)^A5 -> 2.827787727 | M5: =IF($A$5<=Lifespan,IF(RotationValue = 1,YieldInc1,IF(RotationValue = 2,YieldInc2,YieldInc2)),0) -> 0 | N5: =M5/(1+DiscountRate)^A5 -> 0 | O5: =IF($A$5<=Lifespan,IF(RotationValue = 1,Erosion1,IF(RotationValue = 2,Erosion2,Erosion2)),0) -> 28.12 | P5: =O5/(1+DiscountRate)^A5 -> 26.50579696 | Q5: =IF($A$5<=Lifespan,IF(RotationValue = 1,OtherBenefit1,IF(RotationValue = 2,OtherBenefit2,OtherBenefit2)),0) -> 0 | R5: =Q5/(1+DiscountRate)^A5 -> 0 | S5: =IF($A$5<=Lifespan,IF(RotationValue = 1,Grazing1,IF(RotationValue = 2,Grazing2,Grazing2)),0) -> 0 | T5: =S5/(1+DiscountRate)^A5 -> 0 | U5: =IF($A$5<=Lifespan,IF(RotationValue = 1,GrazingCC1,IF(RotationValue = 2,GrazingCC2,GrazingCC2)),0) -> 57.7 | V5: =U5/(1+DiscountRate)^A5 -> 54.38778396 | W5: =IF($A$5<=Lifespan,IF(RotationValue = 1,Baling1,IF(RotationValue = 2,Baling2,Baling2)),0) -> 0 | X5: =W5/(1+DiscountRate)^A5 -> 0 | Y5: =IF($A$5<=Lifespan,IF(RotationValue = 1,Seed1,IF(RotationValue = 2,Seed2,Seed2)),0) -> 0 | Z5: =Y5/(1+DiscountRate)^A5 -> 0 | AA5: =I5+K5+M5+O5+Q5+S5+U5+W5+Y5 -> 105.32 | AB5: 2 | AC5: =IF(A5<=Lifespan,IF(AB5=CurrentSOM,0,IF(AB5=CurrentSOM+1,CoverCropEcon_LongTerm!$D$76,IF(AB5=CurrentSOM+2,CoverCropEcon_LongTerm!$D$76*2,IF(AB5=CurrentSOM+3,CoverCropEcon_LongTerm!$D$76*3,IF(AB5=CurrentSOM+4,CoverCropEcon_LongTerm!$D$76*4,IF(AB5=CurrentSOM+5,CoverCropEcon_LongTerm!$D$76*5,IF(AB5=CurrentSOM+6,CoverCropEcon_LongTerm!$D$76*6,IF(AB5=CurrentSOM+7,CoverCropEcon_LongTerm!$D$76*7,IF(AB5=CurrentSOM+8,CoverCropEcon_LongTerm!$D$76*8,IF(AB5=CurrentSOM+9,CoverCropEcon_LongTerm!$D$76*9,IF(AB5=CurrentSOM+10,CoverCropEcon_LongTerm!$D$76*10))))))))))),0) -> 0 | AD5: =AC5/(1+DiscountRate)^A5 -> 0 | AE5: =IF(A5<=Lifespan,IF(AB5=CurrentSOM,0,IF(AB5=CurrentSOM+1,CoverCropEcon_LongTerm!$D$86,IF(AB5=CurrentSOM+2,CoverCropEcon_LongTerm!$D$86*2,IF(AB5=CurrentSOM+3,CoverCropEcon_LongTerm!$D$86*3,IF(AB5=CurrentSOM+4,CoverCropEcon_LongTerm!$D$86*4,IF(AB5=CurrentSOM+5,CoverCropEcon_LongTerm!$D$86*5,IF(AB5=CurrentSOM+6,CoverCropEcon_LongTerm!$D$86*6,IF(AB5=CurrentSOM+7,CoverCropEcon_LongTerm!$D$86*7,IF(AB5=CurrentSOM+8,CoverCropEcon_LongTerm!$D$86*8,IF(AB5=CurrentSOM+9,CoverCropEcon_LongTerm!$D$86*9,IF(AB5=CurrentSOM+10,CoverCropEcon_LongTerm!$D$86*10))))))))))),0) -> 0 | AF5: =AE5/(1+DiscountRate)^A5 -> 0 | AG5: =AC5+AE5 -> 0 | AI5: =IF($A$5<=Lifespan,IF(RotationValue = 1,CashCrop1,IF(RotationValue = 2,CashCrop2,CashCrop2)),"-") -> Corn | AJ5: =IF($A$5<=Lifespan,IF(RotationValue = 1,CR_IOC1,IF(RotationValue = 2,CR_IOC2,CR_IOC2)),0) -> 254.5 | AK5: =IF($A$5<=Lifespan,IF(Rotation2Value = 1,CR_NRCC1,IF(Rotation2Value = 2,CR_NRCC2,CR_NRCC2)),"-") -> Wheat | AL5: =IF($A$5<=Lifespan,IF(Rotation2Value = 1,CR_NRIOC1,IF(Rotation2Value = 2,CR_NRIOC2,CR_NRIOC2)),0) -> 176.25 | AM5: =AL5-AJ5 -> -78.25 | AN5: =AM5/(1+DiscountRate)^A5 -> -73.75812989 | AP5: =IF($A$5<=Lifespan,IF(Rotation2Value = 1,CR_CCCost1,IF(Rotation2Value = 2,CR_CCCost2,CR_CCCost2)),0) -> 0 | AQ5: =AP5/(1+DiscountRate)^A5 -> 0 | AR5: =IF($A$5<=CR_YieldDecYrs,IF(Rotation2Value = 1,CR_YieldDec1,IF(Rotation2Value = 2,CR_YieldDec2,CR_YieldDec2)),0) -> 0 | AS5: =AR5/(1+DiscountRate)^A5 -> 0 | AT5: =IF($A$5<=Lifespan,IF(Rotation2Value = 1,CR_OtherCost1,IF(Rotation2Value = 2,CR_OtherCost2,CR_OtherCost2)),0) -> 0 | AU5: =AT5/(1+DiscountRate)^A5 -> 0 | AV5: =AP5+AR5+AT5 -> 0 | AW5: =IF($A$5<=Lifespan,IF(Rotation2Value = 1,CR_Nutrient1,IF(Rotation2Value = 2,CR_Nutrient2,CR_Nutrient2)),0) -> 0 | AX5: =AW5/(1+DiscountRate)^A5 -> 0 | AY5: =IF($A$5<=Lifespan,IF(Rotation2Value = 1,CR_Herb1,IF(Rotation2Value = 2,CR_Herb2,CR_Herb2)),0) -> 0 | AZ5: =AY5/(1+DiscountRate)^A5 -> 0 | BA5: =IF($A$5<=Lifespan,IF(Rotation2Value = 1,CR_YieldInc1,IF(Rotation2Value = 2,CR_YieldInc2,CR_YieldInc2)),0) -> 0 | BB5: =BA5/(1+DiscountRate)^A5 -> 0 | BC5: =IF($A$5<=Lifespan,IF(Rotation2Value = 1,CR_Erosion1,IF(Rotation2Value = 2,CR_Erosion2,CR_Erosion2)),0) -> 35.15 | BD5: =BC5/(1+DiscountRate)^A5 -> 33.13224621 | BE5: =IF($A$5<=Lifespan,IF(Rotation2Value = 1,CR_OtherBenefit1,IF(Rotation2Value = 2,CR_OtherBenefit2,CR_OtherBenefit2)),0) -> 0 | BF5: =BE5/(1+DiscountRate)^A5 -> 0 | BG5: =IF($A$5<=Lifespan,IF(Rotation2Value = 1,CR_Grazing1,IF(Rotation2Value = 2,CR_Grazing2,CR_Grazing2)),0) -> 0 | BH5: =BG5/(1+DiscountRate)^A5 -> 0 | BI5: =IF($A$5<=Lifespan,IF(Rotation2Value = 1,CR_Baling1,IF(Rotation2Value = 2,CR_Baling2,CR_Baling2)),0) -> 0 | BJ5: =BI5/(1+DiscountRate)^A5 -> 0 | BK5: =IF($A$5<=Lifespan,IF(Rotation2Value = 1,CR_Seed1,IF(Rotation2Value = 2,CR_Seed2,CR_Seed2)),0) -> 0 | BL5: =BK5/(1+DiscountRate)^A5 -> 0 | BM5: =AW5+AY5+BA5+BC5+BE5+BG5+BI5+BK5 -> 35.15 | BN5: 2 | BO5: =IF(A5<=Lifespan,IF(BN5=CurrentSOM,0,IF(BN5=CurrentSOM+1,CoverCropEcon_LongTerm!$D$76,IF(BN5=CurrentSOM+2,CoverCropEcon_LongTerm!$D$76*2,IF(BN5=CurrentSOM+3,CoverCropEcon_LongTerm!$D$76*3,IF(BN5=CurrentSOM+4,CoverCropEcon_LongTerm!$D$76*4,IF(BN5=CurrentSOM+5,CoverCropEcon_LongTerm!$D$76*5,IF(BN5=CurrentSOM+6,CoverCropEcon_LongTerm!$D$76*6,IF(BN5=CurrentSOM+7,CoverCropEcon_LongTerm!$D$76*7,IF(BN5=CurrentSOM+8,CoverCropEcon_LongTerm!$D$76*8,IF(BN5=CurrentSOM+9,CoverCropEcon_LongTerm!$D$76*9,IF(BN5=CurrentSOM+10,CoverCropEcon_LongTerm!$D$76*10))))))))))),0) -> 0 | BP5: =BO5/(1+DiscountRate)^A5 -> 0 | BQ5: =IF(A5<=Lifespan,IF(BN5=CurrentSOM,0,IF(BN5=CurrentSOM+1,CoverCropEcon_LongTerm!$D$86,IF(BN5=CurrentSOM+2,CoverCropEcon_LongTerm!$D$86*2,IF(BN5=CurrentSOM+3,CoverCropEcon_LongTerm!$D$86*3,IF(BN5=CurrentSOM+4,CoverCropEcon_LongTerm!$D$86*4,IF(BN5=CurrentSOM+5,CoverCropEcon_LongTerm!$D$86*5,IF(BN5=CurrentSOM+6,CoverCropEcon_LongTerm!$D$86*6,IF(BN5=CurrentSOM+7,CoverCropEcon_LongTerm!$D$86*7,IF(BN5=CurrentSOM+8,CoverCropEcon_LongTerm!$D$86*8,IF(BN5=CurrentSOM+9,CoverCropEcon_LongTerm!$D$86*9,IF(BN5=CurrentSOM+10,CoverCropEcon_LongTerm!$D$86*10))))))))))),0) -> 0 | BR5: =BQ5/(1+DiscountRate)^A5 -> 0 | BS5: =BO5+BQ5 -> 0
A6: 3 | B6: =IF($A$6<=Lifespan,IF(RotationValue = 1,CCCost1,IF(RotationValue = 2,CCCost1,CCCost3)),0) -> 51.6 | C6: 47.22130962 | D6: =IF($A$6<=YieldDecYrs,IF(RotationValue = 1,YieldDec1,IF(RotationValue = 2,YieldDec1,YieldDec3)),0) -> 0 | E6: 0 | F6: =IF($A$6<=Lifespan,IF(RotationValue = 1,OtherCost1,IF(RotationValue = 2,OtherCost1,OtherCost3)),0) -> 0 | G6: 0 | H6: 51.6 | I6: =IF($A$6<=Lifespan,IF(RotationValue = 1,Nutrient1,IF(RotationValue = 2,Nutrient1,Nutrient3)),0) -> 0 | J6: 0 | K6: =IF($A$6<=Lifespan,IF(RotationValue = 1,Herb1,IF(RotationValue = 2,Herb1,Herb3)),0) -> 3 | L6: 2.745424978 | M6: =IF($A$6<=Lifespan,IF(RotationValue = 1,YieldInc1,IF(RotationValue = 2,YieldInc1,YieldInc3)),0) -> 16.65 | N6: 15.23710863 | O6: =IF($A$6<=Lifespan,IF(RotationValue = 1,Erosion1,IF(RotationValue = 2,Erosion1,Erosion3)),0) -> 14.06 | P6: 12.86689173 | Q6: =IF($A$6<=Lifespan,IF(RotationValue = 1,OtherBenefit1,IF(RotationValue = 2,OtherBenefit1,OtherBenefit3)),0) -> 0 | R6: 0 | S6: =IF($A$6<=Lifespan,IF(RotationValue = 1,Grazing1,IF(RotationValue = 2,Grazing1,Grazing3)),0) -> 0 | T6: 0 | U6: =IF($A$6<=Lifespan,IF(RotationValue = 1,GrazingCC1,IF(RotationValue = 2,GrazingCC1,GrazingCC3)),0) -> 57.7 | V6: 52.80367374 | W6: =IF($A$6<=Lifespan,IF(RotationValue = 1,Baling1,IF(RotationValue = 2,Baling1,Baling3)),0) -> 0 | X6: 0 | Y6: =IF($A$6<=Lifespan,IF(RotationValue = 1,Seed1,IF(RotationValue = 2,Seed1,Seed3)),0) -> 0 | Z6: 0 | AA6: 91.41 | AB6: 2 | AC6: =IF(A6<=Lifespan,IF(AB6=CurrentSOM,0,IF(AB6=CurrentSOM+1,CoverCropEcon_LongTerm!$D$76,IF(AB6=CurrentSOM+2,CoverCropEcon_LongTerm!$D$76*2,IF(AB6=CurrentSOM+3,CoverCropEcon_LongTerm!$D$76*3,IF(AB6=CurrentSOM+4,CoverCropEcon_LongTerm!$D$76*4,IF(AB6=CurrentSOM+5,CoverCropEcon_LongTerm!$D$76*5,IF(AB6=CurrentSOM+6,CoverCropEcon_LongTerm!$D$76*6,IF(AB6=CurrentSOM+7,CoverCropEcon_LongTerm!$D$76*7,IF(AB6=CurrentSOM+8,CoverCropEcon_LongTerm!$D$76*8,IF(AB6=CurrentSOM+9,CoverCropEcon_LongTerm!$D$76*9,IF(AB6=CurrentSOM+10,CoverCropEcon_LongTerm!$D$76*10))))))))))),0) -> 0 | AD6: 0 | AE6: =IF(A6<=Lifespan,IF(AB6=CurrentSOM,0,IF(AB6=CurrentSOM+1,CoverCropEcon_LongTerm!$D$86,IF(AB6=CurrentSOM+2,CoverCropEcon_LongTerm!$D$86*2,IF(AB6=CurrentSOM+3,CoverCropEcon_LongTerm!$D$86*3,IF(AB6=CurrentSOM+4,CoverCropEcon_LongTerm!$D$86*4,IF(AB6=CurrentSOM+5,CoverCropEcon_LongTerm!$D$86*5,IF(AB6=CurrentSOM+6,CoverCropEcon_LongTerm!$D$86*6,IF(AB6=CurrentSOM+7,CoverCropEcon_LongTerm!$D$86*7,IF(AB6=CurrentSOM+8,CoverCropEcon_LongTerm!$D$86*8,IF(AB6=CurrentSOM+9,CoverCropEcon_LongTerm!$D$86*9,IF(AB6=CurrentSOM+10,CoverCropEcon_LongTerm!$D$86*10))))))))))),0) -> 0 | AF6: 0 | AG6: 0 | AI6: =IF($A$6<=Lifespan,IF(RotationValue = 1,CashCrop1,IF(RotationValue = 2,CashCrop1,CashCrop3)),"-") -> Soybeans | AJ6: =IF($A$6<=Lifespan,IF(RotationValue = 1,CR_IOC1,IF(RotationValue = 2,CR_IOC1,CR_IOC3)),0) -> 457.5 | AK6: =IF($A$6<=Lifespan,IF(Rotation2Value = 1,CR_NRCC1,IF(Rotation2Value = 2,CR_NRCC1,CR_NRCC3)),"-") -> Corn | AL6: =IF($A$6<=Lifespan,IF(Rotation2Value = 1,CR_NRIOC1,IF(Rotation2Value = 2,CR_NRIOC1,CR_NRIOC3)),0) -> 175 | AM6: -282.5 | AN6: =AM6/(1+DiscountRate)^A6 -> -258.5275188 | AP6: =IF($A$6<=Lifespan,IF(Rotation2Value = 1,CR_CCCost1,IF(Rotation2Value = 2,CR_CCCost1,CR_CCCost3)),0) -> 87.5 | AQ6: 80.07489519 | AR6: =IF($A$6<=CR_YieldDecYrs,IF(Rotation2Value = 1,CR_YieldDec1,IF(Rotation2Value = 2,CR_YieldDec1,CR_YieldDec3)),0) -> 0 | AS6: 0 | AT6: =IF($A$6<=Lifespan,IF(Rotation2Value = 1,CR_OtherCost1,IF(Rotation2Value = 2,CR_OtherCost1,CR_OtherCost3)),0) -> 0 | AU6: 0 | AV6: 87.5 | AW6: =IF($A$6<=Lifespan,IF(Rotation2Value = 1,CR_Nutrient1,IF(Rotation2Value = 2,CR_Nutrient1,CR_Nutrient3)),0) -> 16.5 | AX6: 15.09983738 | AY6: =IF($A$6<=Lifespan,IF(Rotation2Value = 1,CR_Herb1,IF(Rotation2Value = 2,CR_Herb1,CR_Herb3)),0) -> 3 | AZ6: 2.745424978 | BA6: =IF($A$6<=Lifespan,IF(Rotation2Value = 1,CR_YieldInc1,IF(Rotation2Value = 2,CR_YieldInc1,CR_YieldInc3)),0) -> 6 | BB6: 5.490849956 | BC6: =IF($A$6<=Lifespan,IF(Rotation2Value = 1,CR_Erosion1,IF(Rotation2Value = 2,CR_Erosion1,CR_Erosion3)),0) -> 35.15 | BD6: 32.16722933 | BE6: =IF($A$6<=Lifespan,IF(Rotation2Value = 1,CR_OtherBenefit1,IF(Rotation2Value = 2,CR_OtherBenefit1,CR_OtherBenefit3)),0) -> 0 | BF6: 0 | BG6: =IF($A$6<=Lifespan,IF(Rotation2Value = 1,CR_Grazing1,IF(Rotation2Value = 2,CR_Grazing1,CR_Grazing3)),0) -> 440 | BH6: 402.6623301 | BI6: =IF($A$6<=Lifespan,IF(Rotation2Value = 1,CR_Baling1,IF(Rotation2Value = 2,CR_Baling1,CR_Baling3)),0) -> 0 | BJ6: 0 | BK6: =IF($A$6<=Lifespan,IF(Rotation2Value = 1,CR_Seed1,IF(Rotation2Value = 2,CR_Seed1,CR_Seed3)),0) -> 0 | BL6: 0 | BM6: =AW6+AY6+BA6+BC6+BE6+BG6+BI6+BK6 -> 500.65 | BN6: 2 | BO6: =IF(A6<=Lifespan,IF(BN6=CurrentSOM,0,IF(BN6=CurrentSOM+1,CoverCropEcon_LongTerm!$D$76,IF(BN6=CurrentSOM+2,CoverCropEcon_LongTerm!$D$76*2,IF(BN6=CurrentSOM+3,CoverCropEcon_LongTerm!$D$76*3,IF(BN6=CurrentSOM+4,CoverCropEcon_LongTerm!$D$76*4,IF(BN6=CurrentSOM+5,CoverCropEcon_LongTerm!$D$76*5,IF(BN6=CurrentSOM+6,CoverCropEcon_LongTerm!$D$76*6,IF(BN6=CurrentSOM+7,CoverCropEcon_LongTerm!$D$76*7,IF(BN6=CurrentSOM+8,CoverCropEcon_LongTerm!$D$76*8,IF(BN6=CurrentSOM+9,CoverCropEcon_LongTerm!$D$76*9,IF(BN6=CurrentSOM+10,CoverCropEcon_LongTerm!$D$76*10))))))))))),0) -> 0 | BP6: 0 | BQ6: =IF(A6<=Lifespan,IF(BN6=CurrentSOM,0,IF(BN6=CurrentSOM+1,CoverCropEcon_LongTerm!$D$86,IF(BN6=CurrentSOM+2,CoverCropEcon_LongTerm!$D$86*2,IF(BN6=CurrentSOM+3,CoverCropEcon_LongTerm!$D$86*3,IF(BN6=CurrentSOM+4,CoverCropEcon_LongTerm!$D$86*4,IF(BN6=CurrentSOM+5,CoverCropEcon_LongTerm!$D$86*5,IF(BN6=CurrentSOM+6,CoverCropEcon_LongTerm!$D$86*6,IF(BN6=CurrentSOM+7,CoverCropEcon_LongTerm!$D$86*7,IF(BN6=CurrentSOM+8,CoverCropEcon_LongTerm!$D$86*8,IF(BN6=CurrentSOM+9,CoverCropEcon_LongTerm!$D$86*9,IF(BN6=CurrentSOM+10,CoverCropEcon_LongTerm!$D$86*10))))))))))),0) -> 0 | BR6: 0 | BS6: 0
A7: 4 | B7: =IF($A$7<=Lifespan,IF(RotationValue = 1,CCCost1,IF(RotationValue = 2,CCCost2,IF(RotationValue = 3, CCCost1, CCCost4))),0) -> 59.04 | C7: 52.45627531 | D7: =IF($A$7<=YieldDecYrs,IF(RotationValue = 1,YieldDec1,IF(RotationValue = 2,YieldDec2,IF(RotationValue = 3, YieldDec1, YieldDec4))),0) -> 0 | E7: 0 | F7: =IF($A$7<=Lifespan,IF(RotationValue = 1,OtherCost1,IF(RotationValue = 2,OtherCost2,IF(RotationValue = 3, OtherCost1, OtherCost4))),0) -> 0 | G7: 0 | H7: 59.04 | I7: =IF($A$7<=Lifespan,IF(RotationValue = 1,Nutrient1,IF(RotationValue = 2,Nutrient2,IF(RotationValue = 3, Nutrient1, Nutrient4))),0) -> 16.5 | J7: 14.66003629 | K7: =IF($A$7<=Lifespan,IF(RotationValue = 1,Herb1,IF(RotationValue = 2,Herb2,IF(RotationValue = 3, Herb1, Herb4))),0) -> 3 | L7: 2.665461144 | M7: =IF($A$7<=Lifespan,IF(RotationValue = 1,YieldInc1,IF(RotationValue = 2,YieldInc2,IF(RotationValue = 3, YieldInc1, YieldInc4))),0) -> 0 | N7: 0 | O7: =IF($A$7<=Lifespan,IF(RotationValue = 1,Erosion1,IF(RotationValue = 2,Erosion2,IF(RotationValue = 3, Erosion1, Erosion4))),0) -> 28.12 | P7: 24.98425579 | Q7: =IF($A$7<=Lifespan,IF(RotationValue = 1,OtherBenefit1,IF(RotationValue = 2,OtherBenefit2,IF(RotationValue = 3, OtherBenefit1, OtherBenefit4))),0) -> 0 | R7: 0 | S7: =IF($A$7<=Lifespan,IF(RotationValue = 1,Grazing1,IF(RotationValue = 2,Grazing2,IF(RotationValue = 3, Grazing1, Grazing4))),0) -> 0 | T7: 0 | U7: =IF($A$7<=Lifespan,IF(RotationValue = 1,GrazingCC1,IF(RotationValue = 2,GrazingCC2,IF(RotationValue = 3, GrazingCC1, GrazingCC4))),0) -> 57.7 | V7: 51.26570266 | W7: =IF($A$7<=Lifespan,IF(RotationValue = 1,Baling1,IF(RotationValue = 2,Baling2,IF(RotationValue = 3, Baling1, Baling4))),0) -> 0 | X7: 0 | Y7: =IF($A$7<=Lifespan,IF(RotationValue = 1,Seed1,IF(RotationValue = 2,Seed2,IF(RotationValue = 3, Seed1, Seed4))),0) -> 0 | Z7: 0 | AA7: 105.32 | AB7: 2 | AC7: =IF(A7<=Lifespan,IF(AB7=CurrentSOM,0,IF(AB7=CurrentSOM+1,CoverCropEcon_LongTerm!$D$76,IF(AB7=CurrentSOM+2,CoverCropEcon_LongTerm!$D$76*2,IF(AB7=CurrentSOM+3,CoverCropEcon_LongTerm!$D$76*3,IF(AB7=CurrentSOM+4,CoverCropEcon_LongTerm!$D$76*4,IF(AB7=CurrentSOM+5,CoverCropEcon_LongTerm!$D$76*5,IF(AB7=CurrentSOM+6,CoverCropEcon_LongTerm!$D$76*6,IF(AB7=CurrentSOM+7,CoverCropEcon_LongTerm!$D$76*7,IF(AB7=CurrentSOM+8,CoverCropEcon_LongTerm!$D$76*8,IF(AB7=CurrentSOM+9,CoverCropEcon_LongTerm!$D$76*9,IF(AB7=CurrentSOM+10,CoverCropEcon_LongTerm!$D$76*10))))))))))),0) -> 0 | AD7: 0 | AE7: =IF(A7<=Lifespan,IF(AB7=CurrentSOM,0,IF(AB7=CurrentSOM+1,CoverCropEcon_LongTerm!$D$86,IF(AB7=CurrentSOM+2,CoverCropEcon_LongTerm!$D$86*2,IF(AB7=CurrentSOM+3,CoverCropEcon_LongTerm!$D$86*3,IF(AB7=CurrentSOM+4,CoverCropEcon_LongTerm!$D$86*4,IF(AB7=CurrentSOM+5,CoverCropEcon_LongTerm!$D$86*5,IF(AB7=CurrentSOM+6,CoverCropEcon_LongTerm!$D$86*6,IF(AB7=CurrentSOM+7,CoverCropEcon_LongTerm!$D$86*7,IF(AB7=CurrentSOM+8,CoverCropEcon_LongTerm!$D$86*8,IF(AB7=CurrentSOM+9,CoverCropEcon_LongTerm!$D$86*9,IF(AB7=CurrentSOM+10,CoverCropEcon_LongTerm!$D$86*10))))))))))),0) -> 0 | AF7: 0 | AG7: 0 | AI7: =IF($A$7<=Lifespan,IF(RotationValue = 1,CashCrop1,IF(RotationValue = 2,CashCrop2,IF(RotationValue = 3, CashCrop1, CashCrop4))),"-") -> Corn | AJ7: =IF($A$7<=Lifespan,IF(RotationValue = 1,CR_IOC1,IF(RotationValue = 2,CR_IOC2,IF(RotationValue = 3, CR_IOC1, CR_IOC4))),0) -> 254.5 | AK7: =IF($A$7<=Lifespan,IF(Rotation2Value = 1,CR_NRCC1,IF(Rotation2Value = 2,CR_NRCC2,IF(Rotation2Value = 3, CR_NRCC1, CR_NRCC4))),"-") -> Soybeans | AL7: =IF($A$7<=Lifespan,IF(Rotation2Value = 1,CR_NRIOC1,IF(Rotation2Value = 2,CR_NRIOC2,IF(Rotation2Value = 3, CR_NRIOC1, CR_NRIOC4))),0) -> 125 | AM7: -129.5 | AN7: -115.0590727 | AP7: =IF($A$7<=Lifespan,IF(Rotation2Value = 1,CR_CCCost1,IF(Rotation2Value = 2,CR_CCCost2,IF(Rotation2Value = 3, CR_CCCost1, CR_CCCost4))),0) -> 32.5 | AQ7: 28.87582906 | AR7: =IF($A$7<=CR_YieldDecYrs,IF(Rotation2Value = 1,CR_YieldDec1,IF(Rotation2Value = 2,CR_YieldDec2,IF(Rotation2Value = 3, CR_YieldDec1, CR_YieldDec4))),0) -> 0 | AS7: 0 | AT7: =IF($A$7<=Lifespan,IF(Rotation2Value = 1,CR_OtherCost1,IF(Rotation2Value = 2,CR_OtherCost2,IF(Rotation2Value = 3, CR_OtherCost1, CR_OtherCost4))),0) -> 0 | AU7: 0 | AV7: 32.5 | AW7: =IF($A$7<=Lifespan,IF(Rotation2Value = 1,CR_Nutrient1,IF(Rotation2Value = 2,CR_Nutrient2,IF(Rotation2Value = 3, CR_Nutrient1, CR_Nutrient4))),0) -> 0 | AX7: 0 | AY7: =IF($A$7<=Lifespan,IF(Rotation2Value = 1,CR_Herb1,IF(Rotation2Value = 2,CR_Herb2,IF(Rotation2Value = 3, CR_Herb1, CR_Herb4))),0) -> 3 | AZ7: 2.665461144 | BA7: =IF($A$7<=Lifespan,IF(Rotation2Value = 1,CR_YieldInc1,IF(Rotation2Value = 2,CR_YieldInc2,IF(Rotation2Value = 3, CR_YieldInc1, CR_YieldInc4))),0) -> 10 | BB7: 8.884870479 | BC7: =IF($A$7<=Lifespan,IF(Rotation2Value = 1,CR_Erosion1,IF(Rotation2Value = 2,CR_Erosion2,IF(Rotation2Value = 3, CR_Erosion1, CR_Erosion4))),0) -> 35.15 | BD7: 31.23031973 | BE7: =IF($A$7<=Lifespan,IF(Rotation2Value = 1,CR_OtherBenefit1,IF(Rotation2Value = 2,CR_OtherBenefit2,IF(Rotation2Value = 3, CR_OtherBenefit1, CR_OtherBenefit4))),0) -> 0 | BF7: 0 | BG7: =IF($A$7<=Lifespan,IF(Rotation2Value = 1,CR_Grazing1,IF(Rotation2Value = 2,CR_Grazing2,IF(Rotation2Value = 3, CR_Grazing1, CR_Grazing4))),0) -> 0 | BH7: 0 | BI7: =IF($A$7<=Lifespan,IF(Rotation2Value = 1,CR_Baling1,IF(Rotation2Value = 2,CR_Baling2,IF(Rotation2Value = 3, CR_Baling1, CR_Baling4))),0) -> 0 | BJ7: 0 | BK7: =IF($A$7<=Lifespan,IF(Rotation2Value = 1,CR_Seed1,IF(Rotation2Value = 2,CR_Seed2,IF(Rotation2Value = 3, CR_Seed1, CR_Seed4))),0) -> 0 | BL7: 0 | BM7: 48.15 | BN7: 2 | BO7: =IF(A7<=Lifespan,IF(BN7=CurrentSOM,0,IF(BN7=CurrentSOM+1,CoverCropEcon_LongTerm!$D$76,IF(BN7=CurrentSOM+2,CoverCropEcon_LongTerm!$D$76*2,IF(BN7=CurrentSOM+3,CoverCropEcon_LongTerm!$D$76*3,IF(BN7=CurrentSOM+4,CoverCropEcon_LongTerm!$D$76*4,IF(BN7=CurrentSOM+5,CoverCropEcon_LongTerm!$D$76*5,IF(BN7=CurrentSOM+6,CoverCropEcon_LongTerm!$D$76*6,IF(BN7=CurrentSOM+7,CoverCropEcon_LongTerm!$D$76*7,IF(BN7=CurrentSOM+8,CoverCropEcon_LongTerm!$D$76*8,IF(BN7=CurrentSOM+9,CoverCropEcon_LongTerm!$D$76*9,IF(BN7=CurrentSOM+10,CoverCropEcon_LongTerm!$D$76*10))))))))))),0) -> 0 | BP7: 0 | BQ7: =IF(A7<=Lifespan,IF(BN7=CurrentSOM,0,IF(BN7=CurrentSOM+1,CoverCropEcon_LongTerm!$D$86,IF(BN7=CurrentSOM+2,CoverCropEcon_LongTerm!$D$86*2,IF(BN7=CurrentSOM+3,CoverCropEcon_LongTerm!$D$86*3,IF(BN7=CurrentSOM+4,CoverCropEcon_LongTerm!$D$86*4,IF(BN7=CurrentSOM+5,CoverCropEcon_LongTerm!$D$86*5,IF(BN7=CurrentSOM+6,CoverCropEcon_LongTerm!$D$86*6,IF(BN7=CurrentSOM+7,CoverCropEcon_LongTerm!$D$86*7,IF(BN7=CurrentSOM+8,CoverCropEcon_LongTerm!$D$86*8,IF(BN7=CurrentSOM+9,CoverCropEcon_LongTerm!$D$86*9,IF(BN7=CurrentSOM+10,CoverCropEcon_LongTerm!$D$86*10))))))))))),0) -> 0 | BR7: 0 | BS7: 0
A8: 5 | B8: =IF($A$8<=Lifespan,IF(RotationValue = 1,CCCost1,IF(RotationValue = 2,CCCost1,IF(RotationValue = 3, CCCost2, IF(RotationValue = 4,CCCost1,CCCost5)))),0) -> 51.6 | C8: 44.51061327 | D8: =IF($A$8<=YieldDecYrs,IF(RotationValue = 1,YieldDec1,IF(RotationValue = 2,YieldDec1,IF(RotationValue = 3, YieldDec2, IF(RotationValue = 4,YieldDec1,YieldDec5)))),0) -> 0 | E8: 0 | F8: =IF($A$8<=Lifespan,IF(RotationValue = 1,OtherCost1,IF(RotationValue = 2,OtherCost1,IF(RotationValue = 3, OtherCost2, IF(RotationValue = 4,OtherCost1,OtherCost5)))),0) -> 0 | G8: 0 | H8: 51.6 | I8: =IF($A$8<=Lifespan,IF(RotationValue = 1,Nutrient1,IF(RotationValue = 2,Nutrient1,IF(RotationValue = 3, Nutrient2, IF(RotationValue = 4,Nutrient1,Nutrient5)))),0) -> 0 | J8: 0 | K8: =IF($A$8<=Lifespan,IF(RotationValue = 1,Herb1,IF(RotationValue = 2,Herb1,IF(RotationValue = 3, Herb2, IF(RotationValue = 4,Herb1,Herb5)))),0) -> 3 | L8: 2.587826353 | M8: =IF($A$8<=Lifespan,IF(RotationValue = 1,YieldInc1,IF(RotationValue = 2,YieldInc1,IF(RotationValue = 3, YieldInc2, IF(RotationValue = 4,YieldInc1,YieldInc5)))),0) -> 16.65 | N8: 14.36243626 | O8: =IF($A$8<=Lifespan,IF(RotationValue = 1,Erosion1,IF(RotationValue = 2,Erosion1,IF(RotationValue = 3, Erosion2, IF(RotationValue = 4,Erosion1,Erosion5)))),0) -> 14.06 | P8: 12.12827951 | Q8: =IF($A$8<=Lifespan,IF(RotationValue = 1,OtherBenefit1,IF(RotationValue = 2,OtherBenefit1,IF(RotationValue = 3, OtherBenefit2, IF(RotationValue = 4,OtherBenefit1,OtherBenefit5)))),0) -> 0 | R8: 0 | S8: =IF($A$8<=Lifespan,IF(RotationValue = 1,Grazing1,IF(RotationValue = 2,Grazing1,IF(RotationValue = 3, Grazing2, IF(RotationValue = 4,Grazing1,Grazing5)))),0) -> 0 | T8: 0 | U8: =IF($A$8<=Lifespan,IF(RotationValue = 1,GrazingCC1,IF(RotationValue = 2,GrazingCC1,IF(RotationValue = 3, GrazingCC2, IF(RotationValue = 4,GrazingCC1,GrazingCC5)))),0) -> 57.7 | V8: 49.77252686 | W8: =IF($A$8<=Lifespan,IF(RotationValue = 1,Baling1,IF(RotationValue = 2,Baling1,IF(RotationValue = 3, Baling2, IF(RotationValue = 4,Baling1,Baling5)))),0) -> 0 | X8: 0 | Y8: =IF($A$8<=Lifespan,IF(RotationValue = 1,Seed1,IF(RotationValue = 2,Seed1,IF(RotationValue = 3, Seed2, IF(RotationValue = 4,Seed1,Seed5)))),0) -> 0 | Z8: 0 | AA8: 91.41 | AB8: 2 | AC8: =IF(A8<=Lifespan,IF(AB8=CurrentSOM,0,IF(AB8=CurrentSOM+1,CoverCropEcon_LongTerm!$D$76,IF(AB8=CurrentSOM+2,CoverCropEcon_LongTerm!$D$76*2,IF(AB8=CurrentSOM+3,CoverCropEcon_LongTerm!$D$76*3,IF(AB8=CurrentSOM+4,CoverCropEcon_LongTerm!$D$76*4,IF(AB8=CurrentSOM+5,CoverCropEcon_LongTerm!$D$76*5,IF(AB8=CurrentSOM+6,CoverCropEcon_LongTerm!$D$76*6,IF(AB8=CurrentSOM+7,CoverCropEcon_LongTerm!$D$76*7,IF(AB8=CurrentSOM+8,CoverCropEcon_LongTerm!$D$76*8,IF(AB8=CurrentSOM+9,CoverCropEcon_LongTerm!$D$76*9,IF(AB8=CurrentSOM+10,CoverCropEcon_LongTerm!$D$76*10))))))))))),0) -> 0 | AD8: 0 | AE8: =IF(A8<=Lifespan,IF(AB8=CurrentSOM,0,IF(AB8=CurrentSOM+1,CoverCropEcon_LongTerm!$D$86,IF(AB8=CurrentSOM+2,CoverCropEcon_LongTerm!$D$86*2,IF(AB8=CurrentSOM+3,CoverCropEcon_LongTerm!$D$86*3,IF(AB8=CurrentSOM+4,CoverCropEcon_LongTerm!$D$86*4,IF(AB8=CurrentSOM+5,CoverCropEcon_LongTerm!$D$86*5,IF(AB8=CurrentSOM+6,CoverCropEcon_LongTerm!$D$86*6,IF(AB8=CurrentSOM+7,CoverCropEcon_LongTerm!$D$86*7,IF(AB8=CurrentSOM+8,CoverCropEcon_LongTerm!$D$86*8,IF(AB8=CurrentSOM+9,CoverCropEcon_LongTerm!$D$86*9,IF(AB8=CurrentSOM+10,CoverCropEcon_LongTerm!$D$86*10))))))))))),0) -> 0 | AF8: 0 | AG8: 0 | AI8: =IF($A$8<=Lifespan,IF(RotationValue = 1,CashCrop1,IF(RotationValue = 2,CashCrop1,IF(RotationValue = 3, CashCrop2, IF(RotationValue = 4,CashCrop1,CashCrop5)))),"-") -> Soybeans | AJ8: =IF($A$8<=Lifespan,IF(RotationValue = 1,CR_IOC1,IF(RotationValue = 2,CR_IOC1,IF(RotationValue = 3, CR_IOC2, IF(RotationValue = 4,CR_IOC1,CR_IOC5)))),0) -> 457.5 | AK8: =IF($A$8<=Lifespan,IF(Rotation2Value = 1,CR_NRCC1,IF(Rotation2Value = 2,CR_NRCC1,IF(Rotation2Value = 3, CR_NRCC2, IF(Rotation2Value = 4,CR_NRCC1,CR_NRCC5)))),"-") -> Wheat | AL8: =IF($A$8<=Lifespan,IF(Rotation2Value = 1,CR_NRIOC1,IF(Rotation2Value = 2,CR_NRIOC1,IF(Rotation2Value = 3, CR_NRIOC2, IF(Rotation2Value = 4,CR_NRIOC1,CR_NRIOC5)))),0) -> 176.25 | AM8: -281.25 | AN8: -242.6087206 | AP8: =IF($A$8<=Lifespan,IF(Rotation2Value = 1,CR_CCCost1,IF(Rotation2Value = 2,CR_CCCost1,IF(Rotation2Value = 3, CR_CCCost2, IF(Rotation2Value = 4,CR_CCCost1,CR_CCCost5)))),0) -> 0 | AQ8: 0 | AR8: =IF($A$8<=CR_YieldDecYrs,IF(Rotation2Value = 1,CR_YieldDec1,IF(Rotation2Value = 2,CR_YieldDec1,IF(Rotation2Value = 3, CR_YieldDec2, IF(Rotation2Value = 4,CR_YieldDec1,CR_YieldDec5)))),0) -> 0 | AS8: 0 | AT8: =IF($A$8<=Lifespan,IF(Rotation2Value = 1,CR_OtherCost1,IF(Rotation2Value = 2,CR_OtherCost1,IF(Rotation2Value = 3, CR_OtherCost2, IF(Rotation2Value = 4,CR_OtherCost1,CR_OtherCost5)))),0) -> 0 | AU8: 0 | AV8: 0 | AW8: =IF($A$8<=Lifespan,IF(Rotation2Value = 1,CR_Nutrient1,IF(Rotation2Value = 2,CR_Nutrient1,IF(Rotation2Value = 3, CR_Nutrient2, IF(Rotation2Value = 4,CR_Nutrient1,CR_Nutrient5)))),0) -> 0 | AX8: 0 | AY8: =IF($A$8<=Lifespan,IF(Rotation2Value = 1,CR_Herb1,IF(Rotation2Value = 2,CR_Herb1,IF(Rotation2Value = 3, CR_Herb2, IF(Rotation2Value = 4,CR_Herb1,CR_Herb5)))),0) -> 0 | AZ8: 0 | BA8: =IF($A$8<=Lifespan,IF(Rotation2Value = 1,CR_YieldInc1,IF(Rotation2Value = 2,CR_YieldInc1,IF(Rotation2Value = 3, CR_YieldInc2, IF(Rotation2Value = 4,CR_YieldInc1,CR_YieldInc5)))),0) -> 0 | BB8: 0 | BC8: =IF($A$8<=Lifespan,IF(Rotation2Value = 1,CR_Erosion1,IF(Rotation2Value = 2,CR_Erosion1,IF(Rotation2Value = 3, CR_Erosion2, IF(Rotation2Value = 4,CR_Erosion1,CR_Erosion5)))),0) -> 35.15 | BD8: 30.32069877 | BE8: =IF($A$8<=Lifespan,IF(Rotation2Value = 1,CR_OtherBenefit1,IF(Rotation2Value = 2,CR_OtherBenefit1,IF(Rotation2Value = 3, CR_OtherBenefit2, IF(Rotation2Value = 4,CR_OtherBenefit1,CR_OtherBenefit5)))),0) -> 0 | BF8: 0 | BG8: =IF($A$8<=Lifespan,IF(Rotation2Value = 1,CR_Grazing1,IF(Rotation2Value = 2,CR_Grazing1,IF(Rotation2Value = 3, CR_Grazing2, IF(Rotation2Value = 4,CR_Grazing1,CR_Grazing5)))),0) -> 0 | BH8: 0 | BI8: =IF($A$8<=Lifespan,IF(Rotation2Value = 1,CR_Baling1,IF(Rotation2Value = 2,CR_Baling1,IF(Rotation2Value = 3, CR_Baling2, IF(Rotation2Value = 4,CR_Baling1,CR_Baling5)))),0) -> 0 | BJ8: 0 | BK8: =IF($A$8<=Lifespan,IF(Rotation2Value = 1,CR_Seed1,IF(Rotation2Value = 2,CR_Seed1,IF(Rotation2Value = 3, CR_Seed2, IF(Rotation2Value = 4,CR_Seed1,CR_Seed5)))),0) -> 0 | BL8: 0 | BM8: 35.15 | BN8: 2 | BO8: =IF(A8<=Lifespan,IF(BN8=CurrentSOM,0,IF(BN8=CurrentSOM+1,CoverCropEcon_LongTerm!$D$76,IF(BN8=CurrentSOM+2,CoverCropEcon_LongTerm!$D$76*2,IF(BN8=CurrentSOM+3,CoverCropEcon_LongTerm!$D$76*3,IF(BN8=CurrentSOM+4,CoverCropEcon_LongTerm!$D$76*4,IF(BN8=CurrentSOM+5,CoverCropEcon_LongTerm!$D$76*5,IF(BN8=CurrentSOM+6,CoverCropEcon_LongTerm!$D$76*6,IF(BN8=CurrentSOM+7,CoverCropEcon_LongTerm!$D$76*7,IF(BN8=CurrentSOM+8,CoverCropEcon_LongTerm!$D$76*8,IF(BN8=CurrentSOM+9,CoverCropEcon_LongTerm!$D$76*9,IF(BN8=CurrentSOM+10,CoverCropEcon_LongTerm!$D$76*10))))))))))),0) -> 0 | BP8: 0 | BQ8: =IF(A8<=Lifespan,IF(BN8=CurrentSOM,0,IF(BN8=CurrentSOM+1,CoverCropEcon_LongTerm!$D$86,IF(BN8=CurrentSOM+2,CoverCropEcon_LongTerm!$D$86*2,IF(BN8=CurrentSOM+3,CoverCropEcon_LongTerm!$D$86*3,IF(BN8=CurrentSOM+4,CoverCropEcon_LongTerm!$D$86*4,IF(BN8=CurrentSOM+5,CoverCropEcon_LongTerm!$D$86*5,IF(BN8=CurrentSOM+6,CoverCropEcon_LongTerm!$D$86*6,IF(BN8=CurrentSOM+7,CoverCropEcon_LongTerm!$D$86*7,IF(BN8=CurrentSOM+8,CoverCropEcon_LongTerm!$D$86*8,IF(BN8=CurrentSOM+9,CoverCropEcon_LongTerm!$D$86*9,IF(BN8=CurrentSOM+10,CoverCropEcon_LongTerm!$D$86*10))))))))))),0) -> 0 | BR8: 0 | BS8: 0
A9: 6 | B9: =IF($A$9<=Lifespan,IF(RotationValue = 1,CCCost1,IF(RotationValue = 2,CCCost2,IF(RotationValue=3, CCCost3, IF(RotationValue = 4, CCCost2,CCCost1)))),0) -> 59.04 | C9: 49.44507051 | D9: =IF($A$9<=YieldDecYrs,IF(RotationValue = 1,YieldDec1,IF(RotationValue = 2,YieldDec2,IF(RotationValue=3, YieldDec3, IF(RotationValue = 4, YieldDec2,YieldDec1)))),0) -> 0 | E9: 0 | F9: =IF($A$9<=Lifespan,IF(RotationValue = 1,OtherCost1,IF(RotationValue = 2,OtherCost2,IF(RotationValue=3, OtherCost3, IF(RotationValue = 4, OtherCost2,OtherCost1)))),0) -> 0 | G9: 0 | H9: 59.04 | I9: =IF($A$9<=Lifespan,IF(RotationValue = 1,Nutrient1,IF(RotationValue = 2,Nutrient2,IF(RotationValue=3, Nutrient3, IF(RotationValue = 4, Nutrient2,Nutrient1)))),0) -> 16.5 | J9: 13.81849024 | K9: =IF($A$9<=Lifespan,IF(RotationValue = 1,Herb1,IF(RotationValue = 2,Herb2,IF(RotationValue=3, Herb3, IF(RotationValue = 4, Herb2,Herb1)))),0) -> 3 | L9: 2.51245277 | M9: =IF($A$9<=Lifespan,IF(RotationValue = 1,YieldInc1,IF(RotationValue = 2,YieldInc2,IF(RotationValue=3, YieldInc3, IF(RotationValue = 4, YieldInc2,YieldInc1)))),0) -> 0 | N9: 0 | O9: =IF($A$9<=Lifespan,IF(RotationValue = 1,Erosion1,IF(RotationValue = 2,Erosion2,IF(RotationValue=3, Erosion3, IF(RotationValue = 4, Erosion2,Erosion1)))),0) -> 28.12 | P9: 23.5500573 | Q9: =IF($A$9<=Lifespan,IF(RotationValue = 1,OtherBenefit1,IF(RotationValue = 2,OtherBenefit2,IF(RotationValue=3, OtherBenefit3, IF(RotationValue = 4, OtherBenefit2,OtherBenefit1)))),0) -> 0 | R9: 0 | S9: =IF($A$9<=Lifespan,IF(RotationValue = 1,Grazing1,IF(RotationValue = 2,Grazing2,IF(RotationValue=3, Grazing3, IF(RotationValue = 4, Grazing2,Grazing1)))),0) -> 0 | T9: 0 | U9: =IF($A$9<=Lifespan,IF(RotationValue = 1,GrazingCC1,IF(RotationValue = 2,GrazingCC2,IF(RotationValue=3, GrazingCC3, IF(RotationValue = 4, GrazingCC2,GrazingCC1)))),0) -> 57.7 | V9: 48.32284161 | W9: =IF($A$9<=Lifespan,IF(RotationValue = 1,Baling1,IF(RotationValue = 2,Baling2,IF(RotationValue=3, Baling3, IF(RotationValue = 4, Baling2,Baling1)))),0) -> 0 | X9: 0 | Y9: =IF($A$9<=Lifespan,IF(RotationValue = 1,Seed1,IF(RotationValue = 2,Seed2,IF(RotationValue=3, Seed3, IF(RotationValue = 4, Seed2,Seed1)))),0) -> 0 | Z9: 0 | AA9: 105.32 | AB9: 2 | AC9: =IF(A9<=Lifespan,IF(AB9=CurrentSOM,0,IF(AB9=CurrentSOM+1,CoverCropEcon_LongTerm!$D$76,IF(AB9=CurrentSOM+2,CoverCropEcon_LongTerm!$D$76*2,IF(AB9=CurrentSOM+3,CoverCropEcon_LongTerm!$D$76*3,IF(AB9=CurrentSOM+4,CoverCropEcon_LongTerm!$D$76*4,IF(AB9=CurrentSOM+5,CoverCropEcon_LongTerm!$D$76*5,IF(AB9=CurrentSOM+6,CoverCropEcon_LongTerm!$D$76*6,IF(AB9=CurrentSOM+7,CoverCropEcon_LongTerm!$D$76*7,IF(AB9=CurrentSOM+8,CoverCropEcon_LongTerm!$D$76*8,IF(AB9=CurrentSOM+9,CoverCropEcon_LongTerm!$D$76*9,IF(AB9=CurrentSOM+10,CoverCropEcon_LongTerm!$D$76*10))))))))))),0) -> 0 | AD9: 0 | AE9: =IF(A9<=Lifespan,IF(AB9=CurrentSOM,0,IF(AB9=CurrentSOM+1,CoverCropEcon_LongTerm!$D$86,IF(AB9=CurrentSOM+2,CoverCropEcon_LongTerm!$D$86*2,IF(AB9=CurrentSOM+3,CoverCropEcon_LongTerm!$D$86*3,IF(AB9=CurrentSOM+4,CoverCropEcon_LongTerm!$D$86*4,IF(AB9=CurrentSOM+5,CoverCropEcon_LongTerm!$D$86*5,IF(AB9=CurrentSOM+6,CoverCropEcon_LongTerm!$D$86*6,IF(AB9=CurrentSOM+7,CoverCropEcon_LongTerm!$D$86*7,IF(AB9=CurrentSOM+8,CoverCropEcon_LongTerm!$D$86*8,IF(AB9=CurrentSOM+9,CoverCropEcon_LongTerm!$D$86*9,IF(AB9=CurrentSOM+10,CoverCropEcon_LongTerm!$D$86*10))))))))))),0) -> 0 | AF9: 0 | AG9: 0 | AI9: =IF($A$9<=Lifespan,IF(RotationValue = 1,CashCrop1,IF(RotationValue = 2,CashCrop2,IF(RotationValue=3, CashCrop3, IF(RotationValue = 4, CashCrop2,CashCrop1)))),"-") -> Corn | AJ9: =IF($A$9<=Lifespan,IF(RotationValue = 1,CR_IOC1,IF(RotationValue = 2,CR_IOC2,IF(RotationValue=3, CR_IOC3, IF(RotationValue = 4, CR_IOC2,CR_IOC1)))),0) -> 254.5 | AK9: =IF($A$9<=Lifespan,IF(Rotation2Value = 1,CR_NRCC1,IF(Rotation2Value = 2,CR_NRCC2,IF(Rotation2Value=3, CR_NRCC3, IF(Rotation2Value = 4, CR_NRCC2,IF(Rotation2Value = 5, CR_NRCC1,CR_NRCC6))))),"-") -> Corn | AL9: =IF($A$9<=Lifespan,IF(Rotation2Value = 1,CR_NRIOC1,IF(Rotation2Value = 2,CR_NRIOC2,IF(Rotation2Value=3, CR_NRIOC3, IF(Rotation2Value = 4, CR_NRIOC2,IF(Rotation2Value = 5, CR_NRIOC1,CR_NRIOC6))))),0) -> 175 | AM9: -79.5 | AN9: -66.57999841 | AP9: =IF($A$9<=Lifespan,IF(Rotation2Value = 1,CR_CCCost1,IF(Rotation2Value = 2,CR_CCCost2,IF(Rotation2Value=3, CR_CCCost3, IF(Rotation2Value = 4, CR_CCCost2,IF(Rotation2Value = 5, CR_CCCost1,CR_CCCost6))))),0) -> 87.5 | AQ9: 73.27987246 | AR9: =IF($A$9<=CR_YieldDecYrs,IF(Rotation2Value = 1,CR_YieldDec1,IF(Rotation2Value = 2,CR_YieldDec2,IF(Rotation2Value=3, CR_YieldDec3, IF(Rotation2Value = 4, CR_YieldDec2,IF(Rotation2Value = 5, CR_YieldDec1,CR_YieldDec6))))),0) -> 0 | AS9: 0 | AT9: =IF($A$9<=Lifespan,IF(Rotation2Value = 1,CR_OtherCost1,IF(Rotation2Value = 2,CR_OtherCost2,IF(Rotation2Value=3, CR_OtherCost3, IF(Rotation2Value = 4, CR_OtherCost2,IF(Rotation2Value = 5, CR_OtherCost1,CR_OtherCost6))))),0) -> 0 | AU9: 0 | AV9: 87.5 | AW9: =IF($A$9<=Lifespan,IF(Rotation2Value = 1,CR_Nutrient1,IF(Rotation2Value = 2,CR_Nutrient2,IF(Rotation2Value=3, CR_Nutrient3, IF(Rotation2Value = 4, CR_Nutrient2,IF(Rotation2Value = 5, CR_Nutrient1,CR_Nutrient6))))),0) -> 16.5 | AX9: 13.81849024 | AY9: =IF($A$9<=Lifespan,IF(Rotation2Value = 1,CR_Herb1,IF(Rotation2Value = 2,CR_Herb2,IF(Rotation2Value=3, CR_Herb3, IF(Rotation2Value = 4, CR_Herb2,IF(Rotation2Value = 5, CR_Herb1,CR_Herb6))))),0) -> 3 | AZ9: 2.51245277 | BA9: =IF($A$9<=Lifespan,IF(Rotation2Value = 1,CR_YieldInc1,IF(Rotation2Value = 2,CR_YieldInc2,IF(Rotation2Value=3, CR_YieldInc3, IF(Rotation2Value = 4, CR_YieldInc2,IF(Rotation2Value = 5, CR_YieldInc1,CR_YieldInc6))))),0) -> 6 | BB9: 5.02490554 | BC9: =IF($A$9<=Lifespan,IF(Rotation2Value = 1,CR_Erosion1,IF(Rotation2Value = 2,CR_Erosion2,IF(Rotation2Value=3, CR_Erosion3, IF(Rotation2Value = 4, CR_Erosion2,IF(Rotation2Value = 5, CR_Erosion1,CR_Erosion6))))),0) -> 35.15 | BD9: 29.43757162 | BE9: =IF($A$9<=Lifespan,IF(Rotation2Value = 1,CR_OtherBenefit1,IF(Rotation2Value = 2,CR_OtherBenefit2,IF(Rotation2Value=3, CR_OtherBenefit3, IF(Rotation2Value = 4, CR_OtherBenefit2,IF(Rotation2Value = 5, CR_OtherBenefit1,CR_OtherBenefit6))))),0) -> 0 | BF9: 0 | BG9: =IF($A$9<=Lifespan,IF(Rotation2Value = 1,CR_Grazing1,IF(Rotation2Value = 2,CR_Grazing2,IF(Rotation2Value=3, CR_Grazing3, IF(Rotation2Value = 4, CR_Grazing2,IF(Rotation2Value = 5, CR_Grazing1,CR_Grazing6))))),0) -> 440 | BH9: 368.4930729 | BI9: =IF($A$9<=Lifespan,IF(Rotation2Value = 1,CR_Baling1,IF(Rotation2Value = 2,CR_Baling2,IF(Rotation2Value=3, CR_Baling3, IF(Rotation2Value = 4, CR_Baling2,IF(Rotation2Value = 5, CR_Baling1,CR_Baling6))))),0) -> 0 | BJ9: 0 | BK9: =IF($A$9<=Lifespan,IF(Rotation2Value = 1,CR_Seed1,IF(Rotation2Value = 2,CR_Seed2,IF(Rotation2Value=3, CR_Seed3, IF(Rotation2Value = 4, CR_Seed2,IF(Rotation2Value = 5, CR_Seed1,CR_Seed6))))),0) -> 0 | BL9: 0 | BM9: 500.65 | BN9: 2 | BO9: =IF(A9<=Lifespan,IF(BN9=CurrentSOM,0,IF(BN9=CurrentSOM+1,CoverCropEcon_LongTerm!$D$76,IF(BN9=CurrentSOM+2,CoverCropEcon_LongTerm!$D$76*2,IF(BN9=CurrentSOM+3,CoverCropEcon_LongTerm!$D$76*3,IF(BN9=CurrentSOM+4,CoverCropEcon_LongTerm!$D$76*4,IF(BN9=CurrentSOM+5,CoverCropEcon_LongTerm!$D$76*5,IF(BN9=CurrentSOM+6,CoverCropEcon_LongTerm!$D$76*6,IF(BN9=CurrentSOM+7,CoverCropEcon_LongTerm!$D$76*7,IF(BN9=CurrentSOM+8,CoverCropEcon_LongTerm!$D$76*8,IF(BN9=CurrentSOM+9,CoverCropEcon_LongTerm!$D$76*9,IF(BN9=CurrentSOM+10,CoverCropEcon_LongTerm!$D$76*10))))))))))),0) -> 0 | BP9: 0 | BQ9: =IF(A9<=Lifespan,IF(BN9=CurrentSOM,0,IF(BN9=CurrentSOM+1,CoverCropEcon_LongTerm!$D$86,IF(BN9=CurrentSOM+2,CoverCropEcon_LongTerm!$D$86*2,IF(BN9=CurrentSOM+3,CoverCropEcon_LongTerm!$D$86*3,IF(BN9=CurrentSOM+4,CoverCropEcon_LongTerm!$D$86*4,IF(BN9=CurrentSOM+5,CoverCropEcon_LongTerm!$D$86*5,IF(BN9=CurrentSOM+6,CoverCropEcon_LongTerm!$D$86*6,IF(BN9=CurrentSOM+7,CoverCropEcon_LongTerm!$D$86*7,IF(BN9=CurrentSOM+8,CoverCropEcon_LongTerm!$D$86*8,IF(BN9=CurrentSOM+9,CoverCropEcon_LongTerm!$D$86*9,IF(BN9=CurrentSOM+10,CoverCropEcon_LongTerm!$D$86*10))))))))))),0) -> 0 | BR9: 0 | BS9: 0
A10: 7 | B10: =IF($A$10<=Lifespan,IF(RotationValue = 1,CCCost1,IF(RotationValue = 2,CCCost1,IF(RotationValue = 3, CCCost1, IF(RotationValue = 4, CCCost3,CCCost2)))),0) -> 51.6 | C10: 41.95552199 | D10: =IF($A$10<=YieldDecYrs,IF(RotationValue = 1,YieldDec1,IF(RotationValue = 2,YieldDec1,IF(RotationValue = 3, YieldDec1, IF(RotationValue = 4, YieldDec3,YieldDec2)))),0) -> 0 | E10: 0 | F10: =IF($A$10<=Lifespan,IF(RotationValue = 1,OtherCost1,IF(RotationValue = 2,OtherCost1,IF(RotationValue = 3, OtherCost1, IF(RotationValue = 4, OtherCost3,OtherCost2)))),0) -> 0 | G10: 0 | H10: 51.6 | I10: =IF($A$10<=Lifespan,IF(RotationValue = 1,Nutrient1,IF(RotationValue = 2,Nutrient1,IF(RotationValue = 3, Nutrient1, IF(RotationValue = 4, Nutrient3,Nutrient2)))),0) -> 0 | J10: 0 | K10: =IF($A$10<=Lifespan,IF(RotationValue = 1,Herb1,IF(RotationValue = 2,Herb1,IF(RotationValue = 3, Herb1, IF(RotationValue = 4, Herb3,Herb2)))),0) -> 3 | L10: 2.439274534 | M10: =IF($A$10<=Lifespan,IF(RotationValue = 1,YieldInc1,IF(RotationValue = 2,YieldInc1,IF(RotationValue = 3, YieldInc1, IF(RotationValue = 4, YieldInc3,YieldInc2)))),0) -> 16.65 | N10: 13.53797366 | O10: =IF($A$10<=Lifespan,IF(RotationValue = 1,Erosion1,IF(RotationValue = 2,Erosion1,IF(RotationValue = 3, Erosion1, IF(RotationValue = 4, Erosion3,Erosion2)))),0) -> 14.06 | P10: 11.43206665 | Q10: =IF($A$10<=Lifespan,IF(RotationValue = 1,OtherBenefit1,IF(RotationValue = 2,OtherBenefit1,IF(RotationValue = 3, OtherBenefit1, IF(RotationValue = 4, OtherBenefit3,OtherBenefit2)))),0) -> 0 | R10: 0 | S10: =IF($A$10<=Lifespan,IF(RotationValue = 1,Grazing1,IF(RotationValue = 2,Grazing1,IF(RotationValue = 3, Grazing1, IF(RotationValue = 4, Grazing3,Grazing2)))),0) -> 0 | T10: 0 | U10: =IF($A$10<=Lifespan,IF(RotationValue = 1,GrazingCC1,IF(RotationValue = 2,GrazingCC1,IF(RotationValue = 3, GrazingCC1, IF(RotationValue = 4, GrazingCC3,GrazingCC2)))),0) -> 57.7 | V10: 46.9153802 | W10: =IF($A$10<=Lifespan,IF(RotationValue = 1,Baling1,IF(RotationValue = 2,Baling1,IF(RotationValue = 3, Baling1, IF(RotationValue = 4, Baling3,Baling2)))),0) -> 0 | X10: 0 | Y10: =IF($A$10<=Lifespan,IF(RotationValue = 1,Seed1,IF(RotationValue = 2,Seed1,IF(RotationValue = 3, Seed1, IF(RotationValue = 4, Seed3,Seed2)))),0) -> 0 | Z10: 0 | AA10: 91.41 | AB10: 2 | AC10: =IF(A10<=Lifespan,IF(AB10=CurrentSOM,0,IF(AB10=CurrentSOM+1,CoverCropEcon_LongTerm!$D$76,IF(AB10=CurrentSOM+2,CoverCropEcon_LongTerm!$D$76*2,IF(AB10=CurrentSOM+3,CoverCropEcon_LongTerm!$D$76*3,IF(AB10=CurrentSOM+4,CoverCropEcon_LongTerm!$D$76*4,IF(AB10=CurrentSOM+5,CoverCropEcon_LongTerm!$D$76*5,IF(AB10=CurrentSOM+6,CoverCropEcon_LongTerm!$D$76*6,IF(AB10=CurrentSOM+7,CoverCropEcon_LongTerm!$D$76*7,IF(AB10=CurrentSOM+8,CoverCropEcon_LongTerm!$D$76*8,IF(AB10=CurrentSOM+9,CoverCropEcon_LongTerm!$D$76*9,IF(AB10=CurrentSOM+10,CoverCropEcon_LongTerm!$D$76*10))))))))))),0) -> 0 | AD10: 0 | AE10: =IF(A10<=Lifespan,IF(AB10=CurrentSOM,0,IF(AB10=CurrentSOM+1,CoverCropEcon_LongTerm!$D$86,IF(AB10=CurrentSOM+2,CoverCropEcon_LongTerm!$D$86*2,IF(AB10=CurrentSOM+3,CoverCropEcon_LongTerm!$D$86*3,IF(AB10=CurrentSOM+4,CoverCropEcon_LongTerm!$D$86*4,IF(AB10=CurrentSOM+5,CoverCropEcon_LongTerm!$D$86*5,IF(AB10=CurrentSOM+6,CoverCropEcon_LongTerm!$D$86*6,IF(AB10=CurrentSOM+7,CoverCropEcon_LongTerm!$D$86*7,IF(AB10=CurrentSOM+8,CoverCropEcon_LongTerm!$D$86*8,IF(AB10=CurrentSOM+9,CoverCropEcon_LongTerm!$D$86*9,IF(AB10=CurrentSOM+10,CoverCropEcon_LongTerm!$D$86*10))))))))))),0) -> 0 | AF10: 0 | AG10: 0 | AI10: =IF($A$10<=Lifespan,IF(RotationValue = 1,CashCrop1,IF(RotationValue = 2,CashCrop1,IF(RotationValue = 3, CashCrop1, IF(RotationValue = 4, CashCrop3,CashCrop2)))),"-") -> Soybeans | AJ10: =IF($A$10<=Lifespan,IF(RotationValue = 1,CR_IOC1,IF(RotationValue = 2,CR_IOC1,IF(RotationValue = 3, CR_IOC1, IF(RotationValue = 4, CR_IOC3,CR_IOC2)))),0) -> 457.5 | AK10: =IF($A$10<=Lifespan,IF(Rotation2Value = 1,CR_NRCC1,IF(Rotation2Value = 2,CR_NRCC1,IF(Rotation2Value = 3, CR_NRCC1, IF(Rotation2Value = 4, CR_NRCC3,IF(Rotation2Value = 5, CR_NRCC2,IF(Rotation2Value = 6, CR_NRCC1,CR_NRCC7)))))),"-") -> Soybeans | AL10: =IF($A$10<=Lifespan,IF(Rotation2Value = 1,CR_NRIOC1,IF(Rotation2Value = 2,CR_NRIOC1,IF(Rotation2Value = 3, CR_NRIOC1, IF(Rotation2Value = 4, CR_NRIOC3,IF(Rotation2Value = 5, CR_NRIOC2,IF(Rotation2Value = 6, CR_NRIOC1,CR_NRIOC7)))))),0) -> 125 | AM10: -332.5 | AN10: -270.3529275 | AP10: =IF($A$10<=Lifespan,IF(Rotation2Value = 1,CR_CCCost1,IF(Rotation2Value = 2,CR_CCCost1,IF(Rotation2Value = 3, CR_CCCost1, IF(Rotation2Value = 4, CR_CCCost3,IF(Rotation2Value = 5, CR_CCCost2,IF(Rotation2Value = 6, CR_CCCost1,CR_CCCost7)))))),0) -> 32.5 | AQ10: 26.42547412 | AR10: =IF($A$10<=CR_YieldDecYrs,IF(Rotation2Value = 1,CR_YieldDec1,IF(Rotation2Value = 2,CR_YieldDec1,IF(Rotation2Value = 3, CR_YieldDec1, IF(Rotation2Value = 4, CR_YieldDec3,IF(Rotation2Value = 5, CR_YieldDec2,IF(Rotation2Value = 6, CR_YieldDec1,CR_YieldDec7)))))),0) -> 0 | AS10: 0 | AT10: =IF($A$10<=Lifespan,IF(Rotation2Value = 1,CR_OtherCost1,IF(Rotation2Value = 2,CR_OtherCost1,IF(Rotation2Value = 3, CR_OtherCost1, IF(Rotation2Value = 4, CR_OtherCost3,IF(Rotation2Value = 5, CR_OtherCost2,IF(Rotation2Value = 6, CR_OtherCost1,CR_OtherCost7)))))),0) -> 0 | AU10: 0 | AV10: 32.5 | AW10: =IF($A$10<=Lifespan,IF(Rotation2Value = 1,CR_Nutrient1,IF(Rotation2Value = 2,CR_Nutrient1,IF(Rotation2Value = 3, CR_Nutrient1, IF(Rotation2Value = 4, CR_Nutrient3,IF(Rotation2Value = 5, CR_Nutrient2,IF(Rotation2Value = 6, CR_Nutrient1,CR_Nutrient7)))))),0) -> 0 | AX10: 0 | AY10: =IF($A$10<=Lifespan,IF(Rotation2Value = 1,CR_Herb1,IF(Rotation2Value = 2,CR_Herb1,IF(Rotation2Value = 3, CR_Herb1, IF(Rotation2Value = 4, CR_Herb3,IF(Rotation2Value = 5, CR_Herb2,IF(Rotation2Value = 6, CR_Herb1,CR_Herb7)))))),0) -> 3 | AZ10: 2.439274534 | BA10: =IF($A$10<=Lifespan,IF(Rotation2Value = 1,CR_YieldInc1,IF(Rotation2Value = 2,CR_YieldInc1,IF(Rotation2Value = 3, CR_YieldInc1, IF(Rotation2Value = 4, CR_YieldInc3,IF(Rotation2Value = 5, CR_YieldInc2,IF(Rotation2Value = 6, CR_YieldInc1,CR_YieldInc7)))))),0) -> 10 | BB10: 8.130915113 | BC10: =IF($A$10<=Lifespan,IF(Rotation2Value = 1,CR_Erosion1,IF(Rotation2Value = 2,CR_Erosion1,IF(Rotation2Value = 3, CR_Erosion1, IF(Rotation2Value = 4, CR_Erosion3,IF(Rotation2Value = 5, CR_Erosion2,IF(Rotation2Value = 6, CR_Erosion1,CR_Erosion7)))))),0) -> 35.15 | BD10: 28.58016662 | BE10: =IF($A$10<=Lifespan,IF(Rotation2Value = 1,CR_OtherBenefit1,IF(Rotation2Value = 2,CR_OtherBenefit1,IF(Rotation2Value = 3, CR_OtherBenefit1, IF(Rotation2Value = 4, CR_OtherBenefit3,IF(Rotation2Value = 5, CR_OtherBenefit2,IF(Rotation2Value = 6, CR_OtherBenefit1,CR_OtherBenefit7)))))),0) -> 0 | BF10: 0 | BG10: =IF($A$10<=Lifespan,IF(Rotation2Value = 1,CR_Grazing1,IF(Rotation2Value = 2,CR_Grazing1,IF(Rotation2Value = 3, CR_Grazing1, IF(Rotation2Value = 4, CR_Grazing3,IF(Rotation2Value = 5, CR_Grazing2,IF(Rotation2Value = 6, CR_Grazing1,CR_Grazing7)))))),0) -> 0 | BH10: 0 | BI10: =IF($A$10<=Lifespan,IF(Rotation2Value = 1,CR_Baling1,IF(Rotation2Value = 2,CR_Baling1,IF(Rotation2Value = 3, CR_Baling1, IF(Rotation2Value = 4, CR_Baling3,IF(Rotation2Value = 5, CR_Baling2,IF(Rotation2Value = 6, CR_Baling1,CR_Baling7)))))),0) -> 0 | BJ10: 0 | BK10: =IF($A$10<=Lifespan,IF(Rotation2Value = 1,CR_Seed1,IF(Rotation2Value = 2,CR_Seed1,IF(Rotation2Value = 3, CR_Seed1, IF(Rotation2Value = 4, CR_Seed3,IF(Rotation2Value = 5, CR_Seed2,IF(Rotation2Value = 6, CR_Seed1,CR_Seed7)))))),0) -> 0 | BL10: 0 | BM10: 48.15 | BN10: 2 | BO10: =IF(A10<=Lifespan,IF(BN10=CurrentSOM,0,IF(BN10=CurrentSOM+1,CoverCropEcon_LongTerm!$D$76,IF(BN10=CurrentSOM+2,CoverCropEcon_LongTerm!$D$76*2,IF(BN10=CurrentSOM+3,CoverCropEcon_LongTerm!$D$76*3,IF(BN10=CurrentSOM+4,CoverCropEcon_LongTerm!$D$76*4,IF(BN10=CurrentSOM+5,CoverCropEcon_LongTerm!$D$76*5,IF(BN10=CurrentSOM+6,CoverCropEcon_LongTerm!$D$76*6,IF(BN10=CurrentSOM+7,CoverCropEcon_LongTerm!$D$76*7,IF(BN10=CurrentSOM+8,CoverCropEcon_LongTerm!$D$76*8,IF(BN10=CurrentSOM+9,CoverCropEcon_LongTerm!$D$76*9,IF(BN10=CurrentSOM+10,CoverCropEcon_LongTerm!$D$76*10))))))))))),0) -> 0 | BP10: 0 | BQ10: =IF(A10<=Lifespan,IF(BN10=CurrentSOM,0,IF(BN10=CurrentSOM+1,CoverCropEcon_LongTerm!$D$86,IF(BN10=CurrentSOM+2,CoverCropEcon_LongTerm!$D$86*2,IF(BN10=CurrentSOM+3,CoverCropEcon_LongTerm!$D$86*3,IF(BN10=CurrentSOM+4,CoverCropEcon_LongTerm!$D$86*4,IF(BN10=CurrentSOM+5,CoverCropEcon_LongTerm!$D$86*5,IF(BN10=CurrentSOM+6,CoverCropEcon_LongTerm!$D$86*6,IF(BN10=CurrentSOM+7,CoverCropEcon_LongTerm!$D$86*7,IF(BN10=CurrentSOM+8,CoverCropEcon_LongTerm!$D$86*8,IF(BN10=CurrentSOM+9,CoverCropEcon_LongTerm!$D$86*9,IF(BN10=CurrentSOM+10,CoverCropEcon_LongTerm!$D$86*10))))))))))),0) -> 0 | BR10: 0 | BS10: 0
A11: 8 | B11: =IF($A$11<=Lifespan,IF(RotationValue=1,CCCost1,IF(RotationValue=2,CCCost2,IF(RotationValue=3,CCCost2,IF(RotationValue=4,CCCost4,CCCost3)))),0) -> 59.04 | C11: 46.60672119 | D11: =IF($A$11<=YieldDecYrs,IF(RotationValue=1,YieldDec1,IF(RotationValue=2,YieldDec2,IF(RotationValue=3,YieldDec2,IF(RotationValue=4,YieldDec4,YieldDec3)))),0) -> 0 | E11: 0 | F11: =IF($A$11<=Lifespan,IF(RotationValue=1,OtherCost1,IF(RotationValue=2,OtherCost2,IF(RotationValue=3,OtherCost2,IF(RotationValue=4,OtherCost4,OtherCost3)))),0) -> 0 | G11: 0 | H11: 59.04 | I11: =IF($A$11<=Lifespan,IF(RotationValue=1,Nutrient1,IF(RotationValue=2,Nutrient2,IF(RotationValue=3,Nutrient2,IF(RotationValue=4,Nutrient4,Nutrient3)))),0) -> 16.5 | J11: 13.02525237 | K11: =IF($A$11<=Lifespan,IF(RotationValue=1,Herb1,IF(RotationValue=2,Herb2,IF(RotationValue=3,Herb2,IF(RotationValue=4,Herb4,Herb3)))),0) -> 3 | L11: 2.368227703 | M11: =IF($A$11<=Lifespan,IF(RotationValue=1,YieldInc1,IF(RotationValue=2,YieldInc2,IF(RotationValue=3,YieldInc2,IF(RotationValue=4,YieldInc4,YieldInc3)))),0) -> 0 | N11: 0 | O11: =IF($A$11<=Lifespan,IF(RotationValue=1,Erosion1,IF(RotationValue=2,Erosion2,IF(RotationValue=3,Erosion2,IF(RotationValue=4,Erosion4,Erosion3)))),0) -> 28.12 | P11: 22.19818767 | Q11: =IF($A$11<=Lifespan,IF(RotationValue=1,OtherBenefit1,IF(RotationValue=2,OtherBenefit2,IF(RotationValue=3,OtherBenefit2,IF(RotationValue=4,OtherBenefit4,OtherBenefit3)))),0) -> 0 | R11: 0 | S11: =IF($A$11<=Lifespan,IF(RotationValue=1,Grazing1,IF(RotationValue=2,Grazing2,IF(RotationValue=3,Grazing2,IF(RotationValue=4,Grazing4,Grazing3)))),0) -> 0 | T11: 0 | U11: =IF($A$11<=Lifespan,IF(RotationValue=1,GrazingCC1,IF(RotationValue=2,GrazingCC2,IF(RotationValue=3,GrazingCC2,IF(RotationValue=4,GrazingCC4,GrazingCC3)))),0) -> 57.7 | V11: 45.54891282 | W11: =IF($A$11<=Lifespan,IF(RotationValue=1,Baling1,IF(RotationValue=2,Baling2,IF(RotationValue=3,Baling2,IF(RotationValue=4,Baling4,Baling3)))),0) -> 0 | X11: 0 | Y11: =IF($A$11<=Lifespan,IF(RotationValue=1,Seed1,IF(RotationValue=2,Seed2,IF(RotationValue=3,Seed2,IF(RotationValue=4,Seed4,Seed3)))),0) -> 0 | Z11: 0 | AA11: 105.32 | AB11: 2 | AC11: =IF(A11<=Lifespan,IF(AB11=CurrentSOM,0,IF(AB11=CurrentSOM+1,CoverCropEcon_LongTerm!$D$76,IF(AB11=CurrentSOM+2,CoverCropEcon_LongTerm!$D$76*2,IF(AB11=CurrentSOM+3,CoverCropEcon_LongTerm!$D$76*3,IF(AB11=CurrentSOM+4,CoverCropEcon_LongTerm!$D$76*4,IF(AB11=CurrentSOM+5,CoverCropEcon_LongTerm!$D$76*5,IF(AB11=CurrentSOM+6,CoverCropEcon_LongTerm!$D$76*6,IF(AB11=CurrentSOM+7,CoverCropEcon_LongTerm!$D$76*7,IF(AB11=CurrentSOM+8,CoverCropEcon_LongTerm!$D$76*8,IF(AB11=CurrentSOM+9,CoverCropEcon_LongTerm!$D$76*9,IF(AB11=CurrentSOM+10,CoverCropEcon_LongTerm!$D$76*10))))))))))),0) -> 0 | AD11: 0 | AE11: =IF(A11<=Lifespan,IF(AB11=CurrentSOM,0,IF(AB11=CurrentSOM+1,CoverCropEcon_LongTerm!$D$86,IF(AB11=CurrentSOM+2,CoverCropEcon_LongTerm!$D$86*2,IF(AB11=CurrentSOM+3,CoverCropEcon_LongTerm!$D$86*3,IF(AB11=CurrentSOM+4,CoverCropEcon_LongTerm!$D$86*4,IF(AB11=CurrentSOM+5,CoverCropEcon_LongTerm!$D$86*5,IF(AB11=CurrentSOM+6,CoverCropEcon_LongTerm!$D$86*6,IF(AB11=CurrentSOM+7,CoverCropEcon_LongTerm!$D$86*7,IF(AB11=CurrentSOM+8,CoverCropEcon_LongTerm!$D$86*8,IF(AB11=CurrentSOM+9,CoverCropEcon_LongTerm!$D$86*9,IF(AB11=CurrentSOM+10,CoverCropEcon_LongTerm!$D$86*10))))))))))),0) -> 0 | AF11: 0 | AG11: 0 | AI11: =IF($A$11<=Lifespan,IF(RotationValue=1,CashCrop1,IF(RotationValue=2,CashCrop2,IF(RotationValue=3,CashCrop2,IF(RotationValue=4,CashCrop4,CashCrop3)))),"-") -> Corn | AJ11: =IF($A$11<=Lifespan,IF(RotationValue=1,CR_IOC1,IF(RotationValue=2,CR_IOC2,IF(RotationValue=3,CR_IOC2,IF(RotationValue=4,CR_IOC4,CR_IOC3)))),0) -> 254.5 | AK11: =IF($A$11<=Lifespan,IF(Rotation2Value=1,CR_NRCC1,IF(Rotation2Value=2,CR_NRCC2,IF(Rotation2Value=3,CR_NRCC2,IF(Rotation2Value=4,CR_NRCC4,IF(Rotation2Value = 5,CR_NRCC3,IF(Rotation2Value=6,CR_NRCC2,CR_NRCC1)))))),"-") -> Wheat | AL11: =IF($A$11<=Lifespan,IF(Rotation2Value=1,CR_NRIOC1,IF(Rotation2Value=2,CR_NRIOC2,IF(Rotation2Value=3,CR_NRIOC2,IF(Rotation2Value=4,CR_NRIOC4,IF(Rotation2Value = 5,CR_NRIOC3,IF(Rotation2Value=6,CR_NRIOC2,CR_NRIOC1)))))),0) -> 176.25 | AM11: -78.25 | AN11: -61.77127259 | AP11: =IF($A$11<=Lifespan,IF(Rotation2Value=1,CR_CCCost1,IF(Rotation2Value=2,CR_CCCost2,IF(Rotation2Value=3,CR_CCCost2,IF(Rotation2Value=4,CR_CCCost4,IF(Rotation2Value = 5,CR_CCCost3,IF(Rotation2Value=6,CR_CCCost2,CR_CCCost1)))))),0) -> 0 | AQ11: 0 | AR11: =IF($A$11<=CR_YieldDecYrs,IF(Rotation2Value=1,CR_YieldDec1,IF(Rotation2Value=2,CR_YieldDec2,IF(Rotation2Value=3,CR_YieldDec2,IF(Rotation2Value=4,CR_YieldDec4,IF(Rotation2Value = 5,CR_YieldDec3,IF(Rotation2Value=6,CR_YieldDec2,CR_YieldDec1)))))),0) -> 0 | AS11: 0 | AT11: =IF($A$11<=Lifespan,IF(Rotation2Value=1,CR_OtherCost1,IF(Rotation2Value=2,CR_OtherCost2,IF(Rotation2Value=3,CR_OtherCost2,IF(Rotation2Value=4,CR_OtherCost4,IF(Rotation2Value = 5,CR_OtherCost3,IF(Rotation2Value=6,CR_OtherCost2,CR_OtherCost1)))))),0) -> 0 | AU11: 0 | AV11: 0 | AW11: =IF($A$11<=Lifespan,IF(Rotation2Value=1,CR_Nutrient1,IF(Rotation2Value=2,CR_Nutrient2,IF(Rotation2Value=3,CR_Nutrient2,IF(Rotation2Value=4,CR_Nutrient4,IF(Rotation2Value = 5,CR_Nutrient3,IF(Rotation2Value=6,CR_Nutrient2,CR_Nutrient1)))))),0) -> 0 | AX11: 0 | AY11: =IF($A$11<=Lifespan,IF(Rotation2Value=1,CR_Herb1,IF(Rotation2Value=2,CR_Herb2,IF(Rotation2Value=3,CR_Herb2,IF(Rotation2Value=4,CR_Herb4,IF(Rotation2Value = 5,CR_Herb3,IF(Rotation2Value=6,CR_Herb2,CR_Herb1)))))),0) -> 0 | AZ11: 0 | BA11: =IF($A$11<=Lifespan,IF(Rotation2Value=1,CR_YieldInc1,IF(Rotation2Value=2,CR_YieldInc2,IF(Rotation2Value=3,CR_YieldInc2,IF(Rotation2Value=4,CR_YieldInc4,IF(Rotation2Value = 5,CR_YieldInc3,IF(Rotation2Value=6,CR_YieldInc2,CR_YieldInc1)))))),0) -> 0 | BB11: 0 | BC11: =IF($A$11<=Lifespan,IF(Rotation2Value=1,CR_Erosion1,IF(Rotation2Value=2,CR_Erosion2,IF(Rotation2Value=3,CR_Erosion2,IF(Rotation2Value=4,CR_Erosion4,IF(Rotation2Value = 5,CR_Erosion3,IF(Rotation2Value=6,CR_Erosion2,CR_Erosion1)))))),0) -> 35.15 | BD11: 27.74773459 | BE11: =IF($A$11<=Lifespan,IF(Rotation2Value=1,CR_OtherBenefit1,IF(Rotation2Value=2,CR_OtherBenefit2,IF(Rotation2Value=3,CR_OtherBenefit2,IF(Rotation2Value=4,CR_OtherBenefit4,IF(Rotation2Value = 5,CR_OtherBenefit3,IF(Rotation2Value=6,CR_OtherBenefit2,CR_OtherBenefit1)))))),0) -> 0 | BF11: 0 | BG11: =IF($A$11<=Lifespan,IF(Rotation2Value=1,CR_Grazing1,IF(Rotation2Value=2,CR_Grazing2,IF(Rotation2Value=3,CR_Grazing2,IF(Rotation2Value=4,CR_Grazing4,IF(Rotation2Value = 5,CR_Grazing3,IF(Rotation2Value=6,CR_Grazing2,CR_Grazing1)))))),0) -> 0 | BH11: 0 | BI11: =IF($A$11<=Lifespan,IF(Rotation2Value=1,CR_Baling1,IF(Rotation2Value=2,CR_Baling2,IF(Rotation2Value=3,CR_Baling2,IF(Rotation2Value=4,CR_Baling4,IF(Rotation2Value = 5,CR_Baling3,IF(Rotation2Value=6,CR_Baling2,CR_Baling1)))))),0) -> 0 | BJ11: 0 | BK11: =IF($A$11<=Lifespan,IF(Rotation2Value=1,CR_Seed1,IF(Rotation2Value=2,CR_Seed2,IF(Rotation2Value=3,CR_Seed2,IF(Rotation2Value=4,CR_Seed4,IF(Rotation2Value = 5,CR_Seed3,IF(Rotation2Value=6,CR_Seed2,CR_Seed1)))))),0) -> 0 | BL11: 0 | BM11: 35.15 | BN11: 2 | BO11: =IF(A11<=Lifespan,IF(BN11=CurrentSOM,0,IF(BN11=CurrentSOM+1,CoverCropEcon_LongTerm!$D$76,IF(BN11=CurrentSOM+2,CoverCropEcon_LongTerm!$D$76*2,IF(BN11=CurrentSOM+3,CoverCropEcon_LongTerm!$D$76*3,IF(BN11=CurrentSOM+4,CoverCropEcon_LongTerm!$D$76*4,IF(BN11=CurrentSOM+5,CoverCropEcon_LongTerm!$D$76*5,IF(BN11=CurrentSOM+6,CoverCropEcon_LongTerm!$D$76*6,IF(BN11=CurrentSOM+7,CoverCropEcon_LongTerm!$D$76*7,IF(BN11=CurrentSOM+8,CoverCropEcon_LongTerm!$D$76*8,IF(BN11=CurrentSOM+9,CoverCropEcon_LongTerm!$D$76*9,IF(BN11=CurrentSOM+10,CoverCropEcon_LongTerm!$D$76*10))))))))))),0) -> 0 | BP11: 0 | BQ11: =IF(A11<=Lifespan,IF(BN11=CurrentSOM,0,IF(BN11=CurrentSOM+1,CoverCropEcon_LongTerm!$D$86,IF(BN11=CurrentSOM+2,CoverCropEcon_LongTerm!$D$86*2,IF(BN11=CurrentSOM+3,CoverCropEcon_LongTerm!$D$86*3,IF(BN11=CurrentSOM+4,CoverCropEcon_LongTerm!$D$86*4,IF(BN11=CurrentSOM+5,CoverCropEcon_LongTerm!$D$86*5,IF(BN11=CurrentSOM+6,CoverCropEcon_LongTerm!$D$86*6,IF(BN11=CurrentSOM+7,CoverCropEcon_LongTerm!$D$86*7,IF(BN11=CurrentSOM+8,CoverCropEcon_LongTerm!$D$86*8,IF(BN11=CurrentSOM+9,CoverCropEcon_LongTerm!$D$86*9,IF(BN11=CurrentSOM+10,CoverCropEcon_LongTerm!$D$86*10))))))))))),0) -> 0 | BR11: 0 | BS11: 0
A12: 9 | B12: =IF($A$12<=Lifespan,IF(RotationValue = 1,CCCost1,IF(RotationValue = 2,CCCost1, IF(RotationValue = 3, CCCost3, IF(RotationValue = 4, CCCost1,CCCost4)))),0) -> 51.6 | C12: 39.54710339 | D12: =IF($A$12<=YieldDecYrs,IF(RotationValue = 1,YieldDec1,IF(RotationValue = 2,YieldDec1, IF(RotationValue = 3, YieldDec3, IF(RotationValue = 4, YieldDec1,YieldDec4)))),0) -> 0 | E12: 0 | F12: =IF($A$12<=Lifespan,IF(RotationValue = 1,OtherCost1,IF(RotationValue = 2,OtherCost1, IF(RotationValue = 3, OtherCost3, IF(RotationValue = 4, OtherCost1,OtherCost4)))),0) -> 0 | G12: 0 | H12: 51.6 | I12: =IF($A$12<=Lifespan,IF(RotationValue = 1,Nutrient1,IF(RotationValue = 2,Nutrient1, IF(RotationValue = 3, Nutrient3, IF(RotationValue = 4, Nutrient1,Nutrient4)))),0) -> 0 | J12: 0 | K12: =IF($A$12<=Lifespan,IF(RotationValue = 1,Herb1,IF(RotationValue = 2,Herb1, IF(RotationValue = 3, Herb3, IF(RotationValue = 4, Herb1,Herb4)))),0) -> 3 | L12: 2.299250197 | M12: =IF($A$12<=Lifespan,IF(RotationValue = 1,YieldInc1,IF(RotationValue = 2,YieldInc1, IF(RotationValue = 3, YieldInc3, IF(RotationValue = 4, YieldInc1,YieldInc4)))),0) -> 16.65 | N12: 12.76083859 | O12: =IF($A$12<=Lifespan,IF(RotationValue = 1,Erosion1,IF(RotationValue = 2,Erosion1, IF(RotationValue = 3, Erosion3, IF(RotationValue = 4, Erosion1,Erosion4)))),0) -> 14.06 | P12: 10.77581926 | Q12: =IF($A$12<=Lifespan,IF(RotationValue = 1,OtherBenefit1,IF(RotationValue = 2,OtherBenefit1, IF(RotationValue = 3, OtherBenefit3, IF(RotationValue = 4, OtherBenefit1,OtherBenefit4)))),0) -> 0 | R12: 0 | S12: =IF($A$12<=Lifespan,IF(RotationValue = 1,Grazing1,IF(RotationValue = 2,Grazing1, IF(RotationValue = 3, Grazing3, IF(RotationValue = 4, Grazing1,Grazing4)))),0) -> 0 | T12: 0 | U12: =IF($A$12<=Lifespan,IF(RotationValue = 1,GrazingCC1,IF(RotationValue = 2,GrazingCC1, IF(RotationValue = 3, GrazingCC3, IF(RotationValue = 4, GrazingCC1,GrazingCC4)))),0) -> 57.7 | V12: 44.22224546 | W12: =IF($A$12<=Lifespan,IF(RotationValue = 1,Baling1,IF(RotationValue = 2,Baling1, IF(RotationValue = 3, Baling3, IF(RotationValue = 4, Baling1,Baling4)))),0) -> 0 | X12: 0 | Y12: =IF($A$12<=Lifespan,IF(RotationValue = 1,Seed1,IF(RotationValue = 2,Seed1, IF(RotationValue = 3, Seed3, IF(RotationValue = 4, Seed1,Seed4)))),0) -> 0 | Z12: 0 | AA12: 91.41 | AB12: 2 | AC12: =IF(A12<=Lifespan,IF(AB12=CurrentSOM,0,IF(AB12=CurrentSOM+1,CoverCropEcon_LongTerm!$D$76,IF(AB12=CurrentSOM+2,CoverCropEcon_LongTerm!$D$76*2,IF(AB12=CurrentSOM+3,CoverCropEcon_LongTerm!$D$76*3,IF(AB12=CurrentSOM+4,CoverCropEcon_LongTerm!$D$76*4,IF(AB12=CurrentSOM+5,CoverCropEcon_LongTerm!$D$76*5,IF(AB12=CurrentSOM+6,CoverCropEcon_LongTerm!$D$76*6,IF(AB12=CurrentSOM+7,CoverCropEcon_LongTerm!$D$76*7,IF(AB12=CurrentSOM+8,CoverCropEcon_LongTerm!$D$76*8,IF(AB12=CurrentSOM+9,CoverCropEcon_LongTerm!$D$76*9,IF(AB12=CurrentSOM+10,CoverCropEcon_LongTerm!$D$76*10))))))))))),0) -> 0 | AD12: 0 | AE12: =IF(A12<=Lifespan,IF(AB12=CurrentSOM,0,IF(AB12=CurrentSOM+1,CoverCropEcon_LongTerm!$D$86,IF(AB12=CurrentSOM+2,CoverCropEcon_LongTerm!$D$86*2,IF(AB12=CurrentSOM+3,CoverCropEcon_LongTerm!$D$86*3,IF(AB12=CurrentSOM+4,CoverCropEcon_LongTerm!$D$86*4,IF(AB12=CurrentSOM+5,CoverCropEcon_LongTerm!$D$86*5,IF(AB12=CurrentSOM+6,CoverCropEcon_LongTerm!$D$86*6,IF(AB12=CurrentSOM+7,CoverCropEcon_LongTerm!$D$86*7,IF(AB12=CurrentSOM+8,CoverCropEcon_LongTerm!$D$86*8,IF(AB12=CurrentSOM+9,CoverCropEcon_LongTerm!$D$86*9,IF(AB12=CurrentSOM+10,CoverCropEcon_LongTerm!$D$86*10))))))))))),0) -> 0 | AF12: 0 | AG12: 0 | AI12: =IF($A$12<=Lifespan,IF(RotationValue = 1,CashCrop1,IF(RotationValue = 2,CashCrop1, IF(RotationValue = 3, CashCrop3, IF(RotationValue = 4, CashCrop1,CashCrop4)))),"-") -> Soybeans | AJ12: =IF($A$12<=Lifespan,IF(RotationValue = 1,CR_IOC1,IF(RotationValue = 2,CR_IOC1, IF(RotationValue = 3, CR_IOC3, IF(RotationValue = 4, CR_IOC1,CR_IOC4)))),0) -> 457.5 | AK12: =IF($A$12<=Lifespan,IF(Rotation2Value = 1,CR_NRCC1,IF(Rotation2Value = 2,CR_NRCC1, IF(Rotation2Value = 3, CR_NRCC3, IF(Rotation2Value = 4, CR_NRCC1,IF(Rotation2Value = 5,CR_NRCC4,IF(Rotation2Value = 6,CR_NRCC3,CR_NRCC2)))))),"-") -> Corn | AL12: =IF($A$12<=Lifespan,IF(Rotation2Value = 1,CR_NRIOC1,IF(Rotation2Value = 2,CR_NRIOC1, IF(Rotation2Value = 3, CR_NRIOC3, IF(Rotation2Value = 4, CR_NRIOC1,IF(Rotation2Value = 5,CR_NRIOC4,IF(Rotation2Value = 6,CR_NRIOC3,CR_NRIOC2)))))),0) -> 175 | AM12: -282.5 | AN12: -216.5127269 | AP12: =IF($A$12<=Lifespan,IF(Rotation2Value = 1,CR_CCCost1,IF(Rotation2Value = 2,CR_CCCost1, IF(Rotation2Value = 3, CR_CCCost3, IF(Rotation2Value = 4, CR_CCCost1,IF(Rotation2Value = 5,CR_CCCost4,IF(Rotation2Value = 6,CR_CCCost3,CR_CCCost2)))))),0) -> 87.5 | AQ12: 67.06146408 | AR12: =IF($A$12<=CR_YieldDecYrs,IF(Rotation2Value = 1,CR_YieldDec1,IF(Rotation2Value = 2,CR_YieldDec1, IF(Rotation2Value = 3, CR_YieldDec3, IF(Rotation2Value = 4, CR_YieldDec1,IF(Rotation2Value = 5,CR_YieldDec4,IF(Rotation2Value = 6,CR_YieldDec3,CR_YieldDec2)))))),0) -> 0 | AS12: 0 | AT12: =IF($A$12<=Lifespan,IF(Rotation2Value = 1,CR_OtherCost1,IF(Rotation2Value = 2,CR_OtherCost1, IF(Rotation2Value = 3, CR_OtherCost3, IF(Rotation2Value = 4, CR_OtherCost1,IF(Rotation2Value = 5,CR_OtherCost4,IF(Rotation2Value = 6,CR_OtherCost3,CR_OtherCost2)))))),0) -> 0 | AU12: 0 | AV12: 87.5 | AW12: =IF($A$12<=Lifespan,IF(Rotation2Value = 1,CR_Nutrient1,IF(Rotation2Value = 2,CR_Nutrient1, IF(Rotation2Value = 3, CR_Nutrient3, IF(Rotation2Value = 4, CR_Nutrient1,IF(Rotation2Value = 5,CR_Nutrient4,IF(Rotation2Value = 6,CR_Nutrient3,CR_Nutrient2)))))),0) -> 16.5 | AX12: 12.64587608 | AY12: =IF($A$12<=Lifespan,IF(Rotation2Value = 1,CR_Herb1,IF(Rotation2Value = 2,CR_Herb1, IF(Rotation2Value = 3, CR_Herb3, IF(Rotation2Value = 4, CR_Herb1,IF(Rotation2Value = 5,CR_Herb4,IF(Rotation2Value = 6,CR_Herb3,CR_Herb2)))))),0) -> 3 | AZ12: 2.299250197 | BA12: =IF($A$12<=Lifespan,IF(Rotation2Value = 1,CR_YieldInc1,IF(Rotation2Value = 2,CR_YieldInc1, IF(Rotation2Value = 3, CR_YieldInc3, IF(Rotation2Value = 4, CR_YieldInc1,IF(Rotation2Value = 5,CR_YieldInc4,IF(Rotation2Value = 6,CR_YieldInc3,CR_YieldInc2)))))),0) -> 6 | BB12: 4.598500394 | BC12: =IF($A$12<=Lifespan,IF(Rotation2Value = 1,CR_Erosion1,IF(Rotation2Value = 2,CR_Erosion1, IF(Rotation2Value = 3, CR_Erosion3, IF(Rotation2Value = 4, CR_Erosion1,IF(Rotation2Value = 5,CR_Erosion4,IF(Rotation2Value = 6,CR_Erosion3,CR_Erosion2)))))),0) -> 35.15 | BD12: 26.93954814 | BE12: =IF($A$12<=Lifespan,IF(Rotation2Value = 1,CR_OtherBenefit1,IF(Rotation2Value = 2,CR_OtherBenefit1, IF(Rotation2Value = 3, CR_OtherBenefit3, IF(Rotation2Value = 4, CR_OtherBenefit1,IF(Rotation2Value = 5,CR_OtherBenefit4,IF(Rotation2Value = 6,CR_OtherBenefit3,CR_OtherBenefit2)))))),0) -> 0 | BF12: 0 | BG12: =IF($A$12<=Lifespan,IF(Rotation2Value = 1,CR_Grazing1,IF(Rotation2Value = 2,CR_Grazing1, IF(Rotation2Value = 3, CR_Grazing3, IF(Rotation2Value = 4, CR_Grazing1,IF(Rotation2Value = 5,CR_Grazing4,IF(Rotation2Value = 6,CR_Grazing3,CR_Grazing2)))))),0) -> 440 | BH12: 337.2233622 | BI12: =IF($A$12<=Lifespan,IF(Rotation2Value = 1,CR_Baling1,IF(Rotation2Value = 2,CR_Baling1, IF(Rotation2Value = 3, CR_Baling3, IF(Rotation2Value = 4, CR_Baling1,IF(Rotation2Value = 5,CR_Baling4,IF(Rotation2Value = 6,CR_Baling3,CR_Baling2)))))),0) -> 0 | BJ12: 0 | BK12: =IF($A$12<=Lifespan,IF(Rotation2Value = 1,CR_Seed1,IF(Rotation2Value = 2,CR_Seed1, IF(Rotation2Value = 3, CR_Seed3, IF(Rotation2Value = 4, CR_Seed1,IF(Rotation2Value = 5,CR_Seed4,IF(Rotation2Value = 6,CR_Seed3,CR_Seed2)))))),0) -> 0 | BL12: 0 | BM12: 500.65 | BN12: 2 | BO12: =IF(A12<=Lifespan,IF(BN12=CurrentSOM,0,IF(BN12=CurrentSOM+1,CoverCropEcon_LongTerm!$D$76,IF(BN12=CurrentSOM+2,CoverCropEcon_LongTerm!$D$76*2,IF(BN12=CurrentSOM+3,CoverCropEcon_LongTerm!$D$76*3,IF(BN12=CurrentSOM+4,CoverCropEcon_LongTerm!$D$76*4,IF(BN12=CurrentSOM+5,CoverCropEcon_LongTerm!$D$76*5,IF(BN12=CurrentSOM+6,CoverCropEcon_LongTerm!$D$76*6,IF(BN12=CurrentSOM+7,CoverCropEcon_LongTerm!$D$76*7,IF(BN12=CurrentSOM+8,CoverCropEcon_LongTerm!$D$76*8,IF(BN12=CurrentSOM+9,CoverCropEcon_LongTerm!$D$76*9,IF(BN12=CurrentSOM+10,CoverCropEcon_LongTerm!$D$76*10))))))))))),0) -> 0 | BP12: 0 | BQ12: =IF(A12<=Lifespan,IF(BN12=CurrentSOM,0,IF(BN12=CurrentSOM+1,CoverCropEcon_LongTerm!$D$86,IF(BN12=CurrentSOM+2,CoverCropEcon_LongTerm!$D$86*2,IF(BN12=CurrentSOM+3,CoverCropEcon_LongTerm!$D$86*3,IF(BN12=CurrentSOM+4,CoverCropEcon_LongTerm!$D$86*4,IF(BN12=CurrentSOM+5,CoverCropEcon_LongTerm!$D$86*5,IF(BN12=CurrentSOM+6,CoverCropEcon_LongTerm!$D$86*6,IF(BN12=CurrentSOM+7,CoverCropEcon_LongTerm!$D$86*7,IF(BN12=CurrentSOM+8,CoverCropEcon_LongTerm!$D$86*8,IF(BN12=CurrentSOM+9,CoverCropEcon_LongTerm!$D$86*9,IF(BN12=CurrentSOM+10,CoverCropEcon_LongTerm!$D$86*10))))))))))),0) -> 0 | BR12: 0 | BS12: 0
A13: 10 | B13: =IF($A$13<=Lifespan,IF(RotationValue = 1,CCCost1,IF(RotationValue = 2,CCCost2, IF(RotationValue = 3,CCCost1, IF(RotationValue = 4, CCCost2,CCCost5)))),0) -> 59.04 | C13: 43.93130474 | D13: =IF($A$13<=YieldDecYrs,IF(RotationValue = 1,YieldDec1,IF(RotationValue = 2,YieldDec2, IF(RotationValue = 3,YieldDec1, IF(RotationValue = 4, YieldDec2,YieldDec5)))),0) -> 0 | E13: 0 | F13: =IF($A$13<=Lifespan,IF(RotationValue = 1,OtherCost1,IF(RotationValue = 2,OtherCost2, IF(RotationValue = 3,OtherCost1, IF(RotationValue = 4, OtherCost2,OtherCost5)))),0) -> 0 | G13: 0 | H13: 59.04 | I13: =IF($A$13<=Lifespan,IF(RotationValue = 1,Nutrient1,IF(RotationValue = 2,Nutrient2, IF(RotationValue = 3,Nutrient1, IF(RotationValue = 4, Nutrient2,Nutrient5)))),0) -> 16.5 | J13: 12.2775496 | K13: =IF($A$13<=Lifespan,IF(RotationValue = 1,Herb1,IF(RotationValue = 2,Herb2, IF(RotationValue = 3,Herb1, IF(RotationValue = 4, Herb2,Herb5)))),0) -> 3 | L13: 2.232281745 | M13: =IF($A$13<=Lifespan,IF(RotationValue = 1,YieldInc1,IF(RotationValue = 2,YieldInc2, IF(RotationValue = 3,YieldInc1, IF(RotationValue = 4, YieldInc2,YieldInc5)))),0) -> 0 | N13: 0 | O13: =IF($A$13<=Lifespan,IF(RotationValue = 1,Erosion1,IF(RotationValue = 2,Erosion2, IF(RotationValue = 3,Erosion1, IF(RotationValue = 4, Erosion2,Erosion5)))),0) -> 28.12 | P13: 20.92392089 | Q13: =IF($A$13<=Lifespan,IF(RotationValue = 1,OtherBenefit1,IF(RotationValue = 2,OtherBenefit2, IF(RotationValue = 3,OtherBenefit1, IF(RotationValue = 4, OtherBenefit2,OtherBenefit5)))),0) -> 0 | R13: 0 | S13: =IF($A$13<=Lifespan,IF(RotationValue = 1,Grazing1,IF(RotationValue = 2,Grazing2, IF(RotationValue = 3,Grazing1, IF(RotationValue = 4, Grazing2,Grazing5)))),0) -> 0 | T13: 0 | U13: =IF($A$13<=Lifespan,IF(RotationValue = 1,GrazingCC1,IF(RotationValue = 2,GrazingCC2, IF(RotationValue = 3,GrazingCC1, IF(RotationValue = 4, GrazingCC2,GrazingCC5)))),0) -> 57.7 | V13: 42.93421889 | W13: =IF($A$13<=Lifespan,IF(RotationValue = 1,Baling1,IF(RotationValue = 2,Baling2, IF(RotationValue = 3,Baling1, IF(RotationValue = 4, Baling2,Baling5)))),0) -> 0 | X13: 0 | Y13: =IF($A$13<=Lifespan,IF(RotationValue = 1,Seed1,IF(RotationValue = 2,Seed2, IF(RotationValue = 3,Seed1, IF(RotationValue = 4, Seed2,Seed5)))),0) -> 0 | Z13: 0 | AA13: 105.32 | AB13: 2 | AC13: =IF(A13<=Lifespan,IF(AB13=CurrentSOM,0,IF(AB13=CurrentSOM+1,CoverCropEcon_LongTerm!$D$76,IF(AB13=CurrentSOM+2,CoverCropEcon_LongTerm!$D$76*2,IF(AB13=CurrentSOM+3,CoverCropEcon_LongTerm!$D$76*3,IF(AB13=CurrentSOM+4,CoverCropEcon_LongTerm!$D$76*4,IF(AB13=CurrentSOM+5,CoverCropEcon_LongTerm!$D$76*5,IF(AB13=CurrentSOM+6,CoverCropEcon_LongTerm!$D$76*6,IF(AB13=CurrentSOM+7,CoverCropEcon_LongTerm!$D$76*7,IF(AB13=CurrentSOM+8,CoverCropEcon_LongTerm!$D$76*8,IF(AB13=CurrentSOM+9,CoverCropEcon_LongTerm!$D$76*9,IF(AB13=CurrentSOM+10,CoverCropEcon_LongTerm!$D$76*10))))))))))),0) -> 0 | AD13: 0 | AE13: =IF(A13<=Lifespan,IF(AB13=CurrentSOM,0,IF(AB13=CurrentSOM+1,CoverCropEcon_LongTerm!$D$86,IF(AB13=CurrentSOM+2,CoverCropEcon_LongTerm!$D$86*2,IF(AB13=CurrentSOM+3,CoverCropEcon_LongTerm!$D$86*3,IF(AB13=CurrentSOM+4,CoverCropEcon_LongTerm!$D$86*4,IF(AB13=CurrentSOM+5,CoverCropEcon_LongTerm!$D$86*5,IF(AB13=CurrentSOM+6,CoverCropEcon_LongTerm!$D$86*6,IF(AB13=CurrentSOM+7,CoverCropEcon_LongTerm!$D$86*7,IF(AB13=CurrentSOM+8,CoverCropEcon_LongTerm!$D$86*8,IF(AB13=CurrentSOM+9,CoverCropEcon_LongTerm!$D$86*9,IF(AB13=CurrentSOM+10,CoverCropEcon_LongTerm!$D$86*10))))))))))),0) -> 0 | AF13: 0 | AG13: 0 | AI13: =IF($A$13<=Lifespan,IF(RotationValue = 1,CashCrop1,IF(RotationValue = 2,CashCrop2, IF(RotationValue = 3,CashCrop1, IF(RotationValue = 4, CashCrop2,CashCrop5)))),"-") -> Corn | AJ13: =IF($A$13<=Lifespan,IF(RotationValue = 1,CR_IOC1,IF(RotationValue = 2,CR_IOC2, IF(RotationValue = 3,CR_IOC1, IF(RotationValue = 4, CR_IOC2,CR_IOC5)))),0) -> 254.5 | AK13: =IF($A$13<=Lifespan,IF(Rotation2Value = 1,CR_NRCC1,IF(Rotation2Value = 2,CR_NRCC2, IF(Rotation2Value = 3,CR_NRCC1, IF(Rotation2Value = 4, CR_NRCC2,IF(Rotation2Value = 5,CR_NRCC5, IF(Rotation2Value = 6, CR_NRCC4,CR_NRCC3)))))),"-") -> Soybeans | AL13: =IF($A$13<=Lifespan,IF(Rotation2Value = 1,CR_NRIOC1,IF(Rotation2Value = 2,CR_NRIOC2, IF(Rotation2Value = 3,CR_NRIOC1, IF(Rotation2Value = 4, CR_NRIOC2,IF(Rotation2Value = 5,CR_NRIOC5, IF(Rotation2Value = 6, CR_NRIOC4,CR_NRIOC3)))))),0) -> 125 | AM13: -129.5 | AN13: -96.36016198 | AP13: =IF($A$13<=Lifespan,IF(Rotation2Value = 1,CR_CCCost1,IF(Rotation2Value = 2,CR_CCCost2, IF(Rotation2Value = 3,CR_CCCost1, IF(Rotation2Value = 4, CR_CCCost2,IF(Rotation2Value = 5,CR_CCCost5, IF(Rotation2Value = 6, CR_CCCost4,CR_CCCost3)))))),0) -> 32.5 | AQ13: 24.18305223 | AR13: =IF($A$13<=CR_YieldDecYrs,IF(Rotation2Value = 1,CR_YieldDec1,IF(Rotation2Value = 2,CR_YieldDec2, IF(Rotation2Value = 3,CR_YieldDec1, IF(Rotation2Value = 4, CR_YieldDec2,IF(Rotation2Value = 5,CR_YieldDec5, IF(Rotation2Value = 6, CR_YieldDec4,CR_YieldDec3)))))),0) -> 0 | AS13: 0 | AT13: =IF($A$13<=Lifespan,IF(Rotation2Value = 1,CR_OtherCost1,IF(Rotation2Value = 2,CR_OtherCost2, IF(Rotation2Value = 3,CR_OtherCost1, IF(Rotation2Value = 4, CR_OtherCost2,IF(Rotation2Value = 5,CR_OtherCost5, IF(Rotation2Value = 6, CR_OtherCost4,CR_OtherCost3)))))),0) -> 0 | AU13: 0 | AV13: 32.5 | AW13: =IF($A$13<=Lifespan,IF(Rotation2Value = 1,CR_Nutrient1,IF(Rotation2Value = 2,CR_Nutrient2, IF(Rotation2Value = 3,CR_Nutrient1, IF(Rotation2Value = 4, CR_Nutrient2,IF(Rotation2Value = 5,CR_Nutrient5, IF(Rotation2Value = 6, CR_Nutrient4,CR_Nutrient3)))))),0) -> 0 | AX13: 0 | AY13: =IF($A$13<=Lifespan,IF(Rotation2Value = 1,CR_Herb1,IF(Rotation2Value = 2,CR_Herb2, IF(Rotation2Value = 3,CR_Herb1, IF(Rotation2Value = 4, CR_Herb2,IF(Rotation2Value = 5,CR_Herb5, IF(Rotation2Value = 6, CR_Herb4,CR_Herb3)))))),0) -> 3 | AZ13: 2.232281745 | BA13: =IF($A$13<=Lifespan,IF(Rotation2Value = 1,CR_YieldInc1,IF(Rotation2Value = 2,CR_YieldInc2, IF(Rotation2Value = 3,CR_YieldInc1, IF(Rotation2Value = 4, CR_YieldInc2,IF(Rotation2Value = 5,CR_YieldInc5, IF(Rotation2Value = 6, CR_YieldInc4,CR_YieldInc3)))))),0) -> 10 | BB13: 7.440939149 | BC13: =IF($A$13<=Lifespan,IF(Rotation2Value = 1,CR_Erosion1,IF(Rotation2Value = 2,CR_Erosion2, IF(Rotation2Value = 3,CR_Erosion1, IF(Rotation2Value = 4, CR_Erosion2,IF(Rotation2Value = 5,CR_Erosion5, IF(Rotation2Value = 6, CR_Erosion4,CR_Erosion3)))))),0) -> 35.15 | BD13: 26.15490111 | BE13: =IF($A$13<=Lifespan,IF(Rotation2Value = 1,CR_OtherBenefit1,IF(Rotation2Value = 2,CR_OtherBenefit2, IF(Rotation2Value = 3,CR_OtherBenefit1, IF(Rotation2Value = 4, CR_OtherBenefit2,IF(Rotation2Value = 5,CR_OtherBenefit5, IF(Rotation2Value = 6, CR_OtherBenefit4,CR_OtherBenefit3)))))),0) -> 0 | BF13: 0 | BG13: =IF($A$13<=Lifespan,IF(Rotation2Value = 1,CR_Grazing1,IF(Rotation2Value = 2,CR_Grazing2, IF(Rotation2Value = 3,CR_Grazing1, IF(Rotation2Value = 4, CR_Grazing2,IF(Rotation2Value = 5,CR_Grazing5, IF(Rotation2Value = 6, CR_Grazing4,CR_Grazing3)))))),0) -> 0 | BH13: 0 | BI13: =IF($A$13<=Lifespan,IF(Rotation2Value = 1,CR_Baling1,IF(Rotation2Value = 2,CR_Baling2, IF(Rotation2Value = 3,CR_Baling1, IF(Rotation2Value = 4, CR_Baling2,IF(Rotation2Value = 5,CR_Baling5, IF(Rotation2Value = 6, CR_Baling4,CR_Baling3)))))),0) -> 0 | BJ13: 0 | BK13: =IF($A$13<=Lifespan,IF(Rotation2Value = 1,CR_Seed1,IF(Rotation2Value = 2,CR_Seed2, IF(Rotation2Value = 3,CR_Seed1, IF(Rotation2Value = 4, CR_Seed2,IF(Rotation2Value = 5,CR_Seed5, IF(Rotation2Value = 6, CR_Seed4,CR_Seed3)))))),0) -> 0 | BL13: 0 | BM13: 48.15 | BN13: 2 | BO13: =IF(A13<=Lifespan,IF(BN13=CurrentSOM,0,IF(BN13=CurrentSOM+1,CoverCropEcon_LongTerm!$D$76,IF(BN13=CurrentSOM+2,CoverCropEcon_LongTerm!$D$76*2,IF(BN13=CurrentSOM+3,CoverCropEcon_LongTerm!$D$76*3,IF(BN13=CurrentSOM+4,CoverCropEcon_LongTerm!$D$76*4,IF(BN13=CurrentSOM+5,CoverCropEcon_LongTerm!$D$76*5,IF(BN13=CurrentSOM+6,CoverCropEcon_LongTerm!$D$76*6,IF(BN13=CurrentSOM+7,CoverCropEcon_LongTerm!$D$76*7,IF(BN13=CurrentSOM+8,CoverCropEcon_LongTerm!$D$76*8,IF(BN13=CurrentSOM+9,CoverCropEcon_LongTerm!$D$76*9,IF(BN13=CurrentSOM+10,CoverCropEcon_LongTerm!$D$76*10))))))))))),0) -> 0 | BP13: 0 | BQ13: =IF(A13<=Lifespan,IF(BN13=CurrentSOM,0,IF(BN13=CurrentSOM+1,CoverCropEcon_LongTerm!$D$86,IF(BN13=CurrentSOM+2,CoverCropEcon_LongTerm!$D$86*2,IF(BN13=CurrentSOM+3,CoverCropEcon_LongTerm!$D$86*3,IF(BN13=CurrentSOM+4,CoverCropEcon_LongTerm!$D$86*4,IF(BN13=CurrentSOM+5,CoverCropEcon_LongTerm!$D$86*5,IF(BN13=CurrentSOM+6,CoverCropEcon_LongTerm!$D$86*6,IF(BN13=CurrentSOM+7,CoverCropEcon_LongTerm!$D$86*7,IF(BN13=CurrentSOM+8,CoverCropEcon_LongTerm!$D$86*8,IF(BN13=CurrentSOM+9,CoverCropEcon_LongTerm!$D$86*9,IF(BN13=CurrentSOM+10,CoverCropEcon_LongTerm!$D$86*10))))))))))),0) -> 0 | BR13: 0 | BS13: 0
A14: 11 | B14: =IF($A$14<=Lifespan,IF(RotationValue=1,CCCost1,IF(RotationValue=2,CCCost1,IF(RotationValue=3,CCCost2,IF(RotationValue=4,CCCost3,CCCost1)))),0) -> 51.6 | C14: 37.27693787 | D14: =IF($A$14<=YieldDecYrs,IF(RotationValue=1,YieldDec1,IF(RotationValue=2,YieldDec1,IF(RotationValue=3,YieldDec2,IF(RotationValue=4,YieldDec3,YieldDec1)))),0) -> 0 | E14: 0 | F14: =IF($A$14<=Lifespan,IF(RotationValue=1,OtherCost1,IF(RotationValue=2,OtherCost1,IF(RotationValue=3,OtherCost2,IF(RotationValue=4,OtherCost3,OtherCost1)))),0) -> 0 | G14: 0 | H14: 51.6 | I14: =IF($A$14<=Lifespan,IF(RotationValue=1,Nutrient1,IF(RotationValue=2,Nutrient1,IF(RotationValue=3,Nutrient2,IF(RotationValue=4,Nutrient3,Nutrient1)))),0) -> 0 | J14: 0 | K14: =IF($A$14<=Lifespan,IF(RotationValue=1,Herb1,IF(RotationValue=2,Herb1,IF(RotationValue=3,Herb2,IF(RotationValue=4,Herb3,Herb1)))),0) -> 3 | L14: 2.16726383 | M14: =IF($A$14<=Lifespan,IF(RotationValue=1,YieldInc1,IF(RotationValue=2,YieldInc1,IF(RotationValue=3,YieldInc2,IF(RotationValue=4,YieldInc3,YieldInc1)))),0) -> 16.65 | N14: 12.02831426 | O14: =IF($A$14<=Lifespan,IF(RotationValue=1,Erosion1,IF(RotationValue=2,Erosion1,IF(RotationValue=3,Erosion2,IF(RotationValue=4,Erosion3,Erosion1)))),0) -> 14.06 | P14: 10.15724315 | Q14: =IF($A$14<=Lifespan,IF(RotationValue=1,OtherBenefit1,IF(RotationValue=2,OtherBenefit1,IF(RotationValue=3,OtherBenefit2,IF(RotationValue=4,OtherBenefit3,OtherBenefit1)))),0) -> 0 | R14: 0 | S14: =IF($A$14<=Lifespan,IF(RotationValue=1,Grazing1,IF(RotationValue=2,Grazing1,IF(RotationValue=3,Grazing2,IF(RotationValue=4,Grazing3,Grazing1)))),0) -> 0 | T14: 0 | U14: =IF($A$14<=Lifespan,IF(RotationValue=1,GrazingCC1,IF(RotationValue=2,GrazingCC1,IF(RotationValue=3,GrazingCC2,IF(RotationValue=4,GrazingCC3,GrazingCC1)))),0) -> 57.7 | V14: 41.68370766 | W14: =IF($A$14<=Lifespan,IF(RotationValue=1,Baling1,IF(RotationValue=2,Baling1,IF(RotationValue=3,Baling2,IF(RotationValue=4,Baling3,Baling1)))),0) -> 0 | X14: 0 | Y14: =IF($A$14<=Lifespan,IF(RotationValue=1,Seed1,IF(RotationValue=2,Seed1,IF(RotationValue=3,Seed2,IF(RotationValue=4,Seed3,Seed1)))),0) -> 0 | Z14: 0 | AA14: 91.41 | AB14: 3 | AC14: =IF(A14<=Lifespan,IF(AB14=CurrentSOM,0,IF(AB14=CurrentSOM+1,CoverCropEcon_LongTerm!$D$76,IF(AB14=CurrentSOM+2,CoverCropEcon_LongTerm!$D$76*2,IF(AB14=CurrentSOM+3,CoverCropEcon_LongTerm!$D$76*3,IF(AB14=CurrentSOM+4,CoverCropEcon_LongTerm!$D$76*4,IF(AB14=CurrentSOM+5,CoverCropEcon_LongTerm!$D$76*5,IF(AB14=CurrentSOM+6,CoverCropEcon_LongTerm!$D$76*6,IF(AB14=CurrentSOM+7,CoverCropEcon_LongTerm!$D$76*7,IF(AB14=CurrentSOM+8,CoverCropEcon_LongTerm!$D$76*8,IF(AB14=CurrentSOM+9,CoverCropEcon_LongTerm!$D$76*9,IF(AB14=CurrentSOM+10,CoverCropEcon_LongTerm!$D$76*10))))))))))),0) -> 19.4 | AD14: 14.01497277 | AE14: =IF(A14<=Lifespan,IF(AB14=CurrentSOM,0,IF(AB14=CurrentSOM+1,CoverCropEcon_LongTerm!$D$86,IF(AB14=CurrentSOM+2,CoverCropEcon_LongTerm!$D$86*2,IF(AB14=CurrentSOM+3,CoverCropEcon_LongTerm!$D$86*3,IF(AB14=CurrentSOM+4,CoverCropEcon_LongTerm!$D$86*4,IF(AB14=CurrentSOM+5,CoverCropEcon_LongTerm!$D$86*5,IF(AB14=CurrentSOM+6,CoverCropEcon_LongTerm!$D$86*6,IF(AB14=CurrentSOM+7,CoverCropEcon_LongTerm!$D$86*7,IF(AB14=CurrentSOM+8,CoverCropEcon_LongTerm!$D$86*8,IF(AB14=CurrentSOM+9,CoverCropEcon_LongTerm!$D$86*9,IF(AB14=CurrentSOM+10,CoverCropEcon_LongTerm!$D$86*10))))))))))),0) -> 12.5 | AF14: 9.030265957 | AG14: 31.9 | AI14: =IF($A$14<=Lifespan,IF(RotationValue=1,CashCrop1,IF(RotationValue=2,CashCrop1,IF(RotationValue=3,CashCrop2,IF(RotationValue=4,CashCrop3,CashCrop1)))),"-") -> Soybeans | AJ14: =IF($A$14<=Lifespan,IF(RotationValue=1,CR_IOC1,IF(RotationValue=2,CR_IOC1,IF(RotationValue=3,CR_IOC2,IF(RotationValue=4,CR_IOC3,CR_IOC1)))),0) -> 457.5 | AK14: =IF($A$14<=Lifespan,IF(Rotation2Value=1,CR_NRCC1,IF(Rotation2Value=2,CR_NRCC1,IF(Rotation2Value=3,CR_NRCC2,IF(Rotation2Value=4,CR_NRCC3,IF(RotationLink=5,CR_NRCC1,IF(RotationLink=6,CR_NRCC5,CR_NRCC4)))))),"-") -> Wheat | AL14: =IF($A$14<=Lifespan,IF(Rotation2Value=1,CR_NRIOC1,IF(Rotation2Value=2,CR_NRIOC1,IF(Rotation2Value=3,CR_NRIOC2,IF(Rotation2Value=4,CR_NRIOC3,IF(RotationLink=5,CR_NRIOC1,IF(RotationLink=6,CR_NRIOC5,CR_NRIOC4)))))),0) -> 176.25 | AM14: -281.25 | AN14: -203.180984 | AP14: =IF($A$14<=Lifespan,IF(Rotation2Value=1,CR_CCCost1,IF(Rotation2Value=2,CR_CCCost1,IF(Rotation2Value=3,CR_CCCost2,IF(Rotation2Value=4,CR_CCCost3,IF(RotationLink=5,CR_CCCost1,IF(RotationLink=6,CR_CCCost5,CR_CCCost4)))))),0) -> 0 | AQ14: 0 | AR14: =IF($A$14<=CR_YieldDecYrs,IF(Rotation2Value=1,CR_YieldDec1,IF(Rotation2Value=2,CR_YieldDec1,IF(Rotation2Value=3,CR_YieldDec2,IF(Rotation2Value=4,CR_YieldDec3,IF(RotationLink=5,CR_YieldDec1,IF(RotationLink=6,CR_YieldDec5,CR_YieldDec4)))))),0) -> 0 | AS14: 0 | AT14: =IF($A$14<=Lifespan,IF(Rotation2Value=1,CR_OtherCost1,IF(Rotation2Value=2,CR_OtherCost1,IF(Rotation2Value=3,CR_OtherCost2,IF(Rotation2Value=4,CR_OtherCost3,IF(RotationLink=5,CR_OtherCost1,IF(RotationLink=6,CR_OtherCost5,CR_OtherCost4)))))),0) -> 0 | AU14: 0 | AV14: 0 | AW14: =IF($A$14<=Lifespan,IF(Rotation2Value=1,CR_Nutrient1,IF(Rotation2Value=2,CR_Nutrient1,IF(Rotation2Value=3,CR_Nutrient2,IF(Rotation2Value=4,CR_Nutrient3,IF(RotationLink=5,CR_Nutrient1,IF(RotationLink=6,CR_Nutrient5,CR_Nutrient4)))))),0) -> 0 | AX14: 0 | AY14: =IF($A$14<=Lifespan,IF(Rotation2Value=1,CR_Herb1,IF(Rotation2Value=2,CR_Herb1,IF(Rotation2Value=3,CR_Herb2,IF(Rotation2Value=4,CR_Herb3,IF(RotationLink=5,CR_Herb1,IF(RotationLink=6,CR_Herb5,CR_Herb4)))))),0) -> 0 | AZ14: 0 | BA14: =IF($A$14<=Lifespan,IF(Rotation2Value=1,CR_YieldInc1,IF(Rotation2Value=2,CR_YieldInc1,IF(Rotation2Value=3,CR_YieldInc2,IF(Rotation2Value=4,CR_YieldInc3,IF(RotationLink=5,CR_YieldInc1,IF(RotationLink=6,CR_YieldInc5,CR_YieldInc4)))))),0) -> 0 | BB14: 0 | BC14: =IF($A$14<=Lifespan,IF(Rotation2Value=1,CR_Erosion1,IF(Rotation2Value=2,CR_Erosion1,IF(Rotation2Value=3,CR_Erosion2,IF(Rotation2Value=4,CR_Erosion3,IF(RotationLink=5,CR_Erosion1,IF(RotationLink=6,CR_Erosion5,CR_Erosion4)))))),0) -> 35.15 | BD14: 25.39310787 | BE14: =IF($A$14<=Lifespan,IF(Rotation2Value=1,CR_OtherBenefit1,IF(Rotation2Value=2,CR_OtherBenefit1,IF(Rotation2Value=3,CR_OtherBenefit2,IF(Rotation2Value=4,CR_OtherBenefit3,IF(RotationLink=5,CR_OtherBenefit1,IF(RotationLink=6,CR_OtherBenefit5,CR_OtherBenefit4)))))),0) -> 0 | BF14: 0 | BG14: =IF($A$14<=Lifespan,IF(Rotation2Value=1,CR_Grazing1,IF(Rotation2Value=2,CR_Grazing1,IF(Rotation2Value=3,CR_Grazing2,IF(Rotation2Value=4,CR_Grazing3,IF(RotationLink=5,CR_Grazing1,IF(RotationLink=6,CR_Grazing5,CR_Grazing4)))))),0) -> 0 | BH14: 0 | BI14: =IF($A$14<=Lifespan,IF(Rotation2Value=1,CR_Baling1,IF(Rotation2Value=2,CR_Baling1,IF(Rotation2Value=3,CR_Baling2,IF(Rotation2Value=4,CR_Baling3,IF(RotationLink=5,CR_Baling1,IF(RotationLink=6,CR_Baling5,CR_Baling4)))))),0) -> 0 | BJ14: 0 | BK14: =IF($A$14<=Lifespan,IF(Rotation2Value=1,CR_Seed1,IF(Rotation2Value=2,CR_Seed1,IF(Rotation2Value=3,CR_Seed2,IF(Rotation2Value=4,CR_Seed3,IF(RotationLink=5,CR_Seed1,IF(RotationLink=6,CR_Seed5,CR_Seed4)))))),0) -> 0 | BL14: 0 | BM14: 35.15 | BN14: 2 | BO14: =IF(A14<=Lifespan,IF(BN14=CurrentSOM,0,IF(BN14=CurrentSOM+1,CoverCropEcon_LongTerm!$D$76,IF(BN14=CurrentSOM+2,CoverCropEcon_LongTerm!$D$76*2,IF(BN14=CurrentSOM+3,CoverCropEcon_LongTerm!$D$76*3,IF(BN14=CurrentSOM+4,CoverCropEcon_LongTerm!$D$76*4,IF(BN14=CurrentSOM+5,CoverCropEcon_LongTerm!$D$76*5,IF(BN14=CurrentSOM+6,CoverCropEcon_LongTerm!$D$76*6,IF(BN14=CurrentSOM+7,CoverCropEcon_LongTerm!$D$76*7,IF(BN14=CurrentSOM+8,CoverCropEcon_LongTerm!$D$76*8,IF(BN14=CurrentSOM+9,CoverCropEcon_LongTerm!$D$76*9,IF(BN14=CurrentSOM+10,CoverCropEcon_LongTerm!$D$76*10))))))))))),0) -> 0 | BP14: 0 | BQ14: =IF(A14<=Lifespan,IF(BN14=CurrentSOM,0,IF(BN14=CurrentSOM+1,CoverCropEcon_LongTerm!$D$86,IF(BN14=CurrentSOM+2,CoverCropEcon_LongTerm!$D$86*2,IF(BN14=CurrentSOM+3,CoverCropEcon_LongTerm!$D$86*3,IF(BN14=CurrentSOM+4,CoverCropEcon_LongTerm!$D$86*4,IF(BN14=CurrentSOM+5,CoverCropEcon_LongTerm!$D$86*5,IF(BN14=CurrentSOM+6,CoverCropEcon_LongTerm!$D$86*6,IF(BN14=CurrentSOM+7,CoverCropEcon_LongTerm!$D$86*7,IF(BN14=CurrentSOM+8,CoverCropEcon_LongTerm!$D$86*8,IF(BN14=CurrentSOM+9,CoverCropEcon_LongTerm!$D$86*9,IF(BN14=CurrentSOM+10,CoverCropEcon_LongTerm!$D$86*10))))))))))),0) -> 0 | BR14: 0 | BS14: 0
A15: 12 | B15: =IF($A$15<=Lifespan,IF(RotationValue = 1,CCCost1,IF(RotationValue = 2,CCCost2, IF(RotationValue = 3, CCCost3, IF(RotationValue = 4, CCCost4, CCCost2)))),0) -> 59.04 | C15: 41.40946813 | D15: =IF($A$15<=YieldDecYrs,IF(RotationValue = 1,YieldDec1,IF(RotationValue = 2,YieldDec2, IF(RotationValue = 3, YieldDec3, IF(RotationValue = 4, YieldDec4, YieldDec2)))),0) -> 0 | E15: 0 | F15: =IF($A$15<=Lifespan,IF(RotationValue = 1,OtherCost1,IF(RotationValue = 2,OtherCost2, IF(RotationValue = 3, OtherCost3, IF(RotationValue = 4, OtherCost4, OtherCost2)))),0) -> 0 | G15: 0 | H15: 59.04 | I15: =IF($A$15<=Lifespan,IF(RotationValue = 1,Nutrient1,IF(RotationValue = 2,Nutrient2, IF(RotationValue = 3, Nutrient3, IF(RotationValue = 4, Nutrient4, Nutrient2)))),0) -> 16.5 | J15: 11.57276802 | K15: =IF($A$15<=Lifespan,IF(RotationValue = 1,Herb1,IF(RotationValue = 2,Herb2, IF(RotationValue = 3, Herb3, IF(RotationValue = 4, Herb4, Herb2)))),0) -> 3 | L15: 2.104139641 | M15: =IF($A$15<=Lifespan,IF(RotationValue = 1,YieldInc1,IF(RotationValue = 2,YieldInc2, IF(RotationValue = 3, YieldInc3, IF(RotationValue = 4, YieldInc4, YieldInc2)))),0) -> 0 | N15: 0 | O15: =IF($A$15<=Lifespan,IF(RotationValue = 1,Erosion1,IF(RotationValue = 2,Erosion2, IF(RotationValue = 3, Erosion3, IF(RotationValue = 4, Erosion4, Erosion2)))),0) -> 28.12 | P15: 19.72280223 | Q15: =IF($A$15<=Lifespan,IF(RotationValue = 1,OtherBenefit1,IF(RotationValue = 2,OtherBenefit2, IF(RotationValue = 3, OtherBenefit3, IF(RotationValue = 4, OtherBenefit4, OtherBenefit2)))),0) -> 0 | R15: 0 | S15: =IF($A$15<=Lifespan,IF(RotationValue = 1,Grazing1,IF(RotationValue = 2,Grazing2, IF(RotationValue = 3, Grazing3, IF(RotationValue = 4, Grazing4, Grazing2)))),0) -> 0 | T15: 0 | U15: =IF($A$15<=Lifespan,IF(RotationValue = 1,GrazingCC1,IF(RotationValue = 2,GrazingCC2, IF(RotationValue = 3, GrazingCC3, IF(RotationValue = 4, GrazingCC4, GrazingCC2)))),0) -> 57.7 | V15: 40.46961909 | W15: =IF($A$15<=Lifespan,IF(RotationValue = 1,Baling1,IF(RotationValue = 2,Baling2, IF(RotationValue = 3, Baling3, IF(RotationValue = 4, Baling4, Baling2)))),0) -> 0 | X15: 0 | Y15: =IF($A$15<=Lifespan,IF(RotationValue = 1,Seed1,IF(RotationValue = 2,Seed2, IF(RotationValue = 3, Seed3, IF(RotationValue = 4, Seed4, Seed2)))),0) -> 0 | Z15: 0 | AA15: 105.32 | AB15: 3 | AC15: =IF(A15<=Lifespan,IF(AB15=CurrentSOM,0,IF(AB15=CurrentSOM+1,CoverCropEcon_LongTerm!$D$76,IF(AB15=CurrentSOM+2,CoverCropEcon_LongTerm!$D$76*2,IF(AB15=CurrentSOM+3,CoverCropEcon_LongTerm!$D$76*3,IF(AB15=CurrentSOM+4,CoverCropEcon_LongTerm!$D$76*4,IF(AB15=CurrentSOM+5,CoverCropEcon_LongTerm!$D$76*5,IF(AB15=CurrentSOM+6,CoverCropEcon_LongTerm!$D$76*6,IF(AB15=CurrentSOM+7,CoverCropEcon_LongTerm!$D$76*7,IF(AB15=CurrentSOM+8,CoverCropEcon_LongTerm!$D$76*8,IF(AB15=CurrentSOM+9,CoverCropEcon_LongTerm!$D$76*9,IF(AB15=CurrentSOM+10,CoverCropEcon_LongTerm!$D$76*10))))))))))),0) -> 19.4 | AD15: 13.60676968 | AE15: =IF(A15<=Lifespan,IF(AB15=CurrentSOM,0,IF(AB15=CurrentSOM+1,CoverCropEcon_LongTerm!$D$86,IF(AB15=CurrentSOM+2,CoverCropEcon_LongTerm!$D$86*2,IF(AB15=CurrentSOM+3,CoverCropEcon_LongTerm!$D$86*3,IF(AB15=CurrentSOM+4,CoverCropEcon_LongTerm!$D$86*4,IF(AB15=CurrentSOM+5,CoverCropEcon_LongTerm!$D$86*5,IF(AB15=CurrentSOM+6,CoverCropEcon_LongTerm!$D$86*6,IF(AB15=CurrentSOM+7,CoverCropEcon_LongTerm!$D$86*7,IF(AB15=CurrentSOM+8,CoverCropEcon_LongTerm!$D$86*8,IF(AB15=CurrentSOM+9,CoverCropEcon_LongTerm!$D$86*9,IF(AB15=CurrentSOM+10,CoverCropEcon_LongTerm!$D$86*10))))))))))),0) -> 12.5 | AF15: 8.767248502 | AG15: 31.9 | AI15: =IF($A$15<=Lifespan,IF(RotationValue = 1,CashCrop1,IF(RotationValue = 2,CashCrop2, IF(RotationValue = 3, CashCrop3, IF(RotationValue = 4, CashCrop4, CashCrop2)))),"-") -> Corn | AJ15: =IF($A$15<=Lifespan,IF(RotationValue = 1,CR_IOC1,IF(RotationValue = 2,CR_IOC2, IF(RotationValue = 3, CR_IOC3, IF(RotationValue = 4, CR_IOC4, CR_IOC2)))),0) -> 254.5 | AK15: =IF($A$15<=Lifespan,IF(Rotation2Value = 1,CR_NRCC1,IF(Rotation2Value = 2,CR_NRCC2, IF(Rotation2Value = 3, CR_NRCC3, IF(Rotation2Value = 4, CR_NRCC4, IF(RotationLink = 5,CR_NRCC2,IF(RotationLink = 6, CR_NRCC6,CR_NRCC5)))))),"-") -> Corn | AL15: =IF($A$15<=Lifespan,IF(Rotation2Value = 1,CR_NRIOC1,IF(Rotation2Value = 2,CR_NRIOC2, IF(Rotation2Value = 3, CR_NRIOC3, IF(Rotation2Value = 4, CR_NRIOC4, IF(RotationLink = 5,CR_NRIOC2,IF(RotationLink = 6, CR_NRIOC6,CR_NRIOC5)))))),0) -> 175 | AM15: -79.5 | AN15: -55.75970048 | AP15: =IF($A$15<=Lifespan,IF(Rotation2Value = 1,CR_CCCost1,IF(Rotation2Value = 2,CR_CCCost2, IF(Rotation2Value = 3, CR_CCCost3, IF(Rotation2Value = 4, CR_CCCost4, IF(RotationLink = 5,CR_CCCost2,IF(RotationLink = 6, CR_CCCost6,CR_CCCost5)))))),0) -> 87.5 | AQ15: 61.37073952 | AR15: =IF($A$15<=CR_YieldDecYrs,IF(Rotation2Value = 1,CR_YieldDec1,IF(Rotation2Value = 2,CR_YieldDec2, IF(Rotation2Value = 3, CR_YieldDec3, IF(Rotation2Value = 4, CR_YieldDec4, IF(RotationLink = 5,CR_YieldDec2,IF(RotationLink = 6, CR_YieldDec6,CR_YieldDec5)))))),0) -> 0 | AS15: 0 | AT15: =IF($A$15<=Lifespan,IF(Rotation2Value = 1,CR_OtherCost1,IF(Rotation2Value = 2,CR_OtherCost2, IF(Rotation2Value = 3, CR_OtherCost3, IF(Rotation2Value = 4, CR_OtherCost4, IF(RotationLink = 5,CR_OtherCost2,IF(RotationLink = 6, CR_OtherCost6,CR_OtherCost5)))))),0) -> 0 | AU15: 0 | AV15: 87.5 | AW15: =IF($A$15<=Lifespan,IF(Rotation2Value = 1,CR_Nutrient1,IF(Rotation2Value = 2,CR_Nutrient2, IF(Rotation2Value = 3, CR_Nutrient3, IF(Rotation2Value = 4, CR_Nutrient4, IF(RotationLink = 5,CR_Nutrient2,IF(RotationLink = 6, CR_Nutrient6,CR_Nutrient5)))))),0) -> 16.5 | AX15: 11.57276802 | AY15: =IF($A$15<=Lifespan,IF(Rotation2Value = 1,CR_Herb1,IF(Rotation2Value = 2,CR_Herb2, IF(Rotation2Value = 3, CR_Herb3, IF(Rotation2Value = 4, CR_Herb4, IF(RotationLink = 5,CR_Herb2,IF(RotationLink = 6, CR_Herb6,CR_Herb5)))))),0) -> 3 | AZ15: 2.104139641 | BA15: =IF($A$15<=Lifespan,IF(Rotation2Value = 1,CR_YieldInc1,IF(Rotation2Value = 2,CR_YieldInc2, IF(Rotation2Value = 3, CR_YieldInc3, IF(Rotation2Value = 4, CR_YieldInc4, IF(RotationLink = 5,CR_YieldInc2,IF(RotationLink = 6, CR_YieldInc6,CR_YieldInc5)))))),0) -> 6 | BB15: 4.208279281 | BC15: =IF($A$15<=Lifespan,IF(Rotation2Value = 1,CR_Erosion1,IF(Rotation2Value = 2,CR_Erosion2, IF(Rotation2Value = 3, CR_Erosion3, IF(Rotation2Value = 4, CR_Erosion4, IF(RotationLink = 5,CR_Erosion2,IF(RotationLink = 6, CR_Erosion6,CR_Erosion5)))))),0) -> 35.15 | BD15: 24.65350279 | BE15: =IF($A$15<=Lifespan,IF(Rotation2Value = 1,CR_OtherBenefit1,IF(Rotation2Value = 2,CR_OtherBenefit2, IF(Rotation2Value = 3, CR_OtherBenefit3, IF(Rotation2Value = 4, CR_OtherBenefit4, IF(RotationLink = 5,CR_OtherBenefit2,IF(RotationLink = 6, CR_OtherBenefit6,CR_OtherBenefit5)))))),0) -> 0 | BF15: 0 | BG15: =IF($A$15<=Lifespan,IF(Rotation2Value = 1,CR_Grazing1,IF(Rotation2Value = 2,CR_Grazing2, IF(Rotation2Value = 3, CR_Grazing3, IF(Rotation2Value = 4, CR_Grazing4, IF(RotationLink = 5,CR_Grazing2,IF(RotationLink = 6, CR_Grazing6,CR_Grazing5)))))),0) -> 440 | BH15: 308.6071473 | BI15: =IF($A$15<=Lifespan,IF(Rotation2Value = 1,CR_Baling1,IF(Rotation2Value = 2,CR_Baling2, IF(Rotation2Value = 3, CR_Baling3, IF(Rotation2Value = 4, CR_Baling4, IF(RotationLink = 5,CR_Baling2,IF(RotationLink = 6, CR_Baling6,CR_Baling5)))))),0) -> 0 | BJ15: 0 | BK15: =IF($A$15<=Lifespan,IF(Rotation2Value = 1,CR_Seed1,IF(Rotation2Value = 2,CR_Seed2, IF(Rotation2Value = 3, CR_Seed3, IF(Rotation2Value = 4, CR_Seed4, IF(RotationLink = 5,CR_Seed2,IF(RotationLink = 6, CR_Seed6,CR_Seed5)))))),0) -> 0 | BL15: 0 | BM15: 500.65 | BN15: 2 | BO15: =IF(A15<=Lifespan,IF(BN15=CurrentSOM,0,IF(BN15=CurrentSOM+1,CoverCropEcon_LongTerm!$D$76,IF(BN15=CurrentSOM+2,CoverCropEcon_LongTerm!$D$76*2,IF(BN15=CurrentSOM+3,CoverCropEcon_LongTerm!$D$76*3,IF(BN15=CurrentSOM+4,CoverCropEcon_LongTerm!$D$76*4,IF(BN15=CurrentSOM+5,CoverCropEcon_LongTerm!$D$76*5,IF(BN15=CurrentSOM+6,CoverCropEcon_LongTerm!$D$76*6,IF(BN15=CurrentSOM+7,CoverCropEcon_LongTerm!$D$76*7,IF(BN15=CurrentSOM+8,CoverCropEcon_LongTerm!$D$76*8,IF(BN15=CurrentSOM+9,CoverCropEcon_LongTerm!$D$76*9,IF(BN15=CurrentSOM+10,CoverCropEcon_LongTerm!$D$76*10))))))))))),0) -> 0 | BP15: 0 | BQ15: =IF(A15<=Lifespan,IF(BN15=CurrentSOM,0,IF(BN15=CurrentSOM+1,CoverCropEcon_LongTerm!$D$86,IF(BN15=CurrentSOM+2,CoverCropEcon_LongTerm!$D$86*2,IF(BN15=CurrentSOM+3,CoverCropEcon_LongTerm!$D$86*3,IF(BN15=CurrentSOM+4,CoverCropEcon_LongTerm!$D$86*4,IF(BN15=CurrentSOM+5,CoverCropEcon_LongTerm!$D$86*5,IF(BN15=CurrentSOM+6,CoverCropEcon_LongTerm!$D$86*6,IF(BN15=CurrentSOM+7,CoverCropEcon_LongTerm!$D$86*7,IF(BN15=CurrentSOM+8,CoverCropEcon_LongTerm!$D$86*8,IF(BN15=CurrentSOM+9,CoverCropEcon_LongTerm!$D$86*9,IF(BN15=CurrentSOM+10,CoverCropEcon_LongTerm!$D$86*10))))))))))),0) -> 0 | BR15: 0 | BS15: 0
A16: 13 | B16: =IF($A$16<=Lifespan,IF(RotationValue = 1,CCCost1,IF(RotationValue = 2,CCCost1,IF(RotationValue = 3, CCCost1, IF(RotationValue = 4, CCCost1, CCCost3)))),0) -> 51.6 | C16: 35.13708914 | D16: =IF($A$16<=YieldDecYrs,IF(RotationValue = 1,YieldDec1,IF(RotationValue = 2,YieldDec1,IF(RotationValue = 3, YieldDec1, IF(RotationValue = 4, YieldDec1, YieldDec3)))),0) -> 0 | E16: 0 | F16: =IF($A$16<=Lifespan,IF(RotationValue = 1,OtherCost1,IF(RotationValue = 2,OtherCost1,IF(RotationValue = 3, OtherCost1, IF(RotationValue = 4, OtherCost1, OtherCost3)))),0) -> 0 | G16: 0 | H16: 51.6 | I16: =IF($A$16<=Lifespan,IF(RotationValue = 1,Nutrient1,IF(RotationValue = 2,Nutrient1,IF(RotationValue = 3, Nutrient1, IF(RotationValue = 4, Nutrient1, Nutrient3)))),0) -> 0 | J16: 0 | K16: =IF($A$16<=Lifespan,IF(RotationValue = 1,Herb1,IF(RotationValue = 2,Herb1,IF(RotationValue = 3, Herb1, IF(RotationValue = 4, Herb1, Herb3)))),0) -> 3 | L16: 2.04285402 | M16: =IF($A$16<=Lifespan,IF(RotationValue = 1,YieldInc1,IF(RotationValue = 2,YieldInc1,IF(RotationValue = 3, YieldInc1, IF(RotationValue = 4, YieldInc1, YieldInc3)))),0) -> 16.65 | N16: 11.33783981 | O16: =IF($A$16<=Lifespan,IF(RotationValue = 1,Erosion1,IF(RotationValue = 2,Erosion1,IF(RotationValue = 3, Erosion1, IF(RotationValue = 4, Erosion1, Erosion3)))),0) -> 14.06 | P16: 9.57417584 | Q16: =IF($A$16<=Lifespan,IF(RotationValue = 1,OtherBenefit1,IF(RotationValue = 2,OtherBenefit1,IF(RotationValue = 3, OtherBenefit1, IF(RotationValue = 4, OtherBenefit1, OtherBenefit3)))),0) -> 0 | R16: 0 | S16: =IF($A$16<=Lifespan,IF(RotationValue = 1,Grazing1,IF(RotationValue = 2,Grazing1,IF(RotationValue = 3, Grazing1, IF(RotationValue = 4, Grazing1, Grazing3)))),0) -> 0 | T16: 0 | U16: =IF($A$16<=Lifespan,IF(RotationValue = 1,GrazingCC1,IF(RotationValue = 2,GrazingCC1,IF(RotationValue = 3, GrazingCC1, IF(RotationValue = 4, GrazingCC1, GrazingCC3)))),0) -> 57.7 | V16: 39.29089232 | W16: =IF($A$16<=Lifespan,IF(RotationValue = 1,Baling1,IF(RotationValue = 2,Baling1,IF(RotationValue = 3, Baling1, IF(RotationValue = 4, Baling1, Baling3)))),0) -> 0 | X16: 0 | Y16: =IF($A$16<=Lifespan,IF(RotationValue = 1,Seed1,IF(RotationValue = 2,Seed1,IF(RotationValue = 3, Seed1, IF(RotationValue = 4, Seed1, Seed3)))),0) -> 0 | Z16: 0 | AA16: 91.41 | AB16: 3 | AC16: =IF(A16<=Lifespan,IF(AB16=CurrentSOM,0,IF(AB16=CurrentSOM+1,CoverCropEcon_LongTerm!$D$76,IF(AB16=CurrentSOM+2,CoverCropEcon_LongTerm!$D$76*2,IF(AB16=CurrentSOM+3,CoverCropEcon_LongTerm!$D$76*3,IF(AB16=CurrentSOM+4,CoverCropEcon_LongTerm!$D$76*4,IF(AB16=CurrentSOM+5,CoverCropEcon_LongTerm!$D$76*5,IF(AB16=CurrentSOM+6,CoverCropEcon_LongTerm!$D$76*6,IF(AB16=CurrentSOM+7,CoverCropEcon_LongTerm!$D$76*7,IF(AB16=CurrentSOM+8,CoverCropEcon_LongTerm!$D$76*8,IF(AB16=CurrentSOM+9,CoverCropEcon_LongTerm!$D$76*9,IF(AB16=CurrentSOM+10,CoverCropEcon_LongTerm!$D$76*10))))))))))),0) -> 19.4 | AD16: 13.210456 | AE16: =IF(A16<=Lifespan,IF(AB16=CurrentSOM,0,IF(AB16=CurrentSOM+1,CoverCropEcon_LongTerm!$D$86,IF(AB16=CurrentSOM+2,CoverCropEcon_LongTerm!$D$86*2,IF(AB16=CurrentSOM+3,CoverCropEcon_LongTerm!$D$86*3,IF(AB16=CurrentSOM+4,CoverCropEcon_LongTerm!$D$86*4,IF(AB16=CurrentSOM+5,CoverCropEcon_LongTerm!$D$86*5,IF(AB16=CurrentSOM+6,CoverCropEcon_LongTerm!$D$86*6,IF(AB16=CurrentSOM+7,CoverCropEcon_LongTerm!$D$86*7,IF(AB16=CurrentSOM+8,CoverCropEcon_LongTerm!$D$86*8,IF(AB16=CurrentSOM+9,CoverCropEcon_LongTerm!$D$86*9,IF(AB16=CurrentSOM+10,CoverCropEcon_LongTerm!$D$86*10))))))))))),0) -> 12.5 | AF16: 8.51189175 | AG16: 31.9 | AI16: =IF($A$16<=Lifespan,IF(RotationValue = 1,CashCrop1,IF(RotationValue = 2,CashCrop1,IF(RotationValue = 3, CashCrop1, IF(RotationValue = 4, CashCrop1, CashCrop3)))),"-") -> Soybeans | AJ16: =IF($A$16<=Lifespan,IF(RotationValue = 1,CR_IOC1,IF(RotationValue = 2,CR_IOC1,IF(RotationValue = 3, CR_IOC1, IF(RotationValue = 4, CR_IOC1, CR_IOC3)))),0) -> 457.5 | AK16: =IF($A$16<=Lifespan,IF(Rotation2Value = 1,CR_NRCC1,IF(Rotation2Value = 2,CR_NRCC1,IF(Rotation2Value = 3, CR_NRCC1, IF(Rotation2Value = 4, CR_NRCC1, IF(RotationLink = 5, CR_NRCC3, IF(RotationLink = 6, CR_NRCC1,CR_NRCC6)))))),"-") -> Soybeans | AL16: =IF($A$16<=Lifespan,IF(Rotation2Value = 1,CR_NRIOC1,IF(Rotation2Value = 2,CR_NRIOC1,IF(Rotation2Value = 3, CR_NRIOC1, IF(Rotation2Value = 4, CR_NRIOC1, IF(RotationLink = 5, CR_NRIOC3, IF(RotationLink = 6, CR_NRIOC1,CR_NRIOC6)))))),0) -> 125 | AM16: -332.5 | AN16: -226.4163205 | AP16: =IF($A$16<=Lifespan,IF(Rotation2Value = 1,CR_CCCost1,IF(Rotation2Value = 2,CR_CCCost1,IF(Rotation2Value = 3, CR_CCCost1, IF(Rotation2Value = 4, CR_CCCost1, IF(RotationLink = 5, CR_CCCost3, IF(RotationLink = 6, CR_CCCost1,CR_CCCost6)))))),0) -> 32.5 | AQ16: 22.13091855 | AR16: =IF($A$16<=CR_YieldDecYrs,IF(Rotation2Value = 1,CR_YieldDec1,IF(Rotation2Value = 2,CR_YieldDec1,IF(Rotation2Value = 3, CR_YieldDec1, IF(Rotation2Value = 4, CR_YieldDec1, IF(RotationLink = 5, CR_YieldDec3, IF(RotationLink = 6, CR_YieldDec1,CR_YieldDec6)))))),0) -> 0 | AS16: 0 | AT16: =IF($A$16<=Lifespan,IF(Rotation2Value = 1,CR_OtherCost1,IF(Rotation2Value = 2,CR_OtherCost1,IF(Rotation2Value = 3, CR_OtherCost1, IF(Rotation2Value = 4, CR_OtherCost1, IF(RotationLink = 5, CR_OtherCost3, IF(RotationLink = 6, CR_OtherCost1,CR_OtherCost6)))))),0) -> 0 | AU16: 0 | AV16: 32.5 | AW16: =IF($A$16<=Lifespan,IF(Rotation2Value = 1,CR_Nutrient1,IF(Rotation2Value = 2,CR_Nutrient1,IF(Rotation2Value = 3, CR_Nutrient1, IF(Rotation2Value = 4, CR_Nutrient1, IF(RotationLink = 5, CR_Nutrient3, IF(RotationLink = 6, CR_Nutrient1,CR_Nutrient6)))))),0) -> 0 | AX16: 0 | AY16: =IF($A$16<=Lifespan,IF(Rotation2Value = 1,CR_Herb1,IF(Rotation2Value = 2,CR_Herb1,IF(Rotation2Value = 3, CR_Herb1, IF(Rotation2Value = 4, CR_Herb1, IF(RotationLink = 5, CR_Herb3, IF(RotationLink = 6, CR_Herb1,CR_Herb6)))))),0) -> 3 | AZ16: 2.04285402 | BA16: =IF($A$16<=Lifespan,IF(Rotation2Value = 1,CR_YieldInc1,IF(Rotation2Value = 2,CR_YieldInc1,IF(Rotation2Value = 3, CR_YieldInc1, IF(Rotation2Value = 4, CR_YieldInc1, IF(RotationLink = 5, CR_YieldInc3, IF(RotationLink = 6, CR_YieldInc1,CR_YieldInc6)))))),0) -> 10 | BB16: 6.8095134 | BC16: =IF($A$16<=Lifespan,IF(Rotation2Value = 1,CR_Erosion1,IF(Rotation2Value = 2,CR_Erosion1,IF(Rotation2Value = 3, CR_Erosion1, IF(Rotation2Value = 4, CR_Erosion1, IF(RotationLink = 5, CR_Erosion3, IF(RotationLink = 6, CR_Erosion1,CR_Erosion6)))))),0) -> 35.15 | BD16: 23.9354396 | BE16: =IF($A$16<=Lifespan,IF(Rotation2Value = 1,CR_OtherBenefit1,IF(Rotation2Value = 2,CR_OtherBenefit1,IF(Rotation2Value = 3, CR_OtherBenefit1, IF(Rotation2Value = 4, CR_OtherBenefit1, IF(RotationLink = 5, CR_OtherBenefit3, IF(RotationLink = 6, CR_OtherBenefit1,CR_OtherBenefit6)))))),0) -> 0 | BF16: 0 | BG16: =IF($A$16<=Lifespan,IF(Rotation2Value = 1,CR_Grazing1,IF(Rotation2Value = 2,CR_Grazing1,IF(Rotation2Value = 3, CR_Grazing1, IF(Rotation2Value = 4, CR_Grazing1, IF(RotationLink = 5, CR_Grazing3, IF(RotationLink = 6, CR_Grazing1,CR_Grazing6)))))),0) -> 0 | BH16: 0 | BI16: =IF($A$16<=Lifespan,IF(Rotation2Value = 1,CR_Baling1,IF(Rotation2Value = 2,CR_Baling1,IF(Rotation2Value = 3, CR_Baling1, IF(Rotation2Value = 4, CR_Baling1, IF(RotationLink = 5, CR_Baling3, IF(RotationLink = 6, CR_Baling1,CR_Baling6)))))),0) -> 0 | BJ16: 0 | BK16: =IF($A$16<=Lifespan,IF(Rotation2Value = 1,CR_Seed1,IF(Rotation2Value = 2,CR_Seed1,IF(Rotation2Value = 3, CR_Seed1, IF(Rotation2Value = 4, CR_Seed1, IF(RotationLink = 5, CR_Seed3, IF(RotationLink = 6, CR_Seed1,CR_Seed6)))))),0) -> 0 | BL16: 0 | BM16: 48.15 | BN16: 2 | BO16: =IF(A16<=Lifespan,IF(BN16=CurrentSOM,0,IF(BN16=CurrentSOM+1,CoverCropEcon_LongTerm!$D$76,IF(BN16=CurrentSOM+2,CoverCropEcon_LongTerm!$D$76*2,IF(BN16=CurrentSOM+3,CoverCropEcon_LongTerm!$D$76*3,IF(BN16=CurrentSOM+4,CoverCropEcon_LongTerm!$D$76*4,IF(BN16=CurrentSOM+5,CoverCropEcon_LongTerm!$D$76*5,IF(BN16=CurrentSOM+6,CoverCropEcon_LongTerm!$D$76*6,IF(BN16=CurrentSOM+7,CoverCropEcon_LongTerm!$D$76*7,IF(BN16=CurrentSOM+8,CoverCropEcon_LongTerm!$D$76*8,IF(BN16=CurrentSOM+9,CoverCropEcon_LongTerm!$D$76*9,IF(BN16=CurrentSOM+10,CoverCropEcon_LongTerm!$D$76*10))))))))))),0) -> 0 | BP16: 0 | BQ16: =IF(A16<=Lifespan,IF(BN16=CurrentSOM,0,IF(BN16=CurrentSOM+1,CoverCropEcon_LongTerm!$D$86,IF(BN16=CurrentSOM+2,CoverCropEcon_LongTerm!$D$86*2,IF(BN16=CurrentSOM+3,CoverCropEcon_LongTerm!$D$86*3,IF(BN16=CurrentSOM+4,CoverCropEcon_LongTerm!$D$86*4,IF(BN16=CurrentSOM+5,CoverCropEcon_LongTerm!$D$86*5,IF(BN16=CurrentSOM+6,CoverCropEcon_LongTerm!$D$86*6,IF(BN16=CurrentSOM+7,CoverCropEcon_LongTerm!$D$86*7,IF(BN16=CurrentSOM+8,CoverCropEcon_LongTerm!$D$86*8,IF(BN16=CurrentSOM+9,CoverCropEcon_LongTerm!$D$86*9,IF(BN16=CurrentSOM+10,CoverCropEcon_LongTerm!$D$86*10))))))))))),0) -> 0 | BR16: 0 | BS16: 0
A17: 14 | B17: =IF($A$17<=Lifespan,IF(RotationValue = 1,CCCost1,IF(RotationValue = 2,CCCost2, IF(RotationValue = 3,CCCost2, IF(RotationValue = 4, CCCost2, CCCost4)))),0) -> 59.04 | C17: 39.03239526 | D17: =IF($A$17<=YieldDecYrs,IF(RotationValue = 1,YieldDec1,IF(RotationValue = 2,YieldDec2, IF(RotationValue = 3,YieldDec2, IF(RotationValue = 4, YieldDec2, YieldDec4)))),0) -> 0 | E17: 0 | F17: =IF($A$17<=Lifespan,IF(RotationValue = 1,OtherCost1,IF(RotationValue = 2,OtherCost2, IF(RotationValue = 3,OtherCost2, IF(RotationValue = 4, OtherCost2, OtherCost4)))),0) -> 0 | G17: 0 | H17: 59.04 | I17: =IF($A$17<=Lifespan,IF(RotationValue = 1,Nutrient1,IF(RotationValue = 2,Nutrient2, IF(RotationValue = 3,Nutrient2, IF(RotationValue = 4, Nutrient2, Nutrient4)))),0) -> 16.5 | J17: 10.9084438 | K17: =IF($A$17<=Lifespan,IF(RotationValue = 1,Herb1,IF(RotationValue = 2,Herb2, IF(RotationValue = 3,Herb2, IF(RotationValue = 4, Herb2, Herb4)))),0) -> 3 | L17: 1.983353417 | M17: =IF($A$17<=Lifespan,IF(RotationValue = 1,YieldInc1,IF(RotationValue = 2,YieldInc2, IF(RotationValue = 3,YieldInc2, IF(RotationValue = 4, YieldInc2, YieldInc4)))),0) -> 0 | N17: 0 | O17: =IF($A$17<=Lifespan,IF(RotationValue = 1,Erosion1,IF(RotationValue = 2,Erosion2, IF(RotationValue = 3,Erosion2, IF(RotationValue = 4, Erosion2, Erosion4)))),0) -> 28.12 | P17: 18.5906327 | Q17: =IF($A$17<=Lifespan,IF(RotationValue = 1,OtherBenefit1,IF(RotationValue = 2,OtherBenefit2, IF(RotationValue = 3,OtherBenefit2, IF(RotationValue = 4, OtherBenefit2, OtherBenefit4)))),0) -> 0 | R17: 0 | S17: =IF($A$17<=Lifespan,IF(RotationValue = 1,Grazing1,IF(RotationValue = 2,Grazing2, IF(RotationValue = 3,Grazing2, IF(RotationValue = 4, Grazing2, Grazing4)))),0) -> 0 | T17: 0 | U17: =IF($A$17<=Lifespan,IF(RotationValue = 1,GrazingCC1,IF(RotationValue = 2,GrazingCC2, IF(RotationValue = 3,GrazingCC2, IF(RotationValue = 4, GrazingCC2, GrazingCC4)))),0) -> 57.7 | V17: 38.1464974 | W17: =IF($A$17<=Lifespan,IF(RotationValue = 1,Baling1,IF(RotationValue = 2,Baling2, IF(RotationValue = 3,Baling2, IF(RotationValue = 4, Baling2, Baling4)))),0) -> 0 | X17: 0 | Y17: =IF($A$17<=Lifespan,IF(RotationValue = 1,Seed1,IF(RotationValue = 2,Seed2, IF(RotationValue = 3,Seed2, IF(RotationValue = 4, Seed2, Seed4)))),0) -> 0 | Z17: 0 | AA17: 105.32 | AB17: 3 | AC17: =IF(A17<=Lifespan,IF(AB17=CurrentSOM,0,IF(AB17=CurrentSOM+1,CoverCropEcon_LongTerm!$D$76,IF(AB17=CurrentSOM+2,CoverCropEcon_LongTerm!$D$76*2,IF(AB17=CurrentSOM+3,CoverCropEcon_LongTerm!$D$76*3,IF(AB17=CurrentSOM+4,CoverCropEcon_LongTerm!$D$76*4,IF(AB17=CurrentSOM+5,CoverCropEcon_LongTerm!$D$76*5,IF(AB17=CurrentSOM+6,CoverCropEcon_LongTerm!$D$76*6,IF(AB17=CurrentSOM+7,CoverCropEcon_LongTerm!$D$76*7,IF(AB17=CurrentSOM+8,CoverCropEcon_LongTerm!$D$76*8,IF(AB17=CurrentSOM+9,CoverCropEcon_LongTerm!$D$76*9,IF(AB17=CurrentSOM+10,CoverCropEcon_LongTerm!$D$76*10))))))))))),0) -> 19.4 | AD17: 12.82568543 | AE17: =IF(A17<=Lifespan,IF(AB17=CurrentSOM,0,IF(AB17=CurrentSOM+1,CoverCropEcon_LongTerm!$D$86,IF(AB17=CurrentSOM+2,CoverCropEcon_LongTerm!$D$86*2,IF(AB17=CurrentSOM+3,CoverCropEcon_LongTerm!$D$86*3,IF(AB17=CurrentSOM+4,CoverCropEcon_LongTerm!$D$86*4,IF(AB17=CurrentSOM+5,CoverCropEcon_LongTerm!$D$86*5,IF(AB17=CurrentSOM+6,CoverCropEcon_LongTerm!$D$86*6,IF(AB17=CurrentSOM+7,CoverCropEcon_LongTerm!$D$86*7,IF(AB17=CurrentSOM+8,CoverCropEcon_LongTerm!$D$86*8,IF(AB17=CurrentSOM+9,CoverCropEcon_LongTerm!$D$86*9,IF(AB17=CurrentSOM+10,CoverCropEcon_LongTerm!$D$86*10))))))))))),0) -> 12.5 | AF17: 8.263972573 | AG17: 31.9 | AI17: =IF($A$17<=Lifespan,IF(RotationValue = 1,CashCrop1,IF(RotationValue = 2,CashCrop2, IF(RotationValue = 3,CashCrop2, IF(RotationValue = 4, CashCrop2, CashCrop4)))),"-") -> Corn | AJ17: =IF($A$17<=Lifespan,IF(RotationValue = 1,CR_IOC1,IF(RotationValue = 2,CR_IOC2, IF(RotationValue = 3,CR_IOC2, IF(RotationValue = 4, CR_IOC2, CR_IOC4)))),0) -> 254.5 | AK17: =IF($A$17<=Lifespan,IF(Rotation2Value = 1,CR_NRCC1,IF(Rotation2Value = 2,CR_NRCC2, IF(Rotation2Value = 3,CR_NRCC2, IF(Rotation2Value = 4, CR_NRCC2, IF(Rotation2Value = 5,CR_NRCC4, IF(Rotation2Value = 6, CR_NRCC2,CR_NRCC7)))))),"-") -> Wheat | AL17: =IF($A$17<=Lifespan,IF(Rotation2Value = 1,CR_NRIOC1,IF(Rotation2Value = 2,CR_NRIOC2, IF(Rotation2Value = 3,CR_NRIOC2, IF(Rotation2Value = 4, CR_NRIOC2, IF(Rotation2Value = 5,CR_NRIOC4, IF(Rotation2Value = 6, CR_NRIOC2,CR_NRIOC7)))))),0) -> 176.25 | AM17: -78.25 | AN17: -51.73246831 | AP17: =IF($A$17<=Lifespan,IF(Rotation2Value = 1,CR_CCCost1,IF(Rotation2Value = 2,CR_CCCost2, IF(Rotation2Value = 3,CR_CCCost2, IF(Rotation2Value = 4, CR_CCCost2, IF(Rotation2Value = 5,CR_CCCost4, IF(Rotation2Value = 6, CR_CCCost2,CR_CCCost7)))))),0) -> 0 | AQ17: 0 | AR17: =IF($A$17<=CR_YieldDecYrs,IF(Rotation2Value = 1,CR_YieldDec1,IF(Rotation2Value = 2,CR_YieldDec2, IF(Rotation2Value = 3,CR_YieldDec2, IF(Rotation2Value = 4, CR_YieldDec2, IF(Rotation2Value = 5,CR_YieldDec4, IF(Rotation2Value = 6, CR_YieldDec2,CR_YieldDec7)))))),0) -> 0 | AS17: 0 | AT17: =IF($A$17<=Lifespan,IF(Rotation2Value = 1,CR_OtherCost1,IF(Rotation2Value = 2,CR_OtherCost2, IF(Rotation2Value = 3,CR_OtherCost2, IF(Rotation2Value = 4, CR_OtherCost2, IF(Rotation2Value = 5,CR_OtherCost4, IF(Rotation2Value = 6, CR_OtherCost2,CR_OtherCost7)))))),0) -> 0 | AU17: 0 | AV17: 0 | AW17: =IF($A$17<=Lifespan,IF(Rotation2Value = 1,CR_Nutrient1,IF(Rotation2Value = 2,CR_Nutrient2, IF(Rotation2Value = 3,CR_Nutrient2, IF(Rotation2Value = 4, CR_Nutrient2, IF(Rotation2Value = 5,CR_Nutrient4, IF(Rotation2Value = 6, CR_Nutrient2,CR_Nutrient7)))))),0) -> 0 | AX17: 0 | AY17: =IF($A$17<=Lifespan,IF(Rotation2Value = 1,CR_Herb1,IF(Rotation2Value = 2,CR_Herb2, IF(Rotation2Value = 3,CR_Herb2, IF(Rotation2Value = 4, CR_Herb2, IF(Rotation2Value = 5,CR_Herb4, IF(Rotation2Value = 6, CR_Herb2,CR_Herb7)))))),0) -> 0 | AZ17: 0 | BA17: =IF($A$17<=Lifespan,IF(Rotation2Value = 1,CR_YieldInc1,IF(Rotation2Value = 2,CR_YieldInc2, IF(Rotation2Value = 3,CR_YieldInc2, IF(Rotation2Value = 4, CR_YieldInc2, IF(Rotation2Value = 5,CR_YieldInc4, IF(Rotation2Value = 6, CR_YieldInc2,CR_YieldInc7)))))),0) -> 0 | BB17: 0 | BC17: =IF($A$17<=Lifespan,IF(Rotation2Value = 1,CR_Erosion1,IF(Rotation2Value = 2,CR_Erosion2, IF(Rotation2Value = 3,CR_Erosion2, IF(Rotation2Value = 4, CR_Erosion2, IF(Rotation2Value = 5,CR_Erosion4, IF(Rotation2Value = 6, CR_Erosion2,CR_Erosion7)))))),0) -> 35.15 | BD17: 23.23829087 | BE17: =IF($A$17<=Lifespan,IF(Rotation2Value = 1,CR_OtherBenefit1,IF(Rotation2Value = 2,CR_OtherBenefit2, IF(Rotation2Value = 3,CR_OtherBenefit2, IF(Rotation2Value = 4, CR_OtherBenefit2, IF(Rotation2Value = 5,CR_OtherBenefit4, IF(Rotation2Value = 6, CR_OtherBenefit2,CR_OtherBenefit7)))))),0) -> 0 | BF17: 0 | BG17: =IF($A$17<=Lifespan,IF(Rotation2Value = 1,CR_Grazing1,IF(Rotation2Value = 2,CR_Grazing2, IF(Rotation2Value = 3,CR_Grazing2, IF(Rotation2Value = 4, CR_Grazing2, IF(Rotation2Value = 5,CR_Grazing4, IF(Rotation2Value = 6, CR_Grazing2,CR_Grazing7)))))),0) -> 0 | BH17: 0 | BI17: =IF($A$17<=Lifespan,IF(Rotation2Value = 1,CR_Baling1,IF(Rotation2Value = 2,CR_Baling2, IF(Rotation2Value = 3,CR_Baling2, IF(Rotation2Value = 4, CR_Baling2, IF(Rotation2Value = 5,CR_Baling4, IF(Rotation2Value = 6, CR_Baling2,CR_Baling7)))))),0) -> 0 | BJ17: 0 | BK17: =IF($A$17<=Lifespan,IF(Rotation2Value = 1,CR_Seed1,IF(Rotation2Value = 2,CR_Seed2, IF(Rotation2Value = 3,CR_Seed2, IF(Rotation2Value = 4, CR_Seed2, IF(Rotation2Value = 5,CR_Seed4, IF(Rotation2Value = 6, CR_Seed2,CR_Seed7)))))),0) -> 0 | BL17: 0 | BM17: 35.15 | BN17: 2 | BO17: =IF(A17<=Lifespan,IF(BN17=CurrentSOM,0,IF(BN17=CurrentSOM+1,CoverCropEcon_LongTerm!$D$76,IF(BN17=CurrentSOM+2,CoverCropEcon_LongTerm!$D$76*2,IF(BN17=CurrentSOM+3,CoverCropEcon_LongTerm!$D$76*3,IF(BN17=CurrentSOM+4,CoverCropEcon_LongTerm!$D$76*4,IF(BN17=CurrentSOM+5,CoverCropEcon_LongTerm!$D$76*5,IF(BN17=CurrentSOM+6,CoverCropEcon_LongTerm!$D$76*6,IF(BN17=CurrentSOM+7,CoverCropEcon_LongTerm!$D$76*7,IF(BN17=CurrentSOM+8,CoverCropEcon_LongTerm!$D$76*8,IF(BN17=CurrentSOM+9,CoverCropEcon_LongTerm!$D$76*9,IF(BN17=CurrentSOM+10,CoverCropEcon_LongTerm!$D$76*10))))))))))),0) -> 0 | BP17: 0 | BQ17: =IF(A17<=Lifespan,IF(BN17=CurrentSOM,0,IF(BN17=CurrentSOM+1,CoverCropEcon_LongTerm!$D$86,IF(BN17=CurrentSOM+2,CoverCropEcon_LongTerm!$D$86*2,IF(BN17=CurrentSOM+3,CoverCropEcon_LongTerm!$D$86*3,IF(BN17=CurrentSOM+4,CoverCropEcon_LongTerm!$D$86*4,IF(BN17=CurrentSOM+5,CoverCropEcon_LongTerm!$D$86*5,IF(BN17=CurrentSOM+6,CoverCropEcon_LongTerm!$D$86*6,IF(BN17=CurrentSOM+7,CoverCropEcon_LongTerm!$D$86*7,IF(BN17=CurrentSOM+8,CoverCropEcon_LongTerm!$D$86*8,IF(BN17=CurrentSOM+9,CoverCropEcon_LongTerm!$D$86*9,IF(BN17=CurrentSOM+10,CoverCropEcon_LongTerm!$D$86*10))))))))))),0) -> 0 | BR17: 0 | BS17: 0
A18: 15 | B18: =IF($A$18<=Lifespan,IF(RotationValue = 1,CCCost1,IF(RotationValue = 2,CCCost1, IF(RotationValue = 3, CCCost3, IF(RotationValue = 4, CCCost3, CCCost5)))),0) -> 51.6 | C18: 33.12007649 | D18: =IF($A$18<=YieldDecYrs,IF(RotationValue = 1,YieldDec1,IF(RotationValue = 2,YieldDec1, IF(RotationValue = 3, YieldDec3, IF(RotationValue = 4, YieldDec3, YieldDec5)))),0) -> 0 | E18: 0 | F18: =IF($A$18<=Lifespan,IF(RotationValue = 1,OtherCost1,IF(RotationValue = 2,OtherCost1, IF(RotationValue = 3, OtherCost3, IF(RotationValue = 4, OtherCost3, OtherCost5)))),0) -> 0 | G18: 0 | H18: 51.6 | I18: =IF($A$18<=Lifespan,IF(RotationValue = 1,Nutrient1,IF(RotationValue = 2,Nutrient1, IF(RotationValue = 3, Nutrient3, IF(RotationValue = 4, Nutrient3, Nutrient5)))),0) -> 0 | J18: 0 | K18: =IF($A$18<=Lifespan,IF(RotationValue = 1,Herb1,IF(RotationValue = 2,Herb1, IF(RotationValue = 3, Herb3, IF(RotationValue = 4, Herb3, Herb5)))),0) -> 3 | L18: 1.925585842 | M18: =IF($A$18<=Lifespan,IF(RotationValue = 1,YieldInc1,IF(RotationValue = 2,YieldInc1, IF(RotationValue = 3, YieldInc3, IF(RotationValue = 4, YieldInc3, YieldInc5)))),0) -> 16.65 | N18: 10.68700142 | O18: =IF($A$18<=Lifespan,IF(RotationValue = 1,Erosion1,IF(RotationValue = 2,Erosion1, IF(RotationValue = 3, Erosion3, IF(RotationValue = 4, Erosion3, Erosion5)))),0) -> 14.06 | P18: 9.02457898 | Q18: =IF($A$18<=Lifespan,IF(RotationValue = 1,OtherBenefit1,IF(RotationValue = 2,OtherBenefit1, IF(RotationValue = 3, OtherBenefit3, IF(RotationValue = 4, OtherBenefit3, OtherBenefit5)))),0) -> 0 | R18: 0 | S18: =IF($A$18<=Lifespan,IF(RotationValue = 1,Grazing1,IF(RotationValue = 2,Grazing1, IF(RotationValue = 3, Grazing3, IF(RotationValue = 4, Grazing3, Grazing5)))),0) -> 0 | T18: 0 | U18: =IF($A$18<=Lifespan,IF(RotationValue = 1,GrazingCC1,IF(RotationValue = 2,GrazingCC1, IF(RotationValue = 3, GrazingCC3, IF(RotationValue = 4, GrazingCC3, GrazingCC5)))),0) -> 57.7 | V18: 37.03543436 | W18: =IF($A$18<=Lifespan,IF(RotationValue = 1,Baling1,IF(RotationValue = 2,Baling1, IF(RotationValue = 3, Baling3, IF(RotationValue = 4, Baling3, Baling5)))),0) -> 0 | X18: 0 | Y18: =IF($A$18<=Lifespan,IF(RotationValue = 1,Seed1,IF(RotationValue = 2,Seed1, IF(RotationValue = 3, Seed3, IF(RotationValue = 4, Seed3, Seed5)))),0) -> 0 | Z18: 0 | AA18: 91.41 | AB18: 3 | AC18: =IF(A18<=Lifespan,IF(AB18=CurrentSOM,0,IF(AB18=CurrentSOM+1,CoverCropEcon_LongTerm!$D$76,IF(AB18=CurrentSOM+2,CoverCropEcon_LongTerm!$D$76*2,IF(AB18=CurrentSOM+3,CoverCropEcon_LongTerm!$D$76*3,IF(AB18=CurrentSOM+4,CoverCropEcon_LongTerm!$D$76*4,IF(AB18=CurrentSOM+5,CoverCropEcon_LongTerm!$D$76*5,IF(AB18=CurrentSOM+6,CoverCropEcon_LongTerm!$D$76*6,IF(AB18=CurrentSOM+7,CoverCropEcon_LongTerm!$D$76*7,IF(AB18=CurrentSOM+8,CoverCropEcon_LongTerm!$D$76*8,IF(AB18=CurrentSOM+9,CoverCropEcon_LongTerm!$D$76*9,IF(AB18=CurrentSOM+10,CoverCropEcon_LongTerm!$D$76*10))))))))))),0) -> 19.4 | AD18: 12.45212178 | AE18: =IF(A18<=Lifespan,IF(AB18=CurrentSOM,0,IF(AB18=CurrentSOM+1,CoverCropEcon_LongTerm!$D$86,IF(AB18=CurrentSOM+2,CoverCropEcon_LongTerm!$D$86*2,IF(AB18=CurrentSOM+3,CoverCropEcon_LongTerm!$D$86*3,IF(AB18=CurrentSOM+4,CoverCropEcon_LongTerm!$D$86*4,IF(AB18=CurrentSOM+5,CoverCropEcon_LongTerm!$D$86*5,IF(AB18=CurrentSOM+6,CoverCropEcon_LongTerm!$D$86*6,IF(AB18=CurrentSOM+7,CoverCropEcon_LongTerm!$D$86*7,IF(AB18=CurrentSOM+8,CoverCropEcon_LongTerm!$D$86*8,IF(AB18=CurrentSOM+9,CoverCropEcon_LongTerm!$D$86*9,IF(AB18=CurrentSOM+10,CoverCropEcon_LongTerm!$D$86*10))))))))))),0) -> 12.5 | AF18: 8.023274342 | AG18: 31.9 | AI18: =IF($A$18<=Lifespan,IF(RotationValue = 1,CashCrop1,IF(RotationValue = 2,CashCrop1, IF(RotationValue = 3, CashCrop3, IF(RotationValue = 4, CashCrop3, CashCrop5)))),"-") -> Soybeans | AJ18: =IF($A$18<=Lifespan,IF(RotationValue = 1,CR_IOC1,IF(RotationValue = 2,CR_IOC1, IF(RotationValue = 3, CR_IOC3, IF(RotationValue = 4, CR_IOC3, CR_IOC5)))),0) -> 457.5 | AK18: =IF($A$18<=Lifespan,IF(Rotation2Value = 1,CR_NRCC1,IF(Rotation2Value = 2,CR_NRCC1, IF(Rotation2Value = 3, CR_NRCC3, IF(Rotation2Value = 4, CR_NRCC3, IF(Rotation2Value = 5, CR_NRCC5, IF(Rotation2Value = 6, CR_NRCC3, CR_NRCC1)))))),"-") -> Corn | AL18: =IF($A$18<=Lifespan,IF(Rotation2Value = 1,CR_NRIOC1,IF(Rotation2Value = 2,CR_NRIOC1, IF(Rotation2Value = 3, CR_NRIOC3, IF(Rotation2Value = 4, CR_NRIOC3, IF(Rotation2Value = 5, CR_NRIOC5, IF(Rotation2Value = 6, CR_NRIOC3, CR_NRIOC1)))))),0) -> 175 | AM18: -282.5 | AN18: -181.3260001 | AP18: =IF($A$18<=Lifespan,IF(Rotation2Value = 1,CR_CCCost1,IF(Rotation2Value = 2,CR_CCCost1, IF(Rotation2Value = 3, CR_CCCost3, IF(Rotation2Value = 4, CR_CCCost3, IF(Rotation2Value = 5, CR_CCCost5, IF(Rotation2Value = 6, CR_CCCost3, CR_CCCost1)))))),0) -> 87.5 | AQ18: 56.1629204 | AR18: =IF($A$18<=CR_YieldDecYrs,IF(Rotation2Value = 1,CR_YieldDec1,IF(Rotation2Value = 2,CR_YieldDec1, IF(Rotation2Value = 3, CR_YieldDec3, IF(Rotation2Value = 4, CR_YieldDec3, IF(Rotation2Value = 5, CR_YieldDec5, IF(Rotation2Value = 6, CR_YieldDec3, CR_YieldDec1)))))),0) -> 0 | AS18: 0 | AT18: =IF($A$18<=Lifespan,IF(Rotation2Value = 1,CR_OtherCost1,IF(Rotation2Value = 2,CR_OtherCost1, IF(Rotation2Value = 3, CR_OtherCost3, IF(Rotation2Value = 4, CR_OtherCost3, IF(Rotation2Value = 5, CR_OtherCost5, IF(Rotation2Value = 6, CR_OtherCost3, CR_OtherCost1)))))),0) -> 0 | AU18: 0 | AV18: 87.5 | AW18: =IF($A$18<=Lifespan,IF(Rotation2Value = 1,CR_Nutrient1,IF(Rotation2Value = 2,CR_Nutrient1, IF(Rotation2Value = 3, CR_Nutrient3, IF(Rotation2Value = 4, CR_Nutrient3, IF(Rotation2Value = 5, CR_Nutrient5, IF(Rotation2Value = 6, CR_Nutrient3, CR_Nutrient1)))))),0) -> 16.5 | AX18: 10.59072213 | AY18: =IF($A$18<=Lifespan,IF(Rotation2Value = 1,CR_Herb1,IF(Rotation2Value = 2,CR_Herb1, IF(Rotation2Value = 3, CR_Herb3, IF(Rotation2Value = 4, CR_Herb3, IF(Rotation2Value = 5, CR_Herb5, IF(Rotation2Value = 6, CR_Herb3, CR_Herb1)))))),0) -> 3 | AZ18: 1.925585842 | BA18: =IF($A$18<=Lifespan,IF(Rotation2Value = 1,CR_YieldInc1,IF(Rotation2Value = 2,CR_YieldInc1, IF(Rotation2Value = 3, CR_YieldInc3, IF(Rotation2Value = 4, CR_YieldInc3, IF(Rotation2Value = 5, CR_YieldInc5, IF(Rotation2Value = 6, CR_YieldInc3, CR_YieldInc1)))))),0) -> 6 | BB18: 3.851171684 | BC18: =IF($A$18<=Lifespan,IF(Rotation2Value = 1,CR_Erosion1,IF(Rotation2Value = 2,CR_Erosion1, IF(Rotation2Value = 3, CR_Erosion3, IF(Rotation2Value = 4, CR_Erosion3, IF(Rotation2Value = 5, CR_Erosion5, IF(Rotation2Value = 6, CR_Erosion3, CR_Erosion1)))))),0) -> 35.15 | BD18: 22.56144745 | BE18: =IF($A$18<=Lifespan,IF(Rotation2Value = 1,CR_OtherBenefit1,IF(Rotation2Value = 2,CR_OtherBenefit1, IF(Rotation2Value = 3, CR_OtherBenefit3, IF(Rotation2Value = 4, CR_OtherBenefit3, IF(Rotation2Value = 5, CR_OtherBenefit5, IF(Rotation2Value = 6, CR_OtherBenefit3, CR_OtherBenefit1)))))),0) -> 0 | BF18: 0 | BG18: =IF($A$18<=Lifespan,IF(Rotation2Value = 1,CR_Grazing1,IF(Rotation2Value = 2,CR_Grazing1, IF(Rotation2Value = 3, CR_Grazing3, IF(Rotation2Value = 4, CR_Grazing3, IF(Rotation2Value = 5, CR_Grazing5, IF(Rotation2Value = 6, CR_Grazing3, CR_Grazing1)))))),0) -> 440 | BH18: 282.4192569 | BI18: =IF($A$18<=Lifespan,IF(Rotation2Value = 1,CR_Baling1,IF(Rotation2Value = 2,CR_Baling1, IF(Rotation2Value = 3, CR_Baling3, IF(Rotation2Value = 4, CR_Baling3, IF(Rotation2Value = 5, CR_Baling5, IF(Rotation2Value = 6, CR_Baling3, CR_Baling1)))))),0) -> 0 | BJ18: 0 | BK18: =IF($A$18<=Lifespan,IF(Rotation2Value = 1,CR_Seed1,IF(Rotation2Value = 2,CR_Seed1, IF(Rotation2Value = 3, CR_Seed3, IF(Rotation2Value = 4, CR_Seed3, IF(Rotation2Value = 5, CR_Seed5, IF(Rotation2Value = 6, CR_Seed3, CR_Seed1)))))),0) -> 0 | BL18: 0 | BM18: 500.65 | BN18: 2 | BO18: =IF(A18<=Lifespan,IF(BN18=CurrentSOM,0,IF(BN18=CurrentSOM+1,CoverCropEcon_LongTerm!$D$76,IF(BN18=CurrentSOM+2,CoverCropEcon_LongTerm!$D$76*2,IF(BN18=CurrentSOM+3,CoverCropEcon_LongTerm!$D$76*3,IF(BN18=CurrentSOM+4,CoverCropEcon_LongTerm!$D$76*4,IF(BN18=CurrentSOM+5,CoverCropEcon_LongTerm!$D$76*5,IF(BN18=CurrentSOM+6,CoverCropEcon_LongTerm!$D$76*6,IF(BN18=CurrentSOM+7,CoverCropEcon_LongTerm!$D$76*7,IF(BN18=CurrentSOM+8,CoverCropEcon_LongTerm!$D$76*8,IF(BN18=CurrentSOM+9,CoverCropEcon_LongTerm!$D$76*9,IF(BN18=CurrentSOM+10,CoverCropEcon_LongTerm!$D$76*10))))))))))),0) -> 0 | BP18: 0 | BQ18: =IF(A18<=Lifespan,IF(BN18=CurrentSOM,0,IF(BN18=CurrentSOM+1,CoverCropEcon_LongTerm!$D$86,IF(BN18=CurrentSOM+2,CoverCropEcon_LongTerm!$D$86*2,IF(BN18=CurrentSOM+3,CoverCropEcon_LongTerm!$D$86*3,IF(BN18=CurrentSOM+4,CoverCropEcon_LongTerm!$D$86*4,IF(BN18=CurrentSOM+5,CoverCropEcon_LongTerm!$D$86*5,IF(BN18=CurrentSOM+6,CoverCropEcon_LongTerm!$D$86*6,IF(BN18=CurrentSOM+7,CoverCropEcon_LongTerm!$D$86*7,IF(BN18=CurrentSOM+8,CoverCropEcon_LongTerm!$D$86*8,IF(BN18=CurrentSOM+9,CoverCropEcon_LongTerm!$D$86*9,IF(BN18=CurrentSOM+10,CoverCropEcon_LongTerm!$D$86*10))))))))))),0) -> 0 | BR18: 0 | BS18: 0
A19: 16 | B19: =IF($A$19<=Lifespan,IF(RotationValue = 1,CCCost1,IF(RotationValue = 2,CCCost2,IF(RotationValue = 3, CCCost1, IF(RotationValue = 4, CCCost4, CCCost1)))),0) -> 59.04 | C19: 36.79177609 | D19: =IF($A$19<=YieldDecYrs,IF(RotationValue = 1,YieldDec1,IF(RotationValue = 2,YieldDec2,IF(RotationValue = 3, YieldDec1, IF(RotationValue = 4, YieldDec4, YieldDec1)))),0) -> 0 | E19: 0 | F19: =IF($A$19<=Lifespan,IF(RotationValue = 1,OtherCost1,IF(RotationValue = 2,OtherCost2,IF(RotationValue = 3, OtherCost1, IF(RotationValue = 4, OtherCost4, OtherCost1)))),0) -> 0 | G19: 0 | H19: 59.04 | I19: =IF($A$19<=Lifespan,IF(RotationValue = 1,Nutrient1,IF(RotationValue = 2,Nutrient2,IF(RotationValue = 3, Nutrient1, IF(RotationValue = 4, Nutrient4, Nutrient1)))),0) -> 16.5 | J19: 10.2822545 | K19: =IF($A$19<=Lifespan,IF(RotationValue = 1,Herb1,IF(RotationValue = 2,Herb2,IF(RotationValue = 3, Herb1, IF(RotationValue = 4, Herb4, Herb1)))),0) -> 3 | L19: 1.869500818 | M19: =IF($A$19<=Lifespan,IF(RotationValue = 1,YieldInc1,IF(RotationValue = 2,YieldInc2,IF(RotationValue = 3, YieldInc1, IF(RotationValue = 4, YieldInc4, YieldInc1)))),0) -> 0 | N19: 0 | O19: =IF($A$19<=Lifespan,IF(RotationValue = 1,Erosion1,IF(RotationValue = 2,Erosion2,IF(RotationValue = 3, Erosion1, IF(RotationValue = 4, Erosion4, Erosion1)))),0) -> 28.12 | P19: 17.52345433 | Q19: =IF($A$19<=Lifespan,IF(RotationValue = 1,OtherBenefit1,IF(RotationValue = 2,OtherBenefit2,IF(RotationValue = 3, OtherBenefit1, IF(RotationValue = 4, OtherBenefit4, OtherBenefit1)))),0) -> 0 | R19: 0 | S19: =IF($A$19<=Lifespan,IF(RotationValue = 1,Grazing1,IF(RotationValue = 2,Grazing2,IF(RotationValue = 3, Grazing1, IF(RotationValue = 4, Grazing4, Grazing1)))),0) -> 0 | T19: 0 | U19: =IF($A$19<=Lifespan,IF(RotationValue = 1,GrazingCC1,IF(RotationValue = 2,GrazingCC2,IF(RotationValue = 3, GrazingCC1, IF(RotationValue = 4, GrazingCC4, GrazingCC1)))),0) -> 57.7 | V19: 35.95673239 | W19: =IF($A$19<=Lifespan,IF(RotationValue = 1,Baling1,IF(RotationValue = 2,Baling2,IF(RotationValue = 3, Baling1, IF(RotationValue = 4, Baling4, Baling1)))),0) -> 0 | X19: 0 | Y19: =IF($A$19<=Lifespan,IF(RotationValue = 1,Seed1,IF(RotationValue = 2,Seed2,IF(RotationValue = 3, Seed1, IF(RotationValue = 4, Seed4, Seed1)))),0) -> 0 | Z19: 0 | AA19: 105.32 | AB19: 3 | AC19: =IF(A19<=Lifespan,IF(AB19=CurrentSOM,0,IF(AB19=CurrentSOM+1,CoverCropEcon_LongTerm!$D$76,IF(AB19=CurrentSOM+2,CoverCropEcon_LongTerm!$D$76*2,IF(AB19=CurrentSOM+3,CoverCropEcon_LongTerm!$D$76*3,IF(AB19=CurrentSOM+4,CoverCropEcon_LongTerm!$D$76*4,IF(AB19=CurrentSOM+5,CoverCropEcon_LongTerm!$D$76*5,IF(AB19=CurrentSOM+6,CoverCropEcon_LongTerm!$D$76*6,IF(AB19=CurrentSOM+7,CoverCropEcon_LongTerm!$D$76*7,IF(AB19=CurrentSOM+8,CoverCropEcon_LongTerm!$D$76*8,IF(AB19=CurrentSOM+9,CoverCropEcon_LongTerm!$D$76*9,IF(AB19=CurrentSOM+10,CoverCropEcon_LongTerm!$D$76*10))))))))))),0) -> 19.4 | AD19: 12.08943862 | AE19: =IF(A19<=Lifespan,IF(AB19=CurrentSOM,0,IF(AB19=CurrentSOM+1,CoverCropEcon_LongTerm!$D$86,IF(AB19=CurrentSOM+2,CoverCropEcon_LongTerm!$D$86*2,IF(AB19=CurrentSOM+3,CoverCropEcon_LongTerm!$D$86*3,IF(AB19=CurrentSOM+4,CoverCropEcon_LongTerm!$D$86*4,IF(AB19=CurrentSOM+5,CoverCropEcon_LongTerm!$D$86*5,IF(AB19=CurrentSOM+6,CoverCropEcon_LongTerm!$D$86*6,IF(AB19=CurrentSOM+7,CoverCropEcon_LongTerm!$D$86*7,IF(AB19=CurrentSOM+8,CoverCropEcon_LongTerm!$D$86*8,IF(AB19=CurrentSOM+9,CoverCropEcon_LongTerm!$D$86*9,IF(AB19=CurrentSOM+10,CoverCropEcon_LongTerm!$D$86*10))))))))))),0) -> 12.5 | AF19: 7.78958674 | AG19: 31.9 | AI19: =IF($A$19<=Lifespan,IF(RotationValue = 1,CashCrop1,IF(RotationValue = 2,CashCrop2,IF(RotationValue = 3, CashCrop1, IF(RotationValue = 4, CashCrop4, CashCrop1)))),"-") -> Corn | AJ19: =IF($A$19<=Lifespan,IF(RotationValue = 1,CR_IOC1,IF(RotationValue = 2,CR_IOC2,IF(RotationValue = 3, CR_IOC1, IF(RotationValue = 4, CR_IOC4, CR_IOC1)))),0) -> 254.5 | AK19: =IF($A$19<=Lifespan,IF(Rotation2Value = 1,CR_NRCC1,IF(Rotation2Value = 2,CR_NRCC2,IF(Rotation2Value = 3, CR_NRCC1, IF(Rotation2Value = 4, CR_NRCC4, IF(Rotation2Value = 5, CR_NRCC1, IF(Rotation2Value = 6, CR_NRCC4,CR_NRCC2)))))),"-") -> Soybeans | AL19: =IF($A$19<=Lifespan,IF(Rotation2Value = 1,CR_NRIOC1,IF(Rotation2Value = 2,CR_NRIOC2,IF(Rotation2Value = 3, CR_NRIOC1, IF(Rotation2Value = 4, CR_NRIOC4, IF(Rotation2Value = 5, CR_NRIOC1, IF(Rotation2Value = 6, CR_NRIOC4,CR_NRIOC2)))))),0) -> 125 | AM19: -129.5 | AN19: -80.70011863 | AP19: =IF($A$19<=Lifespan,IF(Rotation2Value = 1,CR_CCCost1,IF(Rotation2Value = 2,CR_CCCost2,IF(Rotation2Value = 3, CR_CCCost1, IF(Rotation2Value = 4, CR_CCCost4, IF(Rotation2Value = 5, CR_CCCost1, IF(Rotation2Value = 6, CR_CCCost4,CR_CCCost2)))))),0) -> 32.5 | AQ19: 20.25292552 | AR19: =IF($A$19<=CR_YieldDecYrs,IF(Rotation2Value = 1,CR_YieldDec1,IF(Rotation2Value = 2,CR_YieldDec2,IF(Rotation2Value = 3, CR_YieldDec1, IF(Rotation2Value = 4, CR_YieldDec4, IF(Rotation2Value = 5, CR_YieldDec1, IF(Rotation2Value = 6, CR_YieldDec4,CR_YieldDec2)))))),0) -> 0 | AS19: 0 | AT19: =IF($A$19<=Lifespan,IF(Rotation2Value = 1,CR_OtherCost1,IF(Rotation2Value = 2,CR_OtherCost2,IF(Rotation2Value = 3, CR_OtherCost1, IF(Rotation2Value = 4, CR_OtherCost4, IF(Rotation2Value = 5, CR_OtherCost1, IF(Rotation2Value = 6, CR_OtherCost4,CR_OtherCost2)))))),0) -> 0 | AU19: 0 | AV19: 32.5 | AW19: =IF($A$19<=Lifespan,IF(Rotation2Value = 1,CR_Nutrient1,IF(Rotation2Value = 2,CR_Nutrient2,IF(Rotation2Value = 3, CR_Nutrient1, IF(Rotation2Value = 4, CR_Nutrient4, IF(Rotation2Value = 5, CR_Nutrient1, IF(Rotation2Value = 6, CR_Nutrient4,CR_Nutrient2)))))),0) -> 0 | AX19: 0 | AY19: =IF($A$19<=Lifespan,IF(Rotation2Value = 1,CR_Herb1,IF(Rotation2Value = 2,CR_Herb2,IF(Rotation2Value = 3, CR_Herb1, IF(Rotation2Value = 4, CR_Herb4, IF(Rotation2Value = 5, CR_Herb1, IF(Rotation2Value = 6, CR_Herb4,CR_Herb2)))))),0) -> 3 | AZ19: 1.869500818 | BA19: =IF($A$19<=Lifespan,IF(Rotation2Value = 1,CR_YieldInc1,IF(Rotation2Value = 2,CR_YieldInc2,IF(Rotation2Value = 3, CR_YieldInc1, IF(Rotation2Value = 4, CR_YieldInc4, IF(Rotation2Value = 5, CR_YieldInc1, IF(Rotation2Value = 6, CR_YieldInc4,CR_YieldInc2)))))),0) -> 10 | BB19: 6.231669392 | BC19: =IF($A$19<=Lifespan,IF(Rotation2Value = 1,CR_Erosion1,IF(Rotation2Value = 2,CR_Erosion2,IF(Rotation2Value = 3, CR_Erosion1, IF(Rotation2Value = 4, CR_Erosion4, IF(Rotation2Value = 5, CR_Erosion1, IF(Rotation2Value = 6, CR_Erosion4,CR_Erosion2)))))),0) -> 35.15 | BD19: 21.90431791 | BE19: =IF($A$19<=Lifespan,IF(Rotation2Value = 1,CR_OtherBenefit1,IF(Rotation2Value = 2,CR_OtherBenefit2,IF(Rotation2Value = 3, CR_OtherBenefit1, IF(Rotation2Value = 4, CR_OtherBenefit4, IF(Rotation2Value = 5, CR_OtherBenefit1, IF(Rotation2Value = 6, CR_OtherBenefit4,CR_OtherBenefit2)))))),0) -> 0 | BF19: 0 | BG19: =IF($A$19<=Lifespan,IF(Rotation2Value = 1,CR_Grazing1,IF(Rotation2Value = 2,CR_Grazing2,IF(Rotation2Value = 3, CR_Grazing1, IF(Rotation2Value = 4, CR_Grazing4, IF(Rotation2Value = 5, CR_Grazing1, IF(Rotation2Value = 6, CR_Grazing4,CR_Grazing2)))))),0) -> 0 | BH19: 0 | BI19: =IF($A$19<=Lifespan,IF(Rotation2Value = 1,CR_Baling1,IF(Rotation2Value = 2,CR_Baling2,IF(Rotation2Value = 3, CR_Baling1, IF(Rotation2Value = 4, CR_Baling4, IF(Rotation2Value = 5, CR_Baling1, IF(Rotation2Value = 6, CR_Baling4,CR_Baling2)))))),0) -> 0 | BJ19: 0 | BK19: =IF($A$19<=Lifespan,IF(Rotation2Value = 1,CR_Seed1,IF(Rotation2Value = 2,CR_Seed2,IF(Rotation2Value = 3, CR_Seed1, IF(Rotation2Value = 4, CR_Seed4, IF(Rotation2Value = 5, CR_Seed1, IF(Rotation2Value = 6, CR_Seed4,CR_Seed2)))))),0) -> 0 | BL19: 0 | BM19: 48.15 | BN19: 3 | BO19: =IF(A19<=Lifespan,IF(BN19=CurrentSOM,0,IF(BN19=CurrentSOM+1,CoverCropEcon_LongTerm!$D$76,IF(BN19=CurrentSOM+2,CoverCropEcon_LongTerm!$D$76*2,IF(BN19=CurrentSOM+3,CoverCropEcon_LongTerm!$D$76*3,IF(BN19=CurrentSOM+4,CoverCropEcon_LongTerm!$D$76*4,IF(BN19=CurrentSOM+5,CoverCropEcon_LongTerm!$D$76*5,IF(BN19=CurrentSOM+6,CoverCropEcon_LongTerm!$D$76*6,IF(BN19=CurrentSOM+7,CoverCropEcon_LongTerm!$D$76*7,IF(BN19=CurrentSOM+8,CoverCropEcon_LongTerm!$D$76*8,IF(BN19=CurrentSOM+9,CoverCropEcon_LongTerm!$D$76*9,IF(BN19=CurrentSOM+10,CoverCropEcon_LongTerm!$D$76*10))))))))))),0) -> 19.4 | BP19: 12.08943862 | BQ19: =IF(A19<=Lifespan,IF(BN19=CurrentSOM,0,IF(BN19=CurrentSOM+1,CoverCropEcon_LongTerm!$D$86,IF(BN19=CurrentSOM+2,CoverCropEcon_LongTerm!$D$86*2,IF(BN19=CurrentSOM+3,CoverCropEcon_LongTerm!$D$86*3,IF(BN19=CurrentSOM+4,CoverCropEcon_LongTerm!$D$86*4,IF(BN19=CurrentSOM+5,CoverCropEcon_LongTerm!$D$86*5,IF(BN19=CurrentSOM+6,CoverCropEcon_LongTerm!$D$86*6,IF(BN19=CurrentSOM+7,CoverCropEcon_LongTerm!$D$86*7,IF(BN19=CurrentSOM+8,CoverCropEcon_LongTerm!$D$86*8,IF(BN19=CurrentSOM+9,CoverCropEcon_LongTerm!$D$86*9,IF(BN19=CurrentSOM+10,CoverCropEcon_LongTerm!$D$86*10))))))))))),0) -> 12.5 | BR19: 7.78958674 | BS19: 31.9
A20: 17 | B20: =IF($A$20<=Lifespan,IF(RotationValue = 1,CCCost1,IF(RotationValue = 2,CCCost1,IF(RotationValue = 3,CCCost2, IF(RotationValue = 4, CCCost1, CCCost2)))),0) -> 51.6 | C20: 31.21884861 | D20: =IF($A$20<=YieldDecYrs,IF(RotationValue = 1,YieldDec1,IF(RotationValue = 2,YieldDec1,IF(RotationValue = 3,YieldDec2, IF(RotationValue = 4, YieldDec1, YieldDec2)))),0) -> 0 | E20: 0 | F20: =IF($A$20<=Lifespan,IF(RotationValue = 1,OtherCost1,IF(RotationValue = 2,OtherCost1,IF(RotationValue = 3,OtherCost2, IF(RotationValue = 4, OtherCost1, OtherCost2)))),0) -> 0 | G20: 0 | H20: 51.6 | I20: =IF($A$20<=Lifespan,IF(RotationValue = 1,Nutrient1,IF(RotationValue = 2,Nutrient1,IF(RotationValue = 3,Nutrient2, IF(RotationValue = 4, Nutrient1, Nutrient2)))),0) -> 0 | J20: 0 | K20: =IF($A$20<=Lifespan,IF(RotationValue = 1,Herb1,IF(RotationValue = 2,Herb1,IF(RotationValue = 3,Herb2, IF(RotationValue = 4, Herb1, Herb2)))),0) -> 3 | L20: 1.815049338 | M20: =IF($A$20<=Lifespan,IF(RotationValue = 1,YieldInc1,IF(RotationValue = 2,YieldInc1,IF(RotationValue = 3,YieldInc2, IF(RotationValue = 4, YieldInc1, YieldInc2)))),0) -> 16.65 | N20: 10.07352382 | O20: =IF($A$20<=Lifespan,IF(RotationValue = 1,Erosion1,IF(RotationValue = 2,Erosion1,IF(RotationValue = 3,Erosion2, IF(RotationValue = 4, Erosion1, Erosion2)))),0) -> 14.06 | P20: 8.506531229 | Q20: =IF($A$20<=Lifespan,IF(RotationValue = 1,OtherBenefit1,IF(RotationValue = 2,OtherBenefit1,IF(RotationValue = 3,OtherBenefit2, IF(RotationValue = 4, OtherBenefit1, OtherBenefit2)))),0) -> 0 | R20: 0 | S20: =IF($A$20<=Lifespan,IF(RotationValue = 1,Grazing1,IF(RotationValue = 2,Grazing1,IF(RotationValue = 3,Grazing2, IF(RotationValue = 4, Grazing1, Grazing2)))),0) -> 0 | T20: 0 | U20: =IF($A$20<=Lifespan,IF(RotationValue = 1,GrazingCC1,IF(RotationValue = 2,GrazingCC1,IF(RotationValue = 3,GrazingCC2, IF(RotationValue = 4, GrazingCC1, GrazingCC2)))),0) -> 57.7 | V20: 34.90944893 | W20: =IF($A$20<=Lifespan,IF(RotationValue = 1,Baling1,IF(RotationValue = 2,Baling1,IF(RotationValue = 3,Baling2, IF(RotationValue = 4, Baling1, Baling2)))),0) -> 0 | X20: 0 | Y20: =IF($A$20<=Lifespan,IF(RotationValue = 1,Seed1,IF(RotationValue = 2,Seed1,IF(RotationValue = 3,Seed2, IF(RotationValue = 4, Seed1, Seed2)))),0) -> 0 | Z20: 0 | AA20: 91.41 | AB20: 3 | AC20: =IF(A20<=Lifespan,IF(AB20=CurrentSOM,0,IF(AB20=CurrentSOM+1,CoverCropEcon_LongTerm!$D$76,IF(AB20=CurrentSOM+2,CoverCropEcon_LongTerm!$D$76*2,IF(AB20=CurrentSOM+3,CoverCropEcon_LongTerm!$D$76*3,IF(AB20=CurrentSOM+4,CoverCropEcon_LongTerm!$D$76*4,IF(AB20=CurrentSOM+5,CoverCropEcon_LongTerm!$D$76*5,IF(AB20=CurrentSOM+6,CoverCropEcon_LongTerm!$D$76*6,IF(AB20=CurrentSOM+7,CoverCropEcon_LongTerm!$D$76*7,IF(AB20=CurrentSOM+8,CoverCropEcon_LongTerm!$D$76*8,IF(AB20=CurrentSOM+9,CoverCropEcon_LongTerm!$D$76*9,IF(AB20=CurrentSOM+10,CoverCropEcon_LongTerm!$D$76*10))))))))))),0) -> 19.4 | AD20: 11.73731905 | AE20: =IF(A20<=Lifespan,IF(AB20=CurrentSOM,0,IF(AB20=CurrentSOM+1,CoverCropEcon_LongTerm!$D$86,IF(AB20=CurrentSOM+2,CoverCropEcon_LongTerm!$D$86*2,IF(AB20=CurrentSOM+3,CoverCropEcon_LongTerm!$D$86*3,IF(AB20=CurrentSOM+4,CoverCropEcon_LongTerm!$D$86*4,IF(AB20=CurrentSOM+5,CoverCropEcon_LongTerm!$D$86*5,IF(AB20=CurrentSOM+6,CoverCropEcon_LongTerm!$D$86*6,IF(AB20=CurrentSOM+7,CoverCropEcon_LongTerm!$D$86*7,IF(AB20=CurrentSOM+8,CoverCropEcon_LongTerm!$D$86*8,IF(AB20=CurrentSOM+9,CoverCropEcon_LongTerm!$D$86*9,IF(AB20=CurrentSOM+10,CoverCropEcon_LongTerm!$D$86*10))))))))))),0) -> 12.5 | AF20: 7.562705573 | AG20: 31.9 | AI20: =IF($A$20<=Lifespan,IF(RotationValue = 1,CashCrop1,IF(RotationValue = 2,CashCrop1,IF(RotationValue = 3,CashCrop2, IF(RotationValue = 4, CashCrop1, CashCrop2)))),"-") -> Soybeans | AJ20: =IF($A$20<=Lifespan,IF(RotationValue = 1,CR_IOC1,IF(RotationValue = 2,CR_IOC1,IF(RotationValue = 3,CR_IOC2, IF(RotationValue = 4, CR_IOC1, CR_IOC2)))),0) -> 457.5 | AK20: =IF($A$20<=Lifespan,IF(Rotation2Value = 1,CR_NRCC1,IF(Rotation2Value = 2,CR_NRCC1,IF(Rotation2Value = 3,CR_NRCC2, IF(Rotation2Value = 4, CR_NRCC1, IF(Rotation2Value = 5, CR_NRCC2, IF(Rotation2Value = 6, CR_NRCC5,CR_NRCC3)))))),"-") -> Wheat | AL20: =IF($A$20<=Lifespan,IF(Rotation2Value = 1,CR_NRIOC1,IF(Rotation2Value = 2,CR_NRIOC1,IF(Rotation2Value = 3,CR_NRIOC2, IF(Rotation2Value = 4, CR_NRIOC1, IF(Rotation2Value = 5, CR_NRIOC2, IF(Rotation2Value = 6, CR_NRIOC5,CR_NRIOC3)))))),0) -> 176.25 | AM20: -281.25 | AN20: -170.1608754 | AP20: =IF($A$20<=Lifespan,IF(Rotation2Value = 1,CR_CCCost1,IF(Rotation2Value = 2,CR_CCCost1,IF(Rotation2Value = 3,CR_CCCost2, IF(Rotation2Value = 4, CR_CCCost1, IF(Rotation2Value = 5, CR_CCCost2, IF(Rotation2Value = 6, CR_CCCost5,CR_CCCost3)))))),0) -> 0 | AQ20: 0 | AR20: =IF($A$20<=CR_YieldDecYrs,IF(Rotation2Value = 1,CR_YieldDec1,IF(Rotation2Value = 2,CR_YieldDec1,IF(Rotation2Value = 3,CR_YieldDec2, IF(Rotation2Value = 4, CR_YieldDec1, IF(Rotation2Value = 5, CR_YieldDec2, IF(Rotation2Value = 6, CR_YieldDec5,CR_YieldDec3)))))),0) -> 0 | AS20: 0 | AT20: =IF($A$20<=Lifespan,IF(Rotation2Value = 1,CR_OtherCost1,IF(Rotation2Value = 2,CR_OtherCost1,IF(Rotation2Value = 3,CR_OtherCost2, IF(Rotation2Value = 4, CR_OtherCost1, IF(Rotation2Value = 5, CR_OtherCost2, IF(Rotation2Value = 6, CR_OtherCost5,CR_OtherCost3)))))),0) -> 0 | AU20: 0 | AV20: 0 | AW20: =IF($A$20<=Lifespan,IF(Rotation2Value = 1,CR_Nutrient1,IF(Rotation2Value = 2,CR_Nutrient1,IF(Rotation2Value = 3,CR_Nutrient2, IF(Rotation2Value = 4, CR_Nutrient1, IF(Rotation2Value = 5, CR_Nutrient2, IF(Rotation2Value = 6, CR_Nutrient5,CR_Nutrient3)))))),0) -> 0 | AX20: 0 | AY20: =IF($A$20<=Lifespan,IF(Rotation2Value = 1,CR_Herb1,IF(Rotation2Value = 2,CR_Herb1,IF(Rotation2Value = 3,CR_Herb2, IF(Rotation2Value = 4, CR_Herb1, IF(Rotation2Value = 5, CR_Herb2, IF(Rotation2Value = 6, CR_Herb5,CR_Herb3)))))),0) -> 0 | AZ20: 0 | BA20: =IF($A$20<=Lifespan,IF(Rotation2Value = 1,CR_YieldInc1,IF(Rotation2Value = 2,CR_YieldInc1,IF(Rotation2Value = 3,CR_YieldInc2, IF(Rotation2Value = 4, CR_YieldInc1, IF(Rotation2Value = 5, CR_YieldInc2, IF(Rotation2Value = 6, CR_YieldInc5,CR_YieldInc3)))))),0) -> 0 | BB20: 0 | BC20: =IF($A$20<=Lifespan,IF(Rotation2Value = 1,CR_Erosion1,IF(Rotation2Value = 2,CR_Erosion1,IF(Rotation2Value = 3,CR_Erosion2, IF(Rotation2Value = 4, CR_Erosion1, IF(Rotation2Value = 5, CR_Erosion2, IF(Rotation2Value = 6, CR_Erosion5,CR_Erosion3)))))),0) -> 35.15 | BD20: 21.26632807 | BE20: =IF($A$20<=Lifespan,IF(Rotation2Value = 1,CR_OtherBenefit1,IF(Rotation2Value = 2,CR_OtherBenefit1,IF(Rotation2Value = 3,CR_OtherBenefit2, IF(Rotation2Value = 4, CR_OtherBenefit1, IF(Rotation2Value = 5, CR_OtherBenefit2, IF(Rotation2Value = 6, CR_OtherBenefit5,CR_OtherBenefit3)))))),0) -> 0 | BF20: 0 | BG20: =IF($A$20<=Lifespan,IF(Rotation2Value = 1,CR_Grazing1,IF(Rotation2Value = 2,CR_Grazing1,IF(Rotation2Value = 3,CR_Grazing2, IF(Rotation2Value = 4, CR_Grazing1, IF(Rotation2Value = 5, CR_Grazing2, IF(Rotation2Value = 6, CR_Grazing5,CR_Grazing3)))))),0) -> 0 | BH20: 0 | BI20: =IF($A$20<=Lifespan,IF(Rotation2Value = 1,CR_Baling1,IF(Rotation2Value = 2,CR_Baling1,IF(Rotation2Value = 3,CR_Baling2, IF(Rotation2Value = 4, CR_Baling1, IF(Rotation2Value = 5, CR_Baling2, IF(Rotation2Value = 6, CR_Baling5,CR_Baling3)))))),0) -> 0 | BJ20: 0 | BK20: =IF($A$20<=Lifespan,IF(Rotation2Value = 1,CR_Seed1,IF(Rotation2Value = 2,CR_Seed1,IF(Rotation2Value = 3,CR_Seed2, IF(Rotation2Value = 4, CR_Seed1, IF(Rotation2Value = 5, CR_Seed2, IF(Rotation2Value = 6, CR_Seed5,CR_Seed3)))))),0) -> 0 | BL20: 0 | BM20: 35.15 | BN20: 3 | BO20: =IF(A20<=Lifespan,IF(BN20=CurrentSOM,0,IF(BN20=CurrentSOM+1,CoverCropEcon_LongTerm!$D$76,IF(BN20=CurrentSOM+2,CoverCropEcon_LongTerm!$D$76*2,IF(BN20=CurrentSOM+3,CoverCropEcon_LongTerm!$D$76*3,IF(BN20=CurrentSOM+4,CoverCropEcon_LongTerm!$D$76*4,IF(BN20=CurrentSOM+5,CoverCropEcon_LongTerm!$D$76*5,IF(BN20=CurrentSOM+6,CoverCropEcon_LongTerm!$D$76*6,IF(BN20=CurrentSOM+7,CoverCropEcon_LongTerm!$D$76*7,IF(BN20=CurrentSOM+8,CoverCropEcon_LongTerm!$D$76*8,IF(BN20=CurrentSOM+9,CoverCropEcon_LongTerm!$D$76*9,IF(BN20=CurrentSOM+10,CoverCropEcon_LongTerm!$D$76*10))))))))))),0) -> 19.4 | BP20: 11.73731905 | BQ20: =IF(A20<=Lifespan,IF(BN20=CurrentSOM,0,IF(BN20=CurrentSOM+1,CoverCropEcon_LongTerm!$D$86,IF(BN20=CurrentSOM+2,CoverCropEcon_LongTerm!$D$86*2,IF(BN20=CurrentSOM+3,CoverCropEcon_LongTerm!$D$86*3,IF(BN20=CurrentSOM+4,CoverCropEcon_LongTerm!$D$86*4,IF(BN20=CurrentSOM+5,CoverCropEcon_LongTerm!$D$86*5,IF(BN20=CurrentSOM+6,CoverCropEcon_LongTerm!$D$86*6,IF(BN20=CurrentSOM+7,CoverCropEcon_LongTerm!$D$86*7,IF(BN20=CurrentSOM+8,CoverCropEcon_LongTerm!$D$86*8,IF(BN20=CurrentSOM+9,CoverCropEcon_LongTerm!$D$86*9,IF(BN20=CurrentSOM+10,CoverCropEcon_LongTerm!$D$86*10))))))))))),0) -> 12.5 | BR20: 7.562705573 | BS20: 31.9
A21: 18 | B21: =IF($A$21<=Lifespan,IF(RotationValue = 1,CCCost1,IF(RotationValue = 2,CCCost2,IF(RotationValue = 3, CCCost3, IF(RotationValue = 4, CCCost2,CCCost3)))),0) -> 59.04 | C21: 34.67977763 | D21: =IF($A$21<=YieldDecYrs,IF(RotationValue = 1,YieldDec1,IF(RotationValue = 2,YieldDec2,IF(RotationValue = 3, YieldDec3, IF(RotationValue = 4, YieldDec2,YieldDec3)))),0) -> 0 | E21: 0 | F21: =IF($A$21<=Lifespan,IF(RotationValue = 1,OtherCost1,IF(RotationValue = 2,OtherCost2,IF(RotationValue = 3, OtherCost3, IF(RotationValue = 4, OtherCost2,OtherCost3)))),0) -> 0 | G21: 0 | H21: 59.04 | I21: =IF($A$21<=Lifespan,IF(RotationValue = 1,Nutrient1,IF(RotationValue = 2,Nutrient2,IF(RotationValue = 3, Nutrient3, IF(RotationValue = 4, Nutrient2,Nutrient3)))),0) -> 16.5 | J21: 9.692011026 | K21: =IF($A$21<=Lifespan,IF(RotationValue = 1,Herb1,IF(RotationValue = 2,Herb2,IF(RotationValue = 3, Herb3, IF(RotationValue = 4, Herb2,Herb3)))),0) -> 3 | L21: 1.762183823 | M21: =IF($A$21<=Lifespan,IF(RotationValue = 1,YieldInc1,IF(RotationValue = 2,YieldInc2,IF(RotationValue = 3, YieldInc3, IF(RotationValue = 4, YieldInc2,YieldInc3)))),0) -> 0 | N21: 0 | O21: =IF($A$21<=Lifespan,IF(RotationValue = 1,Erosion1,IF(RotationValue = 2,Erosion2,IF(RotationValue = 3, Erosion3, IF(RotationValue = 4, Erosion2,Erosion3)))),0) -> 28.12 | P21: 16.51753637 | Q21: =IF($A$21<=Lifespan,IF(RotationValue = 1,OtherBenefit1,IF(RotationValue = 2,OtherBenefit2,IF(RotationValue = 3, OtherBenefit3, IF(RotationValue = 4, OtherBenefit2,OtherBenefit3)))),0) -> 0 | R21: 0 | S21: =IF($A$21<=Lifespan,IF(RotationValue = 1,Grazing1,IF(RotationValue = 2,Grazing2,IF(RotationValue = 3, Grazing3, IF(RotationValue = 4, Grazing2,Grazing3)))),0) -> 0 | T21: 0 | U21: =IF($A$21<=Lifespan,IF(RotationValue = 1,GrazingCC1,IF(RotationValue = 2,GrazingCC2,IF(RotationValue = 3, GrazingCC3, IF(RotationValue = 4, GrazingCC2,GrazingCC3)))),0) -> 57.7 | V21: 33.89266886 | W21: =IF($A$21<=Lifespan,IF(RotationValue = 1,Baling1,IF(RotationValue = 2,Baling2,IF(RotationValue = 3, Baling3, IF(RotationValue = 4, Baling2,Baling3)))),0) -> 0 | X21: 0 | Y21: =IF($A$21<=Lifespan,IF(RotationValue = 1,Seed1,IF(RotationValue = 2,Seed2,IF(RotationValue = 3, Seed3, IF(RotationValue = 4, Seed2,Seed3)))),0) -> 0 | Z21: 0 | AA21: 105.32 | AB21: 3 | AC21: =IF(A21<=Lifespan,IF(AB21=CurrentSOM,0,IF(AB21=CurrentSOM+1,CoverCropEcon_LongTerm!$D$76,IF(AB21=CurrentSOM+2,CoverCropEcon_LongTerm!$D$76*2,IF(AB21=CurrentSOM+3,CoverCropEcon_LongTerm!$D$76*3,IF(AB21=CurrentSOM+4,CoverCropEcon_LongTerm!$D$76*4,IF(AB21=CurrentSOM+5,CoverCropEcon_LongTerm!$D$76*5,IF(AB21=CurrentSOM+6,CoverCropEcon_LongTerm!$D$76*6,IF(AB21=CurrentSOM+7,CoverCropEcon_LongTerm!$D$76*7,IF(AB21=CurrentSOM+8,CoverCropEcon_LongTerm!$D$76*8,IF(AB21=CurrentSOM+9,CoverCropEcon_LongTerm!$D$76*9,IF(AB21=CurrentSOM+10,CoverCropEcon_LongTerm!$D$76*10))))))))))),0) -> 19.4 | AD21: 11.39545539 | AE21: =IF(A21<=Lifespan,IF(AB21=CurrentSOM,0,IF(AB21=CurrentSOM+1,CoverCropEcon_LongTerm!$D$86,IF(AB21=CurrentSOM+2,CoverCropEcon_LongTerm!$D$86*2,IF(AB21=CurrentSOM+3,CoverCropEcon_LongTerm!$D$86*3,IF(AB21=CurrentSOM+4,CoverCropEcon_LongTerm!$D$86*4,IF(AB21=CurrentSOM+5,CoverCropEcon_LongTerm!$D$86*5,IF(AB21=CurrentSOM+6,CoverCropEcon_LongTerm!$D$86*6,IF(AB21=CurrentSOM+7,CoverCropEcon_LongTerm!$D$86*7,IF(AB21=CurrentSOM+8,CoverCropEcon_LongTerm!$D$86*8,IF(AB21=CurrentSOM+9,CoverCropEcon_LongTerm!$D$86*9,IF(AB21=CurrentSOM+10,CoverCropEcon_LongTerm!$D$86*10))))))))))),0) -> 12.5 | AF21: 7.342432595 | AG21: 31.9 | AI21: =IF($A$21<=Lifespan,IF(RotationValue = 1,CashCrop1,IF(RotationValue = 2,CashCrop2,IF(RotationValue = 3, CashCrop3, IF(RotationValue = 4, CashCrop2,CashCrop3)))),"-") -> Corn | AJ21: =IF($A$21<=Lifespan,IF(RotationValue = 1,CR_IOC1,IF(RotationValue = 2,CR_IOC2,IF(RotationValue = 3, CR_IOC3, IF(RotationValue = 4, CR_IOC2,CR_IOC3)))),0) -> 254.5 | AK21: =IF($A$21<=Lifespan,IF(Rotation2Value = 1,CR_NRCC1,IF(Rotation2Value = 2,CR_NRCC2,IF(Rotation2Value = 3,CR_NRCC3, IF(Rotation2Value = 4, CR_NRCC2, IF(Rotation2Value = 5, CR_NRCC3, IF(Rotation2Value = 6, CR_NRCC6,CR_NRCC4)))))),"-") -> Corn | AL21: =IF($A$21<=Lifespan,IF(Rotation2Value = 1,CR_NRIOC1,IF(Rotation2Value = 2,CR_NRIOC2,IF(Rotation2Value = 3,CR_NRIOC3, IF(Rotation2Value = 4, CR_NRIOC2, IF(Rotation2Value = 5, CR_NRIOC3, IF(Rotation2Value = 6, CR_NRIOC6,CR_NRIOC4)))))),0) -> 175 | AM21: -79.5 | AN21: -46.69787131 | AP21: =IF($A$21<=Lifespan,IF(Rotation2Value = 1,CR_CCCost1,IF(Rotation2Value = 2,CR_CCCost2,IF(Rotation2Value = 3,CR_CCCost3, IF(Rotation2Value = 4, CR_CCCost2, IF(Rotation2Value = 5, CR_CCCost3, IF(Rotation2Value = 6, CR_CCCost6,CR_CCCost4)))))),0) -> 87.5 | AQ21: 51.39702817 | AR21: =IF($A$21<=CR_YieldDecYrs,IF(Rotation2Value = 1,CR_YieldDec1,IF(Rotation2Value = 2,CR_YieldDec2,IF(Rotation2Value = 3,CR_YieldDec3, IF(Rotation2Value = 4, CR_YieldDec2, IF(Rotation2Value = 5, CR_YieldDec3, IF(Rotation2Value = 6, CR_YieldDec6,CR_YieldDec4)))))),0) -> 0 | AS21: 0 | AT21: =IF($A$21<=Lifespan,IF(Rotation2Value = 1,CR_OtherCost1,IF(Rotation2Value = 2,CR_OtherCost2,IF(Rotation2Value = 3,CR_OtherCost3, IF(Rotation2Value = 4, CR_OtherCost2, IF(Rotation2Value = 5, CR_OtherCost3, IF(Rotation2Value = 6, CR_OtherCost6,CR_OtherCost4)))))),0) -> 0 | AU21: 0 | AV21: 87.5 | AW21: =IF($A$21<=Lifespan,IF(Rotation2Value = 1,CR_Nutrient1,IF(Rotation2Value = 2,CR_Nutrient2,IF(Rotation2Value = 3,CR_Nutrient3, IF(Rotation2Value = 4, CR_Nutrient2, IF(Rotation2Value = 5, CR_Nutrient3, IF(Rotation2Value = 6, CR_Nutrient6,CR_Nutrient4)))))),0) -> 16.5 | AX21: 9.692011026 | AY21: =IF($A$21<=Lifespan,IF(Rotation2Value = 1,CR_Herb1,IF(Rotation2Value = 2,CR_Herb2,IF(Rotation2Value = 3,CR_Herb3, IF(Rotation2Value = 4, CR_Herb2, IF(Rotation2Value = 5, CR_Herb3, IF(Rotation2Value = 6, CR_Herb6,CR_Herb4)))))),0) -> 3 | AZ21: 1.762183823 | BA21: =IF($A$21<=Lifespan,IF(Rotation2Value = 1,CR_YieldInc1,IF(Rotation2Value = 2,CR_YieldInc2,IF(Rotation2Value = 3,CR_YieldInc3, IF(Rotation2Value = 4, CR_YieldInc2, IF(Rotation2Value = 5, CR_YieldInc3, IF(Rotation2Value = 6, CR_YieldInc6,CR_YieldInc4)))))),0) -> 6 | BB21: 3.524367646 | BC21: =IF($A$21<=Lifespan,IF(Rotation2Value = 1,CR_Erosion1,IF(Rotation2Value = 2,CR_Erosion2,IF(Rotation2Value = 3,CR_Erosion3, IF(Rotation2Value = 4, CR_Erosion2, IF(Rotation2Value = 5, CR_Erosion3, IF(Rotation2Value = 6, CR_Erosion6,CR_Erosion4)))))),0) -> 35.15 | BD21: 20.64692046 | BE21: =IF($A$21<=Lifespan,IF(Rotation2Value = 1,CR_OtherBenefit1,IF(Rotation2Value = 2,CR_OtherBenefit2,IF(Rotation2Value = 3,CR_OtherBenefit3, IF(Rotation2Value = 4, CR_OtherBenefit2, IF(Rotation2Value = 5, CR_OtherBenefit3, IF(Rotation2Value = 6, CR_OtherBenefit6,CR_OtherBenefit4)))))),0) -> 0 | BF21: 0 | BG21: =IF($A$21<=Lifespan,IF(Rotation2Value = 1,CR_Grazing1,IF(Rotation2Value = 2,CR_Grazing2,IF(Rotation2Value = 3,CR_Grazing3, IF(Rotation2Value = 4, CR_Grazing2, IF(Rotation2Value = 5, CR_Grazing3, IF(Rotation2Value = 6, CR_Grazing6,CR_Grazing4)))))),0) -> 440 | BH21: 258.4536274 | BI21: =IF($A$21<=Lifespan,IF(Rotation2Value = 1,CR_Baling1,IF(Rotation2Value = 2,CR_Baling2,IF(Rotation2Value = 3,CR_Baling3, IF(Rotation2Value = 4, CR_Baling2, IF(Rotation2Value = 5, CR_Baling3, IF(Rotation2Value = 6, CR_Baling6,CR_Baling4)))))),0) -> 0 | BJ21: 0 | BK21: =IF($A$21<=Lifespan,IF(Rotation2Value = 1,CR_Seed1,IF(Rotation2Value = 2,CR_Seed2,IF(Rotation2Value = 3,CR_Seed3, IF(Rotation2Value = 4, CR_Seed2, IF(Rotation2Value = 5, CR_Seed3, IF(Rotation2Value = 6, CR_Seed6,CR_Seed4)))))),0) -> 0 | BL21: 0 | BM21: 500.65 | BN21: 3 | BO21: =IF(A21<=Lifespan,IF(BN21=CurrentSOM,0,IF(BN21=CurrentSOM+1,CoverCropEcon_LongTerm!$D$76,IF(BN21=CurrentSOM+2,CoverCropEcon_LongTerm!$D$76*2,IF(BN21=CurrentSOM+3,CoverCropEcon_LongTerm!$D$76*3,IF(BN21=CurrentSOM+4,CoverCropEcon_LongTerm!$D$76*4,IF(BN21=CurrentSOM+5,CoverCropEcon_LongTerm!$D$76*5,IF(BN21=CurrentSOM+6,CoverCropEcon_LongTerm!$D$76*6,IF(BN21=CurrentSOM+7,CoverCropEcon_LongTerm!$D$76*7,IF(BN21=CurrentSOM+8,CoverCropEcon_LongTerm!$D$76*8,IF(BN21=CurrentSOM+9,CoverCropEcon_LongTerm!$D$76*9,IF(BN21=CurrentSOM+10,CoverCropEcon_LongTerm!$D$76*10))))))))))),0) -> 19.4 | BP21: 11.39545539 | BQ21: =IF(A21<=Lifespan,IF(BN21=CurrentSOM,0,IF(BN21=CurrentSOM+1,CoverCropEcon_LongTerm!$D$86,IF(BN21=CurrentSOM+2,CoverCropEcon_LongTerm!$D$86*2,IF(BN21=CurrentSOM+3,CoverCropEcon_LongTerm!$D$86*3,IF(BN21=CurrentSOM+4,CoverCropEcon_LongTerm!$D$86*4,IF(BN21=CurrentSOM+5,CoverCropEcon_LongTerm!$D$86*5,IF(BN21=CurrentSOM+6,CoverCropEcon_LongTerm!$D$86*6,IF(BN21=CurrentSOM+7,CoverCropEcon_LongTerm!$D$86*7,IF(BN21=CurrentSOM+8,CoverCropEcon_LongTerm!$D$86*8,IF(BN21=CurrentSOM+9,CoverCropEcon_LongTerm!$D$86*9,IF(BN21=CurrentSOM+10,CoverCropEcon_LongTerm!$D$86*10))))))))))),0) -> 12.5 | BR21: 7.342432595 | BS21: 31.9
A22: 19 | B22: =IF($A$22<=Lifespan,IF(RotationValue = 1,CCCost1,IF(RotationValue = 2,CCCost1, IF(RotationValue = 3,CCCost1, IF(RotationValue = 4, CCCost3,CCCost4)))),0) -> 51.6 | C22: 29.42675898 | D22: =IF($A$22<=YieldDecYrs,IF(RotationValue = 1,YieldDec1,IF(RotationValue = 2,YieldDec1, IF(RotationValue = 3,YieldDec1, IF(RotationValue = 4, YieldDec3,YieldDec4)))),0) -> 0 | E22: 0 | F22: =IF($A$22<=Lifespan,IF(RotationValue = 1,OtherCost1,IF(RotationValue = 2,OtherCost1, IF(RotationValue = 3,OtherCost1, IF(RotationValue = 4, OtherCost3,OtherCost4)))),0) -> 0 | G22: 0 | H22: 51.6 | I22: =IF($A$22<=Lifespan,IF(RotationValue = 1,Nutrient1,IF(RotationValue = 2,Nutrient1, IF(RotationValue = 3,Nutrient1, IF(RotationValue = 4, Nutrient3,Nutrient4)))),0) -> 0 | J22: 0 | K22: =IF($A$22<=Lifespan,IF(RotationValue = 1,Herb1,IF(RotationValue = 2,Herb1, IF(RotationValue = 3,Herb1, IF(RotationValue = 4, Herb3,Herb4)))),0) -> 3 | L22: 1.71085808 | M22: =IF($A$22<=Lifespan,IF(RotationValue = 1,YieldInc1,IF(RotationValue = 2,YieldInc1, IF(RotationValue = 3,YieldInc1, IF(RotationValue = 4, YieldInc3,YieldInc4)))),0) -> 16.65 | N22: 9.495262346 | O22: =IF($A$22<=Lifespan,IF(RotationValue = 1,Erosion1,IF(RotationValue = 2,Erosion1, IF(RotationValue = 3,Erosion1, IF(RotationValue = 4, Erosion3,Erosion4)))),0) -> 14.06 | P22: 8.018221537 | Q22: =IF($A$22<=Lifespan,IF(RotationValue = 1,OtherBenefit1,IF(RotationValue = 2,OtherBenefit1, IF(RotationValue = 3,OtherBenefit1, IF(RotationValue = 4, OtherBenefit3,OtherBenefit4)))),0) -> 0 | R22: 0 | S22: =IF($A$22<=Lifespan,IF(RotationValue = 1,Grazing1,IF(RotationValue = 2,Grazing1, IF(RotationValue = 3,Grazing1, IF(RotationValue = 4, Grazing3,Grazing4)))),0) -> 0 | T22: 0 | U22: =IF($A$22<=Lifespan,IF(RotationValue = 1,GrazingCC1,IF(RotationValue = 2,GrazingCC1, IF(RotationValue = 3,GrazingCC1, IF(RotationValue = 4, GrazingCC3,GrazingCC4)))),0) -> 57.7 | V22: 32.90550375 | W22: =IF($A$22<=Lifespan,IF(RotationValue = 1,Baling1,IF(RotationValue = 2,Baling1, IF(RotationValue = 3,Baling1, IF(RotationValue = 4, Baling3,Baling4)))),0) -> 0 | X22: 0 | Y22: =IF($A$22<=Lifespan,IF(RotationValue = 1,Seed1,IF(RotationValue = 2,Seed1, IF(RotationValue = 3,Seed1, IF(RotationValue = 4, Seed3,Seed4)))),0) -> 0 | Z22: 0 | AA22: 91.41 | AB22: 3 | AC22: =IF(A22<=Lifespan,IF(AB22=CurrentSOM,0,IF(AB22=CurrentSOM+1,CoverCropEcon_LongTerm!$D$76,IF(AB22=CurrentSOM+2,CoverCropEcon_LongTerm!$D$76*2,IF(AB22=CurrentSOM+3,CoverCropEcon_LongTerm!$D$76*3,IF(AB22=CurrentSOM+4,CoverCropEcon_LongTerm!$D$76*4,IF(AB22=CurrentSOM+5,CoverCropEcon_LongTerm!$D$76*5,IF(AB22=CurrentSOM+6,CoverCropEcon_LongTerm!$D$76*6,IF(AB22=CurrentSOM+7,CoverCropEcon_LongTerm!$D$76*7,IF(AB22=CurrentSOM+8,CoverCropEcon_LongTerm!$D$76*8,IF(AB22=CurrentSOM+9,CoverCropEcon_LongTerm!$D$76*9,IF(AB22=CurrentSOM+10,CoverCropEcon_LongTerm!$D$76*10))))))))))),0) -> 19.4 | AD22: 11.06354892 | AE22: =IF(A22<=Lifespan,IF(AB22=CurrentSOM,0,IF(AB22=CurrentSOM+1,CoverCropEcon_LongTerm!$D$86,IF(AB22=CurrentSOM+2,CoverCropEcon_LongTerm!$D$86*2,IF(AB22=CurrentSOM+3,CoverCropEcon_LongTerm!$D$86*3,IF(AB22=CurrentSOM+4,CoverCropEcon_LongTerm!$D$86*4,IF(AB22=CurrentSOM+5,CoverCropEcon_LongTerm!$D$86*5,IF(AB22=CurrentSOM+6,CoverCropEcon_LongTerm!$D$86*6,IF(AB22=CurrentSOM+7,CoverCropEcon_LongTerm!$D$86*7,IF(AB22=CurrentSOM+8,CoverCropEcon_LongTerm!$D$86*8,IF(AB22=CurrentSOM+9,CoverCropEcon_LongTerm!$D$86*9,IF(AB22=CurrentSOM+10,CoverCropEcon_LongTerm!$D$86*10))))))))))),0) -> 12.5 | AF22: 7.128575335 | AG22: 31.9 | AI22: =IF($A$22<=Lifespan,IF(RotationValue = 1,CashCrop1,IF(RotationValue = 2,CashCrop1, IF(RotationValue = 3,CashCrop1, IF(RotationValue = 4, CashCrop3,CashCrop4)))),"-") -> Soybeans | AJ22: =IF($A$22<=Lifespan,IF(RotationValue = 1,CR_IOC1,IF(RotationValue = 2,CR_IOC1, IF(RotationValue = 3,CR_IOC1, IF(RotationValue = 4, CR_IOC3,CR_IOC4)))),0) -> 457.5 | AK22: =IF($A$22<=Lifespan,IF(Rotation2Value = 1,CR_NRCC1,IF(Rotation2Value = 2,CR_NRCC1, IF(Rotation2Value = 3,CR_NRCC1, IF(Rotation2Value = 4, CR_NRCC3,IF(Rotation2Value=5,CR_NRCC4, IF(Rotation2Value = 6,CR_NRCC1,CR_NRCC5)))))),"-") -> Soybeans | AL22: =IF($A$22<=Lifespan,IF(Rotation2Value = 1,CR_NRIOC1,IF(Rotation2Value = 2,CR_NRIOC1, IF(Rotation2Value = 3,CR_NRIOC1, IF(Rotation2Value = 4, CR_NRIOC3,IF(Rotation2Value=5,CR_NRIOC4, IF(Rotation2Value = 6,CR_NRIOC1,CR_NRIOC5)))))),0) -> 125 | AM22: -332.5 | AN22: -189.6201039 | AP22: =IF($A$22<=Lifespan,IF(Rotation2Value = 1,CR_CCCost1,IF(Rotation2Value = 2,CR_CCCost1, IF(Rotation2Value = 3,CR_CCCost1, IF(Rotation2Value = 4, CR_CCCost3,IF(Rotation2Value=5,CR_CCCost4, IF(Rotation2Value = 6,CR_CCCost1,CR_CCCost5)))))),0) -> 32.5 | AQ22: 18.53429587 | AR22: =IF($A$22<=CR_YieldDecYrs,IF(Rotation2Value = 1,CR_YieldDec1,IF(Rotation2Value = 2,CR_YieldDec1, IF(Rotation2Value = 3,CR_YieldDec1, IF(Rotation2Value = 4, CR_YieldDec3,IF(Rotation2Value=5,CR_YieldDec4, IF(Rotation2Value = 6,CR_YieldDec1,CR_YieldDec5)))))),0) -> 0 | AS22: 0 | AT22: =IF($A$22<=Lifespan,IF(Rotation2Value = 1,CR_OtherCost1,IF(Rotation2Value = 2,CR_OtherCost1, IF(Rotation2Value = 3,CR_OtherCost1, IF(Rotation2Value = 4, CR_OtherCost3,IF(Rotation2Value=5,CR_OtherCost4, IF(Rotation2Value = 6,CR_OtherCost1,CR_OtherCost5)))))),0) -> 0 | AU22: 0 | AV22: 32.5 | AW22: =IF($A$22<=Lifespan,IF(Rotation2Value = 1,CR_Nutrient1,IF(Rotation2Value = 2,CR_Nutrient1, IF(Rotation2Value = 3,CR_Nutrient1, IF(Rotation2Value = 4, CR_Nutrient3,IF(Rotation2Value=5,CR_Nutrient4, IF(Rotation2Value = 6,CR_Nutrient1,CR_Nutrient5)))))),0) -> 0 | AX22: 0 | AY22: =IF($A$22<=Lifespan,IF(Rotation2Value = 1,CR_Herb1,IF(Rotation2Value = 2,CR_Herb1, IF(Rotation2Value = 3,CR_Herb1, IF(Rotation2Value = 4, CR_Herb3,IF(Rotation2Value=5,CR_Herb4, IF(Rotation2Value = 6,CR_Herb1,CR_Herb5)))))),0) -> 3 | AZ22: 1.71085808 | BA22: =IF($A$22<=Lifespan,IF(Rotation2Value = 1,CR_YieldInc1,IF(Rotation2Value = 2,CR_YieldInc1, IF(Rotation2Value = 3,CR_YieldInc1, IF(Rotation2Value = 4, CR_YieldInc3,IF(Rotation2Value=5,CR_YieldInc4, IF(Rotation2Value = 6,CR_YieldInc1,CR_YieldInc5)))))),0) -> 10 | BB22: 5.702860268 | BC22: =IF($A$22<=Lifespan,IF(Rotation2Value = 1,CR_Erosion1,IF(Rotation2Value = 2,CR_Erosion1, IF(Rotation2Value = 3,CR_Erosion1, IF(Rotation2Value = 4, CR_Erosion3,IF(Rotation2Value=5,CR_Erosion4, IF(Rotation2Value = 6,CR_Erosion1,CR_Erosion5)))))),0) -> 35.15 | BD22: 20.04555384 | BE22: =IF($A$22<=Lifespan,IF(Rotation2Value = 1,CR_OtherBenefit1,IF(Rotation2Value = 2,CR_OtherBenefit1, IF(Rotation2Value = 3,CR_OtherBenefit1, IF(Rotation2Value = 4, CR_OtherBenefit3,IF(Rotation2Value=5,CR_OtherBenefit4, IF(Rotation2Value = 6,CR_OtherBenefit1,CR_OtherBenefit5)))))),0) -> 0 | BF22: 0 | BG22: =IF($A$22<=Lifespan,IF(Rotation2Value = 1,CR_Grazing1,IF(Rotation2Value = 2,CR_Grazing1, IF(Rotation2Value = 3,CR_Grazing1, IF(Rotation2Value = 4, CR_Grazing3,IF(Rotation2Value=5,CR_Grazing4, IF(Rotation2Value = 6,CR_Grazing1,CR_Grazing5)))))),0) -> 0 | BH22: 0 | BI22: =IF($A$22<=Lifespan,IF(Rotation2Value = 1,CR_Baling1,IF(Rotation2Value = 2,CR_Baling1, IF(Rotation2Value = 3,CR_Baling1, IF(Rotation2Value = 4, CR_Baling3,IF(Rotation2Value=5,CR_Baling4, IF(Rotation2Value = 6,CR_Baling1,CR_Baling5)))))),0) -> 0 | BJ22: 0 | BK22: =IF($A$22<=Lifespan,IF(Rotation2Value = 1,CR_Seed1,IF(Rotation2Value = 2,CR_Seed1, IF(Rotation2Value = 3,CR_Seed1, IF(Rotation2Value = 4, CR_Seed3,IF(Rotation2Value=5,CR_Seed4, IF(Rotation2Value = 6,CR_Seed1,CR_Seed5)))))),0) -> 0 | BL22: 0 | BM22: 48.15 | BN22: 3 | BO22: =IF(A22<=Lifespan,IF(BN22=CurrentSOM,0,IF(BN22=CurrentSOM+1,CoverCropEcon_LongTerm!$D$76,IF(BN22=CurrentSOM+2,CoverCropEcon_LongTerm!$D$76*2,IF(BN22=CurrentSOM+3,CoverCropEcon_LongTerm!$D$76*3,IF(BN22=CurrentSOM+4,CoverCropEcon_LongTerm!$D$76*4,IF(BN22=CurrentSOM+5,CoverCropEcon_LongTerm!$D$76*5,IF(BN22=CurrentSOM+6,CoverCropEcon_LongTerm!$D$76*6,IF(BN22=CurrentSOM+7,CoverCropEcon_LongTerm!$D$76*7,IF(BN22=CurrentSOM+8,CoverCropEcon_LongTerm!$D$76*8,IF(BN22=CurrentSOM+9,CoverCropEcon_LongTerm!$D$76*9,IF(BN22=CurrentSOM+10,CoverCropEcon_LongTerm!$D$76*10))))))))))),0) -> 19.4 | BP22: 11.06354892 | BQ22: =IF(A22<=Lifespan,IF(BN22=CurrentSOM,0,IF(BN22=CurrentSOM+1,CoverCropEcon_LongTerm!$D$86,IF(BN22=CurrentSOM+2,CoverCropEcon_LongTerm!$D$86*2,IF(BN22=CurrentSOM+3,CoverCropEcon_LongTerm!$D$86*3,IF(BN22=CurrentSOM+4,CoverCropEcon_LongTerm!$D$86*4,IF(BN22=CurrentSOM+5,CoverCropEcon_LongTerm!$D$86*5,IF(BN22=CurrentSOM+6,CoverCropEcon_LongTerm!$D$86*6,IF(BN22=CurrentSOM+7,CoverCropEcon_LongTerm!$D$86*7,IF(BN22=CurrentSOM+8,CoverCropEcon_LongTerm!$D$86*8,IF(BN22=CurrentSOM+9,CoverCropEcon_LongTerm!$D$86*9,IF(BN22=CurrentSOM+10,CoverCropEcon_LongTerm!$D$86*10))))))))))),0) -> 12.5 | BR22: 7.128575335 | BS22: 31.9
A23: 20 | B23: =IF($A$23<=Lifespan,IF(RotationValue = 1,CCCost1,IF(RotationValue = 2,CCCost2,IF(RotationValue = 3, CCCost2, IF(RotationValue = 4, CCCost4, CCCost5)))),0) -> 59.04 | C23: 32.68901653 | D23: =IF($A$23<=YieldDecYrs,IF(RotationValue = 1,YieldDec1,IF(RotationValue = 2,YieldDec2,IF(RotationValue = 3, YieldDec2, IF(RotationValue = 4, YieldDec4, YieldDec5)))),0) -> 0 | E23: 0 | F23: =IF($A$23<=Lifespan,IF(RotationValue = 1,OtherCost1,IF(RotationValue = 2,OtherCost2,IF(RotationValue = 3, OtherCost2, IF(RotationValue = 4, OtherCost4, OtherCost5)))),0) -> 0 | G23: 0 | H23: 59.04 | I23: =IF($A$23<=Lifespan,IF(RotationValue = 1,Nutrient1,IF(RotationValue = 2,Nutrient2,IF(RotationValue = 3, Nutrient2, IF(RotationValue = 4, Nutrient4, Nutrient5)))),0) -> 16.5 | J23: 9.135649944 | K23: =IF($A$23<=Lifespan,IF(RotationValue = 1,Herb1,IF(RotationValue = 2,Herb2,IF(RotationValue = 3, Herb2, IF(RotationValue = 4, Herb4, Herb5)))),0) -> 3 | L23: 1.661027263 | M23: =IF($A$23<=Lifespan,IF(RotationValue = 1,YieldInc1,IF(RotationValue = 2,YieldInc2,IF(RotationValue = 3, YieldInc2, IF(RotationValue = 4, YieldInc4, YieldInc5)))),0) -> 0 | N23: 0 | O23: =IF($A$23<=Lifespan,IF(RotationValue = 1,Erosion1,IF(RotationValue = 2,Erosion2,IF(RotationValue = 3, Erosion2, IF(RotationValue = 4, Erosion4, Erosion5)))),0) -> 28.12 | P23: 15.56936221 | Q23: =IF($A$23<=Lifespan,IF(RotationValue = 1,OtherBenefit1,IF(RotationValue = 2,OtherBenefit2,IF(RotationValue = 3, OtherBenefit2, IF(RotationValue = 4, OtherBenefit4, OtherBenefit5)))),0) -> 0 | R23: 0 | S23: =IF($A$23<=Lifespan,IF(RotationValue = 1,Grazing1,IF(RotationValue = 2,Grazing2,IF(RotationValue = 3, Grazing2, IF(RotationValue = 4, Grazing4, Grazing5)))),0) -> 0 | T23: 0 | U23: =IF($A$23<=Lifespan,IF(RotationValue = 1,GrazingCC1,IF(RotationValue = 2,GrazingCC2,IF(RotationValue = 3, GrazingCC2, IF(RotationValue = 4, GrazingCC4, GrazingCC5)))),0) -> 57.7 | V23: 31.94709102 | W23: =IF($A$23<=Lifespan,IF(RotationValue = 1,Baling1,IF(RotationValue = 2,Baling2,IF(RotationValue = 3, Baling2, IF(RotationValue = 4, Baling4, Baling5)))),0) -> 0 | X23: 0 | Y23: =IF($A$23<=Lifespan,IF(RotationValue = 1,Seed1,IF(RotationValue = 2,Seed2,IF(RotationValue = 3, Seed2, IF(RotationValue = 4, Seed4, Seed5)))),0) -> 0 | Z23: 0 | AA23: 105.32 | AB23: 3 | AC23: =IF(A23<=Lifespan,IF(AB23=CurrentSOM,0,IF(AB23=CurrentSOM+1,CoverCropEcon_LongTerm!$D$76,IF(AB23=CurrentSOM+2,CoverCropEcon_LongTerm!$D$76*2,IF(AB23=CurrentSOM+3,CoverCropEcon_LongTerm!$D$76*3,IF(AB23=CurrentSOM+4,CoverCropEcon_LongTerm!$D$76*4,IF(AB23=CurrentSOM+5,CoverCropEcon_LongTerm!$D$76*5,IF(AB23=CurrentSOM+6,CoverCropEcon_LongTerm!$D$76*6,IF(AB23=CurrentSOM+7,CoverCropEcon_LongTerm!$D$76*7,IF(AB23=CurrentSOM+8,CoverCropEcon_LongTerm!$D$76*8,IF(AB23=CurrentSOM+9,CoverCropEcon_LongTerm!$D$76*9,IF(AB23=CurrentSOM+10,CoverCropEcon_LongTerm!$D$76*10))))))))))),0) -> 19.4 | AD23: 10.74130963 | AE23: =IF(A23<=Lifespan,IF(AB23=CurrentSOM,0,IF(AB23=CurrentSOM+1,CoverCropEcon_LongTerm!$D$86,IF(AB23=CurrentSOM+2,CoverCropEcon_LongTerm!$D$86*2,IF(AB23=CurrentSOM+3,CoverCropEcon_LongTerm!$D$86*3,IF(AB23=CurrentSOM+4,CoverCropEcon_LongTerm!$D$86*4,IF(AB23=CurrentSOM+5,CoverCropEcon_LongTerm!$D$86*5,IF(AB23=CurrentSOM+6,CoverCropEcon_LongTerm!$D$86*6,IF(AB23=CurrentSOM+7,CoverCropEcon_LongTerm!$D$86*7,IF(AB23=CurrentSOM+8,CoverCropEcon_LongTerm!$D$86*8,IF(AB23=CurrentSOM+9,CoverCropEcon_LongTerm!$D$86*9,IF(AB23=CurrentSOM+10,CoverCropEcon_LongTerm!$D$86*10))))))))))),0) -> 12.5 | AF23: 6.920946927 | AG23: 31.9 | AI23: =IF($A$23<=Lifespan,IF(RotationValue = 1,CashCrop1,IF(RotationValue = 2,CashCrop2,IF(RotationValue = 3, CashCrop2, IF(RotationValue = 4, CashCrop4, CashCrop5)))),"-") -> Corn | AJ23: =IF($A$23<=Lifespan,IF(RotationValue = 1,CR_IOC1,IF(RotationValue = 2,CR_IOC2,IF(RotationValue = 3, CR_IOC2, IF(RotationValue = 4, CR_IOC4, CR_IOC5)))),0) -> 254.5 | AK23: =IF($A$23<=Lifespan,IF(Rotation2Value = 1,CR_NRCC1,IF(Rotation2Value = 2,CR_NRCC2,IF(Rotation2Value = 3, CR_NRCC2, IF(Rotation2Value = 4, CR_NRCC4, IF(Rotation2Value = 5, CR_NRCC5, IF(Rotation2Value = 6, CR_NRCC2,CR_NRCC6)))))),"-") -> Wheat | AL23: =IF($A$23<=Lifespan,IF(Rotation2Value = 1,CR_NRIOC1,IF(Rotation2Value = 2,CR_NRIOC2,IF(Rotation2Value = 3, CR_NRIOC2, IF(Rotation2Value = 4, CR_NRIOC4, IF(Rotation2Value = 5, CR_NRIOC5, IF(Rotation2Value = 6, CR_NRIOC2,CR_NRIOC6)))))),0) -> 176.25 | AM23: -78.25 | AN23: -43.32512777 | AP23: =IF($A$23<=Lifespan,IF(Rotation2Value = 1,CR_CCCost1,IF(Rotation2Value = 2,CR_CCCost2,IF(Rotation2Value = 3, CR_CCCost2, IF(Rotation2Value = 4, CR_CCCost4, IF(Rotation2Value = 5, CR_CCCost5, IF(Rotation2Value = 6, CR_CCCost2,CR_CCCost6)))))),0) -> 0 | AQ23: 0 | AR23: =IF($A$23<=CR_YieldDecYrs,IF(Rotation2Value = 1,CR_YieldDec1,IF(Rotation2Value = 2,CR_YieldDec2,IF(Rotation2Value = 3, CR_YieldDec2, IF(Rotation2Value = 4, CR_YieldDec4, IF(Rotation2Value = 5, CR_YieldDec5, IF(Rotation2Value = 6, CR_YieldDec2,CR_YieldDec6)))))),0) -> 0 | AS23: 0 | AT23: =IF($A$23<=Lifespan,IF(Rotation2Value = 1,CR_OtherCost1,IF(Rotation2Value = 2,CR_OtherCost2,IF(Rotation2Value = 3, CR_OtherCost2, IF(Rotation2Value = 4, CR_OtherCost4, IF(Rotation2Value = 5, CR_OtherCost5, IF(Rotation2Value = 6, CR_OtherCost2,CR_OtherCost6)))))),0) -> 0 | AU23: 0 | AV23: 0 | AW23: =IF($A$23<=Lifespan,IF(Rotation2Value = 1,CR_Nutrient1,IF(Rotation2Value = 2,CR_Nutrient2,IF(Rotation2Value = 3, CR_Nutrient2, IF(Rotation2Value = 4, CR_Nutrient4, IF(Rotation2Value = 5, CR_Nutrient5, IF(Rotation2Value = 6, CR_Nutrient2,CR_Nutrient6)))))),0) -> 0 | AX23: 0 | AY23: =IF($A$23<=Lifespan,IF(Rotation2Value = 1,CR_Herb1,IF(Rotation2Value = 2,CR_Herb2,IF(Rotation2Value = 3, CR_Herb2, IF(Rotation2Value = 4, CR_Herb4, IF(Rotation2Value = 5, CR_Herb5, IF(Rotation2Value = 6, CR_Herb2,CR_Herb6)))))),0) -> 0 | AZ23: 0 | BA23: =IF($A$23<=Lifespan,IF(Rotation2Value = 1,CR_YieldInc1,IF(Rotation2Value = 2,CR_YieldInc2,IF(Rotation2Value = 3, CR_YieldInc2, IF(Rotation2Value = 4, CR_YieldInc4, IF(Rotation2Value = 5, CR_YieldInc5, IF(Rotation2Value = 6, CR_YieldInc2,CR_YieldInc6)))))),0) -> 0 | BB23: 0 | BC23: =IF($A$23<=Lifespan,IF(Rotation2Value = 1,CR_Erosion1,IF(Rotation2Value = 2,CR_Erosion2,IF(Rotation2Value = 3, CR_Erosion2, IF(Rotation2Value = 4, CR_Erosion4, IF(Rotation2Value = 5, CR_Erosion5, IF(Rotation2Value = 6, CR_Erosion2,CR_Erosion6)))))),0) -> 35.15 | BD23: 19.46170276 | BE23: =IF($A$23<=Lifespan,IF(Rotation2Value = 1,CR_OtherBenefit1,IF(Rotation2Value = 2,CR_OtherBenefit2,IF(Rotation2Value = 3, CR_OtherBenefit2, IF(Rotation2Value = 4, CR_OtherBenefit4, IF(Rotation2Value = 5, CR_OtherBenefit5, IF(Rotation2Value = 6, CR_OtherBenefit2,CR_OtherBenefit6)))))),0) -> 0 | BF23: 0 | BG23: =IF($A$23<=Lifespan,IF(Rotation2Value = 1,CR_Grazing1,IF(Rotation2Value = 2,CR_Grazing2,IF(Rotation2Value = 3, CR_Grazing2, IF(Rotation2Value = 4, CR_Grazing4, IF(Rotation2Value = 5, CR_Grazing5, IF(Rotation2Value = 6, CR_Grazing2,CR_Grazing6)))))),0) -> 0 | BH23: 0 | BI23: =IF($A$23<=Lifespan,IF(Rotation2Value = 1,CR_Baling1,IF(Rotation2Value = 2,CR_Baling2,IF(Rotation2Value = 3, CR_Baling2, IF(Rotation2Value = 4, CR_Baling4, IF(Rotation2Value = 5, CR_Baling5, IF(Rotation2Value = 6, CR_Baling2,CR_Baling6)))))),0) -> 0 | BJ23: 0 | BK23: =IF($A$23<=Lifespan,IF(Rotation2Value = 1,CR_Seed1,IF(Rotation2Value = 2,CR_Seed2,IF(Rotation2Value = 3, CR_Seed2, IF(Rotation2Value = 4, CR_Seed4, IF(Rotation2Value = 5, CR_Seed5, IF(Rotation2Value = 6, CR_Seed2,CR_Seed6)))))),0) -> 0 | BL23: 0 | BM23: 35.15 | BN23: 3 | BO23: =IF(A23<=Lifespan,IF(BN23=CurrentSOM,0,IF(BN23=CurrentSOM+1,CoverCropEcon_LongTerm!$D$76,IF(BN23=CurrentSOM+2,CoverCropEcon_LongTerm!$D$76*2,IF(BN23=CurrentSOM+3,CoverCropEcon_LongTerm!$D$76*3,IF(BN23=CurrentSOM+4,CoverCropEcon_LongTerm!$D$76*4,IF(BN23=CurrentSOM+5,CoverCropEcon_LongTerm!$D$76*5,IF(BN23=CurrentSOM+6,CoverCropEcon_LongTerm!$D$76*6,IF(BN23=CurrentSOM+7,CoverCropEcon_LongTerm!$D$76*7,IF(BN23=CurrentSOM+8,CoverCropEcon_LongTerm!$D$76*8,IF(BN23=CurrentSOM+9,CoverCropEcon_LongTerm!$D$76*9,IF(BN23=CurrentSOM+10,CoverCropEcon_LongTerm!$D$76*10))))))))))),0) -> 19.4 | BP23: 10.74130963 | BQ23: =IF(A23<=Lifespan,IF(BN23=CurrentSOM,0,IF(BN23=CurrentSOM+1,CoverCropEcon_LongTerm!$D$86,IF(BN23=CurrentSOM+2,CoverCropEcon_LongTerm!$D$86*2,IF(BN23=CurrentSOM+3,CoverCropEcon_LongTerm!$D$86*3,IF(BN23=CurrentSOM+4,CoverCropEcon_LongTerm!$D$86*4,IF(BN23=CurrentSOM+5,CoverCropEcon_LongTerm!$D$86*5,IF(BN23=CurrentSOM+6,CoverCropEcon_LongTerm!$D$86*6,IF(BN23=CurrentSOM+7,CoverCropEcon_LongTerm!$D$86*7,IF(BN23=CurrentSOM+8,CoverCropEcon_LongTerm!$D$86*8,IF(BN23=CurrentSOM+9,CoverCropEcon_LongTerm!$D$86*9,IF(BN23=CurrentSOM+10,CoverCropEcon_LongTerm!$D$86*10))))))))))),0) -> 12.5 | BR23: 6.920946927 | BS23: 31.9
A24: 21 | B24: =IF($A$24<=Lifespan,IF(RotationValue = 1,CCCost1,IF(RotationValue = 2,CCCost1,IF(RotationValue = 3, CCCost3, IF(RotationValue = 4,CCCost1,CCCost1)))),0) -> 51.6 | C24: 27.73754264 | D24: =IF($A$24<=YieldDecYrs,IF(RotationValue = 1,YieldDec1,IF(RotationValue = 2,YieldDec1,IF(RotationValue = 3, YieldDec3, IF(RotationValue = 4,YieldDec1,YieldDec1)))),0) -> 0 | E24: 0 | F24: =IF($A$24<=Lifespan,IF(RotationValue = 1,OtherCost1,IF(RotationValue = 2,OtherCost1,IF(RotationValue = 3, OtherCost3, IF(RotationValue = 4,OtherCost1,OtherCost1)))),0) -> 0 | G24: 0 | H24: 51.6 | I24: =IF($A$24<=Lifespan,IF(RotationValue = 1,Nutrient1,IF(RotationValue = 2,Nutrient1,IF(RotationValue = 3, Nutrient3, IF(RotationValue = 4,Nutrient1,Nutrient1)))),0) -> 0 | J24: 0 | K24: =IF($A$24<=Lifespan,IF(RotationValue = 1,Herb1,IF(RotationValue = 2,Herb1,IF(RotationValue = 3, Herb3, IF(RotationValue = 4,Herb1,Herb1)))),0) -> 3 | L24: 1.612647828 | M24: =IF($A$24<=Lifespan,IF(RotationValue = 1,YieldInc1,IF(RotationValue = 2,YieldInc1,IF(RotationValue = 3, YieldInc3, IF(RotationValue = 4,YieldInc1,YieldInc1)))),0) -> 16.65 | N24: 8.950195444 | O24: =IF($A$24<=Lifespan,IF(RotationValue = 1,Erosion1,IF(RotationValue = 2,Erosion1,IF(RotationValue = 3, Erosion3, IF(RotationValue = 4,Erosion1,Erosion1)))),0) -> 14.06 | P24: 7.557942819 | Q24: =IF($A$24<=Lifespan,IF(RotationValue = 1,OtherBenefit1,IF(RotationValue = 2,OtherBenefit1,IF(RotationValue = 3, OtherBenefit3, IF(RotationValue = 4,OtherBenefit1,OtherBenefit1)))),0) -> 0 | R24: 0 | S24: =IF($A$24<=Lifespan,IF(RotationValue = 1,Grazing1,IF(RotationValue = 2,Grazing1,IF(RotationValue = 3, Grazing3, IF(RotationValue = 4,Grazing1,Grazing1)))),0) -> 0 | T24: 0 | U24: =IF($A$24<=Lifespan,IF(RotationValue = 1,GrazingCC1,IF(RotationValue = 2,GrazingCC1,IF(RotationValue = 3, GrazingCC3, IF(RotationValue = 4,GrazingCC1,GrazingCC1)))),0) -> 57.7 | V24: 31.01659322 | W24: =IF($A$24<=Lifespan,IF(RotationValue = 1,Baling1,IF(RotationValue = 2,Baling1,IF(RotationValue = 3, Baling3, IF(RotationValue = 4,Baling1,Baling1)))),0) -> 0 | X24: 0 | Y24: =IF($A$24<=Lifespan,IF(RotationValue = 1,Seed1,IF(RotationValue = 2,Seed1,IF(RotationValue = 3, Seed3, IF(RotationValue = 4,Seed1,Seed1)))),0) -> 0 | Z24: 0 | AA24: 91.41 | AB24: 4 | AC24: =IF(A24<=Lifespan,IF(AB24=CurrentSOM,0,IF(AB24=CurrentSOM+1,CoverCropEcon_LongTerm!$D$76,IF(AB24=CurrentSOM+2,CoverCropEcon_LongTerm!$D$76*2,IF(AB24=CurrentSOM+3,CoverCropEcon_LongTerm!$D$76*3,IF(AB24=CurrentSOM+4,CoverCropEcon_LongTerm!$D$76*4,IF(AB24=CurrentSOM+5,CoverCropEcon_LongTerm!$D$76*5,IF(AB24=CurrentSOM+6,CoverCropEcon_LongTerm!$D$76*6,IF(AB24=CurrentSOM+7,CoverCropEcon_LongTerm!$D$76*7,IF(AB24=CurrentSOM+8,CoverCropEcon_LongTerm!$D$76*8,IF(AB24=CurrentSOM+9,CoverCropEcon_LongTerm!$D$76*9,IF(AB24=CurrentSOM+10,CoverCropEcon_LongTerm!$D$76*10))))))))))),0) -> 38.8 | AD24: 20.85691191 | AE24: =IF(A24<=Lifespan,IF(AB24=CurrentSOM,0,IF(AB24=CurrentSOM+1,CoverCropEcon_LongTerm!$D$86,IF(AB24=CurrentSOM+2,CoverCropEcon_LongTerm!$D$86*2,IF(AB24=CurrentSOM+3,CoverCropEcon_LongTerm!$D$86*3,IF(AB24=CurrentSOM+4,CoverCropEcon_LongTerm!$D$86*4,IF(AB24=CurrentSOM+5,CoverCropEcon_LongTerm!$D$86*5,IF(AB24=CurrentSOM+6,CoverCropEcon_LongTerm!$D$86*6,IF(AB24=CurrentSOM+7,CoverCropEcon_LongTerm!$D$86*7,IF(AB24=CurrentSOM+8,CoverCropEcon_LongTerm!$D$86*8,IF(AB24=CurrentSOM+9,CoverCropEcon_LongTerm!$D$86*9,IF(AB24=CurrentSOM+10,CoverCropEcon_LongTerm!$D$86*10))))))))))),0) -> 25 | AF24: 13.4387319 | AG24: 63.8 | AI24: =IF($A$24<=Lifespan,IF(RotationValue = 1,CashCrop1,IF(RotationValue = 2,CashCrop1,IF(RotationValue = 3, CashCrop3, IF(RotationValue = 4,CashCrop1,CashCrop1)))),"-") -> Soybeans | AJ24: =IF($A$24<=Lifespan,IF(RotationValue = 1,CR_IOC1,IF(RotationValue = 2,CR_IOC1,IF(RotationValue = 3, CR_IOC3, IF(RotationValue = 4,CR_IOC1,CR_IOC1)))),0) -> 457.5 | AK24: =IF($A$24<=Lifespan,IF(Rotation2Value = 1,CR_NRCC1,IF(Rotation2Value = 2,CR_NRCC1,IF(Rotation2Value = 3, CR_NRCC3, IF(Rotation2Value = 4,CR_NRCC1,IF(Rotation2Value = 5, CR_NRCC1, IF(Rotation2Value =6, CR_NRCC3,CR_NRCC7)))))),"-") -> Corn | AL24: =IF($A$24<=Lifespan,IF(Rotation2Value = 1,CR_NRIOC1,IF(Rotation2Value = 2,CR_NRIOC1,IF(Rotation2Value = 3, CR_NRIOC3, IF(Rotation2Value = 4,CR_NRIOC1,IF(Rotation2Value = 5, CR_NRIOC1, IF(Rotation2Value =6, CR_NRIOC3,CR_NRIOC7)))))),0) -> 175 | AM24: -282.5 | AN24: -151.8576704 | AP24: =IF($A$24<=Lifespan,IF(Rotation2Value = 1,CR_CCCost1,IF(Rotation2Value = 2,CR_CCCost1,IF(Rotation2Value = 3, CR_CCCost3, IF(Rotation2Value = 4,CR_CCCost1,IF(Rotation2Value = 5, CR_CCCost1, IF(Rotation2Value =6, CR_CCCost3,CR_CCCost7)))))),0) -> 87.5 | AQ24: 47.03556164 | AR24: =IF($A$24<=CR_YieldDecYrs,IF(Rotation2Value = 1,CR_YieldDec1,IF(Rotation2Value = 2,CR_YieldDec1,IF(Rotation2Value = 3, CR_YieldDec3, IF(Rotation2Value = 4,CR_YieldDec1,IF(Rotation2Value = 5, CR_YieldDec1, IF(Rotation2Value =6, CR_YieldDec3,CR_YieldDec7)))))),0) -> 0 | AS24: 0 | AT24: =IF($A$24<=Lifespan,IF(Rotation2Value = 1,CR_OtherCost1,IF(Rotation2Value = 2,CR_OtherCost1,IF(Rotation2Value = 3, CR_OtherCost3, IF(Rotation2Value = 4,CR_OtherCost1,IF(Rotation2Value = 5, CR_OtherCost1, IF(Rotation2Value =6, CR_OtherCost3,CR_OtherCost7)))))),0) -> 0 | AU24: 0 | AV24: 87.5 | AW24: =IF($A$24<=Lifespan,IF(Rotation2Value = 1,CR_Nutrient1,IF(Rotation2Value = 2,CR_Nutrient1,IF(Rotation2Value = 3, CR_Nutrient3, IF(Rotation2Value = 4,CR_Nutrient1,IF(Rotation2Value = 5, CR_Nutrient1, IF(Rotation2Value =6, CR_Nutrient3,CR_Nutrient7)))))),0) -> 16.5 | AX24: 8.869563052 | AY24: =IF($A$24<=Lifespan,IF(Rotation2Value = 1,CR_Herb1,IF(Rotation2Value = 2,CR_Herb1,IF(Rotation2Value = 3, CR_Herb3, IF(Rotation2Value = 4,CR_Herb1,IF(Rotation2Value = 5, CR_Herb1, IF(Rotation2Value =6, CR_Herb3,CR_Herb7)))))),0) -> 3 | AZ24: 1.612647828 | BA24: =IF($A$24<=Lifespan,IF(Rotation2Value = 1,CR_YieldInc1,IF(Rotation2Value = 2,CR_YieldInc1,IF(Rotation2Value = 3, CR_YieldInc3, IF(Rotation2Value = 4,CR_YieldInc1,IF(Rotation2Value = 5, CR_YieldInc1, IF(Rotation2Value =6, CR_YieldInc3,CR_YieldInc7)))))),0) -> 6 | BB24: 3.225295655 | BC24: =IF($A$24<=Lifespan,IF(Rotation2Value = 1,CR_Erosion1,IF(Rotation2Value = 2,CR_Erosion1,IF(Rotation2Value = 3, CR_Erosion3, IF(Rotation2Value = 4,CR_Erosion1,IF(Rotation2Value = 5, CR_Erosion1, IF(Rotation2Value =6, CR_Erosion3,CR_Erosion7)))))),0) -> 35.15 | BD24: 18.89485705 | BE24: =IF($A$24<=Lifespan,IF(Rotation2Value = 1,CR_OtherBenefit1,IF(Rotation2Value = 2,CR_OtherBenefit1,IF(Rotation2Value = 3, CR_OtherBenefit3, IF(Rotation2Value = 4,CR_OtherBenefit1,IF(Rotation2Value = 5, CR_OtherBenefit1, IF(Rotation2Value =6, CR_OtherBenefit3,CR_OtherBenefit7)))))),0) -> 0 | BF24: 0 | BG24: =IF($A$24<=Lifespan,IF(Rotation2Value = 1,CR_Grazing1,IF(Rotation2Value = 2,CR_Grazing1,IF(Rotation2Value = 3, CR_Grazing3, IF(Rotation2Value = 4,CR_Grazing1,IF(Rotation2Value = 5, CR_Grazing1, IF(Rotation2Value =6, CR_Grazing3,CR_Grazing7)))))),0) -> 440 | BH24: 236.5216814 | BI24: =IF($A$24<=Lifespan,IF(Rotation2Value = 1,CR_Baling1,IF(Rotation2Value = 2,CR_Baling1,IF(Rotation2Value = 3, CR_Baling3, IF(Rotation2Value = 4,CR_Baling1,IF(Rotation2Value = 5, CR_Baling1, IF(Rotation2Value =6, CR_Baling3,CR_Baling7)))))),0) -> 0 | BJ24: 0 | BK24: =IF($A$24<=Lifespan,IF(Rotation2Value = 1,CR_Seed1,IF(Rotation2Value = 2,CR_Seed1,IF(Rotation2Value = 3, CR_Seed3, IF(Rotation2Value = 4,CR_Seed1,IF(Rotation2Value = 5, CR_Seed1, IF(Rotation2Value =6, CR_Seed3,CR_Seed7)))))),0) -> 0 | BL24: 0 | BM24: 500.65 | BN24: 3 | BO24: =IF(A24<=Lifespan,IF(BN24=CurrentSOM,0,IF(BN24=CurrentSOM+1,CoverCropEcon_LongTerm!$D$76,IF(BN24=CurrentSOM+2,CoverCropEcon_LongTerm!$D$76*2,IF(BN24=CurrentSOM+3,CoverCropEcon_LongTerm!$D$76*3,IF(BN24=CurrentSOM+4,CoverCropEcon_LongTerm!$D$76*4,IF(BN24=CurrentSOM+5,CoverCropEcon_LongTerm!$D$76*5,IF(BN24=CurrentSOM+6,CoverCropEcon_LongTerm!$D$76*6,IF(BN24=CurrentSOM+7,CoverCropEcon_LongTerm!$D$76*7,IF(BN24=CurrentSOM+8,CoverCropEcon_LongTerm!$D$76*8,IF(BN24=CurrentSOM+9,CoverCropEcon_LongTerm!$D$76*9,IF(BN24=CurrentSOM+10,CoverCropEcon_LongTerm!$D$76*10))))))))))),0) -> 19.4 | BP24: 10.42845595 | BQ24: =IF(A24<=Lifespan,IF(BN24=CurrentSOM,0,IF(BN24=CurrentSOM+1,CoverCropEcon_LongTerm!$D$86,IF(BN24=CurrentSOM+2,CoverCropEcon_LongTerm!$D$86*2,IF(BN24=CurrentSOM+3,CoverCropEcon_LongTerm!$D$86*3,IF(BN24=CurrentSOM+4,CoverCropEcon_LongTerm!$D$86*4,IF(BN24=CurrentSOM+5,CoverCropEcon_LongTerm!$D$86*5,IF(BN24=CurrentSOM+6,CoverCropEcon_LongTerm!$D$86*6,IF(BN24=CurrentSOM+7,CoverCropEcon_LongTerm!$D$86*7,IF(BN24=CurrentSOM+8,CoverCropEcon_LongTerm!$D$86*8,IF(BN24=CurrentSOM+9,CoverCropEcon_LongTerm!$D$86*9,IF(BN24=CurrentSOM+10,CoverCropEcon_LongTerm!$D$86*10))))))))))),0) -> 12.5 | BR24: 6.719365949 | BS24: 31.9
A25: 22 | B25: =IF($A$25<=Lifespan,IF(RotationValue = 1,CCCost1,IF(RotationValue = 2,CCCost2,IF(RotationValue = 3, CCCost1, IF(RotationValue = 4, CCCost2, CCCost2)))),0) -> 59.04 | C25: 30.81253325 | D25: =IF($A$25<=YieldDecYrs,IF(RotationValue = 1,YieldDec1,IF(RotationValue = 2,YieldDec2,IF(RotationValue = 3, YieldDec1, IF(RotationValue = 4, YieldDec2, YieldDec2)))),0) -> 0 | E25: 0 | F25: =IF($A$25<=Lifespan,IF(RotationValue = 1,OtherCost1,IF(RotationValue = 2,OtherCost2,IF(RotationValue = 3, OtherCost1, IF(RotationValue = 4, OtherCost2, OtherCost2)))),0) -> 0 | G25: 0 | H25: 59.04 | I25: =IF($A$25<=Lifespan,IF(RotationValue = 1,Nutrient1,IF(RotationValue = 2,Nutrient2,IF(RotationValue = 3, Nutrient1, IF(RotationValue = 4, Nutrient2, Nutrient2)))),0) -> 16.5 | J25: 8.611226265 | K25: =IF($A$25<=Lifespan,IF(RotationValue = 1,Herb1,IF(RotationValue = 2,Herb2,IF(RotationValue = 3, Herb1, IF(RotationValue = 4, Herb2, Herb2)))),0) -> 3 | L25: 1.565677503 | M25: =IF($A$25<=Lifespan,IF(RotationValue = 1,YieldInc1,IF(RotationValue = 2,YieldInc2,IF(RotationValue = 3, YieldInc1, IF(RotationValue = 4, YieldInc2, YieldInc2)))),0) -> 0 | N25: 0 | O25: =IF($A$25<=Lifespan,IF(RotationValue = 1,Erosion1,IF(RotationValue = 2,Erosion2,IF(RotationValue = 3, Erosion1, IF(RotationValue = 4, Erosion2, Erosion2)))),0) -> 28.12 | P25: 14.67561712 | Q25: =IF($A$25<=Lifespan,IF(RotationValue = 1,OtherBenefit1,IF(RotationValue = 2,OtherBenefit2,IF(RotationValue = 3, OtherBenefit1, IF(RotationValue = 4, OtherBenefit2, OtherBenefit2)))),0) -> 0 | R25: 0 | S25: =IF($A$25<=Lifespan,IF(RotationValue = 1,Grazing1,IF(RotationValue = 2,Grazing2,IF(RotationValue = 3, Grazing1, IF(RotationValue = 4, Grazing2, Grazing2)))),0) -> 0 | T25: 0 | U25: =IF($A$25<=Lifespan,IF(RotationValue = 1,GrazingCC1,IF(RotationValue = 2,GrazingCC2,IF(RotationValue = 3, GrazingCC1, IF(RotationValue = 4, GrazingCC2, GrazingCC2)))),0) -> 57.7 | V25: 30.1131973 | W25: =IF($A$25<=Lifespan,IF(RotationValue = 1,Baling1,IF(RotationValue = 2,Baling2,IF(RotationValue = 3, Baling1, IF(RotationValue = 4, Baling2, Baling2)))),0) -> 0 | X25: 0 | Y25: =IF($A$25<=Lifespan,IF(RotationValue = 1,Seed1,IF(RotationValue = 2,Seed2,IF(RotationValue = 3, Seed1, IF(RotationValue = 4, Seed2, Seed2)))),0) -> 0 | Z25: 0 | AA25: 105.32 | AB25: 4 | AC25: =IF(A25<=Lifespan,IF(AB25=CurrentSOM,0,IF(AB25=CurrentSOM+1,CoverCropEcon_LongTerm!$D$76,IF(AB25=CurrentSOM+2,CoverCropEcon_LongTerm!$D$76*2,IF(AB25=CurrentSOM+3,CoverCropEcon_LongTerm!$D$76*3,IF(AB25=CurrentSOM+4,CoverCropEcon_LongTerm!$D$76*4,IF(AB25=CurrentSOM+5,CoverCropEcon_LongTerm!$D$76*5,IF(AB25=CurrentSOM+6,CoverCropEcon_LongTerm!$D$76*6,IF(AB25=CurrentSOM+7,CoverCropEcon_LongTerm!$D$76*7,IF(AB25=CurrentSOM+8,CoverCropEcon_LongTerm!$D$76*8,IF(AB25=CurrentSOM+9,CoverCropEcon_LongTerm!$D$76*9,IF(AB25=CurrentSOM+10,CoverCropEcon_LongTerm!$D$76*10))))))))))),0) -> 38.8 | AD25: 20.24942903 | AE25: =IF(A25<=Lifespan,IF(AB25=CurrentSOM,0,IF(AB25=CurrentSOM+1,CoverCropEcon_LongTerm!$D$86,IF(AB25=CurrentSOM+2,CoverCropEcon_LongTerm!$D$86*2,IF(AB25=CurrentSOM+3,CoverCropEcon_LongTerm!$D$86*3,IF(AB25=CurrentSOM+4,CoverCropEcon_LongTerm!$D$86*4,IF(AB25=CurrentSOM+5,CoverCropEcon_LongTerm!$D$86*5,IF(AB25=CurrentSOM+6,CoverCropEcon_LongTerm!$D$86*6,IF(AB25=CurrentSOM+7,CoverCropEcon_LongTerm!$D$86*7,IF(AB25=CurrentSOM+8,CoverCropEcon_LongTerm!$D$86*8,IF(AB25=CurrentSOM+9,CoverCropEcon_LongTerm!$D$86*9,IF(AB25=CurrentSOM+10,CoverCropEcon_LongTerm!$D$86*10))))))))))),0) -> 25 | AF25: 13.04731252 | AG25: 63.8 | AI25: =IF($A$25<=Lifespan,IF(RotationValue = 1,CashCrop1,IF(RotationValue = 2,CashCrop2,IF(RotationValue = 3, CashCrop1, IF(RotationValue = 4, CashCrop2, CashCrop2)))),"-") -> Corn | AJ25: =IF($A$25<=Lifespan,IF(RotationValue = 1,CR_IOC1,IF(RotationValue = 2,CR_IOC2,IF(RotationValue = 3, CR_IOC1, IF(RotationValue = 4, CR_IOC2, CR_IOC2)))),0) -> 254.5 | AK25: =IF($A$25<=Lifespan,IF(Rotation2Value = 1,CR_NRCC1,IF(Rotation2Value = 2,CR_NRCC2,IF(Rotation2Value = 3, CR_NRCC1, IF(Rotation2Value = 4, CR_NRCC2, IF(RotationValue = 5, CR_NRCC2, IF(RotationValue = 6, CR_NRCC4,CR_NRCC1)))))),"-") -> Soybeans | AL25: =IF($A$25<=Lifespan,IF(Rotation2Value = 1,CR_NRIOC1,IF(Rotation2Value = 2,CR_NRIOC2,IF(Rotation2Value = 3, CR_NRIOC1, IF(Rotation2Value = 4, CR_NRIOC2, IF(RotationValue = 5, CR_NRIOC2, IF(RotationValue = 6, CR_NRIOC4,CR_NRIOC1)))))),0) -> 125 | AM25: -129.5 | AN25: -67.58507886 | AP25: =IF($A$25<=Lifespan,IF(Rotation2Value = 1,CR_CCCost1,IF(Rotation2Value = 2,CR_CCCost2,IF(Rotation2Value = 3, CR_CCCost1, IF(Rotation2Value = 4, CR_CCCost2, IF(RotationValue = 5, CR_CCCost2, IF(RotationValue = 6, CR_CCCost4,CR_CCCost1)))))),0) -> 32.5 | AQ25: 16.96150628 | AR25: =IF($A$25<=CR_YieldDecYrs,IF(Rotation2Value = 1,CR_YieldDec1,IF(Rotation2Value = 2,CR_YieldDec2,IF(Rotation2Value = 3, CR_YieldDec1, IF(Rotation2Value = 4, CR_YieldDec2, IF(RotationValue = 5, CR_YieldDec2, IF(RotationValue = 6, CR_YieldDec4,CR_YieldDec1)))))),0) -> 0 | AS25: 0 | AT25: =IF($A$25<=Lifespan,IF(Rotation2Value = 1,CR_OtherCost1,IF(Rotation2Value = 2,CR_OtherCost2,IF(Rotation2Value = 3, CR_OtherCost1, IF(Rotation2Value = 4, CR_OtherCost2, IF(RotationValue = 5, CR_OtherCost2, IF(RotationValue = 6, CR_OtherCost4,CR_OtherCost1)))))),0) -> 0 | AU25: 0 | AV25: 32.5 | AW25: =IF($A$25<=Lifespan,IF(Rotation2Value = 1,CR_Nutrient1,IF(Rotation2Value = 2,CR_Nutrient2,IF(Rotation2Value = 3, CR_Nutrient1, IF(Rotation2Value = 4, CR_Nutrient2, IF(RotationValue = 5, CR_Nutrient2, IF(RotationValue = 6, CR_Nutrient4,CR_Nutrient1)))))),0) -> 0 | AX25: 0 | AY25: =IF($A$25<=Lifespan,IF(Rotation2Value = 1,CR_Herb1,IF(Rotation2Value = 2,CR_Herb2,IF(Rotation2Value = 3, CR_Herb1, IF(Rotation2Value = 4, CR_Herb2, IF(RotationValue = 5, CR_Herb2, IF(RotationValue = 6, CR_Herb4,CR_Herb1)))))),0) -> 3 | AZ25: 1.565677503 | BA25: =IF($A$25<=Lifespan,IF(Rotation2Value = 1,CR_YieldInc1,IF(Rotation2Value = 2,CR_YieldInc2,IF(Rotation2Value = 3, CR_YieldInc1, IF(Rotation2Value = 4, CR_YieldInc2, IF(RotationValue = 5, CR_YieldInc2, IF(RotationValue = 6, CR_YieldInc4,CR_YieldInc1)))))),0) -> 10 | BB25: 5.218925009 | BC25: =IF($A$25<=Lifespan,IF(Rotation2Value = 1,CR_Erosion1,IF(Rotation2Value = 2,CR_Erosion2,IF(Rotation2Value = 3, CR_Erosion1, IF(Rotation2Value = 4, CR_Erosion2, IF(RotationValue = 5, CR_Erosion2, IF(RotationValue = 6, CR_Erosion4,CR_Erosion1)))))),0) -> 35.15 | BD25: 18.34452141 | BE25: =IF($A$25<=Lifespan,IF(Rotation2Value = 1,CR_OtherBenefit1,IF(Rotation2Value = 2,CR_OtherBenefit2,IF(Rotation2Value = 3, CR_OtherBenefit1, IF(Rotation2Value = 4, CR_OtherBenefit2, IF(RotationValue = 5, CR_OtherBenefit2, IF(RotationValue = 6, CR_OtherBenefit4,CR_OtherBenefit1)))))),0) -> 0 | BF25: 0 | BG25: =IF($A$25<=Lifespan,IF(Rotation2Value = 1,CR_Grazing1,IF(Rotation2Value = 2,CR_Grazing2,IF(Rotation2Value = 3, CR_Grazing1, IF(Rotation2Value = 4, CR_Grazing2, IF(RotationValue = 5, CR_Grazing2, IF(RotationValue = 6, CR_Grazing4,CR_Grazing1)))))),0) -> 0 | BH25: 0 | BI25: =IF($A$25<=Lifespan,IF(Rotation2Value = 1,CR_Baling1,IF(Rotation2Value = 2,CR_Baling2,IF(Rotation2Value = 3, CR_Baling1, IF(Rotation2Value = 4, CR_Baling2, IF(RotationValue = 5, CR_Baling2, IF(RotationValue = 6, CR_Baling4,CR_Baling1)))))),0) -> 0 | BJ25: 0 | BK25: =IF($A$25<=Lifespan,IF(Rotation2Value = 1,CR_Seed1,IF(Rotation2Value = 2,CR_Seed2,IF(Rotation2Value = 3, CR_Seed1, IF(Rotation2Value = 4, CR_Seed2, IF(RotationValue = 5, CR_Seed2, IF(RotationValue = 6, CR_Seed4,CR_Seed1)))))),0) -> 0 | BL25: 0 | BM25: 48.15 | BN25: 3 | BO25: =IF(A25<=Lifespan,IF(BN25=CurrentSOM,0,IF(BN25=CurrentSOM+1,CoverCropEcon_LongTerm!$D$76,IF(BN25=CurrentSOM+2,CoverCropEcon_LongTerm!$D$76*2,IF(BN25=CurrentSOM+3,CoverCropEcon_LongTerm!$D$76*3,IF(BN25=CurrentSOM+4,CoverCropEcon_LongTerm!$D$76*4,IF(BN25=CurrentSOM+5,CoverCropEcon_LongTerm!$D$76*5,IF(BN25=CurrentSOM+6,CoverCropEcon_LongTerm!$D$76*6,IF(BN25=CurrentSOM+7,CoverCropEcon_LongTerm!$D$76*7,IF(BN25=CurrentSOM+8,CoverCropEcon_LongTerm!$D$76*8,IF(BN25=CurrentSOM+9,CoverCropEcon_LongTerm!$D$76*9,IF(BN25=CurrentSOM+10,CoverCropEcon_LongTerm!$D$76*10))))))))))),0) -> 19.4 | BP25: 10.12471452 | BQ25: =IF(A25<=Lifespan,IF(BN25=CurrentSOM,0,IF(BN25=CurrentSOM+1,CoverCropEcon_LongTerm!$D$86,IF(BN25=CurrentSOM+2,CoverCropEcon_LongTerm!$D$86*2,IF(BN25=CurrentSOM+3,CoverCropEcon_LongTerm!$D$86*3,IF(BN25=CurrentSOM+4,CoverCropEcon_LongTerm!$D$86*4,IF(BN25=CurrentSOM+5,CoverCropEcon_LongTerm!$D$86*5,IF(BN25=CurrentSOM+6,CoverCropEcon_LongTerm!$D$86*6,IF(BN25=CurrentSOM+7,CoverCropEcon_LongTerm!$D$86*7,IF(BN25=CurrentSOM+8,CoverCropEcon_LongTerm!$D$86*8,IF(BN25=CurrentSOM+9,CoverCropEcon_LongTerm!$D$86*9,IF(BN25=CurrentSOM+10,CoverCropEcon_LongTerm!$D$86*10))))))))))),0) -> 12.5 | BR25: 6.523656261 | BS25: 31.9
